Workbook

Sheet Welcome
B1: Cage Aquaculture Analysis
D29: Authors: Dr. Kwamena Quagrainie & Ulka Malekar

Sheet ENTER DATA HERE - Budget
B1: CAGE CULTURE
B2: The budget presented below is a guide to assist you in projecting costs and returns for your aquaculture enterprise. This spreadsheet is just a tool to be used for planning your aquaculture operation and developing your own budget, specific to your situation.
B3: You should change the cells in yellow with blue font to reflect your situation.
B5: Choose the fish species from the drop down menu: | F5: Hybrid Striped Bass
B7: Variables | D7: Unit | E7: Value
B8: Length of production | D8: month | E8: 18 | F8: time from fingerling to harvest
B9: Number of fish stockings in a year | D9: #/yr | E9: 3 | F9: number of times you wish to harvest/stock in a year
B10: Number of cages stocked per cycle | D10: cages/cycle | E10: 10 | F10: number of cages you wish to harvest/stock at one time
B11: Total number of cages needed | D11: cages | E11: =E9*E10 -> 30 | Q11: Fish Species | R11: Cage Shape | S11: Cage
B12: Water surface acreage needed | D12: acres | E12: =($H$30/$E$30)/5000 -> 3.745060688 | F12: Based on max fish production of 5K lb/ac/year | Q12: Catfish | R12: Round | S12: Rectangular
B13: Cage Shape | E13: Round | F13: choose the cage size from the drop down menu | Q13: Hybrid Striped Bass | R13: Rectangular
B14: Cage Dimensions | Q14: Large Mouth Bass
C15: Diameter | E15: 5 | Q15: Trout
C16: Length | E16: 12 | Q16: Tilapia
C17: Width | E17: 6
C18: Height | E18: 6
B19: Individual Cage Volume | D19: gals | E19: =IF(E13="Rectangular",E16*E17*(E18-1)*7.48,3.1415*(E15/2)^2*(E18-1)*7.48) -> 734.325625 | F19: volume is calculated allowing a foot above water surface
B20: Stocking density/cage | D20: /cage | E20: =$E$19/$E$23 -> 489.5504167 | F20: stocking rate is calculated as a lb fish at market per gallon of water
B21: Fingerling size (5") | D21: lb | E21: 0.03 | F21: assumes 1,000 5"-fingerlings weigh 30lb
B22: Minimum Harvest size | D22: lb | E22: 1
B23: Maximum Harvest size | D23: lb | E23: 1.5
B24: Feed Conversion Ratio (FCR) | E24: 1.5
B25: Survival | D25: % | E25: 0.85 | F25: % of fish that survives until harvest
B27: Write down stocking months | C27: April | D27: May | E27: June
B29: Gross Receipts: | E29: $/unit | F29: quantity / cycle | G29: $/cycle | H29: $/year
B30: Fish sale | D30: $/lb | E30: 3 | F30: =$E$20*$E$23*$E$25*$E$10 -> 6241.767813 | G30: =E30*F30 -> 18725.30344 | H30: =+G30*$E$9 -> 56175.91031
B31: Miscellaneous Receipts | D31: $/lb | E31: 0 | G31: =E31 -> 0
B32: Total Receipts | G32: =SUM(G30:G31) -> 18725.30344 | H32: =SUM(H30:H31) -> 56175.91031
B34: Variable Inputs: | E34: $/unit | F34: quantity / cycle | G34: $/cycle | H34: $/year | I34: $/lb/yr | J34: % of total cost
B35: Fingerlings | D35: $ | E35: 0.3 | F35: =+$E$20*$E$10 -> 4895.504167 | G35: =+E35*F35 -> 1468.65125 | H35: =+G35*$E$9 -> 4405.95375 | I35: =+H35/($F$30*$E$9) -> 0.2352941176 | J35: =H35/SUM($H$45,$H$54,$H$80,$J$71) -> 0.1249540166
B36: Feed | D36: $/lb | E36: 0.45 | F36: =($F$30-($E$20*$E$21*$E$10))*$E$24 -> 9142.354031 | G36: =+E36*F36 -> 4114.059314 | H36: 12342.17794 | I36: 0.6591176471 | J36: 0.3500274391
B37: Chemicals | D37: $/cage | E37: 5 | F37: =+E37*$E$10 -> 50 | G37: =E37*F37 -> 250 | H37: 750 | I37: 0.04005275549 | J37: 0.02127019887
B38: Electricity cost for aeration | D38: $/kwh | E38: 0.1 | F38: =24*30*5 -> 3600 | G38: =E38*F38 -> 360 | H38: =G38*E9 -> 1080 | I38: =+H38/($F$30*$E$9) -> 0.0576759679 | J38: 0.03062908637 | K38: assumes 24 hr continuous aeration from May-Sep
B39: Hired Labor - Hours | D39: $/hr | E39: 10 | F39: 0 | G39: NA | H39: =E39*F39 -> 0 | I39: =+H39/($F$30*$E$9) -> 0 | J39: 0 | K39: assumes unpaid owner labor throughout production
B40: Harvesting | D40: $/lb | E40: 0.04 | F40: =$F$30 -> 6241.767813 | G40: =E40*F40 -> 249.6707125 | H40: 749.0121375 | I40: =+H40/($F$30*$E$9) -> 0.04 | J40: 0.02124218283
B41: Transportation Costs of Fingerlings | D41: $/fish | E41: 0.02 | F41: =+$E$20*$E$10 -> 4895.504167 | G41: =E41*F41 -> 97.91008333 | H41: 293.73025 | I41: 0.01568627451 | J41: 0.008330267775
B42: Transportation Costs to Market | D42: $/lb | E42: 0 | F42: =$F$30 -> 6241.767813 | G42: =E42*F42 -> 0 | H42: 0 | I42: 0 | J42: 0
B43: Miscellaneous | D43: $/cage | E43: 10 | F43: =+E43*$E$10 -> 100 | G43: =E43*F43 -> 1000 | H43: =+G43*$E$9 -> 3000 | I43: =+H43/($F$30*$E$9) -> 0.1602110219 | J43: 0.08508079548
B44: Other | D44: $ | E44: 0 | G44: =E44*F44 -> 0 | H44: 0 | I44: 0 | J44: 0
B45: Total Variable Cost | G45: =SUM(G35:G44) -> 7540.29136 | H45: =SUM(H35:H44) -> 22620.87408 | I45: =+H45/($F$30*$E$9) -> 1.208037785 | J45: =SUM(J35:J44) -> 0.641533987
B47: Overhead Costs | E47: $/unit | F47: quantity/cycle | G47: $/cycle | H47: $/year | I47: $/lb/yr | J47: % of total cost
B48: Repair and Maintenance | D48: $/lb | E48: 0.01 | F48: =$F$30 -> 6241.767813 | G48: =$E$48*$F$48 -> 62.41767813 | H48: =$G$48*$E$9 -> 187.2530344 | I48: =+H48/($F$30*$E$9) -> 0.01 | J48: =H48/SUM($H$45,$H$54,$H$80,$J$71) -> 0.005310545707
B49: Water acres rental | D49: $/acre | E49: 250 | F49: =$E$12 -> 3.745060688 | G49: NA | H49: =E49*F49 -> 936.2651719 | I49: =+H49/($F$30*$E$9) -> 0.05 | J49: 0.02655272853 | K49: assumes a rental or opportunity cost for use of lake/large pond
B50: Insurance | D50: $/yr | E50: 1000 | H50: =E50 -> 1000 | I50: NA | J50: 0.02836026516
B51: Adminstration/Management - legal fees, professional services, etc. | D51: % of TVC | E51: 0.05 | F51: NA | G51: =+E51*$G$45 -> 377.014568 | H51: =+E51*$H$45 -> 1131.043704 | I51: =+H51/($F$30*$E$9) -> 0.06040188923 | J51: 0.03207669935 | K51: assumes a % of Total Variable Cost (TVC)
B52: Other 1 | D52: $ | E52: 0 | I52: NA | J52: 0
B53: Other 2 | D53: $ | E53: 0 | I53: NA | J53: 0
B54: Total Overhead Costs | G54: =SUM(G48:G53) -> 439.4322461 | H54: =SUM(H48:H53) -> 3254.56191 | I54: =+H54/($F$30*$E$9) -> 0.1738055632 | J54: =SUM(J38:J51) -> 0.8791165582
B57: Annual capital costs calculation assumes a straight line depreciation
B58: All capital costs are incurred beginning of year 1
B59: Capital Costs | E59: Cost | F59: Number | G59: Total cost | H59: Yrs of use | I59: Salvage value | J59: Cost/year | K59: Cost/cycle | L59: % of total cost
B60: Feeders | D60: unit | E60: 60 | F60: =$E$11 -> 30 | G60: =E60*F60 -> 1800 | H60: 5 | I60: 0 | J60: =(G60-I60)/H60 -> 360 | K60: =J60/$E$9 -> 120 | L60: =J60/SUM($H$45,$H$54,$H$80,$J$71) -> 0.01020969546
B61: Storage Shed | D61: unit | E61: 4000 | F61: 1 | G61: =E61*F61 -> 4000 | H61: 10 | I61: =0.1*G61 -> 400 | J61: =(G61-I61)/H61 -> 360 | K61: =J61/$E$9 -> 120 | L61: 0.01020969546
B62: Electrical aerator | D62: unit | E62: 1000 | F62: 1 | G62: 1000 | H62: 5 | I62: 100 | J62: 180 | K62: 60 | L62: 0.005104847729
B63: Emergency Generator | D63: unit | E63: 1000 | F63: 1 | G63: 1000 | H63: 10 | I63: 100 | J63: 90 | K63: 30 | L63: 0.002552423864
B64: Transport tank | D64: unit | E64: 0 | F64: 1 | G64: 0 | H64: 10 | I64: 0 | J64: 0 | K64: 0 | L64: 0
B65: Mower | D65: unit | E65: 500 | F65: 1 | G65: 500 | H65: 7 | I65: 50 | J65: 64.28571429 | K65: 21.42857143 | L65: 0.001823159903
B66: Misc (waders, scale, test equp) | D66: unit | E66: 2000 | F66: 1 | G66: 2000 | H66: 5 | I66: 200 | J66: 360 | K66: 120 | L66: 0.01020969546
B67: Cages | D67: unit | E67: 500 | F67: =$E$11 -> 30 | G67: 15000 | H67: 5 | I67: 1500 | J67: =(G67-I67)/H67 -> 2700 | K67: 900 | L67: 0.07657271593
B68: Dock/Boat | D68: unit | E68: 2500 | F68: 1 | G68: 2500 | H68: 20 | I68: 250 | J68: =(G68-I68)/H68 -> 112.5 | K68: 37.5 | L68: 0.00319052983
B69: Other 1 | D69: $ | E69: 0 | G69: =E69*F69 -> 0 | H69: 1 | I69: 0 | J69: =(G69-I69)/H69 -> 0 | K69: 0 | L69: 0
B70: Other 2 | D70: $ | E70: 0 | G70: 0 | H70: 1 | I70: 0 | J70: 0 | K70: 0 | L70: 0
B71: Total Capital Costs | G71: =SUM(G60:G70) -> 27800 | J71: =SUM(J60:J70) -> 4226.785714 | K71: =SUM(K60:K70) -> 1408.928571 | L71: =SUM(L60:L70) -> 0.1198727636
N74: 1 | O74: 2 | P74: 3 | Q74: 4 | R74: 5 | S74: 6 | T74: 7 | U74: 8 | V74: 9 | W74: 10 | X74: 11 | Y74: 12 | Z74: 13 | AA74: 14 | AB74: 15 | AC74: 16 | AD74: 17 | AE74: 18 | AF74: 19 | AG74: 20 | AH74: 21 | AI74: 22 | AJ74: 23 | AK74: 24 | AL74: 25 | AM74: 26 | AN74: 27 | AO74: 28 | AP74: 29 | AQ74: 30
B75: Loan Information | E75: Years | F75: Interest Rate | G75: Loan Balance | H75: Cost/year | I75: Cost/cycle | J75: % of total cost | N75: year 1 | O75: year 2 | P75: year 3 | Q75: year 4 | R75: year 5 | S75: year 6 | T75: year 7 | U75: year 8 | V75: year 9 | W75: year 10 | X75: year 11 | Y75: year 12 | Z75: year 13 | AA75: year 14 | AB75: year 15 | AC75: year 16 | AD75: year 17 | AE75: year 18 | AF75: year 19 | AG75: year 20 | AH75: year 21 | AI75: year 22 | AJ75: year 23 | AK75: year 24 | AL75: year 25 | AM75: year 26 | AN75: year 27 | AO75: year 28 | AP75: year 29 | AQ75: year 30
B76: Loan 1 | E76: 7 | F76: 0.07 | G76: =$G$71 -> 27800 | H76: =IF(E76>0,-PMT(F76,E76,G76),0) -> 5158.379506 | I76: =H76/$E$9 -> 1719.459835 | J76: =H76/SUM($H$45,$H$54,$H$80,$J$71) -> 0.1462930106 | N76: =-IF($G76=0,0,IF($E76<N$74,0,IPMT($F76,N$74,$E76,$G76,))) -> 1946 | O76: =-IF($G76=0,0,IF($E76<O$74,0,IPMT($F76,O$74,$E76,$G76,))) -> 1721.133435 | P76: 1480.52621 | Q76: 1223.076479 | R76: 947.605267 | S76: 652.8510703 | T76: 337.4640798 | U76: 0 | V76: 0 | W76: 0 | X76: 0 | Y76: 0 | Z76: 0 | AA76: 0 | AB76: 0 | AC76: 0 | AD76: 0 | AE76: 0 | AF76: 0 | AG76: 0 | AH76: 0 | AI76: 0 | AJ76: 0 | AK76: 0 | AL76: 0 | AM76: 0 | AN76: 0 | AO76: 0 | AP76: 0 | AQ76: 0
B77: Loan 2 | E77: 1 | F77: 0.1 | H77: =IF(E77>0,-PMT(F77,E77,G77),0) -> 0 | I77: =H77/$E$11 -> 0 | J77: =H77/SUM($H$45,$H$54,$H$80,$J$71) -> 0 | N77: =-IF($G77=0,0,IF($E77<N$74,0,IPMT($F77,N$74,$E77,$G77,))) -> 0 | O77: 0 | P77: 0 | Q77: 0 | R77: 0 | S77: 0 | T77: 0 | U77: 0 | V77: 0 | W77: 0 | X77: 0 | Y77: 0 | Z77: 0 | AA77: 0 | AB77: 0 | AC77: 0 | AD77: 0 | AE77: 0 | AF77: 0 | AG77: 0 | AH77: 0 | AI77: 0 | AJ77: 0 | AK77: 0 | AL77: 0 | AM77: 0 | AN77: 0 | AO77: 0 | AP77: 0 | AQ77: 0
B78: Loan 3 | E78: 0 | F78: 0 | G78: 0 | H78: =IF(E78>0,-PMT(F78,E78,G78),0) -> 0 | I78: =H78/$E$11 -> 0 | J78: =H78/SUM($H$45,$H$54,$H$80,$J$71) -> 0 | N78: 0 | O78: 0 | P78: 0 | Q78: 0 | R78: 0 | S78: 0 | T78: 0 | U78: 0 | V78: 0 | W78: 0 | X78: 0 | Y78: 0 | Z78: 0 | AA78: 0 | AB78: 0 | AC78: 0 | AD78: 0 | AE78: 0 | AF78: 0 | AG78: 0 | AH78: 0 | AI78: 0 | AJ78: 0 | AK78: 0 | AL78: 0 | AM78: 0 | AN78: 0 | AO78: 0 | AP78: 0 | AQ78: 0
B79: Loan 4 | E79: 0 | F79: 0 | G79: 0 | H79: =IF(E79>0,-PMT(F79,E79,G79),0) -> 0 | I79: =H79/$E$11 -> 0 | J79: =H79/SUM($H$45,$H$54,$H$80,$J$71) -> 0 | N79: 0 | O79: 0 | P79: 0 | Q79: 0 | R79: 0 | S79: 0 | T79: 0 | U79: 0 | V79: 0 | W79: 0 | X79: 0 | Y79: 0 | Z79: 0 | AA79: 0 | AB79: 0 | AC79: 0 | AD79: 0 | AE79: 0 | AF79: 0 | AG79: 0 | AH79: 0 | AI79: 0 | AJ79: 0 | AK79: 0 | AL79: 0 | AM79: 0 | AN79: 0 | AO79: 0 | AP79: 0 | AQ79: 0
B80: Total Loan Costs | G80: =SUM(G76:G79) -> 27800 | H80: =SUM(H76:H79) -> 5158.379506 | I80: =SUM(I76:I79) -> 1719.459835 | J80: =SUM(J76:J79) -> 0.1462930106 | M80: Interest | N80: =IF(SUM(N76:N79)=0,"",SUM(N76:N79)) -> 1946 | O80: =IF(SUM(O76:O79)=0,"",SUM(O76:O79)) -> 1721.133435 | P80: 1480.52621 | Q80: 1223.076479 | R80: 947.605267 | S80: 652.8510703 | T80: 337.4640798 | U80: =IF(SUM(U76:U79)=0,0,SUM(U76:U79)) -> 0 | V80: 0 | W80: 0 | X80: 0 | Y80: 0 | Z80: 0 | AA80: 0 | AB80: 0 | AC80: =IF(SUM(AC$76:AC$79)=0,0,SUM(AC$76:AC$79)) -> 0 | AD80: =IF(SUM(AD$76:AD$79)=0,0,SUM(AD$76:AD$79)) -> 0 | AE80: =IF(SUM(AE$76:AE$79)=0,0,SUM(AE$76:AE$79)) -> 0 | AF80: 0 | AG80: 0 | AH80: 0 | AI80: 0 | AJ80: 0 | AK80: 0 | AL80: =IF(SUM(AL$76:AL$79)=0,0,SUM(AL$76:AL$79)) -> 0 | AM80: 0 | AN80: 0 | AO80: 0 | AP80: 0 | AQ80: 0
M81: Principal | N81: =IF(N80<>0,$G$80/$E$76,0) -> 3971.428571 | O81: =IF(O80<>0,$G$80/$E$76,0) -> 3971.428571 | P81: 3971.428571 | Q81: 3971.428571 | R81: 3971.428571 | S81: 3971.428571 | T81: 3971.428571 | U81: =IF(U80<>0,$G$80/$E$76,0) -> 0 | V81: 0 | W81: 0 | X81: 0 | Y81: 0 | Z81: 0 | AA81: 0 | AB81: 0 | AC81: 0 | AD81: 0 | AE81: 0 | AF81: 0 | AG81: 0 | AH81: 0 | AI81: 0 | AJ81: 0 | AK81: 0 | AL81: 0 | AM81: 0 | AN81: 0 | AO81: 0 | AP81: 0 | AQ81: 0
B83: Summary | E83: Value/cycle | F83: Value/year | G83: Value/cage | H83: % of total cost | N83: =AVERAGE(N80:AQ80) -> 276.955218
B84: Total Receipts | D84: $ | E84: =$G$32 -> 18725.30344 | F84: =$H$32 -> 56175.91031 | G84: =$G$32/$E$10 -> 1872.530344
B86: Total Variable Costs | D86: $ | E86: =$G$45 -> 7540.29136 | F86: =$H$45 -> 22620.87408 | G86: =$G$45/$E$10 -> 754.029136 | H86: =F86/SUM($F$86:$F$89) -> 0.7446177406
B87: Total Overhead Costs | D87: $ | E87: =$G$54 -> 439.4322461 | F87: =$H$54 -> 3254.56191 | G87: =$G$54/$E$10 -> 43.94322461 | H87: =F87/SUM($F$86:$F$89) -> 0.1071313393
B88: Average Interest Paid | D88: $ | E88: =$N$83/$E$9 -> 92.318406 | F88: =$N$83 -> 276.955218 | G88: =$I$80/$E$10 -> 171.9459835 | H88: =F88/SUM($F$86:$F$89) -> 0.009116613617
B89: Depreciation | D89: $ | E89: =$K$71 -> 1408.928571 | F89: =$J$71 -> 4226.785714 | G89: =$K$71/$E$10 -> 140.8928571 | H89: =F89/SUM($F$86:$F$89) -> 0.1391343065
B90: Total Cost | D90: $ | E90: =SUM(E86:E89) -> 9480.970583 | F90: =SUM(F86:F89) -> 30379.17692 | G90: =SUM(G86:G89) -> 1110.811201 | H90: =F90/SUM($F$86:$F$89) -> 1
B92: Net Revenue above Variable/Overhead Costs | D92: $ | E92: =E84-E86-E87 -> 10745.57983 | F92: =F84-F86-F87 -> 30300.47432 | G92: =G84-G86-G87 -> 1074.557983
B93: Net Revenue above Total Costs | D93: $ | E93: =E84-SUM(E86:E89) -> 9244.332854 | F93: =F84-SUM(F86:F89) -> 25796.73339 | G93: =G84-SUM(G86:G89) -> 761.7191425
B95: Breakeven Price with variable / overhead cost | D95: /lb | F95: =(F86+F87)/($F$30*$E$9) -> 1.381843348
B96: Breakeven Price with total cost | D96: /lb | F96: =F90/($F$30*$E$9) -> 1.62235966

Sheet Cash Flow
C1: CASH FLOW
B2: Write down stocking months | C2: ='ENTER DATA HERE - Budget'!$C$27 -> April | D2: ='ENTER DATA HERE - Budget'!$D$27 -> May | E2: ='ENTER DATA HERE - Budget'!$E$27 -> June | F2: ='ENTER DATA HERE - Budget'!$F$27 -> 0 | G2: ='ENTER DATA HERE - Budget'!$G$27 -> 0 | H2: ='ENTER DATA HERE - Budget'!$H$27 -> 0 | I2: ='ENTER DATA HERE - Budget'!$I$27 -> 0
B3: YEAR 1 | C3: YEAR 1 | T3: year | U3: month | V3: cages stocked | W3: cages harvested | X3: total Cages in use
C4: January | D4: February | E4: March | F4: April | G4: May | H4: June | I4: July | J4: August | K4: September | L4: October | M4: November | N4: December | O4: Total | R4: 1 | S4: =CONCATENATE(T4,U4) -> 1January | T4: 1 | U4: January | V4: =IF(OR(U4=$C$2,U4=$D$2,U4=$E$2),'ENTER DATA HERE - Budget'!$E$10,0) -> 0 | W4: =IF(R4<='ENTER DATA HERE - Budget'!E$8,0,VLOOKUP(R4-'ENTER DATA HERE - Budget'!$E$8,$R3:$V4,5,FALSE)) -> 0 | X4: =SUM($V$4:V4)-SUM($W$4:W4) -> 0 | Z4: 1 | AA4: January | AB4: 1 | AC4: 13
A5: 1 | B5: Gross Receipts: | R5: 2 | S5: =CONCATENATE(T5,U5) -> 1February | T5: 1 | U5: February | V5: =IF(OR(U5=$C$2,U5=$D$2,U5=$E$2),'ENTER DATA HERE - Budget'!$E$10,0) -> 0 | W5: =IF(R5<='ENTER DATA HERE - Budget'!E$8,0,VLOOKUP(R5-'ENTER DATA HERE - Budget'!$E$8,$R4:V$4,5,FALSE)) -> 0 | X5: =SUM($V$4:V5)-SUM($W$4:W5) -> 0 | Z5: 2 | AA5: February | AB5: 2 | AC5: 14
R6: 3 | S6: =CONCATENATE(T6,U6) -> 1March | T6: 1 | U6: March | V6: =IF(OR(U6=$C$2,U6=$D$2,U6=$E$2),'ENTER DATA HERE - Budget'!$E$10,0) -> 0 | W6: =IF(R6<='ENTER DATA HERE - Budget'!E$8,0,VLOOKUP(R6-'ENTER DATA HERE - Budget'!$E$8,$R$4:V5,5,FALSE)) -> 0 | X6: =SUM($V$4:V6)-SUM($W$4:W6) -> 0 | Z6: 3 | AA6: March | AB6: 3 | AC6: 15
A7: 1 | B7: Max Fish sale | C7: =VLOOKUP(CONCATENATE($A7,C$4),$S$4:$W$75,5,FALSE)*'ENTER DATA HERE - Budget'!$E$20*'ENTER DATA HERE - Budget'!$E$23*'ENTER DATA HERE - Budget'!$E$25*'ENTER DATA HERE - Budget'!$E$30 -> 0 | D7: =VLOOKUP(CONCATENATE($A7,D$4),$S$4:$W$75,5,FALSE)*'ENTER DATA HERE - Budget'!$E$20*'ENTER DATA HERE - Budget'!$E$23*'ENTER DATA HERE - Budget'!$E$25*'ENTER DATA HERE - Budget'!$E$30 -> 0 | E7: =VLOOKUP(CONCATENATE($A7,E$4),$S$4:$W$75,5,FALSE)*'ENTER DATA HERE - Budget'!$E$20*'ENTER DATA HERE - Budget'!$E$23*'ENTER DATA HERE - Budget'!$E$25*'ENTER DATA HERE - Budget'!$E$30 -> 0 | F7: =VLOOKUP(CONCATENATE($A7,F$4),$S$4:$W$75,5,FALSE)*'ENTER DATA HERE - Budget'!$E$20*'ENTER DATA HERE - Budget'!$E$23*'ENTER DATA HERE - Budget'!$E$25*'ENTER DATA HERE - Budget'!$E$30 -> 0 | G7: =VLOOKUP(CONCATENATE($A7,G$4),$S$4:$W$75,5,FALSE)*'ENTER DATA HERE - Budget'!$E$20*'ENTER DATA HERE - Budget'!$E$23*'ENTER DATA HERE - Budget'!$E$25*'ENTER DATA HERE - Budget'!$E$30 -> 0 | H7: =VLOOKUP(CONCATENATE($A7,H$4),$S$4:$W$75,5,FALSE)*'ENTER DATA HERE - Budget'!$E$20*'ENTER DATA HERE - Budget'!$E$23*'ENTER DATA HERE - Budget'!$E$25*'ENTER DATA HERE - Budget'!$E$30 -> 0 | I7: =VLOOKUP(CONCATENATE($A7,I$4),$S$4:$W$75,5,FALSE)*'ENTER DATA HERE - Budget'!$E$20*'ENTER DATA HERE - Budget'!$E$23*'ENTER DATA HERE - Budget'!$E$25*'ENTER DATA HERE - Budget'!$E$30 -> 0 | J7: =VLOOKUP(CONCATENATE($A7,J$4),$S$4:$W$75,5,FALSE)*'ENTER DATA HERE - Budget'!$E$20*'ENTER DATA HERE - Budget'!$E$23*'ENTER DATA HERE - Budget'!$E$25*'ENTER DATA HERE - Budget'!$E$30 -> 0 | K7: =VLOOKUP(CONCATENATE($A7,K$4),$S$4:$W$75,5,FALSE)*'ENTER DATA HERE - Budget'!$E$20*'ENTER DATA HERE - Budget'!$E$23*'ENTER DATA HERE - Budget'!$E$25*'ENTER DATA HERE - Budget'!$E$30 -> 0 | L7: =VLOOKUP(CONCATENATE($A7,L$4),$S$4:$W$75,5,FALSE)*'ENTER DATA HERE - Budget'!$E$20*'ENTER DATA HERE - Budget'!$E$23*'ENTER DATA HERE - Budget'!$E$25*'ENTER DATA HERE - Budget'!$E$30 -> 0 | M7: =VLOOKUP(CONCATENATE($A7,M$4),$S$4:$W$75,5,FALSE)*'ENTER DATA HERE - Budget'!$E$20*'ENTER DATA HERE - Budget'!$E$23*'ENTER DATA HERE - Budget'!$E$25*'ENTER DATA HERE - Budget'!$E$30 -> 0 | N7: =VLOOKUP(CONCATENATE($A7,N$4),$S$4:$W$75,5,FALSE)*'ENTER DATA HERE - Budget'!$E$20*'ENTER DATA HERE - Budget'!$E$23*'ENTER DATA HERE - Budget'!$E$25*'ENTER DATA HERE - Budget'!$E$30 -> 0 | O7: =SUM(C7:N7) -> 0 | R7: 4 | S7: 1April | T7: 1 | U7: April | V7: =IF(OR(U7=$C$2,U7=$D$2,U7=$E$2),'ENTER DATA HERE - Budget'!$E$10,0) -> 10 | W7: =IF(R7<='ENTER DATA HERE - Budget'!E$8,0,VLOOKUP(R7-'ENTER DATA HERE - Budget'!$E$8,$R$4:V6,5,FALSE)) -> 0 | X7: =SUM($V$4:V7)-SUM($W$4:W7) -> 10 | Z7: 4 | AA7: April | AB7: 4 | AC7: 16
A8: 1 | B8: Min Fish Sale | C8: =VLOOKUP(CONCATENATE($A8,C$4),$S$4:$W$75,5,FALSE)*'ENTER DATA HERE - Budget'!$E$20*'ENTER DATA HERE - Budget'!$E$22*'ENTER DATA HERE - Budget'!$E$25*'ENTER DATA HERE - Budget'!$E$30 -> 0 | D8: =VLOOKUP(CONCATENATE($A8,D$4),$S$4:$W$75,5,FALSE)*'ENTER DATA HERE - Budget'!$E$20*'ENTER DATA HERE - Budget'!$E$22*'ENTER DATA HERE - Budget'!$E$25*'ENTER DATA HERE - Budget'!$E$30 -> 0 | E8: =VLOOKUP(CONCATENATE($A8,E$4),$S$4:$W$75,5,FALSE)*'ENTER DATA HERE - Budget'!$E$20*'ENTER DATA HERE - Budget'!$E$22*'ENTER DATA HERE - Budget'!$E$25*'ENTER DATA HERE - Budget'!$E$30 -> 0 | F8: =VLOOKUP(CONCATENATE($A8,F$4),$S$4:$W$75,5,FALSE)*'ENTER DATA HERE - Budget'!$E$20*'ENTER DATA HERE - Budget'!$E$22*'ENTER DATA HERE - Budget'!$E$25*'ENTER DATA HERE - Budget'!$E$30 -> 0 | G8: =VLOOKUP(CONCATENATE($A8,G$4),$S$4:$W$75,5,FALSE)*'ENTER DATA HERE - Budget'!$E$20*'ENTER DATA HERE - Budget'!$E$22*'ENTER DATA HERE - Budget'!$E$25*'ENTER DATA HERE - Budget'!$E$30 -> 0 | H8: =VLOOKUP(CONCATENATE($A8,H$4),$S$4:$W$75,5,FALSE)*'ENTER DATA HERE - Budget'!$E$20*'ENTER DATA HERE - Budget'!$E$22*'ENTER DATA HERE - Budget'!$E$25*'ENTER DATA HERE - Budget'!$E$30 -> 0 | I8: =VLOOKUP(CONCATENATE($A8,I$4),$S$4:$W$75,5,FALSE)*'ENTER DATA HERE - Budget'!$E$20*'ENTER DATA HERE - Budget'!$E$22*'ENTER DATA HERE - Budget'!$E$25*'ENTER DATA HERE - Budget'!$E$30 -> 0 | J8: =VLOOKUP(CONCATENATE($A8,J$4),$S$4:$W$75,5,FALSE)*'ENTER DATA HERE - Budget'!$E$20*'ENTER DATA HERE - Budget'!$E$22*'ENTER DATA HERE - Budget'!$E$25*'ENTER DATA HERE - Budget'!$E$30 -> 0 | K8: =VLOOKUP(CONCATENATE($A8,K$4),$S$4:$W$75,5,FALSE)*'ENTER DATA HERE - Budget'!$E$20*'ENTER DATA HERE - Budget'!$E$22*'ENTER DATA HERE - Budget'!$E$25*'ENTER DATA HERE - Budget'!$E$30 -> 0 | L8: =VLOOKUP(CONCATENATE($A8,L$4),$S$4:$W$75,5,FALSE)*'ENTER DATA HERE - Budget'!$E$20*'ENTER DATA HERE - Budget'!$E$22*'ENTER DATA HERE - Budget'!$E$25*'ENTER DATA HERE - Budget'!$E$30 -> 0 | M8: =VLOOKUP(CONCATENATE($A8,M$4),$S$4:$W$75,5,FALSE)*'ENTER DATA HERE - Budget'!$E$20*'ENTER DATA HERE - Budget'!$E$22*'ENTER DATA HERE - Budget'!$E$25*'ENTER DATA HERE - Budget'!$E$30 -> 0 | N8: =VLOOKUP(CONCATENATE($A8,N$4),$S$4:$W$75,5,FALSE)*'ENTER DATA HERE - Budget'!$E$20*'ENTER DATA HERE - Budget'!$E$22*'ENTER DATA HERE - Budget'!$E$25*'ENTER DATA HERE - Budget'!$E$30 -> 0 | O8: =SUM(C8:N8) -> 0 | R8: 5 | S8: 1May | T8: 1 | U8: May | V8: =IF(OR(U8=$C$2,U8=$D$2,U8=$E$2),'ENTER DATA HERE - Budget'!$E$10,0) -> 10 | W8: =IF(R8<='ENTER DATA HERE - Budget'!E$8,0,VLOOKUP(R8-'ENTER DATA HERE - Budget'!$E$8,$R$4:V7,5,FALSE)) -> 0 | X8: =SUM($V$4:V8)-SUM($W$4:W8) -> 20 | Z8: 5 | AA8: May | AB8: 5 | AC8: 17
A9: 1 | B9: Miscellaneous Receipts | C9: ='ENTER DATA HERE - Budget'!$E$31/12 -> 0 | D9: ='ENTER DATA HERE - Budget'!$E$31/12 -> 0 | E9: ='ENTER DATA HERE - Budget'!$E$31/12 -> 0 | F9: ='ENTER DATA HERE - Budget'!$E$31/12 -> 0 | G9: ='ENTER DATA HERE - Budget'!$E$31/12 -> 0 | H9: ='ENTER DATA HERE - Budget'!$E$31/12 -> 0 | I9: ='ENTER DATA HERE - Budget'!$E$31/12 -> 0 | J9: ='ENTER DATA HERE - Budget'!$E$31/12 -> 0 | K9: ='ENTER DATA HERE - Budget'!$E$31/12 -> 0 | L9: ='ENTER DATA HERE - Budget'!$E$31/12 -> 0 | M9: ='ENTER DATA HERE - Budget'!$E$31/12 -> 0 | N9: ='ENTER DATA HERE - Budget'!$E$31/12 -> 0 | O9: =SUM(C9:N9) -> 0 | R9: 6 | S9: 1June | T9: 1 | U9: June | V9: =IF(OR(U9=$C$2,U9=$D$2,U9=$E$2),'ENTER DATA HERE - Budget'!$E$10,0) -> 10 | W9: =IF(R9<='ENTER DATA HERE - Budget'!E$8,0,VLOOKUP(R9-'ENTER DATA HERE - Budget'!$E$8,$R$4:V8,5,FALSE)) -> 0 | X9: =SUM($V$4:V9)-SUM($W$4:W9) -> 30 | Z9: 6 | AA9: June | AB9: 6 | AC9: 18
A10: 1 | B10: Minimum Total Receipts | C10: =C7+C9 -> 0 | D10: =D7+D9 -> 0 | E10: 0 | F10: 0 | G10: 0 | H10: 0 | I10: 0 | J10: 0 | K10: 0 | L10: 0 | M10: 0 | N10: 0 | O10: =SUM(C10:N10) -> 0 | R10: 7 | S10: 1July | T10: 1 | U10: July | V10: =IF(OR(U10=$C$2,U10=$D$2,U10=$E$2),'ENTER DATA HERE - Budget'!$E$10,0) -> 0 | W10: =IF(R10<='ENTER DATA HERE - Budget'!E$8,0,VLOOKUP(R10-'ENTER DATA HERE - Budget'!$E$8,$R$4:V9,5,FALSE)) -> 0 | X10: =SUM($V$4:V10)-SUM($W$4:W10) -> 30 | Z10: 7 | AA10: July | AB10: 7 | AC10: 19
A11: 1 | B11: Maximum Total Receipts | C11: =SUM(C8:C9) -> 0 | D11: =SUM(D8:D9) -> 0 | E11: 0 | F11: 0 | G11: 0 | H11: 0 | I11: 0 | J11: 0 | K11: 0 | L11: 0 | M11: 0 | N11: 0 | O11: =SUM(C11:N11) -> 0 | R11: 8 | S11: 1August | T11: 1 | U11: August | V11: =IF(OR(U11=$C$2,U11=$D$2,U11=$E$2),'ENTER DATA HERE - Budget'!$E$10,0) -> 0 | W11: =IF(R11<='ENTER DATA HERE - Budget'!E$8,0,VLOOKUP(R11-'ENTER DATA HERE - Budget'!$E$8,$R$4:V10,5,FALSE)) -> 0 | X11: =SUM($V$4:V11)-SUM($W$4:W11) -> 30 | Z11: 8 | AA11: August | AB11: 8 | AC11: 20
A12: 1 | R12: 9 | S12: 1September | T12: 1 | U12: September | V12: =IF(OR(U12=$C$2,U12=$D$2,U12=$E$2),'ENTER DATA HERE - Budget'!$E$10,0) -> 0 | W12: =IF(R12<='ENTER DATA HERE - Budget'!E$8,0,VLOOKUP(R12-'ENTER DATA HERE - Budget'!$E$8,$R$4:V11,5,FALSE)) -> 0 | X12: =SUM($V$4:V12)-SUM($W$4:W12) -> 30 | Z12: 9 | AA12: September | AB12: 9 | AC12: 21
A13: 1 | B13: Variable Inputs: | R13: 10 | S13: 1October | T13: 1 | U13: October | V13: =IF(OR(U13=$C$2,U13=$D$2,U13=$E$2),'ENTER DATA HERE - Budget'!$E$10,0) -> 0 | W13: =IF(R13<='ENTER DATA HERE - Budget'!E$8,0,VLOOKUP(R13-'ENTER DATA HERE - Budget'!$E$8,$R$4:V12,5,FALSE)) -> 0 | X13: =SUM($V$4:V13)-SUM($W$4:W13) -> 30 | Z13: 10 | AA13: October | AB13: 10 | AC13: 22
A14: 1 | B14: Fingerlings (4") | C14: =VLOOKUP(CONCATENATE($A14,C$4),$S$4:$W$75,4,FALSE)*'ENTER DATA HERE - Budget'!$E$35*'ENTER DATA HERE - Budget'!$E$20 -> 0 | D14: =VLOOKUP(CONCATENATE($A14,D$4),$S$4:$W$75,4,FALSE)*'ENTER DATA HERE - Budget'!$E$35*'ENTER DATA HERE - Budget'!$E$20 -> 0 | E14: =VLOOKUP(CONCATENATE($A14,E$4),$S$4:$W$75,4,FALSE)*'ENTER DATA HERE - Budget'!$E$35*'ENTER DATA HERE - Budget'!$E$20 -> 0 | F14: =VLOOKUP(CONCATENATE($A14,F$4),$S$4:$W$75,4,FALSE)*'ENTER DATA HERE - Budget'!$E$35*'ENTER DATA HERE - Budget'!$E$20 -> 1468.65125 | G14: =VLOOKUP(CONCATENATE($A14,G$4),$S$4:$W$75,4,FALSE)*'ENTER DATA HERE - Budget'!$E$35*'ENTER DATA HERE - Budget'!$E$20 -> 1468.65125 | H14: =VLOOKUP(CONCATENATE($A14,H$4),$S$4:$W$75,4,FALSE)*'ENTER DATA HERE - Budget'!$E$35*'ENTER DATA HERE - Budget'!$E$20 -> 1468.65125 | I14: =VLOOKUP(CONCATENATE($A14,I$4),$S$4:$W$75,4,FALSE)*'ENTER DATA HERE - Budget'!$E$35*'ENTER DATA HERE - Budget'!$E$20 -> 0 | J14: =VLOOKUP(CONCATENATE($A14,J$4),$S$4:$W$75,4,FALSE)*'ENTER DATA HERE - Budget'!$E$35*'ENTER DATA HERE - Budget'!$E$20 -> 0 | K14: =VLOOKUP(CONCATENATE($A14,K$4),$S$4:$W$75,4,FALSE)*'ENTER DATA HERE - Budget'!$E$35*'ENTER DATA HERE - Budget'!$E$20 -> 0 | L14: =VLOOKUP(CONCATENATE($A14,L$4),$S$4:$W$75,4,FALSE)*'ENTER DATA HERE - Budget'!$E$35*'ENTER DATA HERE - Budget'!$E$20 -> 0 | M14: =VLOOKUP(CONCATENATE($A14,M$4),$S$4:$W$75,4,FALSE)*'ENTER DATA HERE - Budget'!$E$35*'ENTER DATA HERE - Budget'!$E$20 -> 0 | N14: =VLOOKUP(CONCATENATE($A14,N$4),$S$4:$W$75,4,FALSE)*'ENTER DATA HERE - Budget'!$E$35*'ENTER DATA HERE - Budget'!$E$20 -> 0 | O14: =SUM(C14:N14) -> 4405.95375 | R14: 11 | S14: 1November | T14: 1 | U14: November | V14: =IF(OR(U14=$C$2,U14=$D$2,U14=$E$2),'ENTER DATA HERE - Budget'!$E$10,0) -> 0 | W14: =IF(R14<='ENTER DATA HERE - Budget'!E$8,0,VLOOKUP(R14-'ENTER DATA HERE - Budget'!$E$8,$R$4:V13,5,FALSE)) -> 0 | X14: =SUM($V$4:V14)-SUM($W$4:W14) -> 30 | Z14: 11 | AA14: November | AB14: 11 | AC14: 23
A15: 1 | B15: Feed | C15: =VLOOKUP(CONCATENATE($A15,C$4),$S$4:$X$75,6,FALSE)*('ENTER DATA HERE - Budget'!$G$36/('ENTER DATA HERE - Budget'!$E$10*'ENTER DATA HERE - Budget'!$E$8)) -> 0 | D15: =VLOOKUP(CONCATENATE($A15,D$4),$S$4:$X$75,6,FALSE)*('ENTER DATA HERE - Budget'!$G$36/('ENTER DATA HERE - Budget'!$E$10*'ENTER DATA HERE - Budget'!$E$8)) -> 0 | E15: =VLOOKUP(CONCATENATE($A15,E$4),$S$4:$X$75,6,FALSE)*('ENTER DATA HERE - Budget'!$G$36/('ENTER DATA HERE - Budget'!$E$10*'ENTER DATA HERE - Budget'!$E$8)) -> 0 | F15: =VLOOKUP(CONCATENATE($A15,F$4),$S$4:$X$75,6,FALSE)*('ENTER DATA HERE - Budget'!$G$36/('ENTER DATA HERE - Budget'!$E$10*'ENTER DATA HERE - Budget'!$E$8)) -> 228.5588508 | G15: =VLOOKUP(CONCATENATE($A15,G$4),$S$4:$X$75,6,FALSE)*('ENTER DATA HERE - Budget'!$G$36/('ENTER DATA HERE - Budget'!$E$10*'ENTER DATA HERE - Budget'!$E$8)) -> 457.1177016 | H15: =VLOOKUP(CONCATENATE($A15,H$4),$S$4:$X$75,6,FALSE)*('ENTER DATA HERE - Budget'!$G$36/('ENTER DATA HERE - Budget'!$E$10*'ENTER DATA HERE - Budget'!$E$8)) -> 685.6765523 | I15: =VLOOKUP(CONCATENATE($A15,I$4),$S$4:$X$75,6,FALSE)*('ENTER DATA HERE - Budget'!$G$36/('ENTER DATA HERE - Budget'!$E$10*'ENTER DATA HERE - Budget'!$E$8)) -> 685.6765523 | J15: =VLOOKUP(CONCATENATE($A15,J$4),$S$4:$X$75,6,FALSE)*('ENTER DATA HERE - Budget'!$G$36/('ENTER DATA HERE - Budget'!$E$10*'ENTER DATA HERE - Budget'!$E$8)) -> 685.6765523 | K15: =VLOOKUP(CONCATENATE($A15,K$4),$S$4:$X$75,6,FALSE)*('ENTER DATA HERE - Budget'!$G$36/('ENTER DATA HERE - Budget'!$E$10*'ENTER DATA HERE - Budget'!$E$8)) -> 685.6765523 | L15: =VLOOKUP(CONCATENATE($A15,L$4),$S$4:$X$75,6,FALSE)*('ENTER DATA HERE - Budget'!$G$36/('ENTER DATA HERE - Budget'!$E$10*'ENTER DATA HERE - Budget'!$E$8)) -> 685.6765523 | M15: =VLOOKUP(CONCATENATE($A15,M$4),$S$4:$X$75,6,FALSE)*('ENTER DATA HERE - Budget'!$G$36/('ENTER DATA HERE - Budget'!$E$10*'ENTER DATA HERE - Budget'!$E$8)) -> 685.6765523 | N15: =VLOOKUP(CONCATENATE($A15,N$4),$S$4:$X$75,6,FALSE)*('ENTER DATA HERE - Budget'!$G$36/('ENTER DATA HERE - Budget'!$E$10*'ENTER DATA HERE - Budget'!$E$8)) -> 685.6765523 | O15: 5485.412419 | R15: 12 | S15: 1December | T15: 1 | U15: December | V15: =IF(OR(U15=$C$2,U15=$D$2,U15=$E$2),'ENTER DATA HERE - Budget'!$E$10,0) -> 0 | W15: =IF(R15<='ENTER DATA HERE - Budget'!E$8,0,VLOOKUP(R15-'ENTER DATA HERE - Budget'!$E$8,$R$4:V14,5,FALSE)) -> 0 | X15: =SUM($V$4:V15)-SUM($W$4:W15) -> 30 | Z15: 12 | AA15: December | AB15: 12 | AC15: 24
A16: 1 | B16: Chemicals | C16: =VLOOKUP(CONCATENATE($A16,C$4),$S$4:$X$75,6,FALSE)*('ENTER DATA HERE - Budget'!$G$37/('ENTER DATA HERE - Budget'!$E$10*'ENTER DATA HERE - Budget'!$E$8)) -> 0 | D16: =VLOOKUP(CONCATENATE($A16,D$4),$S$4:$X$75,6,FALSE)*('ENTER DATA HERE - Budget'!$G$37/('ENTER DATA HERE - Budget'!$E$10*'ENTER DATA HERE - Budget'!$E$8)) -> 0 | E16: =VLOOKUP(CONCATENATE($A16,E$4),$S$4:$X$75,6,FALSE)*('ENTER DATA HERE - Budget'!$G$37/('ENTER DATA HERE - Budget'!$E$10*'ENTER DATA HERE - Budget'!$E$8)) -> 0 | F16: =VLOOKUP(CONCATENATE($A16,F$4),$S$4:$X$75,6,FALSE)*('ENTER DATA HERE - Budget'!$G$37/('ENTER DATA HERE - Budget'!$E$10*'ENTER DATA HERE - Budget'!$E$8)) -> 13.88888889 | G16: =VLOOKUP(CONCATENATE($A16,G$4),$S$4:$X$75,6,FALSE)*('ENTER DATA HERE - Budget'!$G$37/('ENTER DATA HERE - Budget'!$E$10*'ENTER DATA HERE - Budget'!$E$8)) -> 27.77777778 | H16: =VLOOKUP(CONCATENATE($A16,H$4),$S$4:$X$75,6,FALSE)*('ENTER DATA HERE - Budget'!$G$37/('ENTER DATA HERE - Budget'!$E$10*'ENTER DATA HERE - Budget'!$E$8)) -> 41.66666667 | I16: =VLOOKUP(CONCATENATE($A16,I$4),$S$4:$X$75,6,FALSE)*('ENTER DATA HERE - Budget'!$G$37/('ENTER DATA HERE - Budget'!$E$10*'ENTER DATA HERE - Budget'!$E$8)) -> 41.66666667 | J16: =VLOOKUP(CONCATENATE($A16,J$4),$S$4:$X$75,6,FALSE)*('ENTER DATA HERE - Budget'!$G$37/('ENTER DATA HERE - Budget'!$E$10*'ENTER DATA HERE - Budget'!$E$8)) -> 41.66666667 | K16: =VLOOKUP(CONCATENATE($A16,K$4),$S$4:$X$75,6,FALSE)*('ENTER DATA HERE - Budget'!$G$37/('ENTER DATA HERE - Budget'!$E$10*'ENTER DATA HERE - Budget'!$E$8)) -> 41.66666667 | L16: =VLOOKUP(CONCATENATE($A16,L$4),$S$4:$X$75,6,FALSE)*('ENTER DATA HERE - Budget'!$G$37/('ENTER DATA HERE - Budget'!$E$10*'ENTER DATA HERE - Budget'!$E$8)) -> 41.66666667 | M16: =VLOOKUP(CONCATENATE($A16,M$4),$S$4:$X$75,6,FALSE)*('ENTER DATA HERE - Budget'!$G$37/('ENTER DATA HERE - Budget'!$E$10*'ENTER DATA HERE - Budget'!$E$8)) -> 41.66666667 | N16: =VLOOKUP(CONCATENATE($A16,N$4),$S$4:$X$75,6,FALSE)*('ENTER DATA HERE - Budget'!$G$37/('ENTER DATA HERE - Budget'!$E$10*'ENTER DATA HERE - Budget'!$E$8)) -> 41.66666667 | O16: 333.3333333 | R16: 13 | S16: 2January | T16: =T4+1 -> 2 | U16: January | V16: =IF(OR(U16=$C$2,U16=$D$2,U16=$E$2),'ENTER DATA HERE - Budget'!$E$10,0) -> 0 | W16: =IF(R16<='ENTER DATA HERE - Budget'!E$8,0,VLOOKUP(R16-'ENTER DATA HERE - Budget'!$E$8,$R$4:V15,5,FALSE)) -> 0 | X16: =SUM($V$4:V16)-SUM($W$4:W16) -> 30
A17: 1 | B17: Electricity Cost | C17: 0 | D17: 0 | E17: 0 | F17: 0 | G17: ='ENTER DATA HERE - Budget'!$H$38/5 -> 216 | H17: ='ENTER DATA HERE - Budget'!$H$38/5 -> 216 | I17: ='ENTER DATA HERE - Budget'!$H$38/5 -> 216 | J17: ='ENTER DATA HERE - Budget'!$H$38/5 -> 216 | K17: ='ENTER DATA HERE - Budget'!$H$38/5 -> 216 | L17: 0 | M17: 0 | N17: 0 | O17: 1080 | R17: 14 | S17: 2February | T17: =T5+1 -> 2 | U17: February | V17: =IF(OR(U17=$C$2,U17=$D$2,U17=$E$2),'ENTER DATA HERE - Budget'!$E$10,0) -> 0 | W17: =IF(R17<='ENTER DATA HERE - Budget'!E$8,0,VLOOKUP(R17-'ENTER DATA HERE - Budget'!$E$8,$R$4:V16,5,FALSE)) -> 0 | X17: =SUM($V$4:V17)-SUM($W$4:W17) -> 30
A18: 1 | B18: Hired Labor - Hours | C18: ='ENTER DATA HERE - Budget'!$H$39/12 -> 0 | D18: ='ENTER DATA HERE - Budget'!$H$39/12 -> 0 | E18: ='ENTER DATA HERE - Budget'!$H$39/12 -> 0 | F18: ='ENTER DATA HERE - Budget'!$H$39/12 -> 0 | G18: ='ENTER DATA HERE - Budget'!$H$39/12 -> 0 | H18: ='ENTER DATA HERE - Budget'!$H$39/12 -> 0 | I18: ='ENTER DATA HERE - Budget'!$H$39/12 -> 0 | J18: ='ENTER DATA HERE - Budget'!$H$39/12 -> 0 | K18: ='ENTER DATA HERE - Budget'!$H$39/12 -> 0 | L18: ='ENTER DATA HERE - Budget'!$H$39/12 -> 0 | M18: ='ENTER DATA HERE - Budget'!$H$39/12 -> 0 | N18: ='ENTER DATA HERE - Budget'!$H$39/12 -> 0 | O18: 0 | R18: 15 | S18: 2March | T18: =T6+1 -> 2 | U18: March | V18: =IF(OR(U18=$C$2,U18=$D$2,U18=$E$2),'ENTER DATA HERE - Budget'!$E$10,0) -> 0 | W18: =IF(R18<='ENTER DATA HERE - Budget'!E$8,0,VLOOKUP(R18-'ENTER DATA HERE - Budget'!$E$8,$R$4:V17,5,FALSE)) -> 0 | X18: =SUM($V$4:V18)-SUM($W$4:W18) -> 30
A19: 1 | B19: Harvesting | C19: =VLOOKUP(CONCATENATE($A19,C$4),$S$4:$W$75,5,FALSE)*'ENTER DATA HERE - Budget'!$E$40*'ENTER DATA HERE - Budget'!$F$40/'ENTER DATA HERE - Budget'!$E$10 -> 0 | D19: =VLOOKUP(CONCATENATE($A19,D$4),$S$4:$W$75,5,FALSE)*'ENTER DATA HERE - Budget'!$E$40*'ENTER DATA HERE - Budget'!$F$40/'ENTER DATA HERE - Budget'!$E$10 -> 0 | E19: =VLOOKUP(CONCATENATE($A19,E$4),$S$4:$W$75,5,FALSE)*'ENTER DATA HERE - Budget'!$E$40*'ENTER DATA HERE - Budget'!$F$40/'ENTER DATA HERE - Budget'!$E$10 -> 0 | F19: =VLOOKUP(CONCATENATE($A19,F$4),$S$4:$W$75,5,FALSE)*'ENTER DATA HERE - Budget'!$E$40*'ENTER DATA HERE - Budget'!$F$40/'ENTER DATA HERE - Budget'!$E$10 -> 0 | G19: =VLOOKUP(CONCATENATE($A19,G$4),$S$4:$W$75,5,FALSE)*'ENTER DATA HERE - Budget'!$E$40*'ENTER DATA HERE - Budget'!$F$40/'ENTER DATA HERE - Budget'!$E$10 -> 0 | H19: =VLOOKUP(CONCATENATE($A19,H$4),$S$4:$W$75,5,FALSE)*'ENTER DATA HERE - Budget'!$E$40*'ENTER DATA HERE - Budget'!$F$40/'ENTER DATA HERE - Budget'!$E$10 -> 0 | I19: =VLOOKUP(CONCATENATE($A19,I$4),$S$4:$W$75,5,FALSE)*'ENTER DATA HERE - Budget'!$E$40*'ENTER DATA HERE - Budget'!$F$40/'ENTER DATA HERE - Budget'!$E$10 -> 0 | J19: =VLOOKUP(CONCATENATE($A19,J$4),$S$4:$W$75,5,FALSE)*'ENTER DATA HERE - Budget'!$E$40*'ENTER DATA HERE - Budget'!$F$40/'ENTER DATA HERE - Budget'!$E$10 -> 0 | K19: =VLOOKUP(CONCATENATE($A19,K$4),$S$4:$W$75,5,FALSE)*'ENTER DATA HERE - Budget'!$E$40*'ENTER DATA HERE - Budget'!$F$40/'ENTER DATA HERE - Budget'!$E$10 -> 0 | L19: =VLOOKUP(CONCATENATE($A19,L$4),$S$4:$W$75,5,FALSE)*'ENTER DATA HERE - Budget'!$E$40*'ENTER DATA HERE - Budget'!$F$40/'ENTER DATA HERE - Budget'!$E$10 -> 0 | M19: =VLOOKUP(CONCATENATE($A19,M$4),$S$4:$W$75,5,FALSE)*'ENTER DATA HERE - Budget'!$E$40*'ENTER DATA HERE - Budget'!$F$40/'ENTER DATA HERE - Budget'!$E$10 -> 0 | N19: =VLOOKUP(CONCATENATE($A19,N$4),$S$4:$W$75,5,FALSE)*'ENTER DATA HERE - Budget'!$E$40*'ENTER DATA HERE - Budget'!$F$40/'ENTER DATA HERE - Budget'!$E$10 -> 0 | O19: 0 | R19: 16 | S19: 2April | T19: =T7+1 -> 2 | U19: April | V19: =IF(OR(U19=$C$2,U19=$D$2,U19=$E$2),'ENTER DATA HERE - Budget'!$E$10,0) -> 10 | W19: =IF(R19<='ENTER DATA HERE - Budget'!E$8,0,VLOOKUP(R19-'ENTER DATA HERE - Budget'!$E$8,$R$4:V18,5,FALSE)) -> 0 | X19: =SUM($V$4:V19)-SUM($W$4:W19) -> 40
A20: 1 | B20: Transportation Costs of Fingerlings | C20: =VLOOKUP(CONCATENATE($A20,C$4),$S$4:$W$75,4,FALSE)*'ENTER DATA HERE - Budget'!$E$20*'ENTER DATA HERE - Budget'!$E$41 -> 0 | D20: =VLOOKUP(CONCATENATE($A20,D$4),$S$4:$W$75,4,FALSE)*'ENTER DATA HERE - Budget'!$E$20*'ENTER DATA HERE - Budget'!$E$41 -> 0 | E20: =VLOOKUP(CONCATENATE($A20,E$4),$S$4:$W$75,4,FALSE)*'ENTER DATA HERE - Budget'!$E$20*'ENTER DATA HERE - Budget'!$E$41 -> 0 | F20: =VLOOKUP(CONCATENATE($A20,F$4),$S$4:$W$75,4,FALSE)*'ENTER DATA HERE - Budget'!$E$20*'ENTER DATA HERE - Budget'!$E$41 -> 97.91008333 | G20: =VLOOKUP(CONCATENATE($A20,G$4),$S$4:$W$75,4,FALSE)*'ENTER DATA HERE - Budget'!$E$20*'ENTER DATA HERE - Budget'!$E$41 -> 97.91008333 | H20: =VLOOKUP(CONCATENATE($A20,H$4),$S$4:$W$75,4,FALSE)*'ENTER DATA HERE - Budget'!$E$20*'ENTER DATA HERE - Budget'!$E$41 -> 97.91008333 | I20: =VLOOKUP(CONCATENATE($A20,I$4),$S$4:$W$75,4,FALSE)*'ENTER DATA HERE - Budget'!$E$20*'ENTER DATA HERE - Budget'!$E$41 -> 0 | J20: =VLOOKUP(CONCATENATE($A20,J$4),$S$4:$W$75,4,FALSE)*'ENTER DATA HERE - Budget'!$E$20*'ENTER DATA HERE - Budget'!$E$41 -> 0 | K20: =VLOOKUP(CONCATENATE($A20,K$4),$S$4:$W$75,4,FALSE)*'ENTER DATA HERE - Budget'!$E$20*'ENTER DATA HERE - Budget'!$E$41 -> 0 | L20: =VLOOKUP(CONCATENATE($A20,L$4),$S$4:$W$75,4,FALSE)*'ENTER DATA HERE - Budget'!$E$20*'ENTER DATA HERE - Budget'!$E$41 -> 0 | M20: =VLOOKUP(CONCATENATE($A20,M$4),$S$4:$W$75,4,FALSE)*'ENTER DATA HERE - Budget'!$E$20*'ENTER DATA HERE - Budget'!$E$41 -> 0 | N20: =VLOOKUP(CONCATENATE($A20,N$4),$S$4:$W$75,4,FALSE)*'ENTER DATA HERE - Budget'!$E$20*'ENTER DATA HERE - Budget'!$E$41 -> 0 | O20: 293.73025 | R20: 17 | S20: 2May | T20: =T8+1 -> 2 | U20: May | V20: =IF(OR(U20=$C$2,U20=$D$2,U20=$E$2),'ENTER DATA HERE - Budget'!$E$10,0) -> 10 | W20: =IF(R20<='ENTER DATA HERE - Budget'!E$8,0,VLOOKUP(R20-'ENTER DATA HERE - Budget'!$E$8,$R$4:V19,5,FALSE)) -> 0 | X20: =SUM($V$4:V20)-SUM($W$4:W20) -> 50
A21: 1 | B21: Transportation Costs to Market | C21: =VLOOKUP(CONCATENATE($A21,C$4),$S$4:$W$75,5,FALSE)*'ENTER DATA HERE - Budget'!$E$42*'ENTER DATA HERE - Budget'!$F$42/'ENTER DATA HERE - Budget'!$E$10 -> 0 | D21: =VLOOKUP(CONCATENATE($A21,D$4),$S$4:$W$75,5,FALSE)*'ENTER DATA HERE - Budget'!$E$42*'ENTER DATA HERE - Budget'!$F$42/'ENTER DATA HERE - Budget'!$E$10 -> 0 | E21: =VLOOKUP(CONCATENATE($A21,E$4),$S$4:$W$75,5,FALSE)*'ENTER DATA HERE - Budget'!$E$42*'ENTER DATA HERE - Budget'!$F$42/'ENTER DATA HERE - Budget'!$E$10 -> 0 | F21: =VLOOKUP(CONCATENATE($A21,F$4),$S$4:$W$75,5,FALSE)*'ENTER DATA HERE - Budget'!$E$42*'ENTER DATA HERE - Budget'!$F$42/'ENTER DATA HERE - Budget'!$E$10 -> 0 | G21: =VLOOKUP(CONCATENATE($A21,G$4),$S$4:$W$75,5,FALSE)*'ENTER DATA HERE - Budget'!$E$42*'ENTER DATA HERE - Budget'!$F$42/'ENTER DATA HERE - Budget'!$E$10 -> 0 | H21: =VLOOKUP(CONCATENATE($A21,H$4),$S$4:$W$75,5,FALSE)*'ENTER DATA HERE - Budget'!$E$42*'ENTER DATA HERE - Budget'!$F$42/'ENTER DATA HERE - Budget'!$E$10 -> 0 | I21: =VLOOKUP(CONCATENATE($A21,I$4),$S$4:$W$75,5,FALSE)*'ENTER DATA HERE - Budget'!$E$42*'ENTER DATA HERE - Budget'!$F$42/'ENTER DATA HERE - Budget'!$E$10 -> 0 | J21: =VLOOKUP(CONCATENATE($A21,J$4),$S$4:$W$75,5,FALSE)*'ENTER DATA HERE - Budget'!$E$42*'ENTER DATA HERE - Budget'!$F$42/'ENTER DATA HERE - Budget'!$E$10 -> 0 | K21: =VLOOKUP(CONCATENATE($A21,K$4),$S$4:$W$75,5,FALSE)*'ENTER DATA HERE - Budget'!$E$42*'ENTER DATA HERE - Budget'!$F$42/'ENTER DATA HERE - Budget'!$E$10 -> 0 | L21: =VLOOKUP(CONCATENATE($A21,L$4),$S$4:$W$75,5,FALSE)*'ENTER DATA HERE - Budget'!$E$42*'ENTER DATA HERE - Budget'!$F$42/'ENTER DATA HERE - Budget'!$E$10 -> 0 | M21: =VLOOKUP(CONCATENATE($A21,M$4),$S$4:$W$75,5,FALSE)*'ENTER DATA HERE - Budget'!$E$42*'ENTER DATA HERE - Budget'!$F$42/'ENTER DATA HERE - Budget'!$E$10 -> 0 | N21: =VLOOKUP(CONCATENATE($A21,N$4),$S$4:$W$75,5,FALSE)*'ENTER DATA HERE - Budget'!$E$42*'ENTER DATA HERE - Budget'!$F$42/'ENTER DATA HERE - Budget'!$E$10 -> 0 | O21: 0 | R21: 18 | S21: 2June | T21: =T9+1 -> 2 | U21: June | V21: =IF(OR(U21=$C$2,U21=$D$2,U21=$E$2),'ENTER DATA HERE - Budget'!$E$10,0) -> 10 | W21: =IF(R21<='ENTER DATA HERE - Budget'!E$8,0,VLOOKUP(R21-'ENTER DATA HERE - Budget'!$E$8,$R$4:V20,5,FALSE)) -> 0 | X21: =SUM($V$4:V21)-SUM($W$4:W21) -> 60
A22: 1 | B22: Miscellaneous | C22: =VLOOKUP(CONCATENATE($A22,C$4),$S$4:$X$75,6,FALSE)*('ENTER DATA HERE - Budget'!$G$43/('ENTER DATA HERE - Budget'!$E$10*'ENTER DATA HERE - Budget'!$E$8)) -> 0 | D22: =VLOOKUP(CONCATENATE($A22,D$4),$S$4:$X$75,6,FALSE)*('ENTER DATA HERE - Budget'!$G$43/('ENTER DATA HERE - Budget'!$E$10*'ENTER DATA HERE - Budget'!$E$8)) -> 0 | E22: =VLOOKUP(CONCATENATE($A22,E$4),$S$4:$X$75,6,FALSE)*('ENTER DATA HERE - Budget'!$G$43/('ENTER DATA HERE - Budget'!$E$10*'ENTER DATA HERE - Budget'!$E$8)) -> 0 | F22: =VLOOKUP(CONCATENATE($A22,F$4),$S$4:$X$75,6,FALSE)*('ENTER DATA HERE - Budget'!$G$43/('ENTER DATA HERE - Budget'!$E$10*'ENTER DATA HERE - Budget'!$E$8)) -> 55.55555556 | G22: =VLOOKUP(CONCATENATE($A22,G$4),$S$4:$X$75,6,FALSE)*('ENTER DATA HERE - Budget'!$G$43/('ENTER DATA HERE - Budget'!$E$10*'ENTER DATA HERE - Budget'!$E$8)) -> 111.1111111 | H22: =VLOOKUP(CONCATENATE($A22,H$4),$S$4:$X$75,6,FALSE)*('ENTER DATA HERE - Budget'!$G$43/('ENTER DATA HERE - Budget'!$E$10*'ENTER DATA HERE - Budget'!$E$8)) -> 166.6666667 | I22: =VLOOKUP(CONCATENATE($A22,I$4),$S$4:$X$75,6,FALSE)*('ENTER DATA HERE - Budget'!$G$43/('ENTER DATA HERE - Budget'!$E$10*'ENTER DATA HERE - Budget'!$E$8)) -> 166.6666667 | J22: =VLOOKUP(CONCATENATE($A22,J$4),$S$4:$X$75,6,FALSE)*('ENTER DATA HERE - Budget'!$G$43/('ENTER DATA HERE - Budget'!$E$10*'ENTER DATA HERE - Budget'!$E$8)) -> 166.6666667 | K22: =VLOOKUP(CONCATENATE($A22,K$4),$S$4:$X$75,6,FALSE)*('ENTER DATA HERE - Budget'!$G$43/('ENTER DATA HERE - Budget'!$E$10*'ENTER DATA HERE - Budget'!$E$8)) -> 166.6666667 | L22: =VLOOKUP(CONCATENATE($A22,L$4),$S$4:$X$75,6,FALSE)*('ENTER DATA HERE - Budget'!$G$43/('ENTER DATA HERE - Budget'!$E$10*'ENTER DATA HERE - Budget'!$E$8)) -> 166.6666667 | M22: =VLOOKUP(CONCATENATE($A22,M$4),$S$4:$X$75,6,FALSE)*('ENTER DATA HERE - Budget'!$G$43/('ENTER DATA HERE - Budget'!$E$10*'ENTER DATA HERE - Budget'!$E$8)) -> 166.6666667 | N22: =VLOOKUP(CONCATENATE($A22,N$4),$S$4:$X$75,6,FALSE)*('ENTER DATA HERE - Budget'!$G$43/('ENTER DATA HERE - Budget'!$E$10*'ENTER DATA HERE - Budget'!$E$8)) -> 166.6666667 | O22: 1333.333333 | R22: 19 | S22: 2July | T22: 2 | U22: July | V22: =IF(OR(U22=$C$2,U22=$D$2,U22=$E$2),'ENTER DATA HERE - Budget'!$E$10,0) -> 0 | W22: =IF(R22<='ENTER DATA HERE - Budget'!E$8,0,VLOOKUP(R22-'ENTER DATA HERE - Budget'!$E$8,$R$4:V21,5,FALSE)) -> 0 | X22: =SUM($V$4:V22)-SUM($W$4:W22) -> 60
A23: 1 | B23: Total Variable Cost | C23: =SUM(C14:C22) -> 0 | D23: =SUM(D14:D22) -> 0 | E23: 0 | F23: 1864.564629 | G23: 2378.567924 | H23: 2676.571219 | I23: 1110.009886 | J23: 1110.009886 | K23: 1110.009886 | L23: 894.0098857 | M23: 894.0098857 | N23: 894.0098857 | O23: 12931.76309 | R23: 20 | S23: 2August | T23: 2 | U23: August | V23: =IF(OR(U23=$C$2,U23=$D$2,U23=$E$2),'ENTER DATA HERE - Budget'!$E$10,0) -> 0 | W23: =IF(R23<='ENTER DATA HERE - Budget'!E$8,0,VLOOKUP(R23-'ENTER DATA HERE - Budget'!$E$8,$R$4:V22,5,FALSE)) -> 0 | X23: =SUM($V$4:V23)-SUM($W$4:W23) -> 60
A24: 1 | R24: 21 | S24: 2September | T24: 2 | U24: September | V24: =IF(OR(U24=$C$2,U24=$D$2,U24=$E$2),'ENTER DATA HERE - Budget'!$E$10,0) -> 0 | W24: =IF(R24<='ENTER DATA HERE - Budget'!E$8,0,VLOOKUP(R24-'ENTER DATA HERE - Budget'!$E$8,$R$4:V23,5,FALSE)) -> 0 | X24: =SUM($V$4:V24)-SUM($W$4:W24) -> 60
A25: 1 | B25: Overhead Costs | R25: 22 | S25: 2October | T25: 2 | U25: October | V25: =IF(OR(U25=$C$2,U25=$D$2,U25=$E$2),'ENTER DATA HERE - Budget'!$E$10,0) -> 0 | W25: =IF(R25<='ENTER DATA HERE - Budget'!E$8,0,VLOOKUP(R25-'ENTER DATA HERE - Budget'!$E$8,$R$4:V24,5,FALSE)) -> 10 | X25: =SUM($V$4:V25)-SUM($W$4:W25) -> 50
A26: 1 | B26: Repair and maintenance | C26: ='ENTER DATA HERE - Budget'!$H$48/12 -> 15.60441953 | D26: ='ENTER DATA HERE - Budget'!$H$48/12 -> 15.60441953 | E26: ='ENTER DATA HERE - Budget'!$H$48/12 -> 15.60441953 | F26: ='ENTER DATA HERE - Budget'!$H$48/12 -> 15.60441953 | G26: ='ENTER DATA HERE - Budget'!$H$48/12 -> 15.60441953 | H26: ='ENTER DATA HERE - Budget'!$H$48/12 -> 15.60441953 | I26: ='ENTER DATA HERE - Budget'!$H$48/12 -> 15.60441953 | J26: ='ENTER DATA HERE - Budget'!$H$48/12 -> 15.60441953 | K26: ='ENTER DATA HERE - Budget'!$H$48/12 -> 15.60441953 | L26: ='ENTER DATA HERE - Budget'!$H$48/12 -> 15.60441953 | M26: ='ENTER DATA HERE - Budget'!$H$48/12 -> 15.60441953 | N26: ='ENTER DATA HERE - Budget'!$H$48/12 -> 15.60441953 | O26: =SUM(C26:N26) -> 187.2530344 | R26: 23 | S26: 2November | T26: 2 | U26: November | V26: =IF(OR(U26=$C$2,U26=$D$2,U26=$E$2),'ENTER DATA HERE - Budget'!$E$10,0) -> 0 | W26: =IF(R26<='ENTER DATA HERE - Budget'!E$8,0,VLOOKUP(R26-'ENTER DATA HERE - Budget'!$E$8,$R$4:V25,5,FALSE)) -> 10 | X26: =SUM($V$4:V26)-SUM($W$4:W26) -> 40
A27: 1 | B27: Water acres rental | C27: ='ENTER DATA HERE - Budget'!$H$49/12 -> 78.02209766 | D27: ='ENTER DATA HERE - Budget'!$H$49/12 -> 78.02209766 | E27: ='ENTER DATA HERE - Budget'!$H$49/12 -> 78.02209766 | F27: ='ENTER DATA HERE - Budget'!$H$49/12 -> 78.02209766 | G27: ='ENTER DATA HERE - Budget'!$H$49/12 -> 78.02209766 | H27: ='ENTER DATA HERE - Budget'!$H$49/12 -> 78.02209766 | I27: ='ENTER DATA HERE - Budget'!$H$49/12 -> 78.02209766 | J27: ='ENTER DATA HERE - Budget'!$H$49/12 -> 78.02209766 | K27: ='ENTER DATA HERE - Budget'!$H$49/12 -> 78.02209766 | L27: ='ENTER DATA HERE - Budget'!$H$49/12 -> 78.02209766 | M27: ='ENTER DATA HERE - Budget'!$H$49/12 -> 78.02209766 | N27: ='ENTER DATA HERE - Budget'!$H$49/12 -> 78.02209766 | O27: 936.2651719 | R27: 24 | S27: 2December | T27: 2 | U27: December | V27: =IF(OR(U27=$C$2,U27=$D$2,U27=$E$2),'ENTER DATA HERE - Budget'!$E$10,0) -> 0 | W27: =IF(R27<='ENTER DATA HERE - Budget'!E$8,0,VLOOKUP(R27-'ENTER DATA HERE - Budget'!$E$8,$R$4:V26,5,FALSE)) -> 10 | X27: =SUM($V$4:V27)-SUM($W$4:W27) -> 30
A28: 1 | B28: Insurance | C28: ='ENTER DATA HERE - Budget'!$H$50/12 -> 83.33333333 | D28: ='ENTER DATA HERE - Budget'!$H$50/12 -> 83.33333333 | E28: ='ENTER DATA HERE - Budget'!$H$50/12 -> 83.33333333 | F28: ='ENTER DATA HERE - Budget'!$H$50/12 -> 83.33333333 | G28: ='ENTER DATA HERE - Budget'!$H$50/12 -> 83.33333333 | H28: ='ENTER DATA HERE - Budget'!$H$50/12 -> 83.33333333 | I28: ='ENTER DATA HERE - Budget'!$H$50/12 -> 83.33333333 | J28: ='ENTER DATA HERE - Budget'!$H$50/12 -> 83.33333333 | K28: ='ENTER DATA HERE - Budget'!$H$50/12 -> 83.33333333 | L28: ='ENTER DATA HERE - Budget'!$H$50/12 -> 83.33333333 | M28: ='ENTER DATA HERE - Budget'!$H$50/12 -> 83.33333333 | N28: ='ENTER DATA HERE - Budget'!$H$50/12 -> 83.33333333 | O28: 1000 | R28: 25 | S28: 3January | T28: 3 | U28: January | V28: =IF(OR(U28=$C$2,U28=$D$2,U28=$E$2),'ENTER DATA HERE - Budget'!$E$10,0) -> 0 | W28: =IF(R28<='ENTER DATA HERE - Budget'!E$8,0,VLOOKUP(R28-'ENTER DATA HERE - Budget'!$E$8,$R$4:V27,5,FALSE)) -> 0 | X28: =SUM($V$4:V28)-SUM($W$4:W28) -> 30
A29: 1 | B29: Adminstration/Management - legal fees, professional services, etc. (% of total overhead) | C29: ='ENTER DATA HERE - Budget'!$H$51/12 -> 94.253642 | D29: ='ENTER DATA HERE - Budget'!$H$51/12 -> 94.253642 | E29: ='ENTER DATA HERE - Budget'!$H$51/12 -> 94.253642 | F29: ='ENTER DATA HERE - Budget'!$H$51/12 -> 94.253642 | G29: ='ENTER DATA HERE - Budget'!$H$51/12 -> 94.253642 | H29: ='ENTER DATA HERE - Budget'!$H$51/12 -> 94.253642 | I29: ='ENTER DATA HERE - Budget'!$H$51/12 -> 94.253642 | J29: ='ENTER DATA HERE - Budget'!$H$51/12 -> 94.253642 | K29: ='ENTER DATA HERE - Budget'!$H$51/12 -> 94.253642 | L29: ='ENTER DATA HERE - Budget'!$H$51/12 -> 94.253642 | M29: ='ENTER DATA HERE - Budget'!$H$51/12 -> 94.253642 | N29: ='ENTER DATA HERE - Budget'!$H$51/12 -> 94.253642 | O29: 1131.043704 | R29: 26 | S29: 3February | T29: 3 | U29: February | V29: =IF(OR(U29=$C$2,U29=$D$2,U29=$E$2),'ENTER DATA HERE - Budget'!$E$10,0) -> 0 | W29: =IF(R29<='ENTER DATA HERE - Budget'!E$8,0,VLOOKUP(R29-'ENTER DATA HERE - Budget'!$E$8,$R$4:V28,5,FALSE)) -> 0 | X29: =SUM($V$4:V29)-SUM($W$4:W29) -> 30
A30: 1 | B30: Other 1 | C30: ='ENTER DATA HERE - Budget'!$E$52/12 -> 0 | D30: ='ENTER DATA HERE - Budget'!$E$52/12 -> 0 | E30: ='ENTER DATA HERE - Budget'!$E$52/12 -> 0 | F30: ='ENTER DATA HERE - Budget'!$E$52/12 -> 0 | G30: ='ENTER DATA HERE - Budget'!$E$52/12 -> 0 | H30: ='ENTER DATA HERE - Budget'!$E$52/12 -> 0 | I30: ='ENTER DATA HERE - Budget'!$E$52/12 -> 0 | J30: ='ENTER DATA HERE - Budget'!$E$52/12 -> 0 | K30: ='ENTER DATA HERE - Budget'!$E$52/12 -> 0 | L30: ='ENTER DATA HERE - Budget'!$E$52/12 -> 0 | M30: ='ENTER DATA HERE - Budget'!$E$52/12 -> 0 | N30: ='ENTER DATA HERE - Budget'!$E$52/12 -> 0 | O30: 0 | R30: 27 | S30: 3March | T30: 3 | U30: March | V30: =IF(OR(U30=$C$2,U30=$D$2,U30=$E$2),'ENTER DATA HERE - Budget'!$E$10,0) -> 0 | W30: =IF(R30<='ENTER DATA HERE - Budget'!E$8,0,VLOOKUP(R30-'ENTER DATA HERE - Budget'!$E$8,$R$4:V29,5,FALSE)) -> 0 | X30: =SUM($V$4:V30)-SUM($W$4:W30) -> 30
A31: 1 | B31: Other 2 | C31: ='ENTER DATA HERE - Budget'!$E$53/12 -> 0 | D31: ='ENTER DATA HERE - Budget'!$E$53/12 -> 0 | E31: ='ENTER DATA HERE - Budget'!$E$53/12 -> 0 | F31: ='ENTER DATA HERE - Budget'!$E$53/12 -> 0 | G31: ='ENTER DATA HERE - Budget'!$E$53/12 -> 0 | H31: ='ENTER DATA HERE - Budget'!$E$53/12 -> 0 | I31: ='ENTER DATA HERE - Budget'!$E$53/12 -> 0 | J31: ='ENTER DATA HERE - Budget'!$E$53/12 -> 0 | K31: ='ENTER DATA HERE - Budget'!$E$53/12 -> 0 | L31: ='ENTER DATA HERE - Budget'!$E$53/12 -> 0 | M31: ='ENTER DATA HERE - Budget'!$E$53/12 -> 0 | N31: ='ENTER DATA HERE - Budget'!$E$53/12 -> 0 | O31: 0 | R31: 28 | S31: 3April | T31: =T19+1 -> 3 | U31: April | V31: =IF(OR(U31=$C$2,U31=$D$2,U31=$E$2),'ENTER DATA HERE - Budget'!$E$10,0) -> 10 | W31: =IF(R31<='ENTER DATA HERE - Budget'!E$8,0,VLOOKUP(R31-'ENTER DATA HERE - Budget'!$E$8,$R$4:V30,5,FALSE)) -> 0 | X31: =SUM($V$4:V31)-SUM($W$4:W31) -> 40
A32: 1 | B32: Total Overhead Costs | C32: =SUM(C26:C31) -> 271.2134925 | D32: =SUM(D26:D31) -> 271.2134925 | E32: 271.2134925 | F32: 271.2134925 | G32: 271.2134925 | H32: 271.2134925 | I32: 271.2134925 | J32: 271.2134925 | K32: 271.2134925 | L32: 271.2134925 | M32: 271.2134925 | N32: 271.2134925 | O32: 3254.56191 | R32: 29 | S32: 3May | T32: 3 | U32: May | V32: =IF(OR(U32=$C$2,U32=$D$2,U32=$E$2),'ENTER DATA HERE - Budget'!$E$10,0) -> 10 | W32: =IF(R32<='ENTER DATA HERE - Budget'!E$8,0,VLOOKUP(R32-'ENTER DATA HERE - Budget'!$E$8,$R$4:V31,5,FALSE)) -> 0 | X32: =SUM($V$4:V32)-SUM($W$4:W32) -> 50
A33: 1 | R33: 30 | S33: 3June | T33: 3 | U33: June | V33: =IF(OR(U33=$C$2,U33=$D$2,U33=$E$2),'ENTER DATA HERE - Budget'!$E$10,0) -> 10 | W33: =IF(R33<='ENTER DATA HERE - Budget'!E$8,0,VLOOKUP(R33-'ENTER DATA HERE - Budget'!$E$8,$R$4:V32,5,FALSE)) -> 0 | X33: =SUM($V$4:V33)-SUM($W$4:W33) -> 60
A34: 1 | B34: Loan | C34: ='ENTER DATA HERE - Budget'!$H$80/12 -> 429.8649588 | D34: ='ENTER DATA HERE - Budget'!$H$80/12 -> 429.8649588 | E34: ='ENTER DATA HERE - Budget'!$H$80/12 -> 429.8649588 | F34: ='ENTER DATA HERE - Budget'!$H$80/12 -> 429.8649588 | G34: ='ENTER DATA HERE - Budget'!$H$80/12 -> 429.8649588 | H34: ='ENTER DATA HERE - Budget'!$H$80/12 -> 429.8649588 | I34: ='ENTER DATA HERE - Budget'!$H$80/12 -> 429.8649588 | J34: ='ENTER DATA HERE - Budget'!$H$80/12 -> 429.8649588 | K34: ='ENTER DATA HERE - Budget'!$H$80/12 -> 429.8649588 | L34: ='ENTER DATA HERE - Budget'!$H$80/12 -> 429.8649588 | M34: ='ENTER DATA HERE - Budget'!$H$80/12 -> 429.8649588 | N34: ='ENTER DATA HERE - Budget'!$H$80/12 -> 429.8649588 | O34: =SUM(C34:N34) -> 5158.379506 | R34: 31 | S34: 3July | T34: 3 | U34: July | V34: =IF(OR(U34=$C$2,U34=$D$2,U34=$E$2),'ENTER DATA HERE - Budget'!$E$10,0) -> 0 | W34: =IF(R34<='ENTER DATA HERE - Budget'!E$8,0,VLOOKUP(R34-'ENTER DATA HERE - Budget'!$E$8,$R$4:V33,5,FALSE)) -> 0 | X34: =SUM($V$4:V34)-SUM($W$4:W34) -> 60
R35: 32 | S35: 3August | T35: 3 | U35: August | V35: =IF(OR(U35=$C$2,U35=$D$2,U35=$E$2),'ENTER DATA HERE - Budget'!$E$10,0) -> 0 | W35: =IF(R35<='ENTER DATA HERE - Budget'!E$8,0,VLOOKUP(R35-'ENTER DATA HERE - Budget'!$E$8,$R$4:V34,5,FALSE)) -> 0 | X35: =SUM($V$4:V35)-SUM($W$4:W35) -> 60
A36: 1 | B36: Max Cash Flow | C36: =C11-SUM(C23,C32,C34) -> -701.0784513 | D36: =D11-SUM(D23,D32,D34) -> -701.0784513 | E36: -701.0784513 | F36: -2565.64308 | G36: -3079.646375 | H36: -3377.64967 | I36: -1811.088337 | J36: -1811.088337 | K36: -1811.088337 | L36: -1595.088337 | M36: -1595.088337 | N36: -1595.088337 | R36: 33 | S36: 3September | T36: 3 | U36: September | V36: =IF(OR(U36=$C$2,U36=$D$2,U36=$E$2),'ENTER DATA HERE - Budget'!$E$10,0) -> 0 | W36: =IF(R36<='ENTER DATA HERE - Budget'!E$8,0,VLOOKUP(R36-'ENTER DATA HERE - Budget'!$E$8,$R$4:V35,5,FALSE)) -> 0 | X36: =SUM($V$4:V36)-SUM($W$4:W36) -> 60
A37: 1 | B37: Min Cash Flow | C37: =C10-SUM(C23,C32,C34) -> -701.0784513 | D37: =D10-SUM(D23,D32,D34) -> -701.0784513 | E37: -701.0784513 | F37: -2565.64308 | G37: -3079.646375 | H37: -3377.64967 | I37: -1811.088337 | J37: -1811.088337 | K37: -1811.088337 | L37: -1595.088337 | M37: -1595.088337 | N37: -1595.088337 | R37: 34 | S37: 3October | T37: 3 | U37: October | V37: =IF(OR(U37=$C$2,U37=$D$2,U37=$E$2),'ENTER DATA HERE - Budget'!$E$10,0) -> 0 | W37: =IF(R37<='ENTER DATA HERE - Budget'!E$8,0,VLOOKUP(R37-'ENTER DATA HERE - Budget'!$E$8,$R$4:V36,5,FALSE)) -> 10 | X37: =SUM($V$4:V37)-SUM($W$4:W37) -> 50
R38: 35 | S38: =CONCATENATE(T38,U38) -> 3November | T38: 3 | U38: November | V38: =IF(OR(U38=$C$2,U38=$D$2,U38=$E$2),'ENTER DATA HERE - Budget'!$E$10,0) -> 0 | W38: =IF(R38<='ENTER DATA HERE - Budget'!E$8,0,VLOOKUP(R38-'ENTER DATA HERE - Budget'!$E$8,$R$4:V37,5,FALSE)) -> 10 | X38: =SUM($V$4:V38)-SUM($W$4:W38) -> 40
B39: YEAR 2 | C39: YEAR 2 | R39: 36 | S39: 3December | T39: 3 | U39: December | V39: =IF(OR(U39=$C$2,U39=$D$2,U39=$E$2),'ENTER DATA HERE - Budget'!$E$10,0) -> 0 | W39: =IF(R39<='ENTER DATA HERE - Budget'!E$8,0,VLOOKUP(R39-'ENTER DATA HERE - Budget'!$E$8,$R$4:V38,5,FALSE)) -> 10 | X39: =SUM($V$4:V39)-SUM($W$4:W39) -> 30
C40: January | D40: February | E40: March | F40: April | G40: May | H40: June | I40: July | J40: August | K40: September | L40: October | M40: November | N40: December | R40: 37 | S40: 4January | T40: 4 | U40: January | V40: =IF(OR(U40=$C$2,U40=$D$2,U40=$E$2),'ENTER DATA HERE - Budget'!$E$10,0) -> 0 | W40: =IF(R40<='ENTER DATA HERE - Budget'!E$8,0,VLOOKUP(R40-'ENTER DATA HERE - Budget'!$E$8,$R$4:V39,5,FALSE)) -> 0 | X40: =SUM($V$4:V40)-SUM($W$4:W40) -> 30
A41: =$A$36+1 -> 2 | B41: Gross Receipts: | O41: =SUM(C41:N41) -> 0 | R41: 38 | S41: 4February | T41: 4 | U41: February | V41: =IF(OR(U41=$C$2,U41=$D$2,U41=$E$2),'ENTER DATA HERE - Budget'!$E$10,0) -> 0 | W41: =IF(R41<='ENTER DATA HERE - Budget'!E$8,0,VLOOKUP(R41-'ENTER DATA HERE - Budget'!$E$8,$R$4:V40,5,FALSE)) -> 0 | X41: =SUM($V$4:V41)-SUM($W$4:W41) -> 30
A42: =$A$36+1 -> 2 | B42: Max Fish sale | C42: =VLOOKUP(CONCATENATE($A42,C$4),$S$4:$W$75,5,FALSE)*'ENTER DATA HERE - Budget'!$E$20*'ENTER DATA HERE - Budget'!$E$23*'ENTER DATA HERE - Budget'!$E$25*'ENTER DATA HERE - Budget'!$E$30 -> 0 | D42: =VLOOKUP(CONCATENATE($A42,D$4),$S$4:$W$75,5,FALSE)*'ENTER DATA HERE - Budget'!$E$20*'ENTER DATA HERE - Budget'!$E$23*'ENTER DATA HERE - Budget'!$E$25*'ENTER DATA HERE - Budget'!$E$30 -> 0 | E42: =VLOOKUP(CONCATENATE($A42,E$4),$S$4:$W$75,5,FALSE)*'ENTER DATA HERE - Budget'!$E$20*'ENTER DATA HERE - Budget'!$E$23*'ENTER DATA HERE - Budget'!$E$25*'ENTER DATA HERE - Budget'!$E$30 -> 0 | F42: =VLOOKUP(CONCATENATE($A42,F$4),$S$4:$W$75,5,FALSE)*'ENTER DATA HERE - Budget'!$E$20*'ENTER DATA HERE - Budget'!$E$23*'ENTER DATA HERE - Budget'!$E$25*'ENTER DATA HERE - Budget'!$E$30 -> 0 | G42: =VLOOKUP(CONCATENATE($A42,G$4),$S$4:$W$75,5,FALSE)*'ENTER DATA HERE - Budget'!$E$20*'ENTER DATA HERE - Budget'!$E$23*'ENTER DATA HERE - Budget'!$E$25*'ENTER DATA HERE - Budget'!$E$30 -> 0 | H42: =VLOOKUP(CONCATENATE($A42,H$4),$S$4:$W$75,5,FALSE)*'ENTER DATA HERE - Budget'!$E$20*'ENTER DATA HERE - Budget'!$E$23*'ENTER DATA HERE - Budget'!$E$25*'ENTER DATA HERE - Budget'!$E$30 -> 0 | I42: =VLOOKUP(CONCATENATE($A42,I$4),$S$4:$W$75,5,FALSE)*'ENTER DATA HERE - Budget'!$E$20*'ENTER DATA HERE - Budget'!$E$23*'ENTER DATA HERE - Budget'!$E$25*'ENTER DATA HERE - Budget'!$E$30 -> 0 | J42: =VLOOKUP(CONCATENATE($A42,J$4),$S$4:$W$75,5,FALSE)*'ENTER DATA HERE - Budget'!$E$20*'ENTER DATA HERE - Budget'!$E$23*'ENTER DATA HERE - Budget'!$E$25*'ENTER DATA HERE - Budget'!$E$30 -> 0 | K42: =VLOOKUP(CONCATENATE($A42,K$4),$S$4:$W$75,5,FALSE)*'ENTER DATA HERE - Budget'!$E$20*'ENTER DATA HERE - Budget'!$E$23*'ENTER DATA HERE - Budget'!$E$25*'ENTER DATA HERE - Budget'!$E$30 -> 0 | L42: =VLOOKUP(CONCATENATE($A42,L$4),$S$4:$W$75,5,FALSE)*'ENTER DATA HERE - Budget'!$E$20*'ENTER DATA HERE - Budget'!$E$23*'ENTER DATA HERE - Budget'!$E$25*'ENTER DATA HERE - Budget'!$E$30 -> 18725.30344 | M42: =VLOOKUP(CONCATENATE($A42,M$4),$S$4:$W$75,5,FALSE)*'ENTER DATA HERE - Budget'!$E$20*'ENTER DATA HERE - Budget'!$E$23*'ENTER DATA HERE - Budget'!$E$25*'ENTER DATA HERE - Budget'!$E$30 -> 18725.30344 | N42: =VLOOKUP(CONCATENATE($A42,N$4),$S$4:$W$75,5,FALSE)*'ENTER DATA HERE - Budget'!$E$20*'ENTER DATA HERE - Budget'!$E$23*'ENTER DATA HERE - Budget'!$E$25*'ENTER DATA HERE - Budget'!$E$30 -> 18725.30344 | O42: =SUM(C42:N42) -> 56175.91031 | R42: 39 | S42: 4March | T42: 4 | U42: March | V42: =IF(OR(U42=$C$2,U42=$D$2,U42=$E$2),'ENTER DATA HERE - Budget'!$E$10,0) -> 0 | W42: =IF(R42<='ENTER DATA HERE - Budget'!E$8,0,VLOOKUP(R42-'ENTER DATA HERE - Budget'!$E$8,$R$4:V41,5,FALSE)) -> 0 | X42: =SUM($V$4:V42)-SUM($W$4:W42) -> 30
A43: 2 | B43: Min Fish Sale | C43: =VLOOKUP(CONCATENATE($A43,C$4),$S$4:$W$75,5,FALSE)*'ENTER DATA HERE - Budget'!$E$20*'ENTER DATA HERE - Budget'!$E$22*'ENTER DATA HERE - Budget'!$E$25*'ENTER DATA HERE - Budget'!$E$30 -> 0 | D43: =VLOOKUP(CONCATENATE($A43,D$4),$S$4:$W$75,5,FALSE)*'ENTER DATA HERE - Budget'!$E$20*'ENTER DATA HERE - Budget'!$E$22*'ENTER DATA HERE - Budget'!$E$25*'ENTER DATA HERE - Budget'!$E$30 -> 0 | E43: =VLOOKUP(CONCATENATE($A43,E$4),$S$4:$W$75,5,FALSE)*'ENTER DATA HERE - Budget'!$E$20*'ENTER DATA HERE - Budget'!$E$22*'ENTER DATA HERE - Budget'!$E$25*'ENTER DATA HERE - Budget'!$E$30 -> 0 | F43: =VLOOKUP(CONCATENATE($A43,F$4),$S$4:$W$75,5,FALSE)*'ENTER DATA HERE - Budget'!$E$20*'ENTER DATA HERE - Budget'!$E$22*'ENTER DATA HERE - Budget'!$E$25*'ENTER DATA HERE - Budget'!$E$30 -> 0 | G43: =VLOOKUP(CONCATENATE($A43,G$4),$S$4:$W$75,5,FALSE)*'ENTER DATA HERE - Budget'!$E$20*'ENTER DATA HERE - Budget'!$E$22*'ENTER DATA HERE - Budget'!$E$25*'ENTER DATA HERE - Budget'!$E$30 -> 0 | H43: =VLOOKUP(CONCATENATE($A43,H$4),$S$4:$W$75,5,FALSE)*'ENTER DATA HERE - Budget'!$E$20*'ENTER DATA HERE - Budget'!$E$22*'ENTER DATA HERE - Budget'!$E$25*'ENTER DATA HERE - Budget'!$E$30 -> 0 | I43: =VLOOKUP(CONCATENATE($A43,I$4),$S$4:$W$75,5,FALSE)*'ENTER DATA HERE - Budget'!$E$20*'ENTER DATA HERE - Budget'!$E$22*'ENTER DATA HERE - Budget'!$E$25*'ENTER DATA HERE - Budget'!$E$30 -> 0 | J43: =VLOOKUP(CONCATENATE($A43,J$4),$S$4:$W$75,5,FALSE)*'ENTER DATA HERE - Budget'!$E$20*'ENTER DATA HERE - Budget'!$E$22*'ENTER DATA HERE - Budget'!$E$25*'ENTER DATA HERE - Budget'!$E$30 -> 0 | K43: =VLOOKUP(CONCATENATE($A43,K$4),$S$4:$W$75,5,FALSE)*'ENTER DATA HERE - Budget'!$E$20*'ENTER DATA HERE - Budget'!$E$22*'ENTER DATA HERE - Budget'!$E$25*'ENTER DATA HERE - Budget'!$E$30 -> 0 | L43: =VLOOKUP(CONCATENATE($A43,L$4),$S$4:$W$75,5,FALSE)*'ENTER DATA HERE - Budget'!$E$20*'ENTER DATA HERE - Budget'!$E$22*'ENTER DATA HERE - Budget'!$E$25*'ENTER DATA HERE - Budget'!$E$30 -> 12483.53563 | M43: =VLOOKUP(CONCATENATE($A43,M$4),$S$4:$W$75,5,FALSE)*'ENTER DATA HERE - Budget'!$E$20*'ENTER DATA HERE - Budget'!$E$22*'ENTER DATA HERE - Budget'!$E$25*'ENTER DATA HERE - Budget'!$E$30 -> 12483.53563 | N43: =VLOOKUP(CONCATENATE($A43,N$4),$S$4:$W$75,5,FALSE)*'ENTER DATA HERE - Budget'!$E$20*'ENTER DATA HERE - Budget'!$E$22*'ENTER DATA HERE - Budget'!$E$25*'ENTER DATA HERE - Budget'!$E$30 -> 12483.53563 | O43: =SUM(C43:N43) -> 37450.60687 | R43: 40 | S43: 4April | T43: 4 | U43: April | V43: =IF(OR(U43=$C$2,U43=$D$2,U43=$E$2),'ENTER DATA HERE - Budget'!$E$10,0) -> 10 | W43: =IF(R43<='ENTER DATA HERE - Budget'!E$8,0,VLOOKUP(R43-'ENTER DATA HERE - Budget'!$E$8,$R$4:V42,5,FALSE)) -> 0 | X43: =SUM($V$4:V43)-SUM($W$4:W43) -> 40
A44: 2 | B44: Miscellaneous Receipts | C44: ='ENTER DATA HERE - Budget'!$E$31/12 -> 0 | D44: ='ENTER DATA HERE - Budget'!$E$31/12 -> 0 | E44: ='ENTER DATA HERE - Budget'!$E$31/12 -> 0 | F44: ='ENTER DATA HERE - Budget'!$E$31/12 -> 0 | G44: ='ENTER DATA HERE - Budget'!$E$31/12 -> 0 | H44: ='ENTER DATA HERE - Budget'!$E$31/12 -> 0 | I44: ='ENTER DATA HERE - Budget'!$E$31/12 -> 0 | J44: ='ENTER DATA HERE - Budget'!$E$31/12 -> 0 | K44: ='ENTER DATA HERE - Budget'!$E$31/12 -> 0 | L44: ='ENTER DATA HERE - Budget'!$E$31/12 -> 0 | M44: ='ENTER DATA HERE - Budget'!$E$31/12 -> 0 | N44: ='ENTER DATA HERE - Budget'!$E$31/12 -> 0 | O44: =SUM(C44:N44) -> 0 | R44: 41 | S44: 4May | T44: 4 | U44: May | V44: =IF(OR(U44=$C$2,U44=$D$2,U44=$E$2),'ENTER DATA HERE - Budget'!$E$10,0) -> 10 | W44: =IF(R44<='ENTER DATA HERE - Budget'!E$8,0,VLOOKUP(R44-'ENTER DATA HERE - Budget'!$E$8,$R$4:V43,5,FALSE)) -> 0 | X44: =SUM($V$4:V44)-SUM($W$4:W44) -> 50
A45: 2 | B45: Total Receipts | C45: =SUM(C42:C44) -> 0 | D45: =SUM(D42:D44) -> 0 | E45: 0 | F45: 0 | G45: 0 | H45: 0 | I45: 0 | J45: 0 | K45: 0 | L45: 31208.83906 | M45: 31208.83906 | N45: 31208.83906 | O45: =SUM(C45:N45) -> 93626.51719 | R45: 42 | S45: 4June | T45: 4 | U45: June | V45: =IF(OR(U45=$C$2,U45=$D$2,U45=$E$2),'ENTER DATA HERE - Budget'!$E$10,0) -> 10 | W45: =IF(R45<='ENTER DATA HERE - Budget'!E$8,0,VLOOKUP(R45-'ENTER DATA HERE - Budget'!$E$8,$R$4:V44,5,FALSE)) -> 0 | X45: =SUM($V$4:V45)-SUM($W$4:W45) -> 60
A46: 2 | R46: 43 | S46: 4July | T46: 4 | U46: July | V46: =IF(OR(U46=$C$2,U46=$D$2,U46=$E$2),'ENTER DATA HERE - Budget'!$E$10,0) -> 0 | W46: =IF(R46<='ENTER DATA HERE - Budget'!E$8,0,VLOOKUP(R46-'ENTER DATA HERE - Budget'!$E$8,$R$4:V45,5,FALSE)) -> 0 | X46: =SUM($V$4:V46)-SUM($W$4:W46) -> 60
A47: 2 | B47: Variable Inputs: | R47: 44 | S47: 4August | T47: 4 | U47: August | V47: =IF(OR(U47=$C$2,U47=$D$2,U47=$E$2),'ENTER DATA HERE - Budget'!$E$10,0) -> 0 | W47: =IF(R47<='ENTER DATA HERE - Budget'!E$8,0,VLOOKUP(R47-'ENTER DATA HERE - Budget'!$E$8,$R$4:V46,5,FALSE)) -> 0 | X47: =SUM($V$4:V47)-SUM($W$4:W47) -> 60
A48: 2 | B48: Fingerlings (4") | C48: =VLOOKUP(CONCATENATE($A48,C$4),$S$4:$W$75,4,FALSE)*'ENTER DATA HERE - Budget'!$E$35*'ENTER DATA HERE - Budget'!$E$20 -> 0 | D48: =VLOOKUP(CONCATENATE($A48,D$4),$S$4:$W$75,4,FALSE)*'ENTER DATA HERE - Budget'!$E$35*'ENTER DATA HERE - Budget'!$E$20 -> 0 | E48: =VLOOKUP(CONCATENATE($A48,E$4),$S$4:$W$75,4,FALSE)*'ENTER DATA HERE - Budget'!$E$35*'ENTER DATA HERE - Budget'!$E$20 -> 0 | F48: =VLOOKUP(CONCATENATE($A48,F$4),$S$4:$W$75,4,FALSE)*'ENTER DATA HERE - Budget'!$E$35*'ENTER DATA HERE - Budget'!$E$20 -> 1468.65125 | G48: =VLOOKUP(CONCATENATE($A48,G$4),$S$4:$W$75,4,FALSE)*'ENTER DATA HERE - Budget'!$E$35*'ENTER DATA HERE - Budget'!$E$20 -> 1468.65125 | H48: =VLOOKUP(CONCATENATE($A48,H$4),$S$4:$W$75,4,FALSE)*'ENTER DATA HERE - Budget'!$E$35*'ENTER DATA HERE - Budget'!$E$20 -> 1468.65125 | I48: =VLOOKUP(CONCATENATE($A48,I$4),$S$4:$W$75,4,FALSE)*'ENTER DATA HERE - Budget'!$E$35*'ENTER DATA HERE - Budget'!$E$20 -> 0 | J48: =VLOOKUP(CONCATENATE($A48,J$4),$S$4:$W$75,4,FALSE)*'ENTER DATA HERE - Budget'!$E$35*'ENTER DATA HERE - Budget'!$E$20 -> 0 | K48: =VLOOKUP(CONCATENATE($A48,K$4),$S$4:$W$75,4,FALSE)*'ENTER DATA HERE - Budget'!$E$35*'ENTER DATA HERE - Budget'!$E$20 -> 0 | L48: =VLOOKUP(CONCATENATE($A48,L$4),$S$4:$W$75,4,FALSE)*'ENTER DATA HERE - Budget'!$E$35*'ENTER DATA HERE - Budget'!$E$20 -> 0 | M48: =VLOOKUP(CONCATENATE($A48,M$4),$S$4:$W$75,4,FALSE)*'ENTER DATA HERE - Budget'!$E$35*'ENTER DATA HERE - Budget'!$E$20 -> 0 | N48: =VLOOKUP(CONCATENATE($A48,N$4),$S$4:$W$75,4,FALSE)*'ENTER DATA HERE - Budget'!$E$35*'ENTER DATA HERE - Budget'!$E$20 -> 0 | O48: =SUM(C48:N48) -> 4405.95375 | R48: 45 | S48: 4September | T48: 4 | U48: September | V48: =IF(OR(U48=$C$2,U48=$D$2,U48=$E$2),'ENTER DATA HERE - Budget'!$E$10,0) -> 0 | W48: =IF(R48<='ENTER DATA HERE - Budget'!E$8,0,VLOOKUP(R48-'ENTER DATA HERE - Budget'!$E$8,$R$4:V47,5,FALSE)) -> 0 | X48: =SUM($V$4:V48)-SUM($W$4:W48) -> 60
A49: 2 | B49: Feed | C49: =VLOOKUP(CONCATENATE($A49,C$4),$S$4:$X$75,6,FALSE)*('ENTER DATA HERE - Budget'!$G$36/('ENTER DATA HERE - Budget'!$E$10*'ENTER DATA HERE - Budget'!$E$8)) -> 685.6765523 | D49: =VLOOKUP(CONCATENATE($A49,D$4),$S$4:$X$75,6,FALSE)*('ENTER DATA HERE - Budget'!$G$36/('ENTER DATA HERE - Budget'!$E$10*'ENTER DATA HERE - Budget'!$E$8)) -> 685.6765523 | E49: =VLOOKUP(CONCATENATE($A49,E$4),$S$4:$X$75,6,FALSE)*('ENTER DATA HERE - Budget'!$G$36/('ENTER DATA HERE - Budget'!$E$10*'ENTER DATA HERE - Budget'!$E$8)) -> 685.6765523 | F49: =VLOOKUP(CONCATENATE($A49,F$4),$S$4:$X$75,6,FALSE)*('ENTER DATA HERE - Budget'!$G$36/('ENTER DATA HERE - Budget'!$E$10*'ENTER DATA HERE - Budget'!$E$8)) -> 914.2354031 | G49: =VLOOKUP(CONCATENATE($A49,G$4),$S$4:$X$75,6,FALSE)*('ENTER DATA HERE - Budget'!$G$36/('ENTER DATA HERE - Budget'!$E$10*'ENTER DATA HERE - Budget'!$E$8)) -> 1142.794254 | H49: =VLOOKUP(CONCATENATE($A49,H$4),$S$4:$X$75,6,FALSE)*('ENTER DATA HERE - Budget'!$G$36/('ENTER DATA HERE - Budget'!$E$10*'ENTER DATA HERE - Budget'!$E$8)) -> 1371.353105 | I49: =VLOOKUP(CONCATENATE($A49,I$4),$S$4:$X$75,6,FALSE)*('ENTER DATA HERE - Budget'!$G$36/('ENTER DATA HERE - Budget'!$E$10*'ENTER DATA HERE - Budget'!$E$8)) -> 1371.353105 | J49: =VLOOKUP(CONCATENATE($A49,J$4),$S$4:$X$75,6,FALSE)*('ENTER DATA HERE - Budget'!$G$36/('ENTER DATA HERE - Budget'!$E$10*'ENTER DATA HERE - Budget'!$E$8)) -> 1371.353105 | K49: =VLOOKUP(CONCATENATE($A49,K$4),$S$4:$X$75,6,FALSE)*('ENTER DATA HERE - Budget'!$G$36/('ENTER DATA HERE - Budget'!$E$10*'ENTER DATA HERE - Budget'!$E$8)) -> 1371.353105 | L49: =VLOOKUP(CONCATENATE($A49,L$4),$S$4:$X$75,6,FALSE)*('ENTER DATA HERE - Budget'!$G$36/('ENTER DATA HERE - Budget'!$E$10*'ENTER DATA HERE - Budget'!$E$8)) -> 1142.794254 | M49: =VLOOKUP(CONCATENATE($A49,M$4),$S$4:$X$75,6,FALSE)*('ENTER DATA HERE - Budget'!$G$36/('ENTER DATA HERE - Budget'!$E$10*'ENTER DATA HERE - Budget'!$E$8)) -> 914.2354031 | N49: =VLOOKUP(CONCATENATE($A49,N$4),$S$4:$X$75,6,FALSE)*('ENTER DATA HERE - Budget'!$G$36/('ENTER DATA HERE - Budget'!$E$10*'ENTER DATA HERE - Budget'!$E$8)) -> 685.6765523 | O49: 12342.17794 | R49: 46 | S49: 4October | T49: 4 | U49: October | V49: =IF(OR(U49=$C$2,U49=$D$2,U49=$E$2),'ENTER DATA HERE - Budget'!$E$10,0) -> 0 | W49: =IF(R49<='ENTER DATA HERE - Budget'!E$8,0,VLOOKUP(R49-'ENTER DATA HERE - Budget'!$E$8,$R$4:V48,5,FALSE)) -> 10 | X49: =SUM($V$4:V49)-SUM($W$4:W49) -> 50
A50: 2 | B50: Chemicals | C50: =VLOOKUP(CONCATENATE($A50,C$4),$S$4:$X$75,6,FALSE)*('ENTER DATA HERE - Budget'!$G$37/('ENTER DATA HERE - Budget'!$E$10*'ENTER DATA HERE - Budget'!$E$8)) -> 41.66666667 | D50: =VLOOKUP(CONCATENATE($A50,D$4),$S$4:$X$75,6,FALSE)*('ENTER DATA HERE - Budget'!$G$37/('ENTER DATA HERE - Budget'!$E$10*'ENTER DATA HERE - Budget'!$E$8)) -> 41.66666667 | E50: =VLOOKUP(CONCATENATE($A50,E$4),$S$4:$X$75,6,FALSE)*('ENTER DATA HERE - Budget'!$G$37/('ENTER DATA HERE - Budget'!$E$10*'ENTER DATA HERE - Budget'!$E$8)) -> 41.66666667 | F50: =VLOOKUP(CONCATENATE($A50,F$4),$S$4:$X$75,6,FALSE)*('ENTER DATA HERE - Budget'!$G$37/('ENTER DATA HERE - Budget'!$E$10*'ENTER DATA HERE - Budget'!$E$8)) -> 55.55555556 | G50: =VLOOKUP(CONCATENATE($A50,G$4),$S$4:$X$75,6,FALSE)*('ENTER DATA HERE - Budget'!$G$37/('ENTER DATA HERE - Budget'!$E$10*'ENTER DATA HERE - Budget'!$E$8)) -> 69.44444444 | H50: =VLOOKUP(CONCATENATE($A50,H$4),$S$4:$X$75,6,FALSE)*('ENTER DATA HERE - Budget'!$G$37/('ENTER DATA HERE - Budget'!$E$10*'ENTER DATA HERE - Budget'!$E$8)) -> 83.33333333 | I50: =VLOOKUP(CONCATENATE($A50,I$4),$S$4:$X$75,6,FALSE)*('ENTER DATA HERE - Budget'!$G$37/('ENTER DATA HERE - Budget'!$E$10*'ENTER DATA HERE - Budget'!$E$8)) -> 83.33333333 | J50: =VLOOKUP(CONCATENATE($A50,J$4),$S$4:$X$75,6,FALSE)*('ENTER DATA HERE - Budget'!$G$37/('ENTER DATA HERE - Budget'!$E$10*'ENTER DATA HERE - Budget'!$E$8)) -> 83.33333333 | K50: =VLOOKUP(CONCATENATE($A50,K$4),$S$4:$X$75,6,FALSE)*('ENTER DATA HERE - Budget'!$G$37/('ENTER DATA HERE - Budget'!$E$10*'ENTER DATA HERE - Budget'!$E$8)) -> 83.33333333 | L50: =VLOOKUP(CONCATENATE($A50,L$4),$S$4:$X$75,6,FALSE)*('ENTER DATA HERE - Budget'!$G$37/('ENTER DATA HERE - Budget'!$E$10*'ENTER DATA HERE - Budget'!$E$8)) -> 69.44444444 | M50: =VLOOKUP(CONCATENATE($A50,M$4),$S$4:$X$75,6,FALSE)*('ENTER DATA HERE - Budget'!$G$37/('ENTER DATA HERE - Budget'!$E$10*'ENTER DATA HERE - Budget'!$E$8)) -> 55.55555556 | N50: =VLOOKUP(CONCATENATE($A50,N$4),$S$4:$X$75,6,FALSE)*('ENTER DATA HERE - Budget'!$G$37/('ENTER DATA HERE - Budget'!$E$10*'ENTER DATA HERE - Budget'!$E$8)) -> 41.66666667 | O50: 750 | R50: 47 | S50: 4November | T50: 4 | U50: November | V50: =IF(OR(U50=$C$2,U50=$D$2,U50=$E$2),'ENTER DATA HERE - Budget'!$E$10,0) -> 0 | W50: =IF(R50<='ENTER DATA HERE - Budget'!E$8,0,VLOOKUP(R50-'ENTER DATA HERE - Budget'!$E$8,$R$4:V49,5,FALSE)) -> 10 | X50: =SUM($V$4:V50)-SUM($W$4:W50) -> 40
A51: 2 | B51: Electricity Cost | C51: 0 | D51: 0 | E51: 0 | F51: 0 | G51: ='ENTER DATA HERE - Budget'!$H$38/5 -> 216 | H51: ='ENTER DATA HERE - Budget'!$H$38/5 -> 216 | I51: ='ENTER DATA HERE - Budget'!$H$38/5 -> 216 | J51: ='ENTER DATA HERE - Budget'!$H$38/5 -> 216 | K51: ='ENTER DATA HERE - Budget'!$H$38/5 -> 216 | L51: 0 | M51: 0 | N51: 0 | O51: 1080 | R51: 48 | S51: 4December | T51: 4 | U51: December | V51: =IF(OR(U51=$C$2,U51=$D$2,U51=$E$2),'ENTER DATA HERE - Budget'!$E$10,0) -> 0 | W51: =IF(R51<='ENTER DATA HERE - Budget'!E$8,0,VLOOKUP(R51-'ENTER DATA HERE - Budget'!$E$8,$R$4:V50,5,FALSE)) -> 10 | X51: =SUM($V$4:V51)-SUM($W$4:W51) -> 30
A52: 2 | B52: Hired Labor - Hours | C52: ='ENTER DATA HERE - Budget'!$H$39/12 -> 0 | D52: ='ENTER DATA HERE - Budget'!$H$39/12 -> 0 | E52: ='ENTER DATA HERE - Budget'!$H$39/12 -> 0 | F52: ='ENTER DATA HERE - Budget'!$H$39/12 -> 0 | G52: ='ENTER DATA HERE - Budget'!$H$39/12 -> 0 | H52: ='ENTER DATA HERE - Budget'!$H$39/12 -> 0 | I52: ='ENTER DATA HERE - Budget'!$H$39/12 -> 0 | J52: ='ENTER DATA HERE - Budget'!$H$39/12 -> 0 | K52: ='ENTER DATA HERE - Budget'!$H$39/12 -> 0 | L52: ='ENTER DATA HERE - Budget'!$H$39/12 -> 0 | M52: ='ENTER DATA HERE - Budget'!$H$39/12 -> 0 | N52: ='ENTER DATA HERE - Budget'!$H$39/12 -> 0 | O52: 0 | R52: 49 | S52: 5January | T52: 5 | U52: January | V52: =IF(OR(U52=$C$2,U52=$D$2,U52=$E$2),'ENTER DATA HERE - Budget'!$E$10,0) -> 0 | W52: =IF(R52<='ENTER DATA HERE - Budget'!E$8,0,VLOOKUP(R52-'ENTER DATA HERE - Budget'!$E$8,$R$4:V51,5,FALSE)) -> 0 | X52: =SUM($V$4:V52)-SUM($W$4:W52) -> 30
A53: 2 | B53: Harvesting | C53: =VLOOKUP(CONCATENATE($A53,C$4),$S$4:$W$75,5,FALSE)*'ENTER DATA HERE - Budget'!$E$40*'ENTER DATA HERE - Budget'!$F$40/'ENTER DATA HERE - Budget'!$E$10 -> 0 | D53: =VLOOKUP(CONCATENATE($A53,D$4),$S$4:$W$75,5,FALSE)*'ENTER DATA HERE - Budget'!$E$40*'ENTER DATA HERE - Budget'!$F$40/'ENTER DATA HERE - Budget'!$E$10 -> 0 | E53: =VLOOKUP(CONCATENATE($A53,E$4),$S$4:$W$75,5,FALSE)*'ENTER DATA HERE - Budget'!$E$40*'ENTER DATA HERE - Budget'!$F$40/'ENTER DATA HERE - Budget'!$E$10 -> 0 | F53: =VLOOKUP(CONCATENATE($A53,F$4),$S$4:$W$75,5,FALSE)*'ENTER DATA HERE - Budget'!$E$40*'ENTER DATA HERE - Budget'!$F$40/'ENTER DATA HERE - Budget'!$E$10 -> 0 | G53: =VLOOKUP(CONCATENATE($A53,G$4),$S$4:$W$75,5,FALSE)*'ENTER DATA HERE - Budget'!$E$40*'ENTER DATA HERE - Budget'!$F$40/'ENTER DATA HERE - Budget'!$E$10 -> 0 | H53: =VLOOKUP(CONCATENATE($A53,H$4),$S$4:$W$75,5,FALSE)*'ENTER DATA HERE - Budget'!$E$40*'ENTER DATA HERE - Budget'!$F$40/'ENTER DATA HERE - Budget'!$E$10 -> 0 | I53: =VLOOKUP(CONCATENATE($A53,I$4),$S$4:$W$75,5,FALSE)*'ENTER DATA HERE - Budget'!$E$40*'ENTER DATA HERE - Budget'!$F$40/'ENTER DATA HERE - Budget'!$E$10 -> 0 | J53: =VLOOKUP(CONCATENATE($A53,J$4),$S$4:$W$75,5,FALSE)*'ENTER DATA HERE - Budget'!$E$40*'ENTER DATA HERE - Budget'!$F$40/'ENTER DATA HERE - Budget'!$E$10 -> 0 | K53: =VLOOKUP(CONCATENATE($A53,K$4),$S$4:$W$75,5,FALSE)*'ENTER DATA HERE - Budget'!$E$40*'ENTER DATA HERE - Budget'!$F$40/'ENTER DATA HERE - Budget'!$E$10 -> 0 | L53: =VLOOKUP(CONCATENATE($A53,L$4),$S$4:$W$75,5,FALSE)*'ENTER DATA HERE - Budget'!$E$40*'ENTER DATA HERE - Budget'!$F$40/'ENTER DATA HERE - Budget'!$E$10 -> 249.6707125 | M53: =VLOOKUP(CONCATENATE($A53,M$4),$S$4:$W$75,5,FALSE)*'ENTER DATA HERE - Budget'!$E$40*'ENTER DATA HERE - Budget'!$F$40/'ENTER DATA HERE - Budget'!$E$10 -> 249.6707125 | N53: =VLOOKUP(CONCATENATE($A53,N$4),$S$4:$W$75,5,FALSE)*'ENTER DATA HERE - Budget'!$E$40*'ENTER DATA HERE - Budget'!$F$40/'ENTER DATA HERE - Budget'!$E$10 -> 249.6707125 | O53: 749.0121375 | R53: 50 | S53: 5February | T53: 5 | U53: February | V53: =IF(OR(U53=$C$2,U53=$D$2,U53=$E$2),'ENTER DATA HERE - Budget'!$E$10,0) -> 0 | W53: =IF(R53<='ENTER DATA HERE - Budget'!E$8,0,VLOOKUP(R53-'ENTER DATA HERE - Budget'!$E$8,$R$4:V52,5,FALSE)) -> 0 | X53: =SUM($V$4:V53)-SUM($W$4:W53) -> 30
A54: 2 | B54: Transportation Costs of Fingerlings | C54: =VLOOKUP(CONCATENATE($A54,C$4),$S$4:$W$75,4,FALSE)*'ENTER DATA HERE - Budget'!$E$20*'ENTER DATA HERE - Budget'!$E$41 -> 0 | D54: =VLOOKUP(CONCATENATE($A54,D$4),$S$4:$W$75,4,FALSE)*'ENTER DATA HERE - Budget'!$E$20*'ENTER DATA HERE - Budget'!$E$41 -> 0 | E54: =VLOOKUP(CONCATENATE($A54,E$4),$S$4:$W$75,4,FALSE)*'ENTER DATA HERE - Budget'!$E$20*'ENTER DATA HERE - Budget'!$E$41 -> 0 | F54: =VLOOKUP(CONCATENATE($A54,F$4),$S$4:$W$75,4,FALSE)*'ENTER DATA HERE - Budget'!$E$20*'ENTER DATA HERE - Budget'!$E$41 -> 97.91008333 | G54: =VLOOKUP(CONCATENATE($A54,G$4),$S$4:$W$75,4,FALSE)*'ENTER DATA HERE - Budget'!$E$20*'ENTER DATA HERE - Budget'!$E$41 -> 97.91008333 | H54: =VLOOKUP(CONCATENATE($A54,H$4),$S$4:$W$75,4,FALSE)*'ENTER DATA HERE - Budget'!$E$20*'ENTER DATA HERE - Budget'!$E$41 -> 97.91008333 | I54: =VLOOKUP(CONCATENATE($A54,I$4),$S$4:$W$75,4,FALSE)*'ENTER DATA HERE - Budget'!$E$20*'ENTER DATA HERE - Budget'!$E$41 -> 0 | J54: =VLOOKUP(CONCATENATE($A54,J$4),$S$4:$W$75,4,FALSE)*'ENTER DATA HERE - Budget'!$E$20*'ENTER DATA HERE - Budget'!$E$41 -> 0 | K54: =VLOOKUP(CONCATENATE($A54,K$4),$S$4:$W$75,4,FALSE)*'ENTER DATA HERE - Budget'!$E$20*'ENTER DATA HERE - Budget'!$E$41 -> 0 | L54: =VLOOKUP(CONCATENATE($A54,L$4),$S$4:$W$75,4,FALSE)*'ENTER DATA HERE - Budget'!$E$20*'ENTER DATA HERE - Budget'!$E$41 -> 0 | M54: =VLOOKUP(CONCATENATE($A54,M$4),$S$4:$W$75,4,FALSE)*'ENTER DATA HERE - Budget'!$E$20*'ENTER DATA HERE - Budget'!$E$41 -> 0 | N54: =VLOOKUP(CONCATENATE($A54,N$4),$S$4:$W$75,4,FALSE)*'ENTER DATA HERE - Budget'!$E$20*'ENTER DATA HERE - Budget'!$E$41 -> 0 | O54: 293.73025 | R54: 51 | S54: 5March | T54: 5 | U54: March | V54: =IF(OR(U54=$C$2,U54=$D$2,U54=$E$2),'ENTER DATA HERE - Budget'!$E$10,0) -> 0 | W54: =IF(R54<='ENTER DATA HERE - Budget'!E$8,0,VLOOKUP(R54-'ENTER DATA HERE - Budget'!$E$8,$R$4:V53,5,FALSE)) -> 0 | X54: =SUM($V$4:V54)-SUM($W$4:W54) -> 30
A55: 2 | B55: Transportation Costs to Market | C55: =VLOOKUP(CONCATENATE($A55,C$4),$S$4:$W$75,5,FALSE)*'ENTER DATA HERE - Budget'!$E$42*'ENTER DATA HERE - Budget'!$F$42/'ENTER DATA HERE - Budget'!$E$10 -> 0 | D55: =VLOOKUP(CONCATENATE($A55,D$4),$S$4:$W$75,5,FALSE)*'ENTER DATA HERE - Budget'!$E$42*'ENTER DATA HERE - Budget'!$F$42/'ENTER DATA HERE - Budget'!$E$10 -> 0 | E55: =VLOOKUP(CONCATENATE($A55,E$4),$S$4:$W$75,5,FALSE)*'ENTER DATA HERE - Budget'!$E$42*'ENTER DATA HERE - Budget'!$F$42/'ENTER DATA HERE - Budget'!$E$10 -> 0 | F55: =VLOOKUP(CONCATENATE($A55,F$4),$S$4:$W$75,5,FALSE)*'ENTER DATA HERE - Budget'!$E$42*'ENTER DATA HERE - Budget'!$F$42/'ENTER DATA HERE - Budget'!$E$10 -> 0 | G55: =VLOOKUP(CONCATENATE($A55,G$4),$S$4:$W$75,5,FALSE)*'ENTER DATA HERE - Budget'!$E$42*'ENTER DATA HERE - Budget'!$F$42/'ENTER DATA HERE - Budget'!$E$10 -> 0 | H55: =VLOOKUP(CONCATENATE($A55,H$4),$S$4:$W$75,5,FALSE)*'ENTER DATA HERE - Budget'!$E$42*'ENTER DATA HERE - Budget'!$F$42/'ENTER DATA HERE - Budget'!$E$10 -> 0 | I55: =VLOOKUP(CONCATENATE($A55,I$4),$S$4:$W$75,5,FALSE)*'ENTER DATA HERE - Budget'!$E$42*'ENTER DATA HERE - Budget'!$F$42/'ENTER DATA HERE - Budget'!$E$10 -> 0 | J55: =VLOOKUP(CONCATENATE($A55,J$4),$S$4:$W$75,5,FALSE)*'ENTER DATA HERE - Budget'!$E$42*'ENTER DATA HERE - Budget'!$F$42/'ENTER DATA HERE - Budget'!$E$10 -> 0 | K55: =VLOOKUP(CONCATENATE($A55,K$4),$S$4:$W$75,5,FALSE)*'ENTER DATA HERE - Budget'!$E$42*'ENTER DATA HERE - Budget'!$F$42/'ENTER DATA HERE - Budget'!$E$10 -> 0 | L55: =VLOOKUP(CONCATENATE($A55,L$4),$S$4:$W$75,5,FALSE)*'ENTER DATA HERE - Budget'!$E$42*'ENTER DATA HERE - Budget'!$F$42/'ENTER DATA HERE - Budget'!$E$10 -> 0 | M55: =VLOOKUP(CONCATENATE($A55,M$4),$S$4:$W$75,5,FALSE)*'ENTER DATA HERE - Budget'!$E$42*'ENTER DATA HERE - Budget'!$F$42/'ENTER DATA HERE - Budget'!$E$10 -> 0 | N55: =VLOOKUP(CONCATENATE($A55,N$4),$S$4:$W$75,5,FALSE)*'ENTER DATA HERE - Budget'!$E$42*'ENTER DATA HERE - Budget'!$F$42/'ENTER DATA HERE - Budget'!$E$10 -> 0 | O55: 0 | R55: 52 | S55: 5April | T55: =T43+1 -> 5 | U55: April | V55: =IF(OR(U55=$C$2,U55=$D$2,U55=$E$2),'ENTER DATA HERE - Budget'!$E$10,0) -> 10 | W55: =IF(R55<='ENTER DATA HERE - Budget'!E$8,0,VLOOKUP(R55-'ENTER DATA HERE - Budget'!$E$8,$R$4:V54,5,FALSE)) -> 0 | X55: =SUM($V$4:V55)-SUM($W$4:W55) -> 40
A56: 2 | B56: Miscellaneous | C56: =VLOOKUP(CONCATENATE($A56,C$4),$S$4:$X$75,6,FALSE)*('ENTER DATA HERE - Budget'!$G$43/('ENTER DATA HERE - Budget'!$E$10*'ENTER DATA HERE - Budget'!$E$8)) -> 166.6666667 | D56: =VLOOKUP(CONCATENATE($A56,D$4),$S$4:$X$75,6,FALSE)*('ENTER DATA HERE - Budget'!$G$43/('ENTER DATA HERE - Budget'!$E$10*'ENTER DATA HERE - Budget'!$E$8)) -> 166.6666667 | E56: =VLOOKUP(CONCATENATE($A56,E$4),$S$4:$X$75,6,FALSE)*('ENTER DATA HERE - Budget'!$G$43/('ENTER DATA HERE - Budget'!$E$10*'ENTER DATA HERE - Budget'!$E$8)) -> 166.6666667 | F56: =VLOOKUP(CONCATENATE($A56,F$4),$S$4:$X$75,6,FALSE)*('ENTER DATA HERE - Budget'!$G$43/('ENTER DATA HERE - Budget'!$E$10*'ENTER DATA HERE - Budget'!$E$8)) -> 222.2222222 | G56: =VLOOKUP(CONCATENATE($A56,G$4),$S$4:$X$75,6,FALSE)*('ENTER DATA HERE - Budget'!$G$43/('ENTER DATA HERE - Budget'!$E$10*'ENTER DATA HERE - Budget'!$E$8)) -> 277.7777778 | H56: =VLOOKUP(CONCATENATE($A56,H$4),$S$4:$X$75,6,FALSE)*('ENTER DATA HERE - Budget'!$G$43/('ENTER DATA HERE - Budget'!$E$10*'ENTER DATA HERE - Budget'!$E$8)) -> 333.3333333 | I56: =VLOOKUP(CONCATENATE($A56,I$4),$S$4:$X$75,6,FALSE)*('ENTER DATA HERE - Budget'!$G$43/('ENTER DATA HERE - Budget'!$E$10*'ENTER DATA HERE - Budget'!$E$8)) -> 333.3333333 | J56: =VLOOKUP(CONCATENATE($A56,J$4),$S$4:$X$75,6,FALSE)*('ENTER DATA HERE - Budget'!$G$43/('ENTER DATA HERE - Budget'!$E$10*'ENTER DATA HERE - Budget'!$E$8)) -> 333.3333333 | K56: =VLOOKUP(CONCATENATE($A56,K$4),$S$4:$X$75,6,FALSE)*('ENTER DATA HERE - Budget'!$G$43/('ENTER DATA HERE - Budget'!$E$10*'ENTER DATA HERE - Budget'!$E$8)) -> 333.3333333 | L56: =VLOOKUP(CONCATENATE($A56,L$4),$S$4:$X$75,6,FALSE)*('ENTER DATA HERE - Budget'!$G$43/('ENTER DATA HERE - Budget'!$E$10*'ENTER DATA HERE - Budget'!$E$8)) -> 277.7777778 | M56: =VLOOKUP(CONCATENATE($A56,M$4),$S$4:$X$75,6,FALSE)*('ENTER DATA HERE - Budget'!$G$43/('ENTER DATA HERE - Budget'!$E$10*'ENTER DATA HERE - Budget'!$E$8)) -> 222.2222222 | N56: =VLOOKUP(CONCATENATE($A56,N$4),$S$4:$X$75,6,FALSE)*('ENTER DATA HERE - Budget'!$G$43/('ENTER DATA HERE - Budget'!$E$10*'ENTER DATA HERE - Budget'!$E$8)) -> 166.6666667 | O56: 3000 | R56: 53 | S56: 5May | T56: 5 | U56: May | V56: =IF(OR(U56=$C$2,U56=$D$2,U56=$E$2),'ENTER DATA HERE - Budget'!$E$10,0) -> 10 | W56: =IF(R56<='ENTER DATA HERE - Budget'!E$8,0,VLOOKUP(R56-'ENTER DATA HERE - Budget'!$E$8,$R$4:V55,5,FALSE)) -> 0 | X56: =SUM($V$4:V56)-SUM($W$4:W56) -> 50
A57: 2 | B57: Total Variable Cost | C57: =SUM(C48:C56) -> 894.0098857 | D57: 894.0098857 | E57: 894.0098857 | F57: 2758.574514 | G57: 3272.577809 | H57: 3570.581105 | I57: 2004.019771 | J57: 2004.019771 | K57: 2004.019771 | L57: 1739.687189 | M57: 1441.683893 | N57: 1143.680598 | O57: 22620.87408 | R57: 54 | S57: 5June | T57: 5 | U57: June | V57: =IF(OR(U57=$C$2,U57=$D$2,U57=$E$2),'ENTER DATA HERE - Budget'!$E$10,0) -> 10 | W57: =IF(R57<='ENTER DATA HERE - Budget'!E$8,0,VLOOKUP(R57-'ENTER DATA HERE - Budget'!$E$8,$R$4:V56,5,FALSE)) -> 0 | X57: =SUM($V$4:V57)-SUM($W$4:W57) -> 60
A58: 2 | R58: 55 | S58: 5July | T58: 5 | U58: July | V58: =IF(OR(U58=$C$2,U58=$D$2,U58=$E$2),'ENTER DATA HERE - Budget'!$E$10,0) -> 0 | W58: =IF(R58<='ENTER DATA HERE - Budget'!E$8,0,VLOOKUP(R58-'ENTER DATA HERE - Budget'!$E$8,$R$4:V57,5,FALSE)) -> 0 | X58: =SUM($V$4:V58)-SUM($W$4:W58) -> 60
A59: 2 | B59: Overhead Costs | R59: 56 | S59: 5August | T59: 5 | U59: August | V59: =IF(OR(U59=$C$2,U59=$D$2,U59=$E$2),'ENTER DATA HERE - Budget'!$E$10,0) -> 0 | W59: =IF(R59<='ENTER DATA HERE - Budget'!E$8,0,VLOOKUP(R59-'ENTER DATA HERE - Budget'!$E$8,$R$4:V58,5,FALSE)) -> 0 | X59: =SUM($V$4:V59)-SUM($W$4:W59) -> 60
A60: 2 | B60: Repair and maintenance | C60: ='ENTER DATA HERE - Budget'!$H$48/12 -> 15.60441953 | D60: ='ENTER DATA HERE - Budget'!$H$48/12 -> 15.60441953 | E60: ='ENTER DATA HERE - Budget'!$H$48/12 -> 15.60441953 | F60: ='ENTER DATA HERE - Budget'!$H$48/12 -> 15.60441953 | G60: ='ENTER DATA HERE - Budget'!$H$48/12 -> 15.60441953 | H60: ='ENTER DATA HERE - Budget'!$H$48/12 -> 15.60441953 | I60: ='ENTER DATA HERE - Budget'!$H$48/12 -> 15.60441953 | J60: ='ENTER DATA HERE - Budget'!$H$48/12 -> 15.60441953 | K60: ='ENTER DATA HERE - Budget'!$H$48/12 -> 15.60441953 | L60: ='ENTER DATA HERE - Budget'!$H$48/12 -> 15.60441953 | M60: ='ENTER DATA HERE - Budget'!$H$48/12 -> 15.60441953 | N60: ='ENTER DATA HERE - Budget'!$H$48/12 -> 15.60441953 | O60: =SUM(C60:N60) -> 187.2530344 | R60: 57 | S60: 5September | T60: 5 | U60: September | V60: =IF(OR(U60=$C$2,U60=$D$2,U60=$E$2),'ENTER DATA HERE - Budget'!$E$10,0) -> 0 | W60: =IF(R60<='ENTER DATA HERE - Budget'!E$8,0,VLOOKUP(R60-'ENTER DATA HERE - Budget'!$E$8,$R$4:V59,5,FALSE)) -> 0 | X60: =SUM($V$4:V60)-SUM($W$4:W60) -> 60
A61: 2 | B61: Water acres rental | C61: ='ENTER DATA HERE - Budget'!$H$49/12 -> 78.02209766 | D61: ='ENTER DATA HERE - Budget'!$H$49/12 -> 78.02209766 | E61: ='ENTER DATA HERE - Budget'!$H$49/12 -> 78.02209766 | F61: ='ENTER DATA HERE - Budget'!$H$49/12 -> 78.02209766 | G61: ='ENTER DATA HERE - Budget'!$H$49/12 -> 78.02209766 | H61: ='ENTER DATA HERE - Budget'!$H$49/12 -> 78.02209766 | I61: ='ENTER DATA HERE - Budget'!$H$49/12 -> 78.02209766 | J61: ='ENTER DATA HERE - Budget'!$H$49/12 -> 78.02209766 | K61: ='ENTER DATA HERE - Budget'!$H$49/12 -> 78.02209766 | L61: ='ENTER DATA HERE - Budget'!$H$49/12 -> 78.02209766 | M61: ='ENTER DATA HERE - Budget'!$H$49/12 -> 78.02209766 | N61: ='ENTER DATA HERE - Budget'!$H$49/12 -> 78.02209766 | O61: 936.2651719 | R61: 58 | S61: 5October | T61: 5 | U61: October | V61: =IF(OR(U61=$C$2,U61=$D$2,U61=$E$2),'ENTER DATA HERE - Budget'!$E$10,0) -> 0 | W61: =IF(R61<='ENTER DATA HERE - Budget'!E$8,0,VLOOKUP(R61-'ENTER DATA HERE - Budget'!$E$8,$R$4:V60,5,FALSE)) -> 10 | X61: =SUM($V$4:V61)-SUM($W$4:W61) -> 50
A62: 2 | B62: Insurance | C62: ='ENTER DATA HERE - Budget'!$H$50/12 -> 83.33333333 | D62: ='ENTER DATA HERE - Budget'!$H$50/12 -> 83.33333333 | E62: ='ENTER DATA HERE - Budget'!$H$50/12 -> 83.33333333 | F62: ='ENTER DATA HERE - Budget'!$H$50/12 -> 83.33333333 | G62: ='ENTER DATA HERE - Budget'!$H$50/12 -> 83.33333333 | H62: ='ENTER DATA HERE - Budget'!$H$50/12 -> 83.33333333 | I62: ='ENTER DATA HERE - Budget'!$H$50/12 -> 83.33333333 | J62: ='ENTER DATA HERE - Budget'!$H$50/12 -> 83.33333333 | K62: ='ENTER DATA HERE - Budget'!$H$50/12 -> 83.33333333 | L62: ='ENTER DATA HERE - Budget'!$H$50/12 -> 83.33333333 | M62: ='ENTER DATA HERE - Budget'!$H$50/12 -> 83.33333333 | N62: ='ENTER DATA HERE - Budget'!$H$50/12 -> 83.33333333 | O62: 1000 | R62: 59 | S62: 5November | T62: 5 | U62: November | V62: =IF(OR(U62=$C$2,U62=$D$2,U62=$E$2),'ENTER DATA HERE - Budget'!$E$10,0) -> 0 | W62: =IF(R62<='ENTER DATA HERE - Budget'!E$8,0,VLOOKUP(R62-'ENTER DATA HERE - Budget'!$E$8,$R$4:V61,5,FALSE)) -> 10 | X62: =SUM($V$4:V62)-SUM($W$4:W62) -> 40
A63: 2 | B63: Adminstration/Management - legal fees, professional services, etc. (% of total overhead) | C63: ='ENTER DATA HERE - Budget'!$H$51/12 -> 94.253642 | D63: ='ENTER DATA HERE - Budget'!$H$51/12 -> 94.253642 | E63: ='ENTER DATA HERE - Budget'!$H$51/12 -> 94.253642 | F63: ='ENTER DATA HERE - Budget'!$H$51/12 -> 94.253642 | G63: ='ENTER DATA HERE - Budget'!$H$51/12 -> 94.253642 | H63: ='ENTER DATA HERE - Budget'!$H$51/12 -> 94.253642 | I63: ='ENTER DATA HERE - Budget'!$H$51/12 -> 94.253642 | J63: ='ENTER DATA HERE - Budget'!$H$51/12 -> 94.253642 | K63: ='ENTER DATA HERE - Budget'!$H$51/12 -> 94.253642 | L63: ='ENTER DATA HERE - Budget'!$H$51/12 -> 94.253642 | M63: ='ENTER DATA HERE - Budget'!$H$51/12 -> 94.253642 | N63: ='ENTER DATA HERE - Budget'!$H$51/12 -> 94.253642 | O63: 1131.043704 | R63: 60 | S63: 5December | T63: 5 | U63: December | V63: =IF(OR(U63=$C$2,U63=$D$2,U63=$E$2),'ENTER DATA HERE - Budget'!$E$10,0) -> 0 | W63: =IF(R63<='ENTER DATA HERE - Budget'!E$8,0,VLOOKUP(R63-'ENTER DATA HERE - Budget'!$E$8,$R$4:V62,5,FALSE)) -> 10 | X63: =SUM($V$4:V63)-SUM($W$4:W63) -> 30
A64: 2 | B64: Other 1 | C64: ='ENTER DATA HERE - Budget'!$E$52/12 -> 0 | D64: ='ENTER DATA HERE - Budget'!$E$52/12 -> 0 | E64: ='ENTER DATA HERE - Budget'!$E$52/12 -> 0 | F64: ='ENTER DATA HERE - Budget'!$E$52/12 -> 0 | G64: ='ENTER DATA HERE - Budget'!$E$52/12 -> 0 | H64: ='ENTER DATA HERE - Budget'!$E$52/12 -> 0 | I64: ='ENTER DATA HERE - Budget'!$E$52/12 -> 0 | J64: ='ENTER DATA HERE - Budget'!$E$52/12 -> 0 | K64: ='ENTER DATA HERE - Budget'!$E$52/12 -> 0 | L64: ='ENTER DATA HERE - Budget'!$E$52/12 -> 0 | M64: ='ENTER DATA HERE - Budget'!$E$52/12 -> 0 | N64: ='ENTER DATA HERE - Budget'!$E$52/12 -> 0 | O64: 0 | R64: 61 | S64: 6January | T64: 6 | U64: January | V64: =IF(OR(U64=$C$2,U64=$D$2,U64=$E$2),'ENTER DATA HERE - Budget'!$E$10,0) -> 0 | W64: =IF(R64<='ENTER DATA HERE - Budget'!E$8,0,VLOOKUP(R64-'ENTER DATA HERE - Budget'!$E$8,$R$4:V63,5,FALSE)) -> 0 | X64: =SUM($V$4:V64)-SUM($W$4:W64) -> 30
A65: 2 | B65: Other 2 | C65: ='ENTER DATA HERE - Budget'!$E$53/12 -> 0 | D65: ='ENTER DATA HERE - Budget'!$E$53/12 -> 0 | E65: ='ENTER DATA HERE - Budget'!$E$53/12 -> 0 | F65: ='ENTER DATA HERE - Budget'!$E$53/12 -> 0 | G65: ='ENTER DATA HERE - Budget'!$E$53/12 -> 0 | H65: ='ENTER DATA HERE - Budget'!$E$53/12 -> 0 | I65: ='ENTER DATA HERE - Budget'!$E$53/12 -> 0 | J65: ='ENTER DATA HERE - Budget'!$E$53/12 -> 0 | K65: ='ENTER DATA HERE - Budget'!$E$53/12 -> 0 | L65: ='ENTER DATA HERE - Budget'!$E$53/12 -> 0 | M65: ='ENTER DATA HERE - Budget'!$E$53/12 -> 0 | N65: ='ENTER DATA HERE - Budget'!$E$53/12 -> 0 | O65: 0 | R65: 62 | S65: 6February | T65: 6 | U65: February | V65: =IF(OR(U65=$C$2,U65=$D$2,U65=$E$2),'ENTER DATA HERE - Budget'!$E$10,0) -> 0 | W65: =IF(R65<='ENTER DATA HERE - Budget'!E$8,0,VLOOKUP(R65-'ENTER DATA HERE - Budget'!$E$8,$R$4:V64,5,FALSE)) -> 0 | X65: =SUM($V$4:V65)-SUM($W$4:W65) -> 30
A66: 2 | B66: Total Overhead Costs | C66: =SUM(C60:C65) -> 271.2134925 | D66: 271.2134925 | E66: 271.2134925 | F66: 271.2134925 | G66: 271.2134925 | H66: 271.2134925 | I66: 271.2134925 | J66: 271.2134925 | K66: 271.2134925 | L66: 271.2134925 | M66: 271.2134925 | N66: 271.2134925 | O66: 3254.56191 | R66: 63 | S66: 6March | T66: =T55+1 -> 6 | U66: March | V66: =IF(OR(U66=$C$2,U66=$D$2,U66=$E$2),'ENTER DATA HERE - Budget'!$E$10,0) -> 0 | W66: =IF(R66<='ENTER DATA HERE - Budget'!E$8,0,VLOOKUP(R66-'ENTER DATA HERE - Budget'!$E$8,$R$4:V65,5,FALSE)) -> 0 | X66: =SUM($V$4:V66)-SUM($W$4:W66) -> 30
A67: 2 | R67: 64 | S67: 6April | T67: =T55+1 -> 6 | U67: April | V67: =IF(OR(U67=$C$2,U67=$D$2,U67=$E$2),'ENTER DATA HERE - Budget'!$E$10,0) -> 10 | W67: =IF(R67<='ENTER DATA HERE - Budget'!E$8,0,VLOOKUP(R67-'ENTER DATA HERE - Budget'!$E$8,$R$4:V66,5,FALSE)) -> 0 | X67: =SUM($V$4:V67)-SUM($W$4:W67) -> 40
A68: 2 | B68: Loan | C68: ='ENTER DATA HERE - Budget'!$H$80/12 -> 429.8649588 | D68: ='ENTER DATA HERE - Budget'!$H$80/12 -> 429.8649588 | E68: ='ENTER DATA HERE - Budget'!$H$80/12 -> 429.8649588 | F68: ='ENTER DATA HERE - Budget'!$H$80/12 -> 429.8649588 | G68: ='ENTER DATA HERE - Budget'!$H$80/12 -> 429.8649588 | H68: ='ENTER DATA HERE - Budget'!$H$80/12 -> 429.8649588 | I68: ='ENTER DATA HERE - Budget'!$H$80/12 -> 429.8649588 | J68: ='ENTER DATA HERE - Budget'!$H$80/12 -> 429.8649588 | K68: ='ENTER DATA HERE - Budget'!$H$80/12 -> 429.8649588 | L68: ='ENTER DATA HERE - Budget'!$H$80/12 -> 429.8649588 | M68: ='ENTER DATA HERE - Budget'!$H$80/12 -> 429.8649588 | N68: ='ENTER DATA HERE - Budget'!$H$80/12 -> 429.8649588 | O68: =SUM(C68:N68) -> 5158.379506 | R68: 65 | S68: 6May | T68: 6 | U68: May | V68: =IF(OR(U68=$C$2,U68=$D$2,U68=$E$2),'ENTER DATA HERE - Budget'!$E$10,0) -> 10 | W68: =IF(R68<='ENTER DATA HERE - Budget'!E$8,0,VLOOKUP(R68-'ENTER DATA HERE - Budget'!$E$8,$R$4:V67,5,FALSE)) -> 0 | X68: =SUM($V$4:V68)-SUM($W$4:W68) -> 50
A69: 2 | R69: 66 | S69: 6June | T69: 6 | U69: June | V69: =IF(OR(U69=$C$2,U69=$D$2,U69=$E$2),'ENTER DATA HERE - Budget'!$E$10,0) -> 10 | W69: =IF(R69<='ENTER DATA HERE - Budget'!E$8,0,VLOOKUP(R69-'ENTER DATA HERE - Budget'!$E$8,$R$4:V68,5,FALSE)) -> 0 | X69: =SUM($V$4:V69)-SUM($W$4:W69) -> 60
A70: 2 | B70: Max Cash Flow | C70: =C45-SUM(C57,C66,C68) -> -1595.088337 | D70: =D45-SUM(D57,D66,D68) -> -1595.088337 | E70: -1595.088337 | F70: -3459.652966 | G70: -3973.656261 | H70: -4271.659556 | I70: -2705.098223 | J70: -2705.098223 | K70: -2705.098223 | L70: 28768.07342 | M70: 29066.07672 | N70: 29364.08001 | R70: 67 | S70: =CONCATENATE(T70,U70) -> 6July | T70: 6 | U70: July | V70: =IF(OR(U70=$C$2,U70=$D$2,U70=$E$2),'ENTER DATA HERE - Budget'!$E$10,0) -> 0 | W70: =IF(R70<='ENTER DATA HERE - Budget'!E$8,0,VLOOKUP(R70-'ENTER DATA HERE - Budget'!$E$8,$R$4:V69,5,FALSE)) -> 0 | X70: =SUM($V$4:V70)-SUM($W$4:W70) -> 60
A71: 2 | B71: Min Cash Flow | C71: =C44-SUM(C57,C66,C68) -> -1595.088337 | D71: =D44-SUM(D57,D66,D68) -> -1595.088337 | E71: -1595.088337 | F71: -3459.652966 | G71: -3973.656261 | H71: -4271.659556 | I71: -2705.098223 | J71: -2705.098223 | K71: -2705.098223 | L71: -2440.76564 | M71: -2142.762345 | N71: -1844.75905 | R71: 68 | S71: 6August | T71: 6 | U71: August | V71: =IF(OR(U71=$C$2,U71=$D$2,U71=$E$2),'ENTER DATA HERE - Budget'!$E$10,0) -> 0 | W71: =IF(R71<='ENTER DATA HERE - Budget'!E$8,0,VLOOKUP(R71-'ENTER DATA HERE - Budget'!$E$8,$R$4:V70,5,FALSE)) -> 0 | X71: =SUM($V$4:V71)-SUM($W$4:W71) -> 60
R72: 69 | S72: 6September | T72: 6 | U72: September | V72: =IF(OR(U72=$C$2,U72=$D$2,U72=$E$2),'ENTER DATA HERE - Budget'!$E$10,0) -> 0 | W72: =IF(R72<='ENTER DATA HERE - Budget'!E$8,0,VLOOKUP(R72-'ENTER DATA HERE - Budget'!$E$8,$R$4:V71,5,FALSE)) -> 0 | X72: =SUM($V$4:V72)-SUM($W$4:W72) -> 60
B73: YEAR 3 | C73: YEAR 3 | R73: 70 | S73: 6October | T73: 6 | U73: October | V73: =IF(OR(U73=$C$2,U73=$D$2,U73=$E$2),'ENTER DATA HERE - Budget'!$E$10,0) -> 0 | W73: =IF(R73<='ENTER DATA HERE - Budget'!E$8,0,VLOOKUP(R73-'ENTER DATA HERE - Budget'!$E$8,$R$4:V72,5,FALSE)) -> 10 | X73: =SUM($V$4:V73)-SUM($W$4:W73) -> 50
C74: January | D74: February | E74: March | F74: April | G74: May | H74: June | I74: July | J74: August | K74: September | L74: October | M74: November | N74: December | R74: 71 | S74: 6November | T74: 6 | U74: November | V74: =IF(OR(U74=$C$2,U74=$D$2,U74=$E$2),'ENTER DATA HERE - Budget'!$E$10,0) -> 0 | W74: =IF(R74<='ENTER DATA HERE - Budget'!E$8,0,VLOOKUP(R74-'ENTER DATA HERE - Budget'!$E$8,$R$4:V73,5,FALSE)) -> 10 | X74: =SUM($V$4:V74)-SUM($W$4:W74) -> 40
A75: =$A$70+1 -> 3 | B75: Gross Receipts: | R75: 72 | S75: 6December | T75: 6 | U75: December | V75: =IF(OR(U75=$C$2,U75=$D$2,U75=$E$2),'ENTER DATA HERE - Budget'!$E$10,0) -> 0 | W75: =IF(R75<='ENTER DATA HERE - Budget'!E$8,0,VLOOKUP(R75-'ENTER DATA HERE - Budget'!$E$8,$R$4:V74,5,FALSE)) -> 10 | X75: =SUM($V$4:$V75)-SUM($W$4:$W75) -> 30
A76: =$A$70+1 -> 3 | B76: Max Fish sale | C76: =VLOOKUP(CONCATENATE($A76,C$4),$S$4:$W$75,5,FALSE)*'ENTER DATA HERE - Budget'!$E$20*'ENTER DATA HERE - Budget'!$E$23*'ENTER DATA HERE - Budget'!$E$25*'ENTER DATA HERE - Budget'!$E$30 -> 0 | D76: =VLOOKUP(CONCATENATE($A76,D$4),$S$4:$W$75,5,FALSE)*'ENTER DATA HERE - Budget'!$E$20*'ENTER DATA HERE - Budget'!$E$23*'ENTER DATA HERE - Budget'!$E$25*'ENTER DATA HERE - Budget'!$E$30 -> 0 | E76: =VLOOKUP(CONCATENATE($A76,E$4),$S$4:$W$75,5,FALSE)*'ENTER DATA HERE - Budget'!$E$20*'ENTER DATA HERE - Budget'!$E$23*'ENTER DATA HERE - Budget'!$E$25*'ENTER DATA HERE - Budget'!$E$30 -> 0 | F76: =VLOOKUP(CONCATENATE($A76,F$4),$S$4:$W$75,5,FALSE)*'ENTER DATA HERE - Budget'!$E$20*'ENTER DATA HERE - Budget'!$E$23*'ENTER DATA HERE - Budget'!$E$25*'ENTER DATA HERE - Budget'!$E$30 -> 0 | G76: =VLOOKUP(CONCATENATE($A76,G$4),$S$4:$W$75,5,FALSE)*'ENTER DATA HERE - Budget'!$E$20*'ENTER DATA HERE - Budget'!$E$23*'ENTER DATA HERE - Budget'!$E$25*'ENTER DATA HERE - Budget'!$E$30 -> 0 | H76: =VLOOKUP(CONCATENATE($A76,H$4),$S$4:$W$75,5,FALSE)*'ENTER DATA HERE - Budget'!$E$20*'ENTER DATA HERE - Budget'!$E$23*'ENTER DATA HERE - Budget'!$E$25*'ENTER DATA HERE - Budget'!$E$30 -> 0 | I76: =VLOOKUP(CONCATENATE($A76,I$4),$S$4:$W$75,5,FALSE)*'ENTER DATA HERE - Budget'!$E$20*'ENTER DATA HERE - Budget'!$E$23*'ENTER DATA HERE - Budget'!$E$25*'ENTER DATA HERE - Budget'!$E$30 -> 0 | J76: =VLOOKUP(CONCATENATE($A76,J$4),$S$4:$W$75,5,FALSE)*'ENTER DATA HERE - Budget'!$E$20*'ENTER DATA HERE - Budget'!$E$23*'ENTER DATA HERE - Budget'!$E$25*'ENTER DATA HERE - Budget'!$E$30 -> 0 | K76: =VLOOKUP(CONCATENATE($A76,K$4),$S$4:$W$75,5,FALSE)*'ENTER DATA HERE - Budget'!$E$20*'ENTER DATA HERE - Budget'!$E$23*'ENTER DATA HERE - Budget'!$E$25*'ENTER DATA HERE - Budget'!$E$30 -> 0 | L76: =VLOOKUP(CONCATENATE($A76,L$4),$S$4:$W$75,5,FALSE)*'ENTER DATA HERE - Budget'!$E$20*'ENTER DATA HERE - Budget'!$E$23*'ENTER DATA HERE - Budget'!$E$25*'ENTER DATA HERE - Budget'!$E$30 -> 18725.30344 | M76: =VLOOKUP(CONCATENATE($A76,M$4),$S$4:$W$75,5,FALSE)*'ENTER DATA HERE - Budget'!$E$20*'ENTER DATA HERE - Budget'!$E$23*'ENTER DATA HERE - Budget'!$E$25*'ENTER DATA HERE - Budget'!$E$30 -> 18725.30344 | N76: =VLOOKUP(CONCATENATE($A76,N$4),$S$4:$W$75,5,FALSE)*'ENTER DATA HERE - Budget'!$E$20*'ENTER DATA HERE - Budget'!$E$23*'ENTER DATA HERE - Budget'!$E$25*'ENTER DATA HERE - Budget'!$E$30 -> 18725.30344 | O76: =SUM(C76:N76) -> 56175.91031 | R76: 73 | S76: 7January | T76: 7 | U76: January | V76: =IF(OR(U76=$C$2,U76=$D$2,U76=$E$2),'ENTER DATA HERE - Budget'!$E$10,0) -> 0 | W76: =IF(R76<='ENTER DATA HERE - Budget'!E$8,0,VLOOKUP(R76-'ENTER DATA HERE - Budget'!$E$8,$R$4:V75,5,FALSE)) -> 0 | X76: =SUM($V$4:$V76)-SUM($W$4:$W76) -> 30
A77: 3 | B77: Min Fish Sale | C77: =VLOOKUP(CONCATENATE($A77,C$4),$S$4:$W$75,5,FALSE)*'ENTER DATA HERE - Budget'!$E$20*'ENTER DATA HERE - Budget'!$E$22*'ENTER DATA HERE - Budget'!$E$25*'ENTER DATA HERE - Budget'!$E$30 -> 0 | D77: =VLOOKUP(CONCATENATE($A77,D$4),$S$4:$W$75,5,FALSE)*'ENTER DATA HERE - Budget'!$E$20*'ENTER DATA HERE - Budget'!$E$22*'ENTER DATA HERE - Budget'!$E$25*'ENTER DATA HERE - Budget'!$E$30 -> 0 | E77: =VLOOKUP(CONCATENATE($A77,E$4),$S$4:$W$75,5,FALSE)*'ENTER DATA HERE - Budget'!$E$20*'ENTER DATA HERE - Budget'!$E$22*'ENTER DATA HERE - Budget'!$E$25*'ENTER DATA HERE - Budget'!$E$30 -> 0 | F77: =VLOOKUP(CONCATENATE($A77,F$4),$S$4:$W$75,5,FALSE)*'ENTER DATA HERE - Budget'!$E$20*'ENTER DATA HERE - Budget'!$E$22*'ENTER DATA HERE - Budget'!$E$25*'ENTER DATA HERE - Budget'!$E$30 -> 0 | G77: =VLOOKUP(CONCATENATE($A77,G$4),$S$4:$W$75,5,FALSE)*'ENTER DATA HERE - Budget'!$E$20*'ENTER DATA HERE - Budget'!$E$22*'ENTER DATA HERE - Budget'!$E$25*'ENTER DATA HERE - Budget'!$E$30 -> 0 | H77: =VLOOKUP(CONCATENATE($A77,H$4),$S$4:$W$75,5,FALSE)*'ENTER DATA HERE - Budget'!$E$20*'ENTER DATA HERE - Budget'!$E$22*'ENTER DATA HERE - Budget'!$E$25*'ENTER DATA HERE - Budget'!$E$30 -> 0 | I77: =VLOOKUP(CONCATENATE($A77,I$4),$S$4:$W$75,5,FALSE)*'ENTER DATA HERE - Budget'!$E$20*'ENTER DATA HERE - Budget'!$E$22*'ENTER DATA HERE - Budget'!$E$25*'ENTER DATA HERE - Budget'!$E$30 -> 0 | J77: =VLOOKUP(CONCATENATE($A77,J$4),$S$4:$W$75,5,FALSE)*'ENTER DATA HERE - Budget'!$E$20*'ENTER DATA HERE - Budget'!$E$22*'ENTER DATA HERE - Budget'!$E$25*'ENTER DATA HERE - Budget'!$E$30 -> 0 | K77: =VLOOKUP(CONCATENATE($A77,K$4),$S$4:$W$75,5,FALSE)*'ENTER DATA HERE - Budget'!$E$20*'ENTER DATA HERE - Budget'!$E$22*'ENTER DATA HERE - Budget'!$E$25*'ENTER DATA HERE - Budget'!$E$30 -> 0 | L77: =VLOOKUP(CONCATENATE($A77,L$4),$S$4:$W$75,5,FALSE)*'ENTER DATA HERE - Budget'!$E$20*'ENTER DATA HERE - Budget'!$E$22*'ENTER DATA HERE - Budget'!$E$25*'ENTER DATA HERE - Budget'!$E$30 -> 12483.53563 | M77: =VLOOKUP(CONCATENATE($A77,M$4),$S$4:$W$75,5,FALSE)*'ENTER DATA HERE - Budget'!$E$20*'ENTER DATA HERE - Budget'!$E$22*'ENTER DATA HERE - Budget'!$E$25*'ENTER DATA HERE - Budget'!$E$30 -> 12483.53563 | N77: =VLOOKUP(CONCATENATE($A77,N$4),$S$4:$W$75,5,FALSE)*'ENTER DATA HERE - Budget'!$E$20*'ENTER DATA HERE - Budget'!$E$22*'ENTER DATA HERE - Budget'!$E$25*'ENTER DATA HERE - Budget'!$E$30 -> 12483.53563 | O77: =SUM(C77:N77) -> 37450.60687 | R77: 74 | S77: 7February | T77: 7 | U77: February | V77: =IF(OR(U77=$C$2,U77=$D$2,U77=$E$2),'ENTER DATA HERE - Budget'!$E$10,0) -> 0 | W77: =IF(R77<='ENTER DATA HERE - Budget'!E$8,0,VLOOKUP(R77-'ENTER DATA HERE - Budget'!$E$8,$R$4:V76,5,FALSE)) -> 0 | X77: =SUM($V$4:$V77)-SUM($W$4:$W77) -> 30
A78: 3 | B78: Miscellaneous Receipts | C78: ='ENTER DATA HERE - Budget'!$E$31/12 -> 0 | D78: ='ENTER DATA HERE - Budget'!$E$31/12 -> 0 | E78: ='ENTER DATA HERE - Budget'!$E$31/12 -> 0 | F78: ='ENTER DATA HERE - Budget'!$E$31/12 -> 0 | G78: ='ENTER DATA HERE - Budget'!$E$31/12 -> 0 | H78: ='ENTER DATA HERE - Budget'!$E$31/12 -> 0 | I78: ='ENTER DATA HERE - Budget'!$E$31/12 -> 0 | J78: ='ENTER DATA HERE - Budget'!$E$31/12 -> 0 | K78: ='ENTER DATA HERE - Budget'!$E$31/12 -> 0 | L78: ='ENTER DATA HERE - Budget'!$E$31/12 -> 0 | M78: ='ENTER DATA HERE - Budget'!$E$31/12 -> 0 | N78: ='ENTER DATA HERE - Budget'!$E$31/12 -> 0 | O78: =SUM(C78:N78) -> 0 | R78: 75 | S78: 7March | T78: =T67+1 -> 7 | U78: March | V78: =IF(OR(U78=$C$2,U78=$D$2,U78=$E$2),'ENTER DATA HERE - Budget'!$E$10,0) -> 0 | W78: =IF(R78<='ENTER DATA HERE - Budget'!E$8,0,VLOOKUP(R78-'ENTER DATA HERE - Budget'!$E$8,$R$4:V77,5,FALSE)) -> 0 | X78: =SUM($V$4:$V78)-SUM($W$4:$W78) -> 30
A79: 3 | B79: Total Receipts | C79: =SUM(C76:C78) -> 0 | D79: =SUM(D76:D78) -> 0 | E79: 0 | F79: 0 | G79: 0 | H79: 0 | I79: 0 | J79: 0 | K79: 0 | L79: 31208.83906 | M79: 31208.83906 | N79: 31208.83906 | O79: =SUM(C79:N79) -> 93626.51719 | R79: 76 | S79: 7April | T79: =T67+1 -> 7 | U79: April | V79: =IF(OR(U79=$C$2,U79=$D$2,U79=$E$2),'ENTER DATA HERE - Budget'!$E$10,0) -> 10 | W79: =IF(R79<='ENTER DATA HERE - Budget'!E$8,0,VLOOKUP(R79-'ENTER DATA HERE - Budget'!$E$8,$R$4:V78,5,FALSE)) -> 0 | X79: =SUM($V$4:$V79)-SUM($W$4:$W79) -> 40
A80: 3 | R80: 77 | S80: 7May | T80: =T68+1 -> 7 | U80: May | V80: =IF(OR(U80=$C$2,U80=$D$2,U80=$E$2),'ENTER DATA HERE - Budget'!$E$10,0) -> 10 | W80: =IF(R80<='ENTER DATA HERE - Budget'!E$8,0,VLOOKUP(R80-'ENTER DATA HERE - Budget'!$E$8,$R$4:V79,5,FALSE)) -> 0 | X80: =SUM($V$4:$V80)-SUM($W$4:$W80) -> 50
A81: 3 | B81: Variable Inputs: | R81: 78 | S81: 7June | T81: =T69+1 -> 7 | U81: June | V81: =IF(OR(U81=$C$2,U81=$D$2,U81=$E$2),'ENTER DATA HERE - Budget'!$E$10,0) -> 10 | W81: =IF(R81<='ENTER DATA HERE - Budget'!E$8,0,VLOOKUP(R81-'ENTER DATA HERE - Budget'!$E$8,$R$4:V80,5,FALSE)) -> 0 | X81: =SUM($V$4:$V81)-SUM($W$4:$W81) -> 60
A82: 3 | B82: Fingerlings (4") | C82: =VLOOKUP(CONCATENATE($A82,C$4),$S$4:$W$75,4,FALSE)*'ENTER DATA HERE - Budget'!$E$35*'ENTER DATA HERE - Budget'!$E$20 -> 0 | D82: =VLOOKUP(CONCATENATE($A82,D$4),$S$4:$W$75,4,FALSE)*'ENTER DATA HERE - Budget'!$E$35*'ENTER DATA HERE - Budget'!$E$20 -> 0 | E82: =VLOOKUP(CONCATENATE($A82,E$4),$S$4:$W$75,4,FALSE)*'ENTER DATA HERE - Budget'!$E$35*'ENTER DATA HERE - Budget'!$E$20 -> 0 | F82: =VLOOKUP(CONCATENATE($A82,F$4),$S$4:$W$75,4,FALSE)*'ENTER DATA HERE - Budget'!$E$35*'ENTER DATA HERE - Budget'!$E$20 -> 1468.65125 | G82: =VLOOKUP(CONCATENATE($A82,G$4),$S$4:$W$75,4,FALSE)*'ENTER DATA HERE - Budget'!$E$35*'ENTER DATA HERE - Budget'!$E$20 -> 1468.65125 | H82: =VLOOKUP(CONCATENATE($A82,H$4),$S$4:$W$75,4,FALSE)*'ENTER DATA HERE - Budget'!$E$35*'ENTER DATA HERE - Budget'!$E$20 -> 1468.65125 | I82: =VLOOKUP(CONCATENATE($A82,I$4),$S$4:$W$75,4,FALSE)*'ENTER DATA HERE - Budget'!$E$35*'ENTER DATA HERE - Budget'!$E$20 -> 0 | J82: =VLOOKUP(CONCATENATE($A82,J$4),$S$4:$W$75,4,FALSE)*'ENTER DATA HERE - Budget'!$E$35*'ENTER DATA HERE - Budget'!$E$20 -> 0 | K82: =VLOOKUP(CONCATENATE($A82,K$4),$S$4:$W$75,4,FALSE)*'ENTER DATA HERE - Budget'!$E$35*'ENTER DATA HERE - Budget'!$E$20 -> 0 | L82: =VLOOKUP(CONCATENATE($A82,L$4),$S$4:$W$75,4,FALSE)*'ENTER DATA HERE - Budget'!$E$35*'ENTER DATA HERE - Budget'!$E$20 -> 0 | M82: =VLOOKUP(CONCATENATE($A82,M$4),$S$4:$W$75,4,FALSE)*'ENTER DATA HERE - Budget'!$E$35*'ENTER DATA HERE - Budget'!$E$20 -> 0 | N82: =VLOOKUP(CONCATENATE($A82,N$4),$S$4:$W$75,4,FALSE)*'ENTER DATA HERE - Budget'!$E$35*'ENTER DATA HERE - Budget'!$E$20 -> 0 | O82: =SUM(C82:N82) -> 4405.95375 | R82: 79 | S82: 7July | T82: =T70+1 -> 7 | U82: July | V82: =IF(OR(U82=$C$2,U82=$D$2,U82=$E$2),'ENTER DATA HERE - Budget'!$E$10,0) -> 0 | W82: =IF(R82<='ENTER DATA HERE - Budget'!E$8,0,VLOOKUP(R82-'ENTER DATA HERE - Budget'!$E$8,$R$4:V81,5,FALSE)) -> 0 | X82: =SUM($V$4:$V82)-SUM($W$4:$W82) -> 60
A83: 3 | B83: Feed | C83: =VLOOKUP(CONCATENATE($A83,C$4),$S$4:$X$75,6,FALSE)*('ENTER DATA HERE - Budget'!$G$36/('ENTER DATA HERE - Budget'!$E$10*'ENTER DATA HERE - Budget'!$E$8)) -> 685.6765523 | D83: =VLOOKUP(CONCATENATE($A83,D$4),$S$4:$X$75,6,FALSE)*('ENTER DATA HERE - Budget'!$G$36/('ENTER DATA HERE - Budget'!$E$10*'ENTER DATA HERE - Budget'!$E$8)) -> 685.6765523 | E83: =VLOOKUP(CONCATENATE($A83,E$4),$S$4:$X$75,6,FALSE)*('ENTER DATA HERE - Budget'!$G$36/('ENTER DATA HERE - Budget'!$E$10*'ENTER DATA HERE - Budget'!$E$8)) -> 685.6765523 | F83: =VLOOKUP(CONCATENATE($A83,F$4),$S$4:$X$75,6,FALSE)*('ENTER DATA HERE - Budget'!$G$36/('ENTER DATA HERE - Budget'!$E$10*'ENTER DATA HERE - Budget'!$E$8)) -> 914.2354031 | G83: =VLOOKUP(CONCATENATE($A83,G$4),$S$4:$X$75,6,FALSE)*('ENTER DATA HERE - Budget'!$G$36/('ENTER DATA HERE - Budget'!$E$10*'ENTER DATA HERE - Budget'!$E$8)) -> 1142.794254 | H83: =VLOOKUP(CONCATENATE($A83,H$4),$S$4:$X$75,6,FALSE)*('ENTER DATA HERE - Budget'!$G$36/('ENTER DATA HERE - Budget'!$E$10*'ENTER DATA HERE - Budget'!$E$8)) -> 1371.353105 | I83: =VLOOKUP(CONCATENATE($A83,I$4),$S$4:$X$75,6,FALSE)*('ENTER DATA HERE - Budget'!$G$36/('ENTER DATA HERE - Budget'!$E$10*'ENTER DATA HERE - Budget'!$E$8)) -> 1371.353105 | J83: =VLOOKUP(CONCATENATE($A83,J$4),$S$4:$X$75,6,FALSE)*('ENTER DATA HERE - Budget'!$G$36/('ENTER DATA HERE - Budget'!$E$10*'ENTER DATA HERE - Budget'!$E$8)) -> 1371.353105 | K83: =VLOOKUP(CONCATENATE($A83,K$4),$S$4:$X$75,6,FALSE)*('ENTER DATA HERE - Budget'!$G$36/('ENTER DATA HERE - Budget'!$E$10*'ENTER DATA HERE - Budget'!$E$8)) -> 1371.353105 | L83: =VLOOKUP(CONCATENATE($A83,L$4),$S$4:$X$75,6,FALSE)*('ENTER DATA HERE - Budget'!$G$36/('ENTER DATA HERE - Budget'!$E$10*'ENTER DATA HERE - Budget'!$E$8)) -> 1142.794254 | M83: =VLOOKUP(CONCATENATE($A83,M$4),$S$4:$X$75,6,FALSE)*('ENTER DATA HERE - Budget'!$G$36/('ENTER DATA HERE - Budget'!$E$10*'ENTER DATA HERE - Budget'!$E$8)) -> 914.2354031 | N83: =VLOOKUP(CONCATENATE($A83,N$4),$S$4:$X$75,6,FALSE)*('ENTER DATA HERE - Budget'!$G$36/('ENTER DATA HERE - Budget'!$E$10*'ENTER DATA HERE - Budget'!$E$8)) -> 685.6765523 | O83: 12342.17794 | R83: 80 | S83: 7August | T83: =T71+1 -> 7 | U83: August | V83: =IF(OR(U83=$C$2,U83=$D$2,U83=$E$2),'ENTER DATA HERE - Budget'!$E$10,0) -> 0 | W83: =IF(R83<='ENTER DATA HERE - Budget'!E$8,0,VLOOKUP(R83-'ENTER DATA HERE - Budget'!$E$8,$R$4:V82,5,FALSE)) -> 0 | X83: =SUM($V$4:$V83)-SUM($W$4:$W83) -> 60
A84: 3 | B84: Chemicals | C84: =VLOOKUP(CONCATENATE($A84,C$4),$S$4:$X$75,6,FALSE)*('ENTER DATA HERE - Budget'!$G$37/('ENTER DATA HERE - Budget'!$E$10*'ENTER DATA HERE - Budget'!$E$8)) -> 41.66666667 | D84: =VLOOKUP(CONCATENATE($A84,D$4),$S$4:$X$75,6,FALSE)*('ENTER DATA HERE - Budget'!$G$37/('ENTER DATA HERE - Budget'!$E$10*'ENTER DATA HERE - Budget'!$E$8)) -> 41.66666667 | E84: =VLOOKUP(CONCATENATE($A84,E$4),$S$4:$X$75,6,FALSE)*('ENTER DATA HERE - Budget'!$G$37/('ENTER DATA HERE - Budget'!$E$10*'ENTER DATA HERE - Budget'!$E$8)) -> 41.66666667 | F84: =VLOOKUP(CONCATENATE($A84,F$4),$S$4:$X$75,6,FALSE)*('ENTER DATA HERE - Budget'!$G$37/('ENTER DATA HERE - Budget'!$E$10*'ENTER DATA HERE - Budget'!$E$8)) -> 55.55555556 | G84: =VLOOKUP(CONCATENATE($A84,G$4),$S$4:$X$75,6,FALSE)*('ENTER DATA HERE - Budget'!$G$37/('ENTER DATA HERE - Budget'!$E$10*'ENTER DATA HERE - Budget'!$E$8)) -> 69.44444444 | H84: =VLOOKUP(CONCATENATE($A84,H$4),$S$4:$X$75,6,FALSE)*('ENTER DATA HERE - Budget'!$G$37/('ENTER DATA HERE - Budget'!$E$10*'ENTER DATA HERE - Budget'!$E$8)) -> 83.33333333 | I84: =VLOOKUP(CONCATENATE($A84,I$4),$S$4:$X$75,6,FALSE)*('ENTER DATA HERE - Budget'!$G$37/('ENTER DATA HERE - Budget'!$E$10*'ENTER DATA HERE - Budget'!$E$8)) -> 83.33333333 | J84: =VLOOKUP(CONCATENATE($A84,J$4),$S$4:$X$75,6,FALSE)*('ENTER DATA HERE - Budget'!$G$37/('ENTER DATA HERE - Budget'!$E$10*'ENTER DATA HERE - Budget'!$E$8)) -> 83.33333333 | K84: =VLOOKUP(CONCATENATE($A84,K$4),$S$4:$X$75,6,FALSE)*('ENTER DATA HERE - Budget'!$G$37/('ENTER DATA HERE - Budget'!$E$10*'ENTER DATA HERE - Budget'!$E$8)) -> 83.33333333 | L84: =VLOOKUP(CONCATENATE($A84,L$4),$S$4:$X$75,6,FALSE)*('ENTER DATA HERE - Budget'!$G$37/('ENTER DATA HERE - Budget'!$E$10*'ENTER DATA HERE - Budget'!$E$8)) -> 69.44444444 | M84: =VLOOKUP(CONCATENATE($A84,M$4),$S$4:$X$75,6,FALSE)*('ENTER DATA HERE - Budget'!$G$37/('ENTER DATA HERE - Budget'!$E$10*'ENTER DATA HERE - Budget'!$E$8)) -> 55.55555556 | N84: =VLOOKUP(CONCATENATE($A84,N$4),$S$4:$X$75,6,FALSE)*('ENTER DATA HERE - Budget'!$G$37/('ENTER DATA HERE - Budget'!$E$10*'ENTER DATA HERE - Budget'!$E$8)) -> 41.66666667 | O84: 750 | R84: 81 | S84: 7September | T84: 7 | U84: September | V84: =IF(OR(U84=$C$2,U84=$D$2,U84=$E$2),'ENTER DATA HERE - Budget'!$E$10,0) -> 0 | W84: =IF(R84<='ENTER DATA HERE - Budget'!E$8,0,VLOOKUP(R84-'ENTER DATA HERE - Budget'!$E$8,$R$4:V83,5,FALSE)) -> 0 | X84: =SUM($V$4:$V84)-SUM($W$4:$W84) -> 60
A85: 3 | B85: Electricity Cost | C85: 0 | D85: 0 | E85: 0 | F85: 0 | G85: ='ENTER DATA HERE - Budget'!$H$38/5 -> 216 | H85: ='ENTER DATA HERE - Budget'!$H$38/5 -> 216 | I85: ='ENTER DATA HERE - Budget'!$H$38/5 -> 216 | J85: ='ENTER DATA HERE - Budget'!$H$38/5 -> 216 | K85: ='ENTER DATA HERE - Budget'!$H$38/5 -> 216 | L85: 0 | M85: 0 | N85: 0 | O85: 1080 | R85: 82 | S85: 7October | T85: 7 | U85: October | V85: =IF(OR(U85=$C$2,U85=$D$2,U85=$E$2),'ENTER DATA HERE - Budget'!$E$10,0) -> 0 | W85: =IF(R85<='ENTER DATA HERE - Budget'!E$8,0,VLOOKUP(R85-'ENTER DATA HERE - Budget'!$E$8,$R$4:V84,5,FALSE)) -> 10 | X85: =SUM($V$4:$V85)-SUM($W$4:$W85) -> 50
A86: 3 | B86: Hired Labor - Hours | C86: ='ENTER DATA HERE - Budget'!$H$39/12 -> 0 | D86: ='ENTER DATA HERE - Budget'!$H$39/12 -> 0 | E86: ='ENTER DATA HERE - Budget'!$H$39/12 -> 0 | F86: ='ENTER DATA HERE - Budget'!$H$39/12 -> 0 | G86: ='ENTER DATA HERE - Budget'!$H$39/12 -> 0 | H86: ='ENTER DATA HERE - Budget'!$H$39/12 -> 0 | I86: ='ENTER DATA HERE - Budget'!$H$39/12 -> 0 | J86: ='ENTER DATA HERE - Budget'!$H$39/12 -> 0 | K86: ='ENTER DATA HERE - Budget'!$H$39/12 -> 0 | L86: ='ENTER DATA HERE - Budget'!$H$39/12 -> 0 | M86: ='ENTER DATA HERE - Budget'!$H$39/12 -> 0 | N86: ='ENTER DATA HERE - Budget'!$H$39/12 -> 0 | O86: 0 | R86: 83 | S86: 7November | T86: 7 | U86: November | V86: =IF(OR(U86=$C$2,U86=$D$2,U86=$E$2),'ENTER DATA HERE - Budget'!$E$10,0) -> 0 | W86: =IF(R86<='ENTER DATA HERE - Budget'!E$8,0,VLOOKUP(R86-'ENTER DATA HERE - Budget'!$E$8,$R$4:V85,5,FALSE)) -> 10 | X86: =SUM($V$4:$V86)-SUM($W$4:$W86) -> 40
A87: 3 | B87: Harvesting | C87: =VLOOKUP(CONCATENATE($A87,C$4),$S$4:$W$75,5,FALSE)*'ENTER DATA HERE - Budget'!$E$40*'ENTER DATA HERE - Budget'!$F$40/'ENTER DATA HERE - Budget'!$E$10 -> 0 | D87: =VLOOKUP(CONCATENATE($A87,D$4),$S$4:$W$75,5,FALSE)*'ENTER DATA HERE - Budget'!$E$40*'ENTER DATA HERE - Budget'!$F$40/'ENTER DATA HERE - Budget'!$E$10 -> 0 | E87: =VLOOKUP(CONCATENATE($A87,E$4),$S$4:$W$75,5,FALSE)*'ENTER DATA HERE - Budget'!$E$40*'ENTER DATA HERE - Budget'!$F$40/'ENTER DATA HERE - Budget'!$E$10 -> 0 | F87: =VLOOKUP(CONCATENATE($A87,F$4),$S$4:$W$75,5,FALSE)*'ENTER DATA HERE - Budget'!$E$40*'ENTER DATA HERE - Budget'!$F$40/'ENTER DATA HERE - Budget'!$E$10 -> 0 | G87: =VLOOKUP(CONCATENATE($A87,G$4),$S$4:$W$75,5,FALSE)*'ENTER DATA HERE - Budget'!$E$40*'ENTER DATA HERE - Budget'!$F$40/'ENTER DATA HERE - Budget'!$E$10 -> 0 | H87: =VLOOKUP(CONCATENATE($A87,H$4),$S$4:$W$75,5,FALSE)*'ENTER DATA HERE - Budget'!$E$40*'ENTER DATA HERE - Budget'!$F$40/'ENTER DATA HERE - Budget'!$E$10 -> 0 | I87: =VLOOKUP(CONCATENATE($A87,I$4),$S$4:$W$75,5,FALSE)*'ENTER DATA HERE - Budget'!$E$40*'ENTER DATA HERE - Budget'!$F$40/'ENTER DATA HERE - Budget'!$E$10 -> 0 | J87: =VLOOKUP(CONCATENATE($A87,J$4),$S$4:$W$75,5,FALSE)*'ENTER DATA HERE - Budget'!$E$40*'ENTER DATA HERE - Budget'!$F$40/'ENTER DATA HERE - Budget'!$E$10 -> 0 | K87: =VLOOKUP(CONCATENATE($A87,K$4),$S$4:$W$75,5,FALSE)*'ENTER DATA HERE - Budget'!$E$40*'ENTER DATA HERE - Budget'!$F$40/'ENTER DATA HERE - Budget'!$E$10 -> 0 | L87: =VLOOKUP(CONCATENATE($A87,L$4),$S$4:$W$75,5,FALSE)*'ENTER DATA HERE - Budget'!$E$40*'ENTER DATA HERE - Budget'!$F$40/'ENTER DATA HERE - Budget'!$E$10 -> 249.6707125 | M87: =VLOOKUP(CONCATENATE($A87,M$4),$S$4:$W$75,5,FALSE)*'ENTER DATA HERE - Budget'!$E$40*'ENTER DATA HERE - Budget'!$F$40/'ENTER DATA HERE - Budget'!$E$10 -> 249.6707125 | N87: =VLOOKUP(CONCATENATE($A87,N$4),$S$4:$W$75,5,FALSE)*'ENTER DATA HERE - Budget'!$E$40*'ENTER DATA HERE - Budget'!$F$40/'ENTER DATA HERE - Budget'!$E$10 -> 249.6707125 | O87: 749.0121375 | R87: 84 | S87: 7December | T87: 7 | U87: December | V87: =IF(OR(U87=$C$2,U87=$D$2,U87=$E$2),'ENTER DATA HERE - Budget'!$E$10,0) -> 0 | W87: =IF(R87<='ENTER DATA HERE - Budget'!E$8,0,VLOOKUP(R87-'ENTER DATA HERE - Budget'!$E$8,$R$4:V86,5,FALSE)) -> 10 | X87: =SUM($V$4:$V87)-SUM($W$4:$W87) -> 30
A88: 3 | B88: Transportation Costs of Fingerlings | C88: =VLOOKUP(CONCATENATE($A88,C$4),$S$4:$W$75,4,FALSE)*'ENTER DATA HERE - Budget'!$E$20*'ENTER DATA HERE - Budget'!$E$41 -> 0 | D88: =VLOOKUP(CONCATENATE($A88,D$4),$S$4:$W$75,4,FALSE)*'ENTER DATA HERE - Budget'!$E$20*'ENTER DATA HERE - Budget'!$E$41 -> 0 | E88: =VLOOKUP(CONCATENATE($A88,E$4),$S$4:$W$75,4,FALSE)*'ENTER DATA HERE - Budget'!$E$20*'ENTER DATA HERE - Budget'!$E$41 -> 0 | F88: =VLOOKUP(CONCATENATE($A88,F$4),$S$4:$W$75,4,FALSE)*'ENTER DATA HERE - Budget'!$E$20*'ENTER DATA HERE - Budget'!$E$41 -> 97.91008333 | G88: =VLOOKUP(CONCATENATE($A88,G$4),$S$4:$W$75,4,FALSE)*'ENTER DATA HERE - Budget'!$E$20*'ENTER DATA HERE - Budget'!$E$41 -> 97.91008333 | H88: =VLOOKUP(CONCATENATE($A88,H$4),$S$4:$W$75,4,FALSE)*'ENTER DATA HERE - Budget'!$E$20*'ENTER DATA HERE - Budget'!$E$41 -> 97.91008333 | I88: =VLOOKUP(CONCATENATE($A88,I$4),$S$4:$W$75,4,FALSE)*'ENTER DATA HERE - Budget'!$E$20*'ENTER DATA HERE - Budget'!$E$41 -> 0 | J88: =VLOOKUP(CONCATENATE($A88,J$4),$S$4:$W$75,4,FALSE)*'ENTER DATA HERE - Budget'!$E$20*'ENTER DATA HERE - Budget'!$E$41 -> 0 | K88: =VLOOKUP(CONCATENATE($A88,K$4),$S$4:$W$75,4,FALSE)*'ENTER DATA HERE - Budget'!$E$20*'ENTER DATA HERE - Budget'!$E$41 -> 0 | L88: =VLOOKUP(CONCATENATE($A88,L$4),$S$4:$W$75,4,FALSE)*'ENTER DATA HERE - Budget'!$E$20*'ENTER DATA HERE - Budget'!$E$41 -> 0 | M88: =VLOOKUP(CONCATENATE($A88,M$4),$S$4:$W$75,4,FALSE)*'ENTER DATA HERE - Budget'!$E$20*'ENTER DATA HERE - Budget'!$E$41 -> 0 | N88: =VLOOKUP(CONCATENATE($A88,N$4),$S$4:$W$75,4,FALSE)*'ENTER DATA HERE - Budget'!$E$20*'ENTER DATA HERE - Budget'!$E$41 -> 0 | O88: 293.73025 | R88: 85 | S88: 8January | T88: 8 | U88: January | V88: =IF(OR(U88=$C$2,U88=$D$2,U88=$E$2),'ENTER DATA HERE - Budget'!$E$10,0) -> 0 | W88: =IF(R88<='ENTER DATA HERE - Budget'!E$8,0,VLOOKUP(R88-'ENTER DATA HERE - Budget'!$E$8,$R$4:V87,5,FALSE)) -> 0 | X88: =SUM($V$4:$V88)-SUM($W$4:$W88) -> 30
A89: 3 | B89: Transportation Costs to Market | C89: =VLOOKUP(CONCATENATE($A89,C$4),$S$4:$W$75,5,FALSE)*'ENTER DATA HERE - Budget'!$E$42*'ENTER DATA HERE - Budget'!$F$42/'ENTER DATA HERE - Budget'!$E$10 -> 0 | D89: =VLOOKUP(CONCATENATE($A89,D$4),$S$4:$W$75,5,FALSE)*'ENTER DATA HERE - Budget'!$E$42*'ENTER DATA HERE - Budget'!$F$42/'ENTER DATA HERE - Budget'!$E$10 -> 0 | E89: =VLOOKUP(CONCATENATE($A89,E$4),$S$4:$W$75,5,FALSE)*'ENTER DATA HERE - Budget'!$E$42*'ENTER DATA HERE - Budget'!$F$42/'ENTER DATA HERE - Budget'!$E$10 -> 0 | F89: =VLOOKUP(CONCATENATE($A89,F$4),$S$4:$W$75,5,FALSE)*'ENTER DATA HERE - Budget'!$E$42*'ENTER DATA HERE - Budget'!$F$42/'ENTER DATA HERE - Budget'!$E$10 -> 0 | G89: =VLOOKUP(CONCATENATE($A89,G$4),$S$4:$W$75,5,FALSE)*'ENTER DATA HERE - Budget'!$E$42*'ENTER DATA HERE - Budget'!$F$42/'ENTER DATA HERE - Budget'!$E$10 -> 0 | H89: =VLOOKUP(CONCATENATE($A89,H$4),$S$4:$W$75,5,FALSE)*'ENTER DATA HERE - Budget'!$E$42*'ENTER DATA HERE - Budget'!$F$42/'ENTER DATA HERE - Budget'!$E$10 -> 0 | I89: =VLOOKUP(CONCATENATE($A89,I$4),$S$4:$W$75,5,FALSE)*'ENTER DATA HERE - Budget'!$E$42*'ENTER DATA HERE - Budget'!$F$42/'ENTER DATA HERE - Budget'!$E$10 -> 0 | J89: =VLOOKUP(CONCATENATE($A89,J$4),$S$4:$W$75,5,FALSE)*'ENTER DATA HERE - Budget'!$E$42*'ENTER DATA HERE - Budget'!$F$42/'ENTER DATA HERE - Budget'!$E$10 -> 0 | K89: =VLOOKUP(CONCATENATE($A89,K$4),$S$4:$W$75,5,FALSE)*'ENTER DATA HERE - Budget'!$E$42*'ENTER DATA HERE - Budget'!$F$42/'ENTER DATA HERE - Budget'!$E$10 -> 0 | L89: =VLOOKUP(CONCATENATE($A89,L$4),$S$4:$W$75,5,FALSE)*'ENTER DATA HERE - Budget'!$E$42*'ENTER DATA HERE - Budget'!$F$42/'ENTER DATA HERE - Budget'!$E$10 -> 0 | M89: =VLOOKUP(CONCATENATE($A89,M$4),$S$4:$W$75,5,FALSE)*'ENTER DATA HERE - Budget'!$E$42*'ENTER DATA HERE - Budget'!$F$42/'ENTER DATA HERE - Budget'!$E$10 -> 0 | N89: =VLOOKUP(CONCATENATE($A89,N$4),$S$4:$W$75,5,FALSE)*'ENTER DATA HERE - Budget'!$E$42*'ENTER DATA HERE - Budget'!$F$42/'ENTER DATA HERE - Budget'!$E$10 -> 0 | O89: 0 | R89: 86 | S89: 8February | T89: 8 | U89: February | V89: =IF(OR(U89=$C$2,U89=$D$2,U89=$E$2),'ENTER DATA HERE - Budget'!$E$10,0) -> 0 | W89: =IF(R89<='ENTER DATA HERE - Budget'!E$8,0,VLOOKUP(R89-'ENTER DATA HERE - Budget'!$E$8,$R$4:V88,5,FALSE)) -> 0 | X89: =SUM($V$4:$V89)-SUM($W$4:$W89) -> 30
A90: 3 | B90: Miscellaneous | C90: =VLOOKUP(CONCATENATE($A90,C$4),$S$4:$X$75,6,FALSE)*('ENTER DATA HERE - Budget'!$G$43/('ENTER DATA HERE - Budget'!$E$10*'ENTER DATA HERE - Budget'!$E$8)) -> 166.6666667 | D90: =VLOOKUP(CONCATENATE($A90,D$4),$S$4:$X$75,6,FALSE)*('ENTER DATA HERE - Budget'!$G$43/('ENTER DATA HERE - Budget'!$E$10*'ENTER DATA HERE - Budget'!$E$8)) -> 166.6666667 | E90: =VLOOKUP(CONCATENATE($A90,E$4),$S$4:$X$75,6,FALSE)*('ENTER DATA HERE - Budget'!$G$43/('ENTER DATA HERE - Budget'!$E$10*'ENTER DATA HERE - Budget'!$E$8)) -> 166.6666667 | F90: =VLOOKUP(CONCATENATE($A90,F$4),$S$4:$X$75,6,FALSE)*('ENTER DATA HERE - Budget'!$G$43/('ENTER DATA HERE - Budget'!$E$10*'ENTER DATA HERE - Budget'!$E$8)) -> 222.2222222 | G90: =VLOOKUP(CONCATENATE($A90,G$4),$S$4:$X$75,6,FALSE)*('ENTER DATA HERE - Budget'!$G$43/('ENTER DATA HERE - Budget'!$E$10*'ENTER DATA HERE - Budget'!$E$8)) -> 277.7777778 | H90: =VLOOKUP(CONCATENATE($A90,H$4),$S$4:$X$75,6,FALSE)*('ENTER DATA HERE - Budget'!$G$43/('ENTER DATA HERE - Budget'!$E$10*'ENTER DATA HERE - Budget'!$E$8)) -> 333.3333333 | I90: =VLOOKUP(CONCATENATE($A90,I$4),$S$4:$X$75,6,FALSE)*('ENTER DATA HERE - Budget'!$G$43/('ENTER DATA HERE - Budget'!$E$10*'ENTER DATA HERE - Budget'!$E$8)) -> 333.3333333 | J90: =VLOOKUP(CONCATENATE($A90,J$4),$S$4:$X$75,6,FALSE)*('ENTER DATA HERE - Budget'!$G$43/('ENTER DATA HERE - Budget'!$E$10*'ENTER DATA HERE - Budget'!$E$8)) -> 333.3333333 | K90: =VLOOKUP(CONCATENATE($A90,K$4),$S$4:$X$75,6,FALSE)*('ENTER DATA HERE - Budget'!$G$43/('ENTER DATA HERE - Budget'!$E$10*'ENTER DATA HERE - Budget'!$E$8)) -> 333.3333333 | L90: =VLOOKUP(CONCATENATE($A90,L$4),$S$4:$X$75,6,FALSE)*('ENTER DATA HERE - Budget'!$G$43/('ENTER DATA HERE - Budget'!$E$10*'ENTER DATA HERE - Budget'!$E$8)) -> 277.7777778 | M90: =VLOOKUP(CONCATENATE($A90,M$4),$S$4:$X$75,6,FALSE)*('ENTER DATA HERE - Budget'!$G$43/('ENTER DATA HERE - Budget'!$E$10*'ENTER DATA HERE - Budget'!$E$8)) -> 222.2222222 | N90: =VLOOKUP(CONCATENATE($A90,N$4),$S$4:$X$75,6,FALSE)*('ENTER DATA HERE - Budget'!$G$43/('ENTER DATA HERE - Budget'!$E$10*'ENTER DATA HERE - Budget'!$E$8)) -> 166.6666667 | O90: 3000 | R90: 87 | S90: 8March | T90: =T79+1 -> 8 | U90: March | V90: =IF(OR(U90=$C$2,U90=$D$2,U90=$E$2),'ENTER DATA HERE - Budget'!$E$10,0) -> 0 | W90: =IF(R90<='ENTER DATA HERE - Budget'!E$8,0,VLOOKUP(R90-'ENTER DATA HERE - Budget'!$E$8,$R$4:V89,5,FALSE)) -> 0 | X90: =SUM($V$4:$V90)-SUM($W$4:$W90) -> 30
A91: 3 | B91: Total Variable Cost | C91: =SUM(C82:C90) -> 894.0098857 | D91: 894.0098857 | E91: 894.0098857 | F91: 2758.574514 | G91: 3272.577809 | H91: 3570.581105 | I91: 2004.019771 | J91: 2004.019771 | K91: 2004.019771 | L91: 1739.687189 | M91: 1441.683893 | N91: 1143.680598 | O91: 22620.87408 | R91: 88 | S91: 8April | T91: =T79+1 -> 8 | U91: April | V91: =IF(OR(U91=$C$2,U91=$D$2,U91=$E$2),'ENTER DATA HERE - Budget'!$E$10,0) -> 10 | W91: =IF(R91<='ENTER DATA HERE - Budget'!E$8,0,VLOOKUP(R91-'ENTER DATA HERE - Budget'!$E$8,$R$4:V90,5,FALSE)) -> 0 | X91: =SUM($V$4:$V91)-SUM($W$4:$W91) -> 40
A92: 3 | R92: 89 | S92: 8May | T92: =T80+1 -> 8 | U92: May | V92: =IF(OR(U92=$C$2,U92=$D$2,U92=$E$2),'ENTER DATA HERE - Budget'!$E$10,0) -> 10 | W92: =IF(R92<='ENTER DATA HERE - Budget'!E$8,0,VLOOKUP(R92-'ENTER DATA HERE - Budget'!$E$8,$R$4:V91,5,FALSE)) -> 0 | X92: =SUM($V$4:$V92)-SUM($W$4:$W92) -> 50
A93: 3 | B93: Overhead Costs | R93: 90 | S93: 8June | T93: =T81+1 -> 8 | U93: June | V93: =IF(OR(U93=$C$2,U93=$D$2,U93=$E$2),'ENTER DATA HERE - Budget'!$E$10,0) -> 10 | W93: =IF(R93<='ENTER DATA HERE - Budget'!E$8,0,VLOOKUP(R93-'ENTER DATA HERE - Budget'!$E$8,$R$4:V92,5,FALSE)) -> 0 | X93: =SUM($V$4:$V93)-SUM($W$4:$W93) -> 60
A94: 3 | B94: Repair and maintenance | C94: ='ENTER DATA HERE - Budget'!$H$48/12 -> 15.60441953 | D94: ='ENTER DATA HERE - Budget'!$H$48/12 -> 15.60441953 | E94: ='ENTER DATA HERE - Budget'!$H$48/12 -> 15.60441953 | F94: ='ENTER DATA HERE - Budget'!$H$48/12 -> 15.60441953 | G94: ='ENTER DATA HERE - Budget'!$H$48/12 -> 15.60441953 | H94: ='ENTER DATA HERE - Budget'!$H$48/12 -> 15.60441953 | I94: ='ENTER DATA HERE - Budget'!$H$48/12 -> 15.60441953 | J94: ='ENTER DATA HERE - Budget'!$H$48/12 -> 15.60441953 | K94: ='ENTER DATA HERE - Budget'!$H$48/12 -> 15.60441953 | L94: ='ENTER DATA HERE - Budget'!$H$48/12 -> 15.60441953 | M94: ='ENTER DATA HERE - Budget'!$H$48/12 -> 15.60441953 | N94: ='ENTER DATA HERE - Budget'!$H$48/12 -> 15.60441953 | O94: =SUM(C94:N94) -> 187.2530344 | R94: 91 | S94: 8July | T94: 8 | U94: July | V94: =IF(OR(U94=$C$2,U94=$D$2,U94=$E$2),'ENTER DATA HERE - Budget'!$E$10,0) -> 0 | W94: =IF(R94<='ENTER DATA HERE - Budget'!E$8,0,VLOOKUP(R94-'ENTER DATA HERE - Budget'!$E$8,$R$4:V93,5,FALSE)) -> 0 | X94: =SUM($V$4:$V94)-SUM($W$4:$W94) -> 60
A95: 3 | B95: Water acres rental | C95: ='ENTER DATA HERE - Budget'!$H$49/12 -> 78.02209766 | D95: ='ENTER DATA HERE - Budget'!$H$49/12 -> 78.02209766 | E95: ='ENTER DATA HERE - Budget'!$H$49/12 -> 78.02209766 | F95: ='ENTER DATA HERE - Budget'!$H$49/12 -> 78.02209766 | G95: ='ENTER DATA HERE - Budget'!$H$49/12 -> 78.02209766 | H95: ='ENTER DATA HERE - Budget'!$H$49/12 -> 78.02209766 | I95: ='ENTER DATA HERE - Budget'!$H$49/12 -> 78.02209766 | J95: ='ENTER DATA HERE - Budget'!$H$49/12 -> 78.02209766 | K95: ='ENTER DATA HERE - Budget'!$H$49/12 -> 78.02209766 | L95: ='ENTER DATA HERE - Budget'!$H$49/12 -> 78.02209766 | M95: ='ENTER DATA HERE - Budget'!$H$49/12 -> 78.02209766 | N95: ='ENTER DATA HERE - Budget'!$H$49/12 -> 78.02209766 | O95: 936.2651719 | R95: 92 | S95: 8August | T95: 8 | U95: August | V95: =IF(OR(U95=$C$2,U95=$D$2,U95=$E$2),'ENTER DATA HERE - Budget'!$E$10,0) -> 0 | W95: =IF(R95<='ENTER DATA HERE - Budget'!E$8,0,VLOOKUP(R95-'ENTER DATA HERE - Budget'!$E$8,$R$4:V94,5,FALSE)) -> 0 | X95: =SUM($V$4:$V95)-SUM($W$4:$W95) -> 60
A96: 3 | B96: Insurance | C96: ='ENTER DATA HERE - Budget'!$H$50/12 -> 83.33333333 | D96: ='ENTER DATA HERE - Budget'!$H$50/12 -> 83.33333333 | E96: ='ENTER DATA HERE - Budget'!$H$50/12 -> 83.33333333 | F96: ='ENTER DATA HERE - Budget'!$H$50/12 -> 83.33333333 | G96: ='ENTER DATA HERE - Budget'!$H$50/12 -> 83.33333333 | H96: ='ENTER DATA HERE - Budget'!$H$50/12 -> 83.33333333 | I96: ='ENTER DATA HERE - Budget'!$H$50/12 -> 83.33333333 | J96: ='ENTER DATA HERE - Budget'!$H$50/12 -> 83.33333333 | K96: ='ENTER DATA HERE - Budget'!$H$50/12 -> 83.33333333 | L96: ='ENTER DATA HERE - Budget'!$H$50/12 -> 83.33333333 | M96: ='ENTER DATA HERE - Budget'!$H$50/12 -> 83.33333333 | N96: ='ENTER DATA HERE - Budget'!$H$50/12 -> 83.33333333 | O96: 1000 | R96: 93 | S96: 8September | T96: 8 | U96: September | V96: =IF(OR(U96=$C$2,U96=$D$2,U96=$E$2),'ENTER DATA HERE - Budget'!$E$10,0) -> 0 | W96: =IF(R96<='ENTER DATA HERE - Budget'!E$8,0,VLOOKUP(R96-'ENTER DATA HERE - Budget'!$E$8,$R$4:V95,5,FALSE)) -> 0 | X96: =SUM($V$4:$V96)-SUM($W$4:$W96) -> 60
A97: 3 | B97: Adminstration/Management - legal fees, professional services, etc. (% of total overhead) | C97: ='ENTER DATA HERE - Budget'!$H$51/12 -> 94.253642 | D97: ='ENTER DATA HERE - Budget'!$H$51/12 -> 94.253642 | E97: ='ENTER DATA HERE - Budget'!$H$51/12 -> 94.253642 | F97: ='ENTER DATA HERE - Budget'!$H$51/12 -> 94.253642 | G97: ='ENTER DATA HERE - Budget'!$H$51/12 -> 94.253642 | H97: ='ENTER DATA HERE - Budget'!$H$51/12 -> 94.253642 | I97: ='ENTER DATA HERE - Budget'!$H$51/12 -> 94.253642 | J97: ='ENTER DATA HERE - Budget'!$H$51/12 -> 94.253642 | K97: ='ENTER DATA HERE - Budget'!$H$51/12 -> 94.253642 | L97: ='ENTER DATA HERE - Budget'!$H$51/12 -> 94.253642 | M97: ='ENTER DATA HERE - Budget'!$H$51/12 -> 94.253642 | N97: ='ENTER DATA HERE - Budget'!$H$51/12 -> 94.253642 | O97: 1131.043704 | R97: 94 | S97: 8October | T97: 8 | U97: October | V97: =IF(OR(U97=$C$2,U97=$D$2,U97=$E$2),'ENTER DATA HERE - Budget'!$E$10,0) -> 0 | W97: =IF(R97<='ENTER DATA HERE - Budget'!E$8,0,VLOOKUP(R97-'ENTER DATA HERE - Budget'!$E$8,$R$4:V96,5,FALSE)) -> 10 | X97: =SUM($V$4:$V97)-SUM($W$4:$W97) -> 50
A98: 3 | B98: Other 1 | C98: ='ENTER DATA HERE - Budget'!$E$52/12 -> 0 | D98: ='ENTER DATA HERE - Budget'!$E$52/12 -> 0 | E98: ='ENTER DATA HERE - Budget'!$E$52/12 -> 0 | F98: ='ENTER DATA HERE - Budget'!$E$52/12 -> 0 | G98: ='ENTER DATA HERE - Budget'!$E$52/12 -> 0 | H98: ='ENTER DATA HERE - Budget'!$E$52/12 -> 0 | I98: ='ENTER DATA HERE - Budget'!$E$52/12 -> 0 | J98: ='ENTER DATA HERE - Budget'!$E$52/12 -> 0 | K98: ='ENTER DATA HERE - Budget'!$E$52/12 -> 0 | L98: ='ENTER DATA HERE - Budget'!$E$52/12 -> 0 | M98: ='ENTER DATA HERE - Budget'!$E$52/12 -> 0 | N98: ='ENTER DATA HERE - Budget'!$E$52/12 -> 0 | O98: 0 | R98: 95 | S98: 8November | T98: 8 | U98: November | V98: =IF(OR(U98=$C$2,U98=$D$2,U98=$E$2),'ENTER DATA HERE - Budget'!$E$10,0) -> 0 | W98: =IF(R98<='ENTER DATA HERE - Budget'!E$8,0,VLOOKUP(R98-'ENTER DATA HERE - Budget'!$E$8,$R$4:V97,5,FALSE)) -> 10 | X98: =SUM($V$4:$V98)-SUM($W$4:$W98) -> 40
A99: 3 | B99: Other 2 | C99: ='ENTER DATA HERE - Budget'!$E$53/12 -> 0 | D99: ='ENTER DATA HERE - Budget'!$E$53/12 -> 0 | E99: ='ENTER DATA HERE - Budget'!$E$53/12 -> 0 | F99: ='ENTER DATA HERE - Budget'!$E$53/12 -> 0 | G99: ='ENTER DATA HERE - Budget'!$E$53/12 -> 0 | H99: ='ENTER DATA HERE - Budget'!$E$53/12 -> 0 | I99: ='ENTER DATA HERE - Budget'!$E$53/12 -> 0 | J99: ='ENTER DATA HERE - Budget'!$E$53/12 -> 0 | K99: ='ENTER DATA HERE - Budget'!$E$53/12 -> 0 | L99: ='ENTER DATA HERE - Budget'!$E$53/12 -> 0 | M99: ='ENTER DATA HERE - Budget'!$E$53/12 -> 0 | N99: ='ENTER DATA HERE - Budget'!$E$53/12 -> 0 | O99: 0 | R99: 96 | S99: 8December | T99: =T87+1 -> 8 | U99: December | V99: =IF(OR(U99=$C$2,U99=$D$2,U99=$E$2),'ENTER DATA HERE - Budget'!$E$10,0) -> 0 | W99: =IF(R99<='ENTER DATA HERE - Budget'!E$8,0,VLOOKUP(R99-'ENTER DATA HERE - Budget'!$E$8,$R$4:V98,5,FALSE)) -> 10 | X99: =SUM($V$4:$V99)-SUM($W$4:$W99) -> 30
A100: 3 | B100: Total Overhead Costs | C100: =SUM(C94:C99) -> 271.2134925 | D100: 271.2134925 | E100: 271.2134925 | F100: 271.2134925 | G100: 271.2134925 | H100: 271.2134925 | I100: 271.2134925 | J100: 271.2134925 | K100: 271.2134925 | L100: 271.2134925 | M100: 271.2134925 | N100: 271.2134925 | O100: 3254.56191 | R100: 97 | S100: 9January | T100: =T88+1 -> 9 | U100: January | V100: =IF(OR(U100=$C$2,U100=$D$2,U100=$E$2),'ENTER DATA HERE - Budget'!$E$10,0) -> 0 | W100: =IF(R100<='ENTER DATA HERE - Budget'!E$8,0,VLOOKUP(R100-'ENTER DATA HERE - Budget'!$E$8,$R$4:V99,5,FALSE)) -> 0 | X100: =SUM($V$4:$V100)-SUM($W$4:$W100) -> 30
A101: 3 | R101: 98 | S101: 9February | T101: =T89+1 -> 9 | U101: February | V101: =IF(OR(U101=$C$2,U101=$D$2,U101=$E$2),'ENTER DATA HERE - Budget'!$E$10,0) -> 0 | W101: =IF(R101<='ENTER DATA HERE - Budget'!E$8,0,VLOOKUP(R101-'ENTER DATA HERE - Budget'!$E$8,$R$4:V100,5,FALSE)) -> 0 | X101: =SUM($V$4:$V101)-SUM($W$4:$W101) -> 30
A102: 3 | B102: Loan | C102: ='ENTER DATA HERE - Budget'!$H$80/12 -> 429.8649588 | D102: ='ENTER DATA HERE - Budget'!$H$80/12 -> 429.8649588 | E102: ='ENTER DATA HERE - Budget'!$H$80/12 -> 429.8649588 | F102: ='ENTER DATA HERE - Budget'!$H$80/12 -> 429.8649588 | G102: ='ENTER DATA HERE - Budget'!$H$80/12 -> 429.8649588 | H102: ='ENTER DATA HERE - Budget'!$H$80/12 -> 429.8649588 | I102: ='ENTER DATA HERE - Budget'!$H$80/12 -> 429.8649588 | J102: ='ENTER DATA HERE - Budget'!$H$80/12 -> 429.8649588 | K102: ='ENTER DATA HERE - Budget'!$H$80/12 -> 429.8649588 | L102: ='ENTER DATA HERE - Budget'!$H$80/12 -> 429.8649588 | M102: ='ENTER DATA HERE - Budget'!$H$80/12 -> 429.8649588 | N102: ='ENTER DATA HERE - Budget'!$H$80/12 -> 429.8649588 | O102: =SUM(C102:N102) -> 5158.379506 | R102: 99 | S102: =CONCATENATE(T102,U102) -> 9March | T102: =T91+1 -> 9 | U102: March | V102: =IF(OR(U102=$C$2,U102=$D$2,U102=$E$2),'ENTER DATA HERE - Budget'!$E$10,0) -> 0 | W102: =IF(R102<='ENTER DATA HERE - Budget'!E$8,0,VLOOKUP(R102-'ENTER DATA HERE - Budget'!$E$8,$R$4:V101,5,FALSE)) -> 0 | X102: =SUM($V$4:$V102)-SUM($W$4:$W102) -> 30
A103: 3 | R103: 100 | S103: 9April | T103: =T91+1 -> 9 | U103: April | V103: =IF(OR(U103=$C$2,U103=$D$2,U103=$E$2),'ENTER DATA HERE - Budget'!$E$10,0) -> 10 | W103: =IF(R103<='ENTER DATA HERE - Budget'!E$8,0,VLOOKUP(R103-'ENTER DATA HERE - Budget'!$E$8,$R$4:V102,5,FALSE)) -> 0 | X103: =SUM($V$4:$V103)-SUM($W$4:$W103) -> 40
A104: 3 | B104: Max Cash Flow | C104: =C79-SUM(C91,C100,C102) -> -1595.088337 | D104: =D79-SUM(D91,D100,D102) -> -1595.088337 | E104: -1595.088337 | F104: -3459.652966 | G104: -3973.656261 | H104: -4271.659556 | I104: -2705.098223 | J104: -2705.098223 | K104: -2705.098223 | L104: 28768.07342 | M104: 29066.07672 | N104: 29364.08001 | R104: 101 | S104: 9May | T104: 9 | U104: May | V104: =IF(OR(U104=$C$2,U104=$D$2,U104=$E$2),'ENTER DATA HERE - Budget'!$E$10,0) -> 10 | W104: =IF(R104<='ENTER DATA HERE - Budget'!E$8,0,VLOOKUP(R104-'ENTER DATA HERE - Budget'!$E$8,$R$4:V103,5,FALSE)) -> 0 | X104: =SUM($V$4:$V104)-SUM($W$4:$W104) -> 50
A105: 3 | B105: Min Cash Flow | C105: =C78-SUM(C91,C100,C102) -> -1595.088337 | D105: =D78-SUM(D91,D100,D102) -> -1595.088337 | E105: -1595.088337 | F105: -3459.652966 | G105: -3973.656261 | H105: -4271.659556 | I105: -2705.098223 | J105: -2705.098223 | K105: -2705.098223 | L105: -2440.76564 | M105: -2142.762345 | N105: -1844.75905 | R105: 102 | S105: 9June | T105: 9 | U105: June | V105: =IF(OR(U105=$C$2,U105=$D$2,U105=$E$2),'ENTER DATA HERE - Budget'!$E$10,0) -> 10 | W105: =IF(R105<='ENTER DATA HERE - Budget'!E$8,0,VLOOKUP(R105-'ENTER DATA HERE - Budget'!$E$8,$R$4:V104,5,FALSE)) -> 0 | X105: =SUM($V$4:$V105)-SUM($W$4:$W105) -> 60
R106: 103 | S106: 9July | T106: 9 | U106: July | V106: =IF(OR(U106=$C$2,U106=$D$2,U106=$E$2),'ENTER DATA HERE - Budget'!$E$10,0) -> 0 | W106: =IF(R106<='ENTER DATA HERE - Budget'!E$8,0,VLOOKUP(R106-'ENTER DATA HERE - Budget'!$E$8,$R$4:V105,5,FALSE)) -> 0 | X106: =SUM($V$4:$V106)-SUM($W$4:$W106) -> 60
B107: YEAR 4 | C107: YEAR 4 | R107: 104 | S107: 9August | T107: 9 | U107: August | V107: =IF(OR(U107=$C$2,U107=$D$2,U107=$E$2),'ENTER DATA HERE - Budget'!$E$10,0) -> 0 | W107: =IF(R107<='ENTER DATA HERE - Budget'!E$8,0,VLOOKUP(R107-'ENTER DATA HERE - Budget'!$E$8,$R$4:V106,5,FALSE)) -> 0 | X107: =SUM($V$4:$V107)-SUM($W$4:$W107) -> 60
C108: January | D108: February | E108: March | F108: April | G108: May | H108: June | I108: July | J108: August | K108: September | L108: October | M108: November | N108: December | R108: 105 | S108: 9September | T108: 9 | U108: September | V108: =IF(OR(U108=$C$2,U108=$D$2,U108=$E$2),'ENTER DATA HERE - Budget'!$E$10,0) -> 0 | W108: =IF(R108<='ENTER DATA HERE - Budget'!E$8,0,VLOOKUP(R108-'ENTER DATA HERE - Budget'!$E$8,$R$4:V107,5,FALSE)) -> 0 | X108: =SUM($V$4:$V108)-SUM($W$4:$W108) -> 60
A109: =$A$104+1 -> 4 | B109: Gross Receipts: | R109: 106 | S109: 9October | T109: 9 | U109: October | V109: =IF(OR(U109=$C$2,U109=$D$2,U109=$E$2),'ENTER DATA HERE - Budget'!$E$10,0) -> 0 | W109: =IF(R109<='ENTER DATA HERE - Budget'!E$8,0,VLOOKUP(R109-'ENTER DATA HERE - Budget'!$E$8,$R$4:V108,5,FALSE)) -> 10 | X109: =SUM($V$4:$V109)-SUM($W$4:$W109) -> 50
A110: =$A$104+1 -> 4 | B110: Max Fish sale | C110: =VLOOKUP(CONCATENATE($A110,C$4),$S$4:$W$75,5,FALSE)*'ENTER DATA HERE - Budget'!$E$20*'ENTER DATA HERE - Budget'!$E$23*'ENTER DATA HERE - Budget'!$E$25*'ENTER DATA HERE - Budget'!$E$30 -> 0 | D110: =VLOOKUP(CONCATENATE($A110,D$4),$S$4:$W$75,5,FALSE)*'ENTER DATA HERE - Budget'!$E$20*'ENTER DATA HERE - Budget'!$E$23*'ENTER DATA HERE - Budget'!$E$25*'ENTER DATA HERE - Budget'!$E$30 -> 0 | E110: =VLOOKUP(CONCATENATE($A110,E$4),$S$4:$W$75,5,FALSE)*'ENTER DATA HERE - Budget'!$E$20*'ENTER DATA HERE - Budget'!$E$23*'ENTER DATA HERE - Budget'!$E$25*'ENTER DATA HERE - Budget'!$E$30 -> 0 | F110: =VLOOKUP(CONCATENATE($A110,F$4),$S$4:$W$75,5,FALSE)*'ENTER DATA HERE - Budget'!$E$20*'ENTER DATA HERE - Budget'!$E$23*'ENTER DATA HERE - Budget'!$E$25*'ENTER DATA HERE - Budget'!$E$30 -> 0 | G110: =VLOOKUP(CONCATENATE($A110,G$4),$S$4:$W$75,5,FALSE)*'ENTER DATA HERE - Budget'!$E$20*'ENTER DATA HERE - Budget'!$E$23*'ENTER DATA HERE - Budget'!$E$25*'ENTER DATA HERE - Budget'!$E$30 -> 0 | H110: =VLOOKUP(CONCATENATE($A110,H$4),$S$4:$W$75,5,FALSE)*'ENTER DATA HERE - Budget'!$E$20*'ENTER DATA HERE - Budget'!$E$23*'ENTER DATA HERE - Budget'!$E$25*'ENTER DATA HERE - Budget'!$E$30 -> 0 | I110: =VLOOKUP(CONCATENATE($A110,I$4),$S$4:$W$75,5,FALSE)*'ENTER DATA HERE - Budget'!$E$20*'ENTER DATA HERE - Budget'!$E$23*'ENTER DATA HERE - Budget'!$E$25*'ENTER DATA HERE - Budget'!$E$30 -> 0 | J110: =VLOOKUP(CONCATENATE($A110,J$4),$S$4:$W$75,5,FALSE)*'ENTER DATA HERE - Budget'!$E$20*'ENTER DATA HERE - Budget'!$E$23*'ENTER DATA HERE - Budget'!$E$25*'ENTER DATA HERE - Budget'!$E$30 -> 0 | K110: =VLOOKUP(CONCATENATE($A110,K$4),$S$4:$W$75,5,FALSE)*'ENTER DATA HERE - Budget'!$E$20*'ENTER DATA HERE - Budget'!$E$23*'ENTER DATA HERE - Budget'!$E$25*'ENTER DATA HERE - Budget'!$E$30 -> 0 | L110: =VLOOKUP(CONCATENATE($A110,L$4),$S$4:$W$75,5,FALSE)*'ENTER DATA HERE - Budget'!$E$20*'ENTER DATA HERE - Budget'!$E$23*'ENTER DATA HERE - Budget'!$E$25*'ENTER DATA HERE - Budget'!$E$30 -> 18725.30344 | M110: =VLOOKUP(CONCATENATE($A110,M$4),$S$4:$W$75,5,FALSE)*'ENTER DATA HERE - Budget'!$E$20*'ENTER DATA HERE - Budget'!$E$23*'ENTER DATA HERE - Budget'!$E$25*'ENTER DATA HERE - Budget'!$E$30 -> 18725.30344 | N110: =VLOOKUP(CONCATENATE($A110,N$4),$S$4:$W$75,5,FALSE)*'ENTER DATA HERE - Budget'!$E$20*'ENTER DATA HERE - Budget'!$E$23*'ENTER DATA HERE - Budget'!$E$25*'ENTER DATA HERE - Budget'!$E$30 -> 18725.30344 | O110: =SUM(C110:N110) -> 56175.91031 | R110: 107 | S110: 9November | T110: 9 | U110: November | V110: =IF(OR(U110=$C$2,U110=$D$2,U110=$E$2),'ENTER DATA HERE - Budget'!$E$10,0) -> 0 | W110: =IF(R110<='ENTER DATA HERE - Budget'!E$8,0,VLOOKUP(R110-'ENTER DATA HERE - Budget'!$E$8,$R$4:V109,5,FALSE)) -> 10 | X110: =SUM($V$4:$V110)-SUM($W$4:$W110) -> 40
A111: 4 | B111: Min Fish Sale | C111: =VLOOKUP(CONCATENATE($A111,C$4),$S$4:$W$75,5,FALSE)*'ENTER DATA HERE - Budget'!$E$20*'ENTER DATA HERE - Budget'!$E$22*'ENTER DATA HERE - Budget'!$E$25*'ENTER DATA HERE - Budget'!$E$30 -> 0 | D111: =VLOOKUP(CONCATENATE($A111,D$4),$S$4:$W$75,5,FALSE)*'ENTER DATA HERE - Budget'!$E$20*'ENTER DATA HERE - Budget'!$E$22*'ENTER DATA HERE - Budget'!$E$25*'ENTER DATA HERE - Budget'!$E$30 -> 0 | E111: =VLOOKUP(CONCATENATE($A111,E$4),$S$4:$W$75,5,FALSE)*'ENTER DATA HERE - Budget'!$E$20*'ENTER DATA HERE - Budget'!$E$22*'ENTER DATA HERE - Budget'!$E$25*'ENTER DATA HERE - Budget'!$E$30 -> 0 | F111: =VLOOKUP(CONCATENATE($A111,F$4),$S$4:$W$75,5,FALSE)*'ENTER DATA HERE - Budget'!$E$20*'ENTER DATA HERE - Budget'!$E$22*'ENTER DATA HERE - Budget'!$E$25*'ENTER DATA HERE - Budget'!$E$30 -> 0 | G111: =VLOOKUP(CONCATENATE($A111,G$4),$S$4:$W$75,5,FALSE)*'ENTER DATA HERE - Budget'!$E$20*'ENTER DATA HERE - Budget'!$E$22*'ENTER DATA HERE - Budget'!$E$25*'ENTER DATA HERE - Budget'!$E$30 -> 0 | H111: =VLOOKUP(CONCATENATE($A111,H$4),$S$4:$W$75,5,FALSE)*'ENTER DATA HERE - Budget'!$E$20*'ENTER DATA HERE - Budget'!$E$22*'ENTER DATA HERE - Budget'!$E$25*'ENTER DATA HERE - Budget'!$E$30 -> 0 | I111: =VLOOKUP(CONCATENATE($A111,I$4),$S$4:$W$75,5,FALSE)*'ENTER DATA HERE - Budget'!$E$20*'ENTER DATA HERE - Budget'!$E$22*'ENTER DATA HERE - Budget'!$E$25*'ENTER DATA HERE - Budget'!$E$30 -> 0 | J111: =VLOOKUP(CONCATENATE($A111,J$4),$S$4:$W$75,5,FALSE)*'ENTER DATA HERE - Budget'!$E$20*'ENTER DATA HERE - Budget'!$E$22*'ENTER DATA HERE - Budget'!$E$25*'ENTER DATA HERE - Budget'!$E$30 -> 0 | K111: =VLOOKUP(CONCATENATE($A111,K$4),$S$4:$W$75,5,FALSE)*'ENTER DATA HERE - Budget'!$E$20*'ENTER DATA HERE - Budget'!$E$22*'ENTER DATA HERE - Budget'!$E$25*'ENTER DATA HERE - Budget'!$E$30 -> 0 | L111: =VLOOKUP(CONCATENATE($A111,L$4),$S$4:$W$75,5,FALSE)*'ENTER DATA HERE - Budget'!$E$20*'ENTER DATA HERE - Budget'!$E$22*'ENTER DATA HERE - Budget'!$E$25*'ENTER DATA HERE - Budget'!$E$30 -> 12483.53563 | M111: =VLOOKUP(CONCATENATE($A111,M$4),$S$4:$W$75,5,FALSE)*'ENTER DATA HERE - Budget'!$E$20*'ENTER DATA HERE - Budget'!$E$22*'ENTER DATA HERE - Budget'!$E$25*'ENTER DATA HERE - Budget'!$E$30 -> 12483.53563 | N111: =VLOOKUP(CONCATENATE($A111,N$4),$S$4:$W$75,5,FALSE)*'ENTER DATA HERE - Budget'!$E$20*'ENTER DATA HERE - Budget'!$E$22*'ENTER DATA HERE - Budget'!$E$25*'ENTER DATA HERE - Budget'!$E$30 -> 12483.53563 | O111: =SUM(C111:N111) -> 37450.60687 | R111: 108 | S111: 9December | T111: 9 | U111: December | V111: =IF(OR(U111=$C$2,U111=$D$2,U111=$E$2),'ENTER DATA HERE - Budget'!$E$10,0) -> 0 | W111: =IF(R111<='ENTER DATA HERE - Budget'!E$8,0,VLOOKUP(R111-'ENTER DATA HERE - Budget'!$E$8,$R$4:V110,5,FALSE)) -> 10 | X111: =SUM($V$4:$V111)-SUM($W$4:$W111) -> 30
A112: 4 | B112: Miscellaneous Receipts | C112: ='ENTER DATA HERE - Budget'!$E$31/12 -> 0 | D112: ='ENTER DATA HERE - Budget'!$E$31/12 -> 0 | E112: ='ENTER DATA HERE - Budget'!$E$31/12 -> 0 | F112: ='ENTER DATA HERE - Budget'!$E$31/12 -> 0 | G112: ='ENTER DATA HERE - Budget'!$E$31/12 -> 0 | H112: ='ENTER DATA HERE - Budget'!$E$31/12 -> 0 | I112: ='ENTER DATA HERE - Budget'!$E$31/12 -> 0 | J112: ='ENTER DATA HERE - Budget'!$E$31/12 -> 0 | K112: ='ENTER DATA HERE - Budget'!$E$31/12 -> 0 | L112: ='ENTER DATA HERE - Budget'!$E$31/12 -> 0 | M112: ='ENTER DATA HERE - Budget'!$E$31/12 -> 0 | N112: ='ENTER DATA HERE - Budget'!$E$31/12 -> 0 | O112: =SUM(C112:N112) -> 0 | R112: 109 | S112: 10January | T112: 10 | U112: January | V112: =IF(OR(U112=$C$2,U112=$D$2,U112=$E$2),'ENTER DATA HERE - Budget'!$E$10,0) -> 0 | W112: =IF(R112<='ENTER DATA HERE - Budget'!E$8,0,VLOOKUP(R112-'ENTER DATA HERE - Budget'!$E$8,$R$4:V111,5,FALSE)) -> 0 | X112: =SUM($V$4:$V112)-SUM($W$4:$W112) -> 30
A113: 4 | B113: Total Receipts | C113: =SUM(C110:C112) -> 0 | D113: =SUM(D110:D112) -> 0 | E113: 0 | F113: 0 | G113: 0 | H113: 0 | I113: 0 | J113: 0 | K113: 0 | L113: 31208.83906 | M113: 31208.83906 | N113: 31208.83906 | O113: =SUM(C113:N113) -> 93626.51719 | R113: 110 | S113: 10February | T113: 10 | U113: February | V113: =IF(OR(U113=$C$2,U113=$D$2,U113=$E$2),'ENTER DATA HERE - Budget'!$E$10,0) -> 0 | W113: =IF(R113<='ENTER DATA HERE - Budget'!E$8,0,VLOOKUP(R113-'ENTER DATA HERE - Budget'!$E$8,$R$4:V112,5,FALSE)) -> 0 | X113: =SUM($V$4:$V113)-SUM($W$4:$W113) -> 30
A114: 4 | R114: 111 | S114: 10March | T114: =T103+1 -> 10 | U114: March | V114: =IF(OR(U114=$C$2,U114=$D$2,U114=$E$2),'ENTER DATA HERE - Budget'!$E$10,0) -> 0 | W114: =IF(R114<='ENTER DATA HERE - Budget'!E$8,0,VLOOKUP(R114-'ENTER DATA HERE - Budget'!$E$8,$R$4:V113,5,FALSE)) -> 0 | X114: =SUM($V$4:$V114)-SUM($W$4:$W114) -> 30
A115: 4 | B115: Variable Inputs: | R115: 112 | S115: 10April | T115: =T103+1 -> 10 | U115: April | V115: =IF(OR(U115=$C$2,U115=$D$2,U115=$E$2),'ENTER DATA HERE - Budget'!$E$10,0) -> 10 | W115: =IF(R115<='ENTER DATA HERE - Budget'!E$8,0,VLOOKUP(R115-'ENTER DATA HERE - Budget'!$E$8,$R$4:V114,5,FALSE)) -> 0 | X115: =SUM($V$4:$V115)-SUM($W$4:$W115) -> 40
A116: 4 | B116: Fingerlings (4") | C116: =VLOOKUP(CONCATENATE($A116,C$4),$S$4:$W$75,4,FALSE)*'ENTER DATA HERE - Budget'!$E$35*'ENTER DATA HERE - Budget'!$E$20 -> 0 | D116: =VLOOKUP(CONCATENATE($A116,D$4),$S$4:$W$75,4,FALSE)*'ENTER DATA HERE - Budget'!$E$35*'ENTER DATA HERE - Budget'!$E$20 -> 0 | E116: =VLOOKUP(CONCATENATE($A116,E$4),$S$4:$W$75,4,FALSE)*'ENTER DATA HERE - Budget'!$E$35*'ENTER DATA HERE - Budget'!$E$20 -> 0 | F116: =VLOOKUP(CONCATENATE($A116,F$4),$S$4:$W$75,4,FALSE)*'ENTER DATA HERE - Budget'!$E$35*'ENTER DATA HERE - Budget'!$E$20 -> 1468.65125 | G116: =VLOOKUP(CONCATENATE($A116,G$4),$S$4:$W$75,4,FALSE)*'ENTER DATA HERE - Budget'!$E$35*'ENTER DATA HERE - Budget'!$E$20 -> 1468.65125 | H116: =VLOOKUP(CONCATENATE($A116,H$4),$S$4:$W$75,4,FALSE)*'ENTER DATA HERE - Budget'!$E$35*'ENTER DATA HERE - Budget'!$E$20 -> 1468.65125 | I116: =VLOOKUP(CONCATENATE($A116,I$4),$S$4:$W$75,4,FALSE)*'ENTER DATA HERE - Budget'!$E$35*'ENTER DATA HERE - Budget'!$E$20 -> 0 | J116: =VLOOKUP(CONCATENATE($A116,J$4),$S$4:$W$75,4,FALSE)*'ENTER DATA HERE - Budget'!$E$35*'ENTER DATA HERE - Budget'!$E$20 -> 0 | K116: =VLOOKUP(CONCATENATE($A116,K$4),$S$4:$W$75,4,FALSE)*'ENTER DATA HERE - Budget'!$E$35*'ENTER DATA HERE - Budget'!$E$20 -> 0 | L116: =VLOOKUP(CONCATENATE($A116,L$4),$S$4:$W$75,4,FALSE)*'ENTER DATA HERE - Budget'!$E$35*'ENTER DATA HERE - Budget'!$E$20 -> 0 | M116: =VLOOKUP(CONCATENATE($A116,M$4),$S$4:$W$75,4,FALSE)*'ENTER DATA HERE - Budget'!$E$35*'ENTER DATA HERE - Budget'!$E$20 -> 0 | N116: =VLOOKUP(CONCATENATE($A116,N$4),$S$4:$W$75,4,FALSE)*'ENTER DATA HERE - Budget'!$E$35*'ENTER DATA HERE - Budget'!$E$20 -> 0 | O116: =SUM(C116:N116) -> 4405.95375 | R116: 113 | S116: 10May | T116: =T104+1 -> 10 | U116: May | V116: =IF(OR(U116=$C$2,U116=$D$2,U116=$E$2),'ENTER DATA HERE - Budget'!$E$10,0) -> 10 | W116: =IF(R116<='ENTER DATA HERE - Budget'!E$8,0,VLOOKUP(R116-'ENTER DATA HERE - Budget'!$E$8,$R$4:V115,5,FALSE)) -> 0 | X116: =SUM($V$4:$V116)-SUM($W$4:$W116) -> 50
A117: 4 | B117: Feed | C117: =VLOOKUP(CONCATENATE($A117,C$4),$S$4:$X$75,6,FALSE)*('ENTER DATA HERE - Budget'!$G$36/('ENTER DATA HERE - Budget'!$E$10*'ENTER DATA HERE - Budget'!$E$8)) -> 685.6765523 | D117: =VLOOKUP(CONCATENATE($A117,D$4),$S$4:$X$75,6,FALSE)*('ENTER DATA HERE - Budget'!$G$36/('ENTER DATA HERE - Budget'!$E$10*'ENTER DATA HERE - Budget'!$E$8)) -> 685.6765523 | E117: =VLOOKUP(CONCATENATE($A117,E$4),$S$4:$X$75,6,FALSE)*('ENTER DATA HERE - Budget'!$G$36/('ENTER DATA HERE - Budget'!$E$10*'ENTER DATA HERE - Budget'!$E$8)) -> 685.6765523 | F117: =VLOOKUP(CONCATENATE($A117,F$4),$S$4:$X$75,6,FALSE)*('ENTER DATA HERE - Budget'!$G$36/('ENTER DATA HERE - Budget'!$E$10*'ENTER DATA HERE - Budget'!$E$8)) -> 914.2354031 | G117: =VLOOKUP(CONCATENATE($A117,G$4),$S$4:$X$75,6,FALSE)*('ENTER DATA HERE - Budget'!$G$36/('ENTER DATA HERE - Budget'!$E$10*'ENTER DATA HERE - Budget'!$E$8)) -> 1142.794254 | H117: =VLOOKUP(CONCATENATE($A117,H$4),$S$4:$X$75,6,FALSE)*('ENTER DATA HERE - Budget'!$G$36/('ENTER DATA HERE - Budget'!$E$10*'ENTER DATA HERE - Budget'!$E$8)) -> 1371.353105 | I117: =VLOOKUP(CONCATENATE($A117,I$4),$S$4:$X$75,6,FALSE)*('ENTER DATA HERE - Budget'!$G$36/('ENTER DATA HERE - Budget'!$E$10*'ENTER DATA HERE - Budget'!$E$8)) -> 1371.353105 | J117: =VLOOKUP(CONCATENATE($A117,J$4),$S$4:$X$75,6,FALSE)*('ENTER DATA HERE - Budget'!$G$36/('ENTER DATA HERE - Budget'!$E$10*'ENTER DATA HERE - Budget'!$E$8)) -> 1371.353105 | K117: =VLOOKUP(CONCATENATE($A117,K$4),$S$4:$X$75,6,FALSE)*('ENTER DATA HERE - Budget'!$G$36/('ENTER DATA HERE - Budget'!$E$10*'ENTER DATA HERE - Budget'!$E$8)) -> 1371.353105 | L117: =VLOOKUP(CONCATENATE($A117,L$4),$S$4:$X$75,6,FALSE)*('ENTER DATA HERE - Budget'!$G$36/('ENTER DATA HERE - Budget'!$E$10*'ENTER DATA HERE - Budget'!$E$8)) -> 1142.794254 | M117: =VLOOKUP(CONCATENATE($A117,M$4),$S$4:$X$75,6,FALSE)*('ENTER DATA HERE - Budget'!$G$36/('ENTER DATA HERE - Budget'!$E$10*'ENTER DATA HERE - Budget'!$E$8)) -> 914.2354031 | N117: =VLOOKUP(CONCATENATE($A117,N$4),$S$4:$X$75,6,FALSE)*('ENTER DATA HERE - Budget'!$G$36/('ENTER DATA HERE - Budget'!$E$10*'ENTER DATA HERE - Budget'!$E$8)) -> 685.6765523 | O117: 12342.17794 | R117: 114 | S117: 10June | T117: =T105+1 -> 10 | U117: June | V117: =IF(OR(U117=$C$2,U117=$D$2,U117=$E$2),'ENTER DATA HERE - Budget'!$E$10,0) -> 10 | W117: =IF(R117<='ENTER DATA HERE - Budget'!E$8,0,VLOOKUP(R117-'ENTER DATA HERE - Budget'!$E$8,$R$4:V116,5,FALSE)) -> 0 | X117: =SUM($V$4:$V117)-SUM($W$4:$W117) -> 60
A118: 4 | B118: Chemicals | C118: =VLOOKUP(CONCATENATE($A118,C$4),$S$4:$X$75,6,FALSE)*('ENTER DATA HERE - Budget'!$G$37/('ENTER DATA HERE - Budget'!$E$10*'ENTER DATA HERE - Budget'!$E$8)) -> 41.66666667 | D118: =VLOOKUP(CONCATENATE($A118,D$4),$S$4:$X$75,6,FALSE)*('ENTER DATA HERE - Budget'!$G$37/('ENTER DATA HERE - Budget'!$E$10*'ENTER DATA HERE - Budget'!$E$8)) -> 41.66666667 | E118: =VLOOKUP(CONCATENATE($A118,E$4),$S$4:$X$75,6,FALSE)*('ENTER DATA HERE - Budget'!$G$37/('ENTER DATA HERE - Budget'!$E$10*'ENTER DATA HERE - Budget'!$E$8)) -> 41.66666667 | F118: =VLOOKUP(CONCATENATE($A118,F$4),$S$4:$X$75,6,FALSE)*('ENTER DATA HERE - Budget'!$G$37/('ENTER DATA HERE - Budget'!$E$10*'ENTER DATA HERE - Budget'!$E$8)) -> 55.55555556 | G118: =VLOOKUP(CONCATENATE($A118,G$4),$S$4:$X$75,6,FALSE)*('ENTER DATA HERE - Budget'!$G$37/('ENTER DATA HERE - Budget'!$E$10*'ENTER DATA HERE - Budget'!$E$8)) -> 69.44444444 | H118: =VLOOKUP(CONCATENATE($A118,H$4),$S$4:$X$75,6,FALSE)*('ENTER DATA HERE - Budget'!$G$37/('ENTER DATA HERE - Budget'!$E$10*'ENTER DATA HERE - Budget'!$E$8)) -> 83.33333333 | I118: =VLOOKUP(CONCATENATE($A118,I$4),$S$4:$X$75,6,FALSE)*('ENTER DATA HERE - Budget'!$G$37/('ENTER DATA HERE - Budget'!$E$10*'ENTER DATA HERE - Budget'!$E$8)) -> 83.33333333 | J118: =VLOOKUP(CONCATENATE($A118,J$4),$S$4:$X$75,6,FALSE)*('ENTER DATA HERE - Budget'!$G$37/('ENTER DATA HERE - Budget'!$E$10*'ENTER DATA HERE - Budget'!$E$8)) -> 83.33333333 | K118: =VLOOKUP(CONCATENATE($A118,K$4),$S$4:$X$75,6,FALSE)*('ENTER DATA HERE - Budget'!$G$37/('ENTER DATA HERE - Budget'!$E$10*'ENTER DATA HERE - Budget'!$E$8)) -> 83.33333333 | L118: =VLOOKUP(CONCATENATE($A118,L$4),$S$4:$X$75,6,FALSE)*('ENTER DATA HERE - Budget'!$G$37/('ENTER DATA HERE - Budget'!$E$10*'ENTER DATA HERE - Budget'!$E$8)) -> 69.44444444 | M118: =VLOOKUP(CONCATENATE($A118,M$4),$S$4:$X$75,6,FALSE)*('ENTER DATA HERE - Budget'!$G$37/('ENTER DATA HERE - Budget'!$E$10*'ENTER DATA HERE - Budget'!$E$8)) -> 55.55555556 | N118: =VLOOKUP(CONCATENATE($A118,N$4),$S$4:$X$75,6,FALSE)*('ENTER DATA HERE - Budget'!$G$37/('ENTER DATA HERE - Budget'!$E$10*'ENTER DATA HERE - Budget'!$E$8)) -> 41.66666667 | O118: 750 | R118: 115 | S118: 10July | T118: 10 | U118: July | V118: =IF(OR(U118=$C$2,U118=$D$2,U118=$E$2),'ENTER DATA HERE - Budget'!$E$10,0) -> 0 | W118: =IF(R118<='ENTER DATA HERE - Budget'!E$8,0,VLOOKUP(R118-'ENTER DATA HERE - Budget'!$E$8,$R$4:V117,5,FALSE)) -> 0 | X118: =SUM($V$4:$V118)-SUM($W$4:$W118) -> 60
A119: 4 | B119: Electricity Cost | C119: 0 | D119: 0 | E119: 0 | F119: 0 | G119: ='ENTER DATA HERE - Budget'!$H$38/5 -> 216 | H119: ='ENTER DATA HERE - Budget'!$H$38/5 -> 216 | I119: ='ENTER DATA HERE - Budget'!$H$38/5 -> 216 | J119: ='ENTER DATA HERE - Budget'!$H$38/5 -> 216 | K119: ='ENTER DATA HERE - Budget'!$H$38/5 -> 216 | L119: 0 | M119: 0 | N119: 0 | O119: 1080 | R119: 116 | S119: 10August | T119: 10 | U119: August | V119: =IF(OR(U119=$C$2,U119=$D$2,U119=$E$2),'ENTER DATA HERE - Budget'!$E$10,0) -> 0 | W119: =IF(R119<='ENTER DATA HERE - Budget'!E$8,0,VLOOKUP(R119-'ENTER DATA HERE - Budget'!$E$8,$R$4:V118,5,FALSE)) -> 0 | X119: =SUM($V$4:$V119)-SUM($W$4:$W119) -> 60
A120: 4 | B120: Hired Labor - Hours | C120: ='ENTER DATA HERE - Budget'!$H$39/12 -> 0 | D120: ='ENTER DATA HERE - Budget'!$H$39/12 -> 0 | E120: ='ENTER DATA HERE - Budget'!$H$39/12 -> 0 | F120: ='ENTER DATA HERE - Budget'!$H$39/12 -> 0 | G120: ='ENTER DATA HERE - Budget'!$H$39/12 -> 0 | H120: ='ENTER DATA HERE - Budget'!$H$39/12 -> 0 | I120: ='ENTER DATA HERE - Budget'!$H$39/12 -> 0 | J120: ='ENTER DATA HERE - Budget'!$H$39/12 -> 0 | K120: ='ENTER DATA HERE - Budget'!$H$39/12 -> 0 | L120: ='ENTER DATA HERE - Budget'!$H$39/12 -> 0 | M120: ='ENTER DATA HERE - Budget'!$H$39/12 -> 0 | N120: ='ENTER DATA HERE - Budget'!$H$39/12 -> 0 | O120: 0 | R120: 117 | S120: 10September | T120: 10 | U120: September | V120: =IF(OR(U120=$C$2,U120=$D$2,U120=$E$2),'ENTER DATA HERE - Budget'!$E$10,0) -> 0 | W120: =IF(R120<='ENTER DATA HERE - Budget'!E$8,0,VLOOKUP(R120-'ENTER DATA HERE - Budget'!$E$8,$R$4:V119,5,FALSE)) -> 0 | X120: =SUM($V$4:$V120)-SUM($W$4:$W120) -> 60
A121: 4 | B121: Harvesting | C121: =VLOOKUP(CONCATENATE($A121,C$4),$S$4:$W$75,5,FALSE)*'ENTER DATA HERE - Budget'!$E$40*'ENTER DATA HERE - Budget'!$F$40/'ENTER DATA HERE - Budget'!$E$10 -> 0 | D121: =VLOOKUP(CONCATENATE($A121,D$4),$S$4:$W$75,5,FALSE)*'ENTER DATA HERE - Budget'!$E$40*'ENTER DATA HERE - Budget'!$F$40/'ENTER DATA HERE - Budget'!$E$10 -> 0 | E121: =VLOOKUP(CONCATENATE($A121,E$4),$S$4:$W$75,5,FALSE)*'ENTER DATA HERE - Budget'!$E$40*'ENTER DATA HERE - Budget'!$F$40/'ENTER DATA HERE - Budget'!$E$10 -> 0 | F121: =VLOOKUP(CONCATENATE($A121,F$4),$S$4:$W$75,5,FALSE)*'ENTER DATA HERE - Budget'!$E$40*'ENTER DATA HERE - Budget'!$F$40/'ENTER DATA HERE - Budget'!$E$10 -> 0 | G121: =VLOOKUP(CONCATENATE($A121,G$4),$S$4:$W$75,5,FALSE)*'ENTER DATA HERE - Budget'!$E$40*'ENTER DATA HERE - Budget'!$F$40/'ENTER DATA HERE - Budget'!$E$10 -> 0 | H121: =VLOOKUP(CONCATENATE($A121,H$4),$S$4:$W$75,5,FALSE)*'ENTER DATA HERE - Budget'!$E$40*'ENTER DATA HERE - Budget'!$F$40/'ENTER DATA HERE - Budget'!$E$10 -> 0 | I121: =VLOOKUP(CONCATENATE($A121,I$4),$S$4:$W$75,5,FALSE)*'ENTER DATA HERE - Budget'!$E$40*'ENTER DATA HERE - Budget'!$F$40/'ENTER DATA HERE - Budget'!$E$10 -> 0 | J121: =VLOOKUP(CONCATENATE($A121,J$4),$S$4:$W$75,5,FALSE)*'ENTER DATA HERE - Budget'!$E$40*'ENTER DATA HERE - Budget'!$F$40/'ENTER DATA HERE - Budget'!$E$10 -> 0 | K121: =VLOOKUP(CONCATENATE($A121,K$4),$S$4:$W$75,5,FALSE)*'ENTER DATA HERE - Budget'!$E$40*'ENTER DATA HERE - Budget'!$F$40/'ENTER DATA HERE - Budget'!$E$10 -> 0 | L121: =VLOOKUP(CONCATENATE($A121,L$4),$S$4:$W$75,5,FALSE)*'ENTER DATA HERE - Budget'!$E$40*'ENTER DATA HERE - Budget'!$F$40/'ENTER DATA HERE - Budget'!$E$10 -> 249.6707125 | M121: =VLOOKUP(CONCATENATE($A121,M$4),$S$4:$W$75,5,FALSE)*'ENTER DATA HERE - Budget'!$E$40*'ENTER DATA HERE - Budget'!$F$40/'ENTER DATA HERE - Budget'!$E$10 -> 249.6707125 | N121: =VLOOKUP(CONCATENATE($A121,N$4),$S$4:$W$75,5,FALSE)*'ENTER DATA HERE - Budget'!$E$40*'ENTER DATA HERE - Budget'!$F$40/'ENTER DATA HERE - Budget'!$E$10 -> 249.6707125 | O121: 749.0121375 | R121: 118 | S121: 10October | T121: 10 | U121: October | V121: =IF(OR(U121=$C$2,U121=$D$2,U121=$E$2),'ENTER DATA HERE - Budget'!$E$10,0) -> 0 | W121: =IF(R121<='ENTER DATA HERE - Budget'!E$8,0,VLOOKUP(R121-'ENTER DATA HERE - Budget'!$E$8,$R$4:V120,5,FALSE)) -> 10 | X121: =SUM($V$4:$V121)-SUM($W$4:$W121) -> 50
A122: 4 | B122: Transportation Costs of Fingerlings | C122: =VLOOKUP(CONCATENATE($A122,C$4),$S$4:$W$75,4,FALSE)*'ENTER DATA HERE - Budget'!$E$20*'ENTER DATA HERE - Budget'!$E$41 -> 0 | D122: =VLOOKUP(CONCATENATE($A122,D$4),$S$4:$W$75,4,FALSE)*'ENTER DATA HERE - Budget'!$E$20*'ENTER DATA HERE - Budget'!$E$41 -> 0 | E122: =VLOOKUP(CONCATENATE($A122,E$4),$S$4:$W$75,4,FALSE)*'ENTER DATA HERE - Budget'!$E$20*'ENTER DATA HERE - Budget'!$E$41 -> 0 | F122: =VLOOKUP(CONCATENATE($A122,F$4),$S$4:$W$75,4,FALSE)*'ENTER DATA HERE - Budget'!$E$20*'ENTER DATA HERE - Budget'!$E$41 -> 97.91008333 | G122: =VLOOKUP(CONCATENATE($A122,G$4),$S$4:$W$75,4,FALSE)*'ENTER DATA HERE - Budget'!$E$20*'ENTER DATA HERE - Budget'!$E$41 -> 97.91008333 | H122: =VLOOKUP(CONCATENATE($A122,H$4),$S$4:$W$75,4,FALSE)*'ENTER DATA HERE - Budget'!$E$20*'ENTER DATA HERE - Budget'!$E$41 -> 97.91008333 | I122: =VLOOKUP(CONCATENATE($A122,I$4),$S$4:$W$75,4,FALSE)*'ENTER DATA HERE - Budget'!$E$20*'ENTER DATA HERE - Budget'!$E$41 -> 0 | J122: =VLOOKUP(CONCATENATE($A122,J$4),$S$4:$W$75,4,FALSE)*'ENTER DATA HERE - Budget'!$E$20*'ENTER DATA HERE - Budget'!$E$41 -> 0 | K122: =VLOOKUP(CONCATENATE($A122,K$4),$S$4:$W$75,4,FALSE)*'ENTER DATA HERE - Budget'!$E$20*'ENTER DATA HERE - Budget'!$E$41 -> 0 | L122: =VLOOKUP(CONCATENATE($A122,L$4),$S$4:$W$75,4,FALSE)*'ENTER DATA HERE - Budget'!$E$20*'ENTER DATA HERE - Budget'!$E$41 -> 0 | M122: =VLOOKUP(CONCATENATE($A122,M$4),$S$4:$W$75,4,FALSE)*'ENTER DATA HERE - Budget'!$E$20*'ENTER DATA HERE - Budget'!$E$41 -> 0 | N122: =VLOOKUP(CONCATENATE($A122,N$4),$S$4:$W$75,4,FALSE)*'ENTER DATA HERE - Budget'!$E$20*'ENTER DATA HERE - Budget'!$E$41 -> 0 | O122: 293.73025 | R122: 119 | S122: 10November | T122: 10 | U122: November | V122: =IF(OR(U122=$C$2,U122=$D$2,U122=$E$2),'ENTER DATA HERE - Budget'!$E$10,0) -> 0 | W122: =IF(R122<='ENTER DATA HERE - Budget'!E$8,0,VLOOKUP(R122-'ENTER DATA HERE - Budget'!$E$8,$R$4:V121,5,FALSE)) -> 10 | X122: =SUM($V$4:$V122)-SUM($W$4:$W122) -> 40
A123: 4 | B123: Transportation Costs to Market | C123: =VLOOKUP(CONCATENATE($A123,C$4),$S$4:$W$75,5,FALSE)*'ENTER DATA HERE - Budget'!$E$42*'ENTER DATA HERE - Budget'!$F$42/'ENTER DATA HERE - Budget'!$E$10 -> 0 | D123: =VLOOKUP(CONCATENATE($A123,D$4),$S$4:$W$75,5,FALSE)*'ENTER DATA HERE - Budget'!$E$42*'ENTER DATA HERE - Budget'!$F$42/'ENTER DATA HERE - Budget'!$E$10 -> 0 | E123: =VLOOKUP(CONCATENATE($A123,E$4),$S$4:$W$75,5,FALSE)*'ENTER DATA HERE - Budget'!$E$42*'ENTER DATA HERE - Budget'!$F$42/'ENTER DATA HERE - Budget'!$E$10 -> 0 | F123: =VLOOKUP(CONCATENATE($A123,F$4),$S$4:$W$75,5,FALSE)*'ENTER DATA HERE - Budget'!$E$42*'ENTER DATA HERE - Budget'!$F$42/'ENTER DATA HERE - Budget'!$E$10 -> 0 | G123: =VLOOKUP(CONCATENATE($A123,G$4),$S$4:$W$75,5,FALSE)*'ENTER DATA HERE - Budget'!$E$42*'ENTER DATA HERE - Budget'!$F$42/'ENTER DATA HERE - Budget'!$E$10 -> 0 | H123: =VLOOKUP(CONCATENATE($A123,H$4),$S$4:$W$75,5,FALSE)*'ENTER DATA HERE - Budget'!$E$42*'ENTER DATA HERE - Budget'!$F$42/'ENTER DATA HERE - Budget'!$E$10 -> 0 | I123: =VLOOKUP(CONCATENATE($A123,I$4),$S$4:$W$75,5,FALSE)*'ENTER DATA HERE - Budget'!$E$42*'ENTER DATA HERE - Budget'!$F$42/'ENTER DATA HERE - Budget'!$E$10 -> 0 | J123: =VLOOKUP(CONCATENATE($A123,J$4),$S$4:$W$75,5,FALSE)*'ENTER DATA HERE - Budget'!$E$42*'ENTER DATA HERE - Budget'!$F$42/'ENTER DATA HERE - Budget'!$E$10 -> 0 | K123: =VLOOKUP(CONCATENATE($A123,K$4),$S$4:$W$75,5,FALSE)*'ENTER DATA HERE - Budget'!$E$42*'ENTER DATA HERE - Budget'!$F$42/'ENTER DATA HERE - Budget'!$E$10 -> 0 | L123: =VLOOKUP(CONCATENATE($A123,L$4),$S$4:$W$75,5,FALSE)*'ENTER DATA HERE - Budget'!$E$42*'ENTER DATA HERE - Budget'!$F$42/'ENTER DATA HERE - Budget'!$E$10 -> 0 | M123: =VLOOKUP(CONCATENATE($A123,M$4),$S$4:$W$75,5,FALSE)*'ENTER DATA HERE - Budget'!$E$42*'ENTER DATA HERE - Budget'!$F$42/'ENTER DATA HERE - Budget'!$E$10 -> 0 | N123: =VLOOKUP(CONCATENATE($A123,N$4),$S$4:$W$75,5,FALSE)*'ENTER DATA HERE - Budget'!$E$42*'ENTER DATA HERE - Budget'!$F$42/'ENTER DATA HERE - Budget'!$E$10 -> 0 | O123: 0 | R123: 120 | S123: 10December | T123: 10 | U123: December | V123: =IF(OR(U123=$C$2,U123=$D$2,U123=$E$2),'ENTER DATA HERE - Budget'!$E$10,0) -> 0 | W123: =IF(R123<='ENTER DATA HERE - Budget'!E$8,0,VLOOKUP(R123-'ENTER DATA HERE - Budget'!$E$8,$R$4:V122,5,FALSE)) -> 10 | X123: =SUM($V$4:$V123)-SUM($W$4:$W123) -> 30
A124: 4 | B124: Miscellaneous | C124: =VLOOKUP(CONCATENATE($A124,C$4),$S$4:$X$75,6,FALSE)*('ENTER DATA HERE - Budget'!$G$43/('ENTER DATA HERE - Budget'!$E$10*'ENTER DATA HERE - Budget'!$E$8)) -> 166.6666667 | D124: =VLOOKUP(CONCATENATE($A124,D$4),$S$4:$X$75,6,FALSE)*('ENTER DATA HERE - Budget'!$G$43/('ENTER DATA HERE - Budget'!$E$10*'ENTER DATA HERE - Budget'!$E$8)) -> 166.6666667 | E124: =VLOOKUP(CONCATENATE($A124,E$4),$S$4:$X$75,6,FALSE)*('ENTER DATA HERE - Budget'!$G$43/('ENTER DATA HERE - Budget'!$E$10*'ENTER DATA HERE - Budget'!$E$8)) -> 166.6666667 | F124: =VLOOKUP(CONCATENATE($A124,F$4),$S$4:$X$75,6,FALSE)*('ENTER DATA HERE - Budget'!$G$43/('ENTER DATA HERE - Budget'!$E$10*'ENTER DATA HERE - Budget'!$E$8)) -> 222.2222222 | G124: =VLOOKUP(CONCATENATE($A124,G$4),$S$4:$X$75,6,FALSE)*('ENTER DATA HERE - Budget'!$G$43/('ENTER DATA HERE - Budget'!$E$10*'ENTER DATA HERE - Budget'!$E$8)) -> 277.7777778 | H124: =VLOOKUP(CONCATENATE($A124,H$4),$S$4:$X$75,6,FALSE)*('ENTER DATA HERE - Budget'!$G$43/('ENTER DATA HERE - Budget'!$E$10*'ENTER DATA HERE - Budget'!$E$8)) -> 333.3333333 | I124: =VLOOKUP(CONCATENATE($A124,I$4),$S$4:$X$75,6,FALSE)*('ENTER DATA HERE - Budget'!$G$43/('ENTER DATA HERE - Budget'!$E$10*'ENTER DATA HERE - Budget'!$E$8)) -> 333.3333333 | J124: =VLOOKUP(CONCATENATE($A124,J$4),$S$4:$X$75,6,FALSE)*('ENTER DATA HERE - Budget'!$G$43/('ENTER DATA HERE - Budget'!$E$10*'ENTER DATA HERE - Budget'!$E$8)) -> 333.3333333 | K124: =VLOOKUP(CONCATENATE($A124,K$4),$S$4:$X$75,6,FALSE)*('ENTER DATA HERE - Budget'!$G$43/('ENTER DATA HERE - Budget'!$E$10*'ENTER DATA HERE - Budget'!$E$8)) -> 333.3333333 | L124: =VLOOKUP(CONCATENATE($A124,L$4),$S$4:$X$75,6,FALSE)*('ENTER DATA HERE - Budget'!$G$43/('ENTER DATA HERE - Budget'!$E$10*'ENTER DATA HERE - Budget'!$E$8)) -> 277.7777778 | M124: =VLOOKUP(CONCATENATE($A124,M$4),$S$4:$X$75,6,FALSE)*('ENTER DATA HERE - Budget'!$G$43/('ENTER DATA HERE - Budget'!$E$10*'ENTER DATA HERE - Budget'!$E$8)) -> 222.2222222 | N124: =VLOOKUP(CONCATENATE($A124,N$4),$S$4:$X$75,6,FALSE)*('ENTER DATA HERE - Budget'!$G$43/('ENTER DATA HERE - Budget'!$E$10*'ENTER DATA HERE - Budget'!$E$8)) -> 166.6666667 | O124: 3000 | R124: 121 | W124: =IF(R124<='ENTER DATA HERE - Budget'!E$8,0,VLOOKUP(R124-'ENTER DATA HERE - Budget'!$E$8,$R$4:V123,5,FALSE)) -> 0
A125: 4 | B125: Total Variable Cost | C125: =SUM(C116:C124) -> 894.0098857 | D125: 894.0098857 | E125: 894.0098857 | F125: 2758.574514 | G125: 3272.577809 | H125: 3570.581105 | I125: 2004.019771 | J125: 2004.019771 | K125: 2004.019771 | L125: 1739.687189 | M125: 1441.683893 | N125: 1143.680598 | O125: 22620.87408
A126: 4
A127: 4 | B127: Overhead Costs
A128: 4 | B128: Repair and maintenance | C128: ='ENTER DATA HERE - Budget'!$H$48/12 -> 15.60441953 | D128: ='ENTER DATA HERE - Budget'!$H$48/12 -> 15.60441953 | E128: ='ENTER DATA HERE - Budget'!$H$48/12 -> 15.60441953 | F128: ='ENTER DATA HERE - Budget'!$H$48/12 -> 15.60441953 | G128: ='ENTER DATA HERE - Budget'!$H$48/12 -> 15.60441953 | H128: ='ENTER DATA HERE - Budget'!$H$48/12 -> 15.60441953 | I128: ='ENTER DATA HERE - Budget'!$H$48/12 -> 15.60441953 | J128: ='ENTER DATA HERE - Budget'!$H$48/12 -> 15.60441953 | K128: ='ENTER DATA HERE - Budget'!$H$48/12 -> 15.60441953 | L128: ='ENTER DATA HERE - Budget'!$H$48/12 -> 15.60441953 | M128: ='ENTER DATA HERE - Budget'!$H$48/12 -> 15.60441953 | N128: ='ENTER DATA HERE - Budget'!$H$48/12 -> 15.60441953 | O128: =SUM(C128:N128) -> 187.2530344
A129: 4 | B129: Water acres rental | C129: ='ENTER DATA HERE - Budget'!$H$49/12 -> 78.02209766 | D129: ='ENTER DATA HERE - Budget'!$H$49/12 -> 78.02209766 | E129: ='ENTER DATA HERE - Budget'!$H$49/12 -> 78.02209766 | F129: ='ENTER DATA HERE - Budget'!$H$49/12 -> 78.02209766 | G129: ='ENTER DATA HERE - Budget'!$H$49/12 -> 78.02209766 | H129: ='ENTER DATA HERE - Budget'!$H$49/12 -> 78.02209766 | I129: ='ENTER DATA HERE - Budget'!$H$49/12 -> 78.02209766 | J129: ='ENTER DATA HERE - Budget'!$H$49/12 -> 78.02209766 | K129: ='ENTER DATA HERE - Budget'!$H$49/12 -> 78.02209766 | L129: ='ENTER DATA HERE - Budget'!$H$49/12 -> 78.02209766 | M129: ='ENTER DATA HERE - Budget'!$H$49/12 -> 78.02209766 | N129: ='ENTER DATA HERE - Budget'!$H$49/12 -> 78.02209766 | O129: 936.2651719
A130: 4 | B130: Insurance | C130: ='ENTER DATA HERE - Budget'!$H$50/12 -> 83.33333333 | D130: ='ENTER DATA HERE - Budget'!$H$50/12 -> 83.33333333 | E130: ='ENTER DATA HERE - Budget'!$H$50/12 -> 83.33333333 | F130: ='ENTER DATA HERE - Budget'!$H$50/12 -> 83.33333333 | G130: ='ENTER DATA HERE - Budget'!$H$50/12 -> 83.33333333 | H130: ='ENTER DATA HERE - Budget'!$H$50/12 -> 83.33333333 | I130: ='ENTER DATA HERE - Budget'!$H$50/12 -> 83.33333333 | J130: ='ENTER DATA HERE - Budget'!$H$50/12 -> 83.33333333 | K130: ='ENTER DATA HERE - Budget'!$H$50/12 -> 83.33333333 | L130: ='ENTER DATA HERE - Budget'!$H$50/12 -> 83.33333333 | M130: ='ENTER DATA HERE - Budget'!$H$50/12 -> 83.33333333 | N130: ='ENTER DATA HERE - Budget'!$H$50/12 -> 83.33333333 | O130: 1000
A131: 4 | B131: Adminstration/Management - legal fees, professional services, etc. (% of total overhead) | C131: ='ENTER DATA HERE - Budget'!$H$51/12 -> 94.253642 | D131: ='ENTER DATA HERE - Budget'!$H$51/12 -> 94.253642 | E131: ='ENTER DATA HERE - Budget'!$H$51/12 -> 94.253642 | F131: ='ENTER DATA HERE - Budget'!$H$51/12 -> 94.253642 | G131: ='ENTER DATA HERE - Budget'!$H$51/12 -> 94.253642 | H131: ='ENTER DATA HERE - Budget'!$H$51/12 -> 94.253642 | I131: ='ENTER DATA HERE - Budget'!$H$51/12 -> 94.253642 | J131: ='ENTER DATA HERE - Budget'!$H$51/12 -> 94.253642 | K131: ='ENTER DATA HERE - Budget'!$H$51/12 -> 94.253642 | L131: ='ENTER DATA HERE - Budget'!$H$51/12 -> 94.253642 | M131: ='ENTER DATA HERE - Budget'!$H$51/12 -> 94.253642 | N131: ='ENTER DATA HERE - Budget'!$H$51/12 -> 94.253642 | O131: 1131.043704
A132: 4 | B132: Other 1 | C132: ='ENTER DATA HERE - Budget'!$E$52/12 -> 0 | D132: ='ENTER DATA HERE - Budget'!$E$52/12 -> 0 | E132: ='ENTER DATA HERE - Budget'!$E$52/12 -> 0 | F132: ='ENTER DATA HERE - Budget'!$E$52/12 -> 0 | G132: ='ENTER DATA HERE - Budget'!$E$52/12 -> 0 | H132: ='ENTER DATA HERE - Budget'!$E$52/12 -> 0 | I132: ='ENTER DATA HERE - Budget'!$E$52/12 -> 0 | J132: ='ENTER DATA HERE - Budget'!$E$52/12 -> 0 | K132: ='ENTER DATA HERE - Budget'!$E$52/12 -> 0 | L132: ='ENTER DATA HERE - Budget'!$E$52/12 -> 0 | M132: ='ENTER DATA HERE - Budget'!$E$52/12 -> 0 | N132: ='ENTER DATA HERE - Budget'!$E$52/12 -> 0 | O132: 0
A133: 4 | B133: Other 2 | C133: ='ENTER DATA HERE - Budget'!$E$53/12 -> 0 | D133: ='ENTER DATA HERE - Budget'!$E$53/12 -> 0 | E133: ='ENTER DATA HERE - Budget'!$E$53/12 -> 0 | F133: ='ENTER DATA HERE - Budget'!$E$53/12 -> 0 | G133: ='ENTER DATA HERE - Budget'!$E$53/12 -> 0 | H133: ='ENTER DATA HERE - Budget'!$E$53/12 -> 0 | I133: ='ENTER DATA HERE - Budget'!$E$53/12 -> 0 | J133: ='ENTER DATA HERE - Budget'!$E$53/12 -> 0 | K133: ='ENTER DATA HERE - Budget'!$E$53/12 -> 0 | L133: ='ENTER DATA HERE - Budget'!$E$53/12 -> 0 | M133: ='ENTER DATA HERE - Budget'!$E$53/12 -> 0 | N133: ='ENTER DATA HERE - Budget'!$E$53/12 -> 0 | O133: 0
A134: 4 | B134: Total Overhead Costs | C134: =SUM(C128:C133) -> 271.2134925 | D134: 271.2134925 | E134: 271.2134925 | F134: 271.2134925 | G134: 271.2134925 | H134: 271.2134925 | I134: 271.2134925 | J134: 271.2134925 | K134: 271.2134925 | L134: 271.2134925 | M134: 271.2134925 | N134: 271.2134925 | O134: 3254.56191
A135: 4
A136: 4 | B136: Loan | C136: ='ENTER DATA HERE - Budget'!$H$80/12 -> 429.8649588 | D136: ='ENTER DATA HERE - Budget'!$H$80/12 -> 429.8649588 | E136: ='ENTER DATA HERE - Budget'!$H$80/12 -> 429.8649588 | F136: ='ENTER DATA HERE - Budget'!$H$80/12 -> 429.8649588 | G136: ='ENTER DATA HERE - Budget'!$H$80/12 -> 429.8649588 | H136: ='ENTER DATA HERE - Budget'!$H$80/12 -> 429.8649588 | I136: ='ENTER DATA HERE - Budget'!$H$80/12 -> 429.8649588 | J136: ='ENTER DATA HERE - Budget'!$H$80/12 -> 429.8649588 | K136: ='ENTER DATA HERE - Budget'!$H$80/12 -> 429.8649588 | L136: ='ENTER DATA HERE - Budget'!$H$80/12 -> 429.8649588 | M136: ='ENTER DATA HERE - Budget'!$H$80/12 -> 429.8649588 | N136: ='ENTER DATA HERE - Budget'!$H$80/12 -> 429.8649588 | O136: =SUM(C136:N136) -> 5158.379506
A137: 4
A138: 4 | B138: Max Cash Flow | C138: =C113-SUM(C125,C134,C136) -> -1595.088337 | D138: =D113-SUM(D125,D134,D136) -> -1595.088337 | E138: -1595.088337 | F138: -3459.652966 | G138: -3973.656261 | H138: -4271.659556 | I138: -2705.098223 | J138: -2705.098223 | K138: -2705.098223 | L138: 28768.07342 | M138: 29066.07672 | N138: 29364.08001
A139: 4 | B139: Min Cash Flow | C139: =C112-SUM(C125,C134,C136) -> -1595.088337 | D139: =D112-SUM(D125,D134,D136) -> -1595.088337 | E139: -1595.088337 | F139: -3459.652966 | G139: -3973.656261 | H139: -4271.659556 | I139: -2705.098223 | J139: -2705.098223 | K139: -2705.098223 | L139: -2440.76564 | M139: -2142.762345 | N139: -1844.75905
B141: YEAR 5 | C141: YEAR 5
C142: January | D142: February | E142: March | F142: April | G142: May | H142: June | I142: July | J142: August | K142: September | L142: October | M142: November | N142: December
A143: =$A$138+1 -> 5 | B143: Gross Receipts:
A144: =$A$138+1 -> 5 | B144: Max Fish sale | C144: =VLOOKUP(CONCATENATE($A144,C$4),$S$4:$W$75,5,FALSE)*'ENTER DATA HERE - Budget'!$E$20*'ENTER DATA HERE - Budget'!$E$23*'ENTER DATA HERE - Budget'!$E$25*'ENTER DATA HERE - Budget'!$E$30 -> 0 | D144: =VLOOKUP(CONCATENATE($A144,D$4),$S$4:$W$75,5,FALSE)*'ENTER DATA HERE - Budget'!$E$20*'ENTER DATA HERE - Budget'!$E$23*'ENTER DATA HERE - Budget'!$E$25*'ENTER DATA HERE - Budget'!$E$30 -> 0 | E144: =VLOOKUP(CONCATENATE($A144,E$4),$S$4:$W$75,5,FALSE)*'ENTER DATA HERE - Budget'!$E$20*'ENTER DATA HERE - Budget'!$E$23*'ENTER DATA HERE - Budget'!$E$25*'ENTER DATA HERE - Budget'!$E$30 -> 0 | F144: =VLOOKUP(CONCATENATE($A144,F$4),$S$4:$W$75,5,FALSE)*'ENTER DATA HERE - Budget'!$E$20*'ENTER DATA HERE - Budget'!$E$23*'ENTER DATA HERE - Budget'!$E$25*'ENTER DATA HERE - Budget'!$E$30 -> 0 | G144: =VLOOKUP(CONCATENATE($A144,G$4),$S$4:$W$75,5,FALSE)*'ENTER DATA HERE - Budget'!$E$20*'ENTER DATA HERE - Budget'!$E$23*'ENTER DATA HERE - Budget'!$E$25*'ENTER DATA HERE - Budget'!$E$30 -> 0 | H144: =VLOOKUP(CONCATENATE($A144,H$4),$S$4:$W$75,5,FALSE)*'ENTER DATA HERE - Budget'!$E$20*'ENTER DATA HERE - Budget'!$E$23*'ENTER DATA HERE - Budget'!$E$25*'ENTER DATA HERE - Budget'!$E$30 -> 0 | I144: =VLOOKUP(CONCATENATE($A144,I$4),$S$4:$W$75,5,FALSE)*'ENTER DATA HERE - Budget'!$E$20*'ENTER DATA HERE - Budget'!$E$23*'ENTER DATA HERE - Budget'!$E$25*'ENTER DATA HERE - Budget'!$E$30 -> 0 | J144: =VLOOKUP(CONCATENATE($A144,J$4),$S$4:$W$75,5,FALSE)*'ENTER DATA HERE - Budget'!$E$20*'ENTER DATA HERE - Budget'!$E$23*'ENTER DATA HERE - Budget'!$E$25*'ENTER DATA HERE - Budget'!$E$30 -> 0 | K144: =VLOOKUP(CONCATENATE($A144,K$4),$S$4:$W$75,5,FALSE)*'ENTER DATA HERE - Budget'!$E$20*'ENTER DATA HERE - Budget'!$E$23*'ENTER DATA HERE - Budget'!$E$25*'ENTER DATA HERE - Budget'!$E$30 -> 0 | L144: =VLOOKUP(CONCATENATE($A144,L$4),$S$4:$W$75,5,FALSE)*'ENTER DATA HERE - Budget'!$E$20*'ENTER DATA HERE - Budget'!$E$23*'ENTER DATA HERE - Budget'!$E$25*'ENTER DATA HERE - Budget'!$E$30 -> 18725.30344 | M144: =VLOOKUP(CONCATENATE($A144,M$4),$S$4:$W$75,5,FALSE)*'ENTER DATA HERE - Budget'!$E$20*'ENTER DATA HERE - Budget'!$E$23*'ENTER DATA HERE - Budget'!$E$25*'ENTER DATA HERE - Budget'!$E$30 -> 18725.30344 | N144: =VLOOKUP(CONCATENATE($A144,N$4),$S$4:$W$75,5,FALSE)*'ENTER DATA HERE - Budget'!$E$20*'ENTER DATA HERE - Budget'!$E$23*'ENTER DATA HERE - Budget'!$E$25*'ENTER DATA HERE - Budget'!$E$30 -> 18725.30344 | O144: =SUM(C144:N144) -> 56175.91031
A145: 5 | B145: Min Fish Sale | C145: =VLOOKUP(CONCATENATE($A145,C$4),$S$4:$W$75,5,FALSE)*'ENTER DATA HERE - Budget'!$E$20*'ENTER DATA HERE - Budget'!$E$22*'ENTER DATA HERE - Budget'!$E$25*'ENTER DATA HERE - Budget'!$E$30 -> 0 | D145: =VLOOKUP(CONCATENATE($A145,D$4),$S$4:$W$75,5,FALSE)*'ENTER DATA HERE - Budget'!$E$20*'ENTER DATA HERE - Budget'!$E$22*'ENTER DATA HERE - Budget'!$E$25*'ENTER DATA HERE - Budget'!$E$30 -> 0 | E145: =VLOOKUP(CONCATENATE($A145,E$4),$S$4:$W$75,5,FALSE)*'ENTER DATA HERE - Budget'!$E$20*'ENTER DATA HERE - Budget'!$E$22*'ENTER DATA HERE - Budget'!$E$25*'ENTER DATA HERE - Budget'!$E$30 -> 0 | F145: =VLOOKUP(CONCATENATE($A145,F$4),$S$4:$W$75,5,FALSE)*'ENTER DATA HERE - Budget'!$E$20*'ENTER DATA HERE - Budget'!$E$22*'ENTER DATA HERE - Budget'!$E$25*'ENTER DATA HERE - Budget'!$E$30 -> 0 | G145: =VLOOKUP(CONCATENATE($A145,G$4),$S$4:$W$75,5,FALSE)*'ENTER DATA HERE - Budget'!$E$20*'ENTER DATA HERE - Budget'!$E$22*'ENTER DATA HERE - Budget'!$E$25*'ENTER DATA HERE - Budget'!$E$30 -> 0 | H145: =VLOOKUP(CONCATENATE($A145,H$4),$S$4:$W$75,5,FALSE)*'ENTER DATA HERE - Budget'!$E$20*'ENTER DATA HERE - Budget'!$E$22*'ENTER DATA HERE - Budget'!$E$25*'ENTER DATA HERE - Budget'!$E$30 -> 0 | I145: =VLOOKUP(CONCATENATE($A145,I$4),$S$4:$W$75,5,FALSE)*'ENTER DATA HERE - Budget'!$E$20*'ENTER DATA HERE - Budget'!$E$22*'ENTER DATA HERE - Budget'!$E$25*'ENTER DATA HERE - Budget'!$E$30 -> 0 | J145: =VLOOKUP(CONCATENATE($A145,J$4),$S$4:$W$75,5,FALSE)*'ENTER DATA HERE - Budget'!$E$20*'ENTER DATA HERE - Budget'!$E$22*'ENTER DATA HERE - Budget'!$E$25*'ENTER DATA HERE - Budget'!$E$30 -> 0 | K145: =VLOOKUP(CONCATENATE($A145,K$4),$S$4:$W$75,5,FALSE)*'ENTER DATA HERE - Budget'!$E$20*'ENTER DATA HERE - Budget'!$E$22*'ENTER DATA HERE - Budget'!$E$25*'ENTER DATA HERE - Budget'!$E$30 -> 0 | L145: =VLOOKUP(CONCATENATE($A145,L$4),$S$4:$W$75,5,FALSE)*'ENTER DATA HERE - Budget'!$E$20*'ENTER DATA HERE - Budget'!$E$22*'ENTER DATA HERE - Budget'!$E$25*'ENTER DATA HERE - Budget'!$E$30 -> 12483.53563 | M145: =VLOOKUP(CONCATENATE($A145,M$4),$S$4:$W$75,5,FALSE)*'ENTER DATA HERE - Budget'!$E$20*'ENTER DATA HERE - Budget'!$E$22*'ENTER DATA HERE - Budget'!$E$25*'ENTER DATA HERE - Budget'!$E$30 -> 12483.53563 | N145: =VLOOKUP(CONCATENATE($A145,N$4),$S$4:$W$75,5,FALSE)*'ENTER DATA HERE - Budget'!$E$20*'ENTER DATA HERE - Budget'!$E$22*'ENTER DATA HERE - Budget'!$E$25*'ENTER DATA HERE - Budget'!$E$30 -> 12483.53563 | O145: =SUM(C145:N145) -> 37450.60687
A146: 5 | B146: Miscellaneous Receipts | C146: ='ENTER DATA HERE - Budget'!$E$31/12 -> 0 | D146: ='ENTER DATA HERE - Budget'!$E$31/12 -> 0 | E146: ='ENTER DATA HERE - Budget'!$E$31/12 -> 0 | F146: ='ENTER DATA HERE - Budget'!$E$31/12 -> 0 | G146: ='ENTER DATA HERE - Budget'!$E$31/12 -> 0 | H146: ='ENTER DATA HERE - Budget'!$E$31/12 -> 0 | I146: ='ENTER DATA HERE - Budget'!$E$31/12 -> 0 | J146: ='ENTER DATA HERE - Budget'!$E$31/12 -> 0 | K146: ='ENTER DATA HERE - Budget'!$E$31/12 -> 0 | L146: ='ENTER DATA HERE - Budget'!$E$31/12 -> 0 | M146: ='ENTER DATA HERE - Budget'!$E$31/12 -> 0 | N146: ='ENTER DATA HERE - Budget'!$E$31/12 -> 0 | O146: =SUM(C146:N146) -> 0
A147: 5 | B147: Total Receipts | C147: =SUM(C144:C146) -> 0 | D147: =SUM(D144:D146) -> 0 | E147: 0 | F147: 0 | G147: 0 | H147: 0 | I147: 0 | J147: 0 | K147: 0 | L147: 31208.83906 | M147: 31208.83906 | N147: 31208.83906 | O147: =SUM(C147:N147) -> 93626.51719
A148: 5
A149: 5 | B149: Variable Inputs:
A150: 5 | B150: Fingerlings (4") | C150: =VLOOKUP(CONCATENATE($A150,C$4),$S$4:$W$75,4,FALSE)*'ENTER DATA HERE - Budget'!$E$35*'ENTER DATA HERE - Budget'!$E$20 -> 0 | D150: =VLOOKUP(CONCATENATE($A150,D$4),$S$4:$W$75,4,FALSE)*'ENTER DATA HERE - Budget'!$E$35*'ENTER DATA HERE - Budget'!$E$20 -> 0 | E150: =VLOOKUP(CONCATENATE($A150,E$4),$S$4:$W$75,4,FALSE)*'ENTER DATA HERE - Budget'!$E$35*'ENTER DATA HERE - Budget'!$E$20 -> 0 | F150: =VLOOKUP(CONCATENATE($A150,F$4),$S$4:$W$75,4,FALSE)*'ENTER DATA HERE - Budget'!$E$35*'ENTER DATA HERE - Budget'!$E$20 -> 1468.65125 | G150: =VLOOKUP(CONCATENATE($A150,G$4),$S$4:$W$75,4,FALSE)*'ENTER DATA HERE - Budget'!$E$35*'ENTER DATA HERE - Budget'!$E$20 -> 1468.65125 | H150: =VLOOKUP(CONCATENATE($A150,H$4),$S$4:$W$75,4,FALSE)*'ENTER DATA HERE - Budget'!$E$35*'ENTER DATA HERE - Budget'!$E$20 -> 1468.65125 | I150: =VLOOKUP(CONCATENATE($A150,I$4),$S$4:$W$75,4,FALSE)*'ENTER DATA HERE - Budget'!$E$35*'ENTER DATA HERE - Budget'!$E$20 -> 0 | J150: =VLOOKUP(CONCATENATE($A150,J$4),$S$4:$W$75,4,FALSE)*'ENTER DATA HERE - Budget'!$E$35*'ENTER DATA HERE - Budget'!$E$20 -> 0 | K150: =VLOOKUP(CONCATENATE($A150,K$4),$S$4:$W$75,4,FALSE)*'ENTER DATA HERE - Budget'!$E$35*'ENTER DATA HERE - Budget'!$E$20 -> 0 | L150: =VLOOKUP(CONCATENATE($A150,L$4),$S$4:$W$75,4,FALSE)*'ENTER DATA HERE - Budget'!$E$35*'ENTER DATA HERE - Budget'!$E$20 -> 0 | M150: =VLOOKUP(CONCATENATE($A150,M$4),$S$4:$W$75,4,FALSE)*'ENTER DATA HERE - Budget'!$E$35*'ENTER DATA HERE - Budget'!$E$20 -> 0 | N150: =VLOOKUP(CONCATENATE($A150,N$4),$S$4:$W$75,4,FALSE)*'ENTER DATA HERE - Budget'!$E$35*'ENTER DATA HERE - Budget'!$E$20 -> 0 | O150: =SUM(C150:N150) -> 4405.95375
A151: 5 | B151: Feed | C151: =VLOOKUP(CONCATENATE($A151,C$4),$S$4:$X$75,6,FALSE)*('ENTER DATA HERE - Budget'!$G$36/('ENTER DATA HERE - Budget'!$E$10*'ENTER DATA HERE - Budget'!$E$8)) -> 685.6765523 | D151: =VLOOKUP(CONCATENATE($A151,D$4),$S$4:$X$75,6,FALSE)*('ENTER DATA HERE - Budget'!$G$36/('ENTER DATA HERE - Budget'!$E$10*'ENTER DATA HERE - Budget'!$E$8)) -> 685.6765523 | E151: =VLOOKUP(CONCATENATE($A151,E$4),$S$4:$X$75,6,FALSE)*('ENTER DATA HERE - Budget'!$G$36/('ENTER DATA HERE - Budget'!$E$10*'ENTER DATA HERE - Budget'!$E$8)) -> 685.6765523 | F151: =VLOOKUP(CONCATENATE($A151,F$4),$S$4:$X$75,6,FALSE)*('ENTER DATA HERE - Budget'!$G$36/('ENTER DATA HERE - Budget'!$E$10*'ENTER DATA HERE - Budget'!$E$8)) -> 914.2354031 | G151: =VLOOKUP(CONCATENATE($A151,G$4),$S$4:$X$75,6,FALSE)*('ENTER DATA HERE - Budget'!$G$36/('ENTER DATA HERE - Budget'!$E$10*'ENTER DATA HERE - Budget'!$E$8)) -> 1142.794254 | H151: =VLOOKUP(CONCATENATE($A151,H$4),$S$4:$X$75,6,FALSE)*('ENTER DATA HERE - Budget'!$G$36/('ENTER DATA HERE - Budget'!$E$10*'ENTER DATA HERE - Budget'!$E$8)) -> 1371.353105 | I151: =VLOOKUP(CONCATENATE($A151,I$4),$S$4:$X$75,6,FALSE)*('ENTER DATA HERE - Budget'!$G$36/('ENTER DATA HERE - Budget'!$E$10*'ENTER DATA HERE - Budget'!$E$8)) -> 1371.353105 | J151: =VLOOKUP(CONCATENATE($A151,J$4),$S$4:$X$75,6,FALSE)*('ENTER DATA HERE - Budget'!$G$36/('ENTER DATA HERE - Budget'!$E$10*'ENTER DATA HERE - Budget'!$E$8)) -> 1371.353105 | K151: =VLOOKUP(CONCATENATE($A151,K$4),$S$4:$X$75,6,FALSE)*('ENTER DATA HERE - Budget'!$G$36/('ENTER DATA HERE - Budget'!$E$10*'ENTER DATA HERE - Budget'!$E$8)) -> 1371.353105 | L151: =VLOOKUP(CONCATENATE($A151,L$4),$S$4:$X$75,6,FALSE)*('ENTER DATA HERE - Budget'!$G$36/('ENTER DATA HERE - Budget'!$E$10*'ENTER DATA HERE - Budget'!$E$8)) -> 1142.794254 | M151: =VLOOKUP(CONCATENATE($A151,M$4),$S$4:$X$75,6,FALSE)*('ENTER DATA HERE - Budget'!$G$36/('ENTER DATA HERE - Budget'!$E$10*'ENTER DATA HERE - Budget'!$E$8)) -> 914.2354031 | N151: =VLOOKUP(CONCATENATE($A151,N$4),$S$4:$X$75,6,FALSE)*('ENTER DATA HERE - Budget'!$G$36/('ENTER DATA HERE - Budget'!$E$10*'ENTER DATA HERE - Budget'!$E$8)) -> 685.6765523 | O151: 12342.17794
A152: 5 | B152: Chemicals | C152: =VLOOKUP(CONCATENATE($A152,C$4),$S$4:$X$75,6,FALSE)*('ENTER DATA HERE - Budget'!$G$37/('ENTER DATA HERE - Budget'!$E$10*'ENTER DATA HERE - Budget'!$E$8)) -> 41.66666667 | D152: =VLOOKUP(CONCATENATE($A152,D$4),$S$4:$X$75,6,FALSE)*('ENTER DATA HERE - Budget'!$G$37/('ENTER DATA HERE - Budget'!$E$10*'ENTER DATA HERE - Budget'!$E$8)) -> 41.66666667 | E152: =VLOOKUP(CONCATENATE($A152,E$4),$S$4:$X$75,6,FALSE)*('ENTER DATA HERE - Budget'!$G$37/('ENTER DATA HERE - Budget'!$E$10*'ENTER DATA HERE - Budget'!$E$8)) -> 41.66666667 | F152: =VLOOKUP(CONCATENATE($A152,F$4),$S$4:$X$75,6,FALSE)*('ENTER DATA HERE - Budget'!$G$37/('ENTER DATA HERE - Budget'!$E$10*'ENTER DATA HERE - Budget'!$E$8)) -> 55.55555556 | G152: =VLOOKUP(CONCATENATE($A152,G$4),$S$4:$X$75,6,FALSE)*('ENTER DATA HERE - Budget'!$G$37/('ENTER DATA HERE - Budget'!$E$10*'ENTER DATA HERE - Budget'!$E$8)) -> 69.44444444 | H152: =VLOOKUP(CONCATENATE($A152,H$4),$S$4:$X$75,6,FALSE)*('ENTER DATA HERE - Budget'!$G$37/('ENTER DATA HERE - Budget'!$E$10*'ENTER DATA HERE - Budget'!$E$8)) -> 83.33333333 | I152: =VLOOKUP(CONCATENATE($A152,I$4),$S$4:$X$75,6,FALSE)*('ENTER DATA HERE - Budget'!$G$37/('ENTER DATA HERE - Budget'!$E$10*'ENTER DATA HERE - Budget'!$E$8)) -> 83.33333333 | J152: =VLOOKUP(CONCATENATE($A152,J$4),$S$4:$X$75,6,FALSE)*('ENTER DATA HERE - Budget'!$G$37/('ENTER DATA HERE - Budget'!$E$10*'ENTER DATA HERE - Budget'!$E$8)) -> 83.33333333 | K152: =VLOOKUP(CONCATENATE($A152,K$4),$S$4:$X$75,6,FALSE)*('ENTER DATA HERE - Budget'!$G$37/('ENTER DATA HERE - Budget'!$E$10*'ENTER DATA HERE - Budget'!$E$8)) -> 83.33333333 | L152: =VLOOKUP(CONCATENATE($A152,L$4),$S$4:$X$75,6,FALSE)*('ENTER DATA HERE - Budget'!$G$37/('ENTER DATA HERE - Budget'!$E$10*'ENTER DATA HERE - Budget'!$E$8)) -> 69.44444444 | M152: =VLOOKUP(CONCATENATE($A152,M$4),$S$4:$X$75,6,FALSE)*('ENTER DATA HERE - Budget'!$G$37/('ENTER DATA HERE - Budget'!$E$10*'ENTER DATA HERE - Budget'!$E$8)) -> 55.55555556 | N152: =VLOOKUP(CONCATENATE($A152,N$4),$S$4:$X$75,6,FALSE)*('ENTER DATA HERE - Budget'!$G$37/('ENTER DATA HERE - Budget'!$E$10*'ENTER DATA HERE - Budget'!$E$8)) -> 41.66666667 | O152: 750
A153: 5 | B153: Electricity Cost | C153: 0 | D153: 0 | E153: 0 | F153: 0 | G153: ='ENTER DATA HERE - Budget'!$H$38/5 -> 216 | H153: ='ENTER DATA HERE - Budget'!$H$38/5 -> 216 | I153: ='ENTER DATA HERE - Budget'!$H$38/5 -> 216 | J153: ='ENTER DATA HERE - Budget'!$H$38/5 -> 216 | K153: ='ENTER DATA HERE - Budget'!$H$38/5 -> 216 | L153: 0 | M153: 0 | N153: 0 | O153: 1080
A154: 5 | B154: Hired Labor - Hours | C154: ='ENTER DATA HERE - Budget'!$H$39/12 -> 0 | D154: ='ENTER DATA HERE - Budget'!$H$39/12 -> 0 | E154: ='ENTER DATA HERE - Budget'!$H$39/12 -> 0 | F154: ='ENTER DATA HERE - Budget'!$H$39/12 -> 0 | G154: ='ENTER DATA HERE - Budget'!$H$39/12 -> 0 | H154: ='ENTER DATA HERE - Budget'!$H$39/12 -> 0 | I154: ='ENTER DATA HERE - Budget'!$H$39/12 -> 0 | J154: ='ENTER DATA HERE - Budget'!$H$39/12 -> 0 | K154: ='ENTER DATA HERE - Budget'!$H$39/12 -> 0 | L154: ='ENTER DATA HERE - Budget'!$H$39/12 -> 0 | M154: ='ENTER DATA HERE - Budget'!$H$39/12 -> 0 | N154: ='ENTER DATA HERE - Budget'!$H$39/12 -> 0 | O154: 0
A155: 5 | B155: Harvesting | C155: =VLOOKUP(CONCATENATE($A155,C$4),$S$4:$W$75,5,FALSE)*'ENTER DATA HERE - Budget'!$E$40*'ENTER DATA HERE - Budget'!$F$40/'ENTER DATA HERE - Budget'!$E$10 -> 0 | D155: =VLOOKUP(CONCATENATE($A155,D$4),$S$4:$W$75,5,FALSE)*'ENTER DATA HERE - Budget'!$E$40*'ENTER DATA HERE - Budget'!$F$40/'ENTER DATA HERE - Budget'!$E$10 -> 0 | E155: =VLOOKUP(CONCATENATE($A155,E$4),$S$4:$W$75,5,FALSE)*'ENTER DATA HERE - Budget'!$E$40*'ENTER DATA HERE - Budget'!$F$40/'ENTER DATA HERE - Budget'!$E$10 -> 0 | F155: =VLOOKUP(CONCATENATE($A155,F$4),$S$4:$W$75,5,FALSE)*'ENTER DATA HERE - Budget'!$E$40*'ENTER DATA HERE - Budget'!$F$40/'ENTER DATA HERE - Budget'!$E$10 -> 0 | G155: =VLOOKUP(CONCATENATE($A155,G$4),$S$4:$W$75,5,FALSE)*'ENTER DATA HERE - Budget'!$E$40*'ENTER DATA HERE - Budget'!$F$40/'ENTER DATA HERE - Budget'!$E$10 -> 0 | H155: =VLOOKUP(CONCATENATE($A155,H$4),$S$4:$W$75,5,FALSE)*'ENTER DATA HERE - Budget'!$E$40*'ENTER DATA HERE - Budget'!$F$40/'ENTER DATA HERE - Budget'!$E$10 -> 0 | I155: =VLOOKUP(CONCATENATE($A155,I$4),$S$4:$W$75,5,FALSE)*'ENTER DATA HERE - Budget'!$E$40*'ENTER DATA HERE - Budget'!$F$40/'ENTER DATA HERE - Budget'!$E$10 -> 0 | J155: =VLOOKUP(CONCATENATE($A155,J$4),$S$4:$W$75,5,FALSE)*'ENTER DATA HERE - Budget'!$E$40*'ENTER DATA HERE - Budget'!$F$40/'ENTER DATA HERE - Budget'!$E$10 -> 0 | K155: =VLOOKUP(CONCATENATE($A155,K$4),$S$4:$W$75,5,FALSE)*'ENTER DATA HERE - Budget'!$E$40*'ENTER DATA HERE - Budget'!$F$40/'ENTER DATA HERE - Budget'!$E$10 -> 0 | L155: =VLOOKUP(CONCATENATE($A155,L$4),$S$4:$W$75,5,FALSE)*'ENTER DATA HERE - Budget'!$E$40*'ENTER DATA HERE - Budget'!$F$40/'ENTER DATA HERE - Budget'!$E$10 -> 249.6707125 | M155: =VLOOKUP(CONCATENATE($A155,M$4),$S$4:$W$75,5,FALSE)*'ENTER DATA HERE - Budget'!$E$40*'ENTER DATA HERE - Budget'!$F$40/'ENTER DATA HERE - Budget'!$E$10 -> 249.6707125 | N155: =VLOOKUP(CONCATENATE($A155,N$4),$S$4:$W$75,5,FALSE)*'ENTER DATA HERE - Budget'!$E$40*'ENTER DATA HERE - Budget'!$F$40/'ENTER DATA HERE - Budget'!$E$10 -> 249.6707125 | O155: 749.0121375
A156: 5 | B156: Transportation Costs of Fingerlings | C156: =VLOOKUP(CONCATENATE($A156,C$4),$S$4:$W$75,4,FALSE)*'ENTER DATA HERE - Budget'!$E$20*'ENTER DATA HERE - Budget'!$E$41 -> 0 | D156: =VLOOKUP(CONCATENATE($A156,D$4),$S$4:$W$75,4,FALSE)*'ENTER DATA HERE - Budget'!$E$20*'ENTER DATA HERE - Budget'!$E$41 -> 0 | E156: =VLOOKUP(CONCATENATE($A156,E$4),$S$4:$W$75,4,FALSE)*'ENTER DATA HERE - Budget'!$E$20*'ENTER DATA HERE - Budget'!$E$41 -> 0 | F156: =VLOOKUP(CONCATENATE($A156,F$4),$S$4:$W$75,4,FALSE)*'ENTER DATA HERE - Budget'!$E$20*'ENTER DATA HERE - Budget'!$E$41 -> 97.91008333 | G156: =VLOOKUP(CONCATENATE($A156,G$4),$S$4:$W$75,4,FALSE)*'ENTER DATA HERE - Budget'!$E$20*'ENTER DATA HERE - Budget'!$E$41 -> 97.91008333 | H156: =VLOOKUP(CONCATENATE($A156,H$4),$S$4:$W$75,4,FALSE)*'ENTER DATA HERE - Budget'!$E$20*'ENTER DATA HERE - Budget'!$E$41 -> 97.91008333 | I156: =VLOOKUP(CONCATENATE($A156,I$4),$S$4:$W$75,4,FALSE)*'ENTER DATA HERE - Budget'!$E$20*'ENTER DATA HERE - Budget'!$E$41 -> 0 | J156: =VLOOKUP(CONCATENATE($A156,J$4),$S$4:$W$75,4,FALSE)*'ENTER DATA HERE - Budget'!$E$20*'ENTER DATA HERE - Budget'!$E$41 -> 0 | K156: =VLOOKUP(CONCATENATE($A156,K$4),$S$4:$W$75,4,FALSE)*'ENTER DATA HERE - Budget'!$E$20*'ENTER DATA HERE - Budget'!$E$41 -> 0 | L156: =VLOOKUP(CONCATENATE($A156,L$4),$S$4:$W$75,4,FALSE)*'ENTER DATA HERE - Budget'!$E$20*'ENTER DATA HERE - Budget'!$E$41 -> 0 | M156: =VLOOKUP(CONCATENATE($A156,M$4),$S$4:$W$75,4,FALSE)*'ENTER DATA HERE - Budget'!$E$20*'ENTER DATA HERE - Budget'!$E$41 -> 0 | N156: =VLOOKUP(CONCATENATE($A156,N$4),$S$4:$W$75,4,FALSE)*'ENTER DATA HERE - Budget'!$E$20*'ENTER DATA HERE - Budget'!$E$41 -> 0 | O156: 293.73025
A157: 5 | B157: Transportation Costs to Market | C157: =VLOOKUP(CONCATENATE($A157,C$4),$S$4:$W$75,5,FALSE)*'ENTER DATA HERE - Budget'!$E$42*'ENTER DATA HERE - Budget'!$F$42/'ENTER DATA HERE - Budget'!$E$10 -> 0 | D157: =VLOOKUP(CONCATENATE($A157,D$4),$S$4:$W$75,5,FALSE)*'ENTER DATA HERE - Budget'!$E$42*'ENTER DATA HERE - Budget'!$F$42/'ENTER DATA HERE - Budget'!$E$10 -> 0 | E157: =VLOOKUP(CONCATENATE($A157,E$4),$S$4:$W$75,5,FALSE)*'ENTER DATA HERE - Budget'!$E$42*'ENTER DATA HERE - Budget'!$F$42/'ENTER DATA HERE - Budget'!$E$10 -> 0 | F157: =VLOOKUP(CONCATENATE($A157,F$4),$S$4:$W$75,5,FALSE)*'ENTER DATA HERE - Budget'!$E$42*'ENTER DATA HERE - Budget'!$F$42/'ENTER DATA HERE - Budget'!$E$10 -> 0 | G157: =VLOOKUP(CONCATENATE($A157,G$4),$S$4:$W$75,5,FALSE)*'ENTER DATA HERE - Budget'!$E$42*'ENTER DATA HERE - Budget'!$F$42/'ENTER DATA HERE - Budget'!$E$10 -> 0 | H157: =VLOOKUP(CONCATENATE($A157,H$4),$S$4:$W$75,5,FALSE)*'ENTER DATA HERE - Budget'!$E$42*'ENTER DATA HERE - Budget'!$F$42/'ENTER DATA HERE - Budget'!$E$10 -> 0 | I157: =VLOOKUP(CONCATENATE($A157,I$4),$S$4:$W$75,5,FALSE)*'ENTER DATA HERE - Budget'!$E$42*'ENTER DATA HERE - Budget'!$F$42/'ENTER DATA HERE - Budget'!$E$10 -> 0 | J157: =VLOOKUP(CONCATENATE($A157,J$4),$S$4:$W$75,5,FALSE)*'ENTER DATA HERE - Budget'!$E$42*'ENTER DATA HERE - Budget'!$F$42/'ENTER DATA HERE - Budget'!$E$10 -> 0 | K157: =VLOOKUP(CONCATENATE($A157,K$4),$S$4:$W$75,5,FALSE)*'ENTER DATA HERE - Budget'!$E$42*'ENTER DATA HERE - Budget'!$F$42/'ENTER DATA HERE - Budget'!$E$10 -> 0 | L157: =VLOOKUP(CONCATENATE($A157,L$4),$S$4:$W$75,5,FALSE)*'ENTER DATA HERE - Budget'!$E$42*'ENTER DATA HERE - Budget'!$F$42/'ENTER DATA HERE - Budget'!$E$10 -> 0 | M157: =VLOOKUP(CONCATENATE($A157,M$4),$S$4:$W$75,5,FALSE)*'ENTER DATA HERE - Budget'!$E$42*'ENTER DATA HERE - Budget'!$F$42/'ENTER DATA HERE - Budget'!$E$10 -> 0 | N157: =VLOOKUP(CONCATENATE($A157,N$4),$S$4:$W$75,5,FALSE)*'ENTER DATA HERE - Budget'!$E$42*'ENTER DATA HERE - Budget'!$F$42/'ENTER DATA HERE - Budget'!$E$10 -> 0 | O157: 0
A158: 5 | B158: Miscellaneous | C158: =VLOOKUP(CONCATENATE($A158,C$4),$S$4:$X$75,6,FALSE)*('ENTER DATA HERE - Budget'!$G$43/('ENTER DATA HERE - Budget'!$E$10*'ENTER DATA HERE - Budget'!$E$8)) -> 166.6666667 | D158: =VLOOKUP(CONCATENATE($A158,D$4),$S$4:$X$75,6,FALSE)*('ENTER DATA HERE - Budget'!$G$43/('ENTER DATA HERE - Budget'!$E$10*'ENTER DATA HERE - Budget'!$E$8)) -> 166.6666667 | E158: =VLOOKUP(CONCATENATE($A158,E$4),$S$4:$X$75,6,FALSE)*('ENTER DATA HERE - Budget'!$G$43/('ENTER DATA HERE - Budget'!$E$10*'ENTER DATA HERE - Budget'!$E$8)) -> 166.6666667 | F158: =VLOOKUP(CONCATENATE($A158,F$4),$S$4:$X$75,6,FALSE)*('ENTER DATA HERE - Budget'!$G$43/('ENTER DATA HERE - Budget'!$E$10*'ENTER DATA HERE - Budget'!$E$8)) -> 222.2222222 | G158: =VLOOKUP(CONCATENATE($A158,G$4),$S$4:$X$75,6,FALSE)*('ENTER DATA HERE - Budget'!$G$43/('ENTER DATA HERE - Budget'!$E$10*'ENTER DATA HERE - Budget'!$E$8)) -> 277.7777778 | H158: =VLOOKUP(CONCATENATE($A158,H$4),$S$4:$X$75,6,FALSE)*('ENTER DATA HERE - Budget'!$G$43/('ENTER DATA HERE - Budget'!$E$10*'ENTER DATA HERE - Budget'!$E$8)) -> 333.3333333 | I158: =VLOOKUP(CONCATENATE($A158,I$4),$S$4:$X$75,6,FALSE)*('ENTER DATA HERE - Budget'!$G$43/('ENTER DATA HERE - Budget'!$E$10*'ENTER DATA HERE - Budget'!$E$8)) -> 333.3333333 | J158: =VLOOKUP(CONCATENATE($A158,J$4),$S$4:$X$75,6,FALSE)*('ENTER DATA HERE - Budget'!$G$43/('ENTER DATA HERE - Budget'!$E$10*'ENTER DATA HERE - Budget'!$E$8)) -> 333.3333333 | K158: =VLOOKUP(CONCATENATE($A158,K$4),$S$4:$X$75,6,FALSE)*('ENTER DATA HERE - Budget'!$G$43/('ENTER DATA HERE - Budget'!$E$10*'ENTER DATA HERE - Budget'!$E$8)) -> 333.3333333 | L158: =VLOOKUP(CONCATENATE($A158,L$4),$S$4:$X$75,6,FALSE)*('ENTER DATA HERE - Budget'!$G$43/('ENTER DATA HERE - Budget'!$E$10*'ENTER DATA HERE - Budget'!$E$8)) -> 277.7777778 | M158: =VLOOKUP(CONCATENATE($A158,M$4),$S$4:$X$75,6,FALSE)*('ENTER DATA HERE - Budget'!$G$43/('ENTER DATA HERE - Budget'!$E$10*'ENTER DATA HERE - Budget'!$E$8)) -> 222.2222222 | N158: =VLOOKUP(CONCATENATE($A158,N$4),$S$4:$X$75,6,FALSE)*('ENTER DATA HERE - Budget'!$G$43/('ENTER DATA HERE - Budget'!$E$10*'ENTER DATA HERE - Budget'!$E$8)) -> 166.6666667 | O158: 3000
A159: 5 | B159: Total Variable Cost | C159: =SUM(C150:C158) -> 894.0098857 | D159: 894.0098857 | E159: 894.0098857 | F159: 2758.574514 | G159: 3272.577809 | H159: 3570.581105 | I159: 2004.019771 | J159: 2004.019771 | K159: 2004.019771 | L159: 1739.687189 | M159: 1441.683893 | N159: 1143.680598 | O159: 22620.87408
A160: 5
A161: 5 | B161: Overhead Costs
A162: 5 | B162: Repair and maintenance | C162: ='ENTER DATA HERE - Budget'!$H$48/12 -> 15.60441953 | D162: ='ENTER DATA HERE - Budget'!$H$48/12 -> 15.60441953 | E162: ='ENTER DATA HERE - Budget'!$H$48/12 -> 15.60441953 | F162: ='ENTER DATA HERE - Budget'!$H$48/12 -> 15.60441953 | G162: ='ENTER DATA HERE - Budget'!$H$48/12 -> 15.60441953 | H162: ='ENTER DATA HERE - Budget'!$H$48/12 -> 15.60441953 | I162: ='ENTER DATA HERE - Budget'!$H$48/12 -> 15.60441953 | J162: ='ENTER DATA HERE - Budget'!$H$48/12 -> 15.60441953 | K162: ='ENTER DATA HERE - Budget'!$H$48/12 -> 15.60441953 | L162: ='ENTER DATA HERE - Budget'!$H$48/12 -> 15.60441953 | M162: ='ENTER DATA HERE - Budget'!$H$48/12 -> 15.60441953 | N162: ='ENTER DATA HERE - Budget'!$H$48/12 -> 15.60441953 | O162: =SUM(C162:N162) -> 187.2530344
A163: 5 | B163: Water acres rental | C163: ='ENTER DATA HERE - Budget'!$H$49/12 -> 78.02209766 | D163: ='ENTER DATA HERE - Budget'!$H$49/12 -> 78.02209766 | E163: ='ENTER DATA HERE - Budget'!$H$49/12 -> 78.02209766 | F163: ='ENTER DATA HERE - Budget'!$H$49/12 -> 78.02209766 | G163: ='ENTER DATA HERE - Budget'!$H$49/12 -> 78.02209766 | H163: ='ENTER DATA HERE - Budget'!$H$49/12 -> 78.02209766 | I163: ='ENTER DATA HERE - Budget'!$H$49/12 -> 78.02209766 | J163: ='ENTER DATA HERE - Budget'!$H$49/12 -> 78.02209766 | K163: ='ENTER DATA HERE - Budget'!$H$49/12 -> 78.02209766 | L163: ='ENTER DATA HERE - Budget'!$H$49/12 -> 78.02209766 | M163: ='ENTER DATA HERE - Budget'!$H$49/12 -> 78.02209766 | N163: ='ENTER DATA HERE - Budget'!$H$49/12 -> 78.02209766 | O163: 936.2651719
A164: 5 | B164: Insurance | C164: ='ENTER DATA HERE - Budget'!$H$50/12 -> 83.33333333 | D164: ='ENTER DATA HERE - Budget'!$H$50/12 -> 83.33333333 | E164: ='ENTER DATA HERE - Budget'!$H$50/12 -> 83.33333333 | F164: ='ENTER DATA HERE - Budget'!$H$50/12 -> 83.33333333 | G164: ='ENTER DATA HERE - Budget'!$H$50/12 -> 83.33333333 | H164: ='ENTER DATA HERE - Budget'!$H$50/12 -> 83.33333333 | I164: ='ENTER DATA HERE - Budget'!$H$50/12 -> 83.33333333 | J164: ='ENTER DATA HERE - Budget'!$H$50/12 -> 83.33333333 | K164: ='ENTER DATA HERE - Budget'!$H$50/12 -> 83.33333333 | L164: ='ENTER DATA HERE - Budget'!$H$50/12 -> 83.33333333 | M164: ='ENTER DATA HERE - Budget'!$H$50/12 -> 83.33333333 | N164: ='ENTER DATA HERE - Budget'!$H$50/12 -> 83.33333333 | O164: 1000
A165: 5 | B165: Adminstration/Management - legal fees, professional services, etc. (% of total overhead) | C165: ='ENTER DATA HERE - Budget'!$H$51/12 -> 94.253642 | D165: ='ENTER DATA HERE - Budget'!$H$51/12 -> 94.253642 | E165: ='ENTER DATA HERE - Budget'!$H$51/12 -> 94.253642 | F165: ='ENTER DATA HERE - Budget'!$H$51/12 -> 94.253642 | G165: ='ENTER DATA HERE - Budget'!$H$51/12 -> 94.253642 | H165: ='ENTER DATA HERE - Budget'!$H$51/12 -> 94.253642 | I165: ='ENTER DATA HERE - Budget'!$H$51/12 -> 94.253642 | J165: ='ENTER DATA HERE - Budget'!$H$51/12 -> 94.253642 | K165: ='ENTER DATA HERE - Budget'!$H$51/12 -> 94.253642 | L165: ='ENTER DATA HERE - Budget'!$H$51/12 -> 94.253642 | M165: ='ENTER DATA HERE - Budget'!$H$51/12 -> 94.253642 | N165: ='ENTER DATA HERE - Budget'!$H$51/12 -> 94.253642 | O165: 1131.043704
A166: 5 | B166: Other 1 | C166: ='ENTER DATA HERE - Budget'!$E$52/12 -> 0 | D166: ='ENTER DATA HERE - Budget'!$E$52/12 -> 0 | E166: ='ENTER DATA HERE - Budget'!$E$52/12 -> 0 | F166: ='ENTER DATA HERE - Budget'!$E$52/12 -> 0 | G166: ='ENTER DATA HERE - Budget'!$E$52/12 -> 0 | H166: ='ENTER DATA HERE - Budget'!$E$52/12 -> 0 | I166: ='ENTER DATA HERE - Budget'!$E$52/12 -> 0 | J166: ='ENTER DATA HERE - Budget'!$E$52/12 -> 0 | K166: ='ENTER DATA HERE - Budget'!$E$52/12 -> 0 | L166: ='ENTER DATA HERE - Budget'!$E$52/12 -> 0 | M166: ='ENTER DATA HERE - Budget'!$E$52/12 -> 0 | N166: ='ENTER DATA HERE - Budget'!$E$52/12 -> 0 | O166: 0
A167: 5 | B167: Other 2 | C167: ='ENTER DATA HERE - Budget'!$E$53/12 -> 0 | D167: ='ENTER DATA HERE - Budget'!$E$53/12 -> 0 | E167: ='ENTER DATA HERE - Budget'!$E$53/12 -> 0 | F167: ='ENTER DATA HERE - Budget'!$E$53/12 -> 0 | G167: ='ENTER DATA HERE - Budget'!$E$53/12 -> 0 | H167: ='ENTER DATA HERE - Budget'!$E$53/12 -> 0 | I167: ='ENTER DATA HERE - Budget'!$E$53/12 -> 0 | J167: ='ENTER DATA HERE - Budget'!$E$53/12 -> 0 | K167: ='ENTER DATA HERE - Budget'!$E$53/12 -> 0 | L167: ='ENTER DATA HERE - Budget'!$E$53/12 -> 0 | M167: ='ENTER DATA HERE - Budget'!$E$53/12 -> 0 | N167: ='ENTER DATA HERE - Budget'!$E$53/12 -> 0 | O167: 0
A168: 5 | B168: Total Overhead Costs | C168: =SUM(C162:C167) -> 271.2134925 | D168: 271.2134925 | E168: 271.2134925 | F168: 271.2134925 | G168: 271.2134925 | H168: 271.2134925 | I168: 271.2134925 | J168: 271.2134925 | K168: 271.2134925 | L168: 271.2134925 | M168: 271.2134925 | N168: 271.2134925 | O168: 3254.56191
A169: 5
A170: 5 | B170: Loan | C170: ='ENTER DATA HERE - Budget'!$H$80/12 -> 429.8649588 | D170: ='ENTER DATA HERE - Budget'!$H$80/12 -> 429.8649588 | E170: ='ENTER DATA HERE - Budget'!$H$80/12 -> 429.8649588 | F170: ='ENTER DATA HERE - Budget'!$H$80/12 -> 429.8649588 | G170: ='ENTER DATA HERE - Budget'!$H$80/12 -> 429.8649588 | H170: ='ENTER DATA HERE - Budget'!$H$80/12 -> 429.8649588 | I170: ='ENTER DATA HERE - Budget'!$H$80/12 -> 429.8649588 | J170: ='ENTER DATA HERE - Budget'!$H$80/12 -> 429.8649588 | K170: ='ENTER DATA HERE - Budget'!$H$80/12 -> 429.8649588 | L170: ='ENTER DATA HERE - Budget'!$H$80/12 -> 429.8649588 | M170: ='ENTER DATA HERE - Budget'!$H$80/12 -> 429.8649588 | N170: ='ENTER DATA HERE - Budget'!$H$80/12 -> 429.8649588 | O170: =SUM(C170:N170) -> 5158.379506
A171: 5
A172: 5 | B172: Max Cash Flow | C172: =C147-SUM(C159,C168,C170) -> -1595.088337 | D172: =D147-SUM(D159,D168,D170) -> -1595.088337 | E172: -1595.088337 | F172: -3459.652966 | G172: -3973.656261 | H172: -4271.659556 | I172: -2705.098223 | J172: -2705.098223 | K172: -2705.098223 | L172: 28768.07342 | M172: 29066.07672 | N172: 29364.08001
A173: 5 | B173: Min Cash Flow | C173: =C146-SUM(C159,C168,C170) -> -1595.088337 | D173: =D146-SUM(D159,D168,D170) -> -1595.088337 | E173: -1595.088337 | F173: -3459.652966 | G173: -3973.656261 | H173: -4271.659556 | I173: -2705.098223 | J173: -2705.098223 | K173: -2705.098223 | L173: -2440.76564 | M173: -2142.762345 | N173: -1844.75905
B175: YEAR 6 | C175: YEAR 6
C176: January | D176: February | E176: March | F176: April | G176: May | H176: June | I176: July | J176: August | K176: September | L176: October | M176: November | N176: December
A177: =$A$172+1 -> 6 | B177: Gross Receipts:
A178: =$A$172+1 -> 6 | B178: Max Fish sale | C178: =VLOOKUP(CONCATENATE($A178,C$4),$S$4:$W$123,5,FALSE)*'ENTER DATA HERE - Budget'!$E$20*'ENTER DATA HERE - Budget'!$E$23*'ENTER DATA HERE - Budget'!$E$25*'ENTER DATA HERE - Budget'!$E$30 -> 0 | D178: =VLOOKUP(CONCATENATE($A178,D$4),$S$4:$W$75,5,FALSE)*'ENTER DATA HERE - Budget'!$E$20*'ENTER DATA HERE - Budget'!$E$23*'ENTER DATA HERE - Budget'!$E$25*'ENTER DATA HERE - Budget'!$E$30 -> 0 | E178: =VLOOKUP(CONCATENATE($A178,E$4),$S$4:$W$75,5,FALSE)*'ENTER DATA HERE - Budget'!$E$20*'ENTER DATA HERE - Budget'!$E$23*'ENTER DATA HERE - Budget'!$E$25*'ENTER DATA HERE - Budget'!$E$30 -> 0 | F178: =VLOOKUP(CONCATENATE($A178,F$4),$S$4:$W$75,5,FALSE)*'ENTER DATA HERE - Budget'!$E$20*'ENTER DATA HERE - Budget'!$E$23*'ENTER DATA HERE - Budget'!$E$25*'ENTER DATA HERE - Budget'!$E$30 -> 0 | G178: =VLOOKUP(CONCATENATE($A178,G$4),$S$4:$W$75,5,FALSE)*'ENTER DATA HERE - Budget'!$E$20*'ENTER DATA HERE - Budget'!$E$23*'ENTER DATA HERE - Budget'!$E$25*'ENTER DATA HERE - Budget'!$E$30 -> 0 | H178: =VLOOKUP(CONCATENATE($A178,H$4),$S$4:$W$75,5,FALSE)*'ENTER DATA HERE - Budget'!$E$20*'ENTER DATA HERE - Budget'!$E$23*'ENTER DATA HERE - Budget'!$E$25*'ENTER DATA HERE - Budget'!$E$30 -> 0 | I178: =VLOOKUP(CONCATENATE($A178,I$4),$S$4:$W$75,5,FALSE)*'ENTER DATA HERE - Budget'!$E$20*'ENTER DATA HERE - Budget'!$E$23*'ENTER DATA HERE - Budget'!$E$25*'ENTER DATA HERE - Budget'!$E$30 -> 0 | J178: =VLOOKUP(CONCATENATE($A178,J$4),$S$4:$W$75,5,FALSE)*'ENTER DATA HERE - Budget'!$E$20*'ENTER DATA HERE - Budget'!$E$23*'ENTER DATA HERE - Budget'!$E$25*'ENTER DATA HERE - Budget'!$E$30 -> 0 | K178: =VLOOKUP(CONCATENATE($A178,K$4),$S$4:$W$75,5,FALSE)*'ENTER DATA HERE - Budget'!$E$20*'ENTER DATA HERE - Budget'!$E$23*'ENTER DATA HERE - Budget'!$E$25*'ENTER DATA HERE - Budget'!$E$30 -> 0 | L178: =VLOOKUP(CONCATENATE($A178,L$4),$S$4:$W$75,5,FALSE)*'ENTER DATA HERE - Budget'!$E$20*'ENTER DATA HERE - Budget'!$E$23*'ENTER DATA HERE - Budget'!$E$25*'ENTER DATA HERE - Budget'!$E$30 -> 18725.30344 | M178: =VLOOKUP(CONCATENATE($A178,M$4),$S$4:$W$75,5,FALSE)*'ENTER DATA HERE - Budget'!$E$20*'ENTER DATA HERE - Budget'!$E$23*'ENTER DATA HERE - Budget'!$E$25*'ENTER DATA HERE - Budget'!$E$30 -> 18725.30344 | N178: =VLOOKUP(CONCATENATE($A178,N$4),$S$4:$W$75,5,FALSE)*'ENTER DATA HERE - Budget'!$E$20*'ENTER DATA HERE - Budget'!$E$23*'ENTER DATA HERE - Budget'!$E$25*'ENTER DATA HERE - Budget'!$E$30 -> 18725.30344 | O178: =SUM(C178:N178) -> 56175.91031
A179: 6 | B179: Min Fish Sale | C179: =VLOOKUP(CONCATENATE($A179,C$4),$S$4:$W$75,5,FALSE)*'ENTER DATA HERE - Budget'!$E$20*'ENTER DATA HERE - Budget'!$E$22*'ENTER DATA HERE - Budget'!$E$25*'ENTER DATA HERE - Budget'!$E$30 -> 0 | D179: =VLOOKUP(CONCATENATE($A179,D$4),$S$4:$W$75,5,FALSE)*'ENTER DATA HERE - Budget'!$E$20*'ENTER DATA HERE - Budget'!$E$22*'ENTER DATA HERE - Budget'!$E$25*'ENTER DATA HERE - Budget'!$E$30 -> 0 | E179: =VLOOKUP(CONCATENATE($A179,E$4),$S$4:$W$75,5,FALSE)*'ENTER DATA HERE - Budget'!$E$20*'ENTER DATA HERE - Budget'!$E$22*'ENTER DATA HERE - Budget'!$E$25*'ENTER DATA HERE - Budget'!$E$30 -> 0 | F179: =VLOOKUP(CONCATENATE($A179,F$4),$S$4:$W$75,5,FALSE)*'ENTER DATA HERE - Budget'!$E$20*'ENTER DATA HERE - Budget'!$E$22*'ENTER DATA HERE - Budget'!$E$25*'ENTER DATA HERE - Budget'!$E$30 -> 0 | G179: =VLOOKUP(CONCATENATE($A179,G$4),$S$4:$W$75,5,FALSE)*'ENTER DATA HERE - Budget'!$E$20*'ENTER DATA HERE - Budget'!$E$22*'ENTER DATA HERE - Budget'!$E$25*'ENTER DATA HERE - Budget'!$E$30 -> 0 | H179: =VLOOKUP(CONCATENATE($A179,H$4),$S$4:$W$75,5,FALSE)*'ENTER DATA HERE - Budget'!$E$20*'ENTER DATA HERE - Budget'!$E$22*'ENTER DATA HERE - Budget'!$E$25*'ENTER DATA HERE - Budget'!$E$30 -> 0 | I179: =VLOOKUP(CONCATENATE($A179,I$4),$S$4:$W$75,5,FALSE)*'ENTER DATA HERE - Budget'!$E$20*'ENTER DATA HERE - Budget'!$E$22*'ENTER DATA HERE - Budget'!$E$25*'ENTER DATA HERE - Budget'!$E$30 -> 0 | J179: =VLOOKUP(CONCATENATE($A179,J$4),$S$4:$W$75,5,FALSE)*'ENTER DATA HERE - Budget'!$E$20*'ENTER DATA HERE - Budget'!$E$22*'ENTER DATA HERE - Budget'!$E$25*'ENTER DATA HERE - Budget'!$E$30 -> 0 | K179: =VLOOKUP(CONCATENATE($A179,K$4),$S$4:$W$75,5,FALSE)*'ENTER DATA HERE - Budget'!$E$20*'ENTER DATA HERE - Budget'!$E$22*'ENTER DATA HERE - Budget'!$E$25*'ENTER DATA HERE - Budget'!$E$30 -> 0 | L179: =VLOOKUP(CONCATENATE($A179,L$4),$S$4:$W$75,5,FALSE)*'ENTER DATA HERE - Budget'!$E$20*'ENTER DATA HERE - Budget'!$E$22*'ENTER DATA HERE - Budget'!$E$25*'ENTER DATA HERE - Budget'!$E$30 -> 12483.53563 | M179: =VLOOKUP(CONCATENATE($A179,M$4),$S$4:$W$75,5,FALSE)*'ENTER DATA HERE - Budget'!$E$20*'ENTER DATA HERE - Budget'!$E$22*'ENTER DATA HERE - Budget'!$E$25*'ENTER DATA HERE - Budget'!$E$30 -> 12483.53563 | N179: =VLOOKUP(CONCATENATE($A179,N$4),$S$4:$W$75,5,FALSE)*'ENTER DATA HERE - Budget'!$E$20*'ENTER DATA HERE - Budget'!$E$22*'ENTER DATA HERE - Budget'!$E$25*'ENTER DATA HERE - Budget'!$E$30 -> 12483.53563 | O179: =SUM(C179:N179) -> 37450.60687
A180: 6 | B180: Miscellaneous Receipts | C180: ='ENTER DATA HERE - Budget'!$E$31/12 -> 0 | D180: ='ENTER DATA HERE - Budget'!$E$31/12 -> 0 | E180: ='ENTER DATA HERE - Budget'!$E$31/12 -> 0 | F180: ='ENTER DATA HERE - Budget'!$E$31/12 -> 0 | G180: ='ENTER DATA HERE - Budget'!$E$31/12 -> 0 | H180: ='ENTER DATA HERE - Budget'!$E$31/12 -> 0 | I180: ='ENTER DATA HERE - Budget'!$E$31/12 -> 0 | J180: ='ENTER DATA HERE - Budget'!$E$31/12 -> 0 | K180: ='ENTER DATA HERE - Budget'!$E$31/12 -> 0 | L180: ='ENTER DATA HERE - Budget'!$E$31/12 -> 0 | M180: ='ENTER DATA HERE - Budget'!$E$31/12 -> 0 | N180: ='ENTER DATA HERE - Budget'!$E$31/12 -> 0 | O180: =SUM(C180:N180) -> 0
A181: 6 | B181: Total Receipts | C181: =SUM(C178:C180) -> 0 | D181: =SUM(D178:D180) -> 0 | E181: 0 | F181: 0 | G181: 0 | H181: 0 | I181: 0 | J181: 0 | K181: 0 | L181: 31208.83906 | M181: 31208.83906 | N181: 31208.83906 | O181: =SUM(C181:N181) -> 93626.51719
A182: 6
A183: 6 | B183: Variable Inputs:
A184: 6 | B184: Fingerlings (4") | C184: =VLOOKUP(CONCATENATE($A184,C$4),$S$4:$W$75,4,FALSE)*'ENTER DATA HERE - Budget'!$E$35*'ENTER DATA HERE - Budget'!$E$20 -> 0 | D184: =VLOOKUP(CONCATENATE($A184,D$4),$S$4:$W$75,4,FALSE)*'ENTER DATA HERE - Budget'!$E$35*'ENTER DATA HERE - Budget'!$E$20 -> 0 | E184: =VLOOKUP(CONCATENATE($A184,E$4),$S$4:$W$75,4,FALSE)*'ENTER DATA HERE - Budget'!$E$35*'ENTER DATA HERE - Budget'!$E$20 -> 0 | F184: =VLOOKUP(CONCATENATE($A184,F$4),$S$4:$W$75,4,FALSE)*'ENTER DATA HERE - Budget'!$E$35*'ENTER DATA HERE - Budget'!$E$20 -> 1468.65125 | G184: =VLOOKUP(CONCATENATE($A184,G$4),$S$4:$W$75,4,FALSE)*'ENTER DATA HERE - Budget'!$E$35*'ENTER DATA HERE - Budget'!$E$20 -> 1468.65125 | H184: =VLOOKUP(CONCATENATE($A184,H$4),$S$4:$W$75,4,FALSE)*'ENTER DATA HERE - Budget'!$E$35*'ENTER DATA HERE - Budget'!$E$20 -> 1468.65125 | I184: =VLOOKUP(CONCATENATE($A184,I$4),$S$4:$W$75,4,FALSE)*'ENTER DATA HERE - Budget'!$E$35*'ENTER DATA HERE - Budget'!$E$20 -> 0 | J184: =VLOOKUP(CONCATENATE($A184,J$4),$S$4:$W$75,4,FALSE)*'ENTER DATA HERE - Budget'!$E$35*'ENTER DATA HERE - Budget'!$E$20 -> 0 | K184: =VLOOKUP(CONCATENATE($A184,K$4),$S$4:$W$75,4,FALSE)*'ENTER DATA HERE - Budget'!$E$35*'ENTER DATA HERE - Budget'!$E$20 -> 0 | L184: =VLOOKUP(CONCATENATE($A184,L$4),$S$4:$W$75,4,FALSE)*'ENTER DATA HERE - Budget'!$E$35*'ENTER DATA HERE - Budget'!$E$20 -> 0 | M184: =VLOOKUP(CONCATENATE($A184,M$4),$S$4:$W$75,4,FALSE)*'ENTER DATA HERE - Budget'!$E$35*'ENTER DATA HERE - Budget'!$E$20 -> 0 | N184: =VLOOKUP(CONCATENATE($A184,N$4),$S$4:$W$75,4,FALSE)*'ENTER DATA HERE - Budget'!$E$35*'ENTER DATA HERE - Budget'!$E$20 -> 0 | O184: =SUM(C184:N184) -> 4405.95375
A185: 6 | B185: Feed | C185: =VLOOKUP(CONCATENATE($A185,C$4),$S$4:$X$75,6,FALSE)*('ENTER DATA HERE - Budget'!$G$36/('ENTER DATA HERE - Budget'!$E$10*'ENTER DATA HERE - Budget'!$E$8)) -> 685.6765523 | D185: =VLOOKUP(CONCATENATE($A185,D$4),$S$4:$X$75,6,FALSE)*('ENTER DATA HERE - Budget'!$G$36/('ENTER DATA HERE - Budget'!$E$10*'ENTER DATA HERE - Budget'!$E$8)) -> 685.6765523 | E185: =VLOOKUP(CONCATENATE($A185,E$4),$S$4:$X$75,6,FALSE)*('ENTER DATA HERE - Budget'!$G$36/('ENTER DATA HERE - Budget'!$E$10*'ENTER DATA HERE - Budget'!$E$8)) -> 685.6765523 | F185: =VLOOKUP(CONCATENATE($A185,F$4),$S$4:$X$75,6,FALSE)*('ENTER DATA HERE - Budget'!$G$36/('ENTER DATA HERE - Budget'!$E$10*'ENTER DATA HERE - Budget'!$E$8)) -> 914.2354031 | G185: =VLOOKUP(CONCATENATE($A185,G$4),$S$4:$X$75,6,FALSE)*('ENTER DATA HERE - Budget'!$G$36/('ENTER DATA HERE - Budget'!$E$10*'ENTER DATA HERE - Budget'!$E$8)) -> 1142.794254 | H185: =VLOOKUP(CONCATENATE($A185,H$4),$S$4:$X$75,6,FALSE)*('ENTER DATA HERE - Budget'!$G$36/('ENTER DATA HERE - Budget'!$E$10*'ENTER DATA HERE - Budget'!$E$8)) -> 1371.353105 | I185: =VLOOKUP(CONCATENATE($A185,I$4),$S$4:$X$75,6,FALSE)*('ENTER DATA HERE - Budget'!$G$36/('ENTER DATA HERE - Budget'!$E$10*'ENTER DATA HERE - Budget'!$E$8)) -> 1371.353105 | J185: =VLOOKUP(CONCATENATE($A185,J$4),$S$4:$X$75,6,FALSE)*('ENTER DATA HERE - Budget'!$G$36/('ENTER DATA HERE - Budget'!$E$10*'ENTER DATA HERE - Budget'!$E$8)) -> 1371.353105 | K185: =VLOOKUP(CONCATENATE($A185,K$4),$S$4:$X$75,6,FALSE)*('ENTER DATA HERE - Budget'!$G$36/('ENTER DATA HERE - Budget'!$E$10*'ENTER DATA HERE - Budget'!$E$8)) -> 1371.353105 | L185: =VLOOKUP(CONCATENATE($A185,L$4),$S$4:$X$75,6,FALSE)*('ENTER DATA HERE - Budget'!$G$36/('ENTER DATA HERE - Budget'!$E$10*'ENTER DATA HERE - Budget'!$E$8)) -> 1142.794254 | M185: =VLOOKUP(CONCATENATE($A185,M$4),$S$4:$X$75,6,FALSE)*('ENTER DATA HERE - Budget'!$G$36/('ENTER DATA HERE - Budget'!$E$10*'ENTER DATA HERE - Budget'!$E$8)) -> 914.2354031 | N185: =VLOOKUP(CONCATENATE($A185,N$4),$S$4:$X$75,6,FALSE)*('ENTER DATA HERE - Budget'!$G$36/('ENTER DATA HERE - Budget'!$E$10*'ENTER DATA HERE - Budget'!$E$8)) -> 685.6765523 | O185: 12342.17794
A186: 6 | B186: Chemicals | C186: =VLOOKUP(CONCATENATE($A186,C$4),$S$4:$X$75,6,FALSE)*('ENTER DATA HERE - Budget'!$G$37/('ENTER DATA HERE - Budget'!$E$10*'ENTER DATA HERE - Budget'!$E$8)) -> 41.66666667 | D186: =VLOOKUP(CONCATENATE($A186,D$4),$S$4:$X$75,6,FALSE)*('ENTER DATA HERE - Budget'!$G$37/('ENTER DATA HERE - Budget'!$E$10*'ENTER DATA HERE - Budget'!$E$8)) -> 41.66666667 | E186: =VLOOKUP(CONCATENATE($A186,E$4),$S$4:$X$75,6,FALSE)*('ENTER DATA HERE - Budget'!$G$37/('ENTER DATA HERE - Budget'!$E$10*'ENTER DATA HERE - Budget'!$E$8)) -> 41.66666667 | F186: =VLOOKUP(CONCATENATE($A186,F$4),$S$4:$X$75,6,FALSE)*('ENTER DATA HERE - Budget'!$G$37/('ENTER DATA HERE - Budget'!$E$10*'ENTER DATA HERE - Budget'!$E$8)) -> 55.55555556 | G186: =VLOOKUP(CONCATENATE($A186,G$4),$S$4:$X$75,6,FALSE)*('ENTER DATA HERE - Budget'!$G$37/('ENTER DATA HERE - Budget'!$E$10*'ENTER DATA HERE - Budget'!$E$8)) -> 69.44444444 | H186: =VLOOKUP(CONCATENATE($A186,H$4),$S$4:$X$75,6,FALSE)*('ENTER DATA HERE - Budget'!$G$37/('ENTER DATA HERE - Budget'!$E$10*'ENTER DATA HERE - Budget'!$E$8)) -> 83.33333333 | I186: =VLOOKUP(CONCATENATE($A186,I$4),$S$4:$X$75,6,FALSE)*('ENTER DATA HERE - Budget'!$G$37/('ENTER DATA HERE - Budget'!$E$10*'ENTER DATA HERE - Budget'!$E$8)) -> 83.33333333 | J186: =VLOOKUP(CONCATENATE($A186,J$4),$S$4:$X$75,6,FALSE)*('ENTER DATA HERE - Budget'!$G$37/('ENTER DATA HERE - Budget'!$E$10*'ENTER DATA HERE - Budget'!$E$8)) -> 83.33333333 | K186: =VLOOKUP(CONCATENATE($A186,K$4),$S$4:$X$75,6,FALSE)*('ENTER DATA HERE - Budget'!$G$37/('ENTER DATA HERE - Budget'!$E$10*'ENTER DATA HERE - Budget'!$E$8)) -> 83.33333333 | L186: =VLOOKUP(CONCATENATE($A186,L$4),$S$4:$X$75,6,FALSE)*('ENTER DATA HERE - Budget'!$G$37/('ENTER DATA HERE - Budget'!$E$10*'ENTER DATA HERE - Budget'!$E$8)) -> 69.44444444 | M186: =VLOOKUP(CONCATENATE($A186,M$4),$S$4:$X$75,6,FALSE)*('ENTER DATA HERE - Budget'!$G$37/('ENTER DATA HERE - Budget'!$E$10*'ENTER DATA HERE - Budget'!$E$8)) -> 55.55555556 | N186: =VLOOKUP(CONCATENATE($A186,N$4),$S$4:$X$75,6,FALSE)*('ENTER DATA HERE - Budget'!$G$37/('ENTER DATA HERE - Budget'!$E$10*'ENTER DATA HERE - Budget'!$E$8)) -> 41.66666667 | O186: 750
A187: 6 | B187: Electricity Cost | C187: 0 | D187: 0 | E187: 0 | F187: 0 | G187: ='ENTER DATA HERE - Budget'!$H$38/5 -> 216 | H187: ='ENTER DATA HERE - Budget'!$H$38/5 -> 216 | I187: ='ENTER DATA HERE - Budget'!$H$38/5 -> 216 | J187: ='ENTER DATA HERE - Budget'!$H$38/5 -> 216 | K187: ='ENTER DATA HERE - Budget'!$H$38/5 -> 216 | L187: 0 | M187: 0 | N187: 0 | O187: 1080
A188: 6 | B188: Hired Labor - Hours | C188: ='ENTER DATA HERE - Budget'!$H$39/12 -> 0 | D188: ='ENTER DATA HERE - Budget'!$H$39/12 -> 0 | E188: ='ENTER DATA HERE - Budget'!$H$39/12 -> 0 | F188: ='ENTER DATA HERE - Budget'!$H$39/12 -> 0 | G188: ='ENTER DATA HERE - Budget'!$H$39/12 -> 0 | H188: ='ENTER DATA HERE - Budget'!$H$39/12 -> 0 | I188: ='ENTER DATA HERE - Budget'!$H$39/12 -> 0 | J188: ='ENTER DATA HERE - Budget'!$H$39/12 -> 0 | K188: ='ENTER DATA HERE - Budget'!$H$39/12 -> 0 | L188: ='ENTER DATA HERE - Budget'!$H$39/12 -> 0 | M188: ='ENTER DATA HERE - Budget'!$H$39/12 -> 0 | N188: ='ENTER DATA HERE - Budget'!$H$39/12 -> 0 | O188: 0
A189: 6 | B189: Harvesting | C189: =VLOOKUP(CONCATENATE($A189,C$4),$S$4:$W$75,5,FALSE)*'ENTER DATA HERE - Budget'!$E$40*'ENTER DATA HERE - Budget'!$F$40/'ENTER DATA HERE - Budget'!$E$10 -> 0 | D189: =VLOOKUP(CONCATENATE($A189,D$4),$S$4:$W$75,5,FALSE)*'ENTER DATA HERE - Budget'!$E$40*'ENTER DATA HERE - Budget'!$F$40/'ENTER DATA HERE - Budget'!$E$10 -> 0 | E189: =VLOOKUP(CONCATENATE($A189,E$4),$S$4:$W$75,5,FALSE)*'ENTER DATA HERE - Budget'!$E$40*'ENTER DATA HERE - Budget'!$F$40/'ENTER DATA HERE - Budget'!$E$10 -> 0 | F189: =VLOOKUP(CONCATENATE($A189,F$4),$S$4:$W$75,5,FALSE)*'ENTER DATA HERE - Budget'!$E$40*'ENTER DATA HERE - Budget'!$F$40/'ENTER DATA HERE - Budget'!$E$10 -> 0 | G189: =VLOOKUP(CONCATENATE($A189,G$4),$S$4:$W$75,5,FALSE)*'ENTER DATA HERE - Budget'!$E$40*'ENTER DATA HERE - Budget'!$F$40/'ENTER DATA HERE - Budget'!$E$10 -> 0 | H189: =VLOOKUP(CONCATENATE($A189,H$4),$S$4:$W$75,5,FALSE)*'ENTER DATA HERE - Budget'!$E$40*'ENTER DATA HERE - Budget'!$F$40/'ENTER DATA HERE - Budget'!$E$10 -> 0 | I189: =VLOOKUP(CONCATENATE($A189,I$4),$S$4:$W$75,5,FALSE)*'ENTER DATA HERE - Budget'!$E$40*'ENTER DATA HERE - Budget'!$F$40/'ENTER DATA HERE - Budget'!$E$10 -> 0 | J189: =VLOOKUP(CONCATENATE($A189,J$4),$S$4:$W$75,5,FALSE)*'ENTER DATA HERE - Budget'!$E$40*'ENTER DATA HERE - Budget'!$F$40/'ENTER DATA HERE - Budget'!$E$10 -> 0 | K189: =VLOOKUP(CONCATENATE($A189,K$4),$S$4:$W$75,5,FALSE)*'ENTER DATA HERE - Budget'!$E$40*'ENTER DATA HERE - Budget'!$F$40/'ENTER DATA HERE - Budget'!$E$10 -> 0 | L189: =VLOOKUP(CONCATENATE($A189,L$4),$S$4:$W$75,5,FALSE)*'ENTER DATA HERE - Budget'!$E$40*'ENTER DATA HERE - Budget'!$F$40/'ENTER DATA HERE - Budget'!$E$10 -> 249.6707125 | M189: =VLOOKUP(CONCATENATE($A189,M$4),$S$4:$W$75,5,FALSE)*'ENTER DATA HERE - Budget'!$E$40*'ENTER DATA HERE - Budget'!$F$40/'ENTER DATA HERE - Budget'!$E$10 -> 249.6707125 | N189: =VLOOKUP(CONCATENATE($A189,N$4),$S$4:$W$75,5,FALSE)*'ENTER DATA HERE - Budget'!$E$40*'ENTER DATA HERE - Budget'!$F$40/'ENTER DATA HERE - Budget'!$E$10 -> 249.6707125 | O189: 749.0121375
A190: 6 | B190: Transportation Costs of Fingerlings | C190: =VLOOKUP(CONCATENATE($A190,C$4),$S$4:$W$75,4,FALSE)*'ENTER DATA HERE - Budget'!$E$20*'ENTER DATA HERE - Budget'!$E$41 -> 0 | D190: =VLOOKUP(CONCATENATE($A190,D$4),$S$4:$W$75,4,FALSE)*'ENTER DATA HERE - Budget'!$E$20*'ENTER DATA HERE - Budget'!$E$41 -> 0 | E190: =VLOOKUP(CONCATENATE($A190,E$4),$S$4:$W$75,4,FALSE)*'ENTER DATA HERE - Budget'!$E$20*'ENTER DATA HERE - Budget'!$E$41 -> 0 | F190: =VLOOKUP(CONCATENATE($A190,F$4),$S$4:$W$75,4,FALSE)*'ENTER DATA HERE - Budget'!$E$20*'ENTER DATA HERE - Budget'!$E$41 -> 97.91008333 | G190: =VLOOKUP(CONCATENATE($A190,G$4),$S$4:$W$75,4,FALSE)*'ENTER DATA HERE - Budget'!$E$20*'ENTER DATA HERE - Budget'!$E$41 -> 97.91008333 | H190: =VLOOKUP(CONCATENATE($A190,H$4),$S$4:$W$75,4,FALSE)*'ENTER DATA HERE - Budget'!$E$20*'ENTER DATA HERE - Budget'!$E$41 -> 97.91008333 | I190: =VLOOKUP(CONCATENATE($A190,I$4),$S$4:$W$75,4,FALSE)*'ENTER DATA HERE - Budget'!$E$20*'ENTER DATA HERE - Budget'!$E$41 -> 0 | J190: =VLOOKUP(CONCATENATE($A190,J$4),$S$4:$W$75,4,FALSE)*'ENTER DATA HERE - Budget'!$E$20*'ENTER DATA HERE - Budget'!$E$41 -> 0 | K190: =VLOOKUP(CONCATENATE($A190,K$4),$S$4:$W$75,4,FALSE)*'ENTER DATA HERE - Budget'!$E$20*'ENTER DATA HERE - Budget'!$E$41 -> 0 | L190: =VLOOKUP(CONCATENATE($A190,L$4),$S$4:$W$75,4,FALSE)*'ENTER DATA HERE - Budget'!$E$20*'ENTER DATA HERE - Budget'!$E$41 -> 0 | M190: =VLOOKUP(CONCATENATE($A190,M$4),$S$4:$W$75,4,FALSE)*'ENTER DATA HERE - Budget'!$E$20*'ENTER DATA HERE - Budget'!$E$41 -> 0 | N190: =VLOOKUP(CONCATENATE($A190,N$4),$S$4:$W$75,4,FALSE)*'ENTER DATA HERE - Budget'!$E$20*'ENTER DATA HERE - Budget'!$E$41 -> 0 | O190: 293.73025
A191: 6 | B191: Transportation Costs to Market | C191: =VLOOKUP(CONCATENATE($A191,C$4),$S$4:$W$75,5,FALSE)*'ENTER DATA HERE - Budget'!$E$42*'ENTER DATA HERE - Budget'!$F$42/'ENTER DATA HERE - Budget'!$E$10 -> 0 | D191: =VLOOKUP(CONCATENATE($A191,D$4),$S$4:$W$75,5,FALSE)*'ENTER DATA HERE - Budget'!$E$42*'ENTER DATA HERE - Budget'!$F$42/'ENTER DATA HERE - Budget'!$E$10 -> 0 | E191: =VLOOKUP(CONCATENATE($A191,E$4),$S$4:$W$75,5,FALSE)*'ENTER DATA HERE - Budget'!$E$42*'ENTER DATA HERE - Budget'!$F$42/'ENTER DATA HERE - Budget'!$E$10 -> 0 | F191: =VLOOKUP(CONCATENATE($A191,F$4),$S$4:$W$75,5,FALSE)*'ENTER DATA HERE - Budget'!$E$42*'ENTER DATA HERE - Budget'!$F$42/'ENTER DATA HERE - Budget'!$E$10 -> 0 | G191: =VLOOKUP(CONCATENATE($A191,G$4),$S$4:$W$75,5,FALSE)*'ENTER DATA HERE - Budget'!$E$42*'ENTER DATA HERE - Budget'!$F$42/'ENTER DATA HERE - Budget'!$E$10 -> 0 | H191: =VLOOKUP(CONCATENATE($A191,H$4),$S$4:$W$75,5,FALSE)*'ENTER DATA HERE - Budget'!$E$42*'ENTER DATA HERE - Budget'!$F$42/'ENTER DATA HERE - Budget'!$E$10 -> 0 | I191: =VLOOKUP(CONCATENATE($A191,I$4),$S$4:$W$75,5,FALSE)*'ENTER DATA HERE - Budget'!$E$42*'ENTER DATA HERE - Budget'!$F$42/'ENTER DATA HERE - Budget'!$E$10 -> 0 | J191: =VLOOKUP(CONCATENATE($A191,J$4),$S$4:$W$75,5,FALSE)*'ENTER DATA HERE - Budget'!$E$42*'ENTER DATA HERE - Budget'!$F$42/'ENTER DATA HERE - Budget'!$E$10 -> 0 | K191: =VLOOKUP(CONCATENATE($A191,K$4),$S$4:$W$75,5,FALSE)*'ENTER DATA HERE - Budget'!$E$42*'ENTER DATA HERE - Budget'!$F$42/'ENTER DATA HERE - Budget'!$E$10 -> 0 | L191: =VLOOKUP(CONCATENATE($A191,L$4),$S$4:$W$75,5,FALSE)*'ENTER DATA HERE - Budget'!$E$42*'ENTER DATA HERE - Budget'!$F$42/'ENTER DATA HERE - Budget'!$E$10 -> 0 | M191: =VLOOKUP(CONCATENATE($A191,M$4),$S$4:$W$75,5,FALSE)*'ENTER DATA HERE - Budget'!$E$42*'ENTER DATA HERE - Budget'!$F$42/'ENTER DATA HERE - Budget'!$E$10 -> 0 | N191: =VLOOKUP(CONCATENATE($A191,N$4),$S$4:$W$75,5,FALSE)*'ENTER DATA HERE - Budget'!$E$42*'ENTER DATA HERE - Budget'!$F$42/'ENTER DATA HERE - Budget'!$E$10 -> 0 | O191: 0
A192: 6 | B192: Miscellaneous | C192: =VLOOKUP(CONCATENATE($A192,C$4),$S$4:$X$75,6,FALSE)*('ENTER DATA HERE - Budget'!$G$43/('ENTER DATA HERE - Budget'!$E$10*'ENTER DATA HERE - Budget'!$E$8)) -> 166.6666667 | D192: =VLOOKUP(CONCATENATE($A192,D$4),$S$4:$X$75,6,FALSE)*('ENTER DATA HERE - Budget'!$G$43/('ENTER DATA HERE - Budget'!$E$10*'ENTER DATA HERE - Budget'!$E$8)) -> 166.6666667 | E192: =VLOOKUP(CONCATENATE($A192,E$4),$S$4:$X$75,6,FALSE)*('ENTER DATA HERE - Budget'!$G$43/('ENTER DATA HERE - Budget'!$E$10*'ENTER DATA HERE - Budget'!$E$8)) -> 166.6666667 | F192: =VLOOKUP(CONCATENATE($A192,F$4),$S$4:$X$75,6,FALSE)*('ENTER DATA HERE - Budget'!$G$43/('ENTER DATA HERE - Budget'!$E$10*'ENTER DATA HERE - Budget'!$E$8)) -> 222.2222222 | G192: =VLOOKUP(CONCATENATE($A192,G$4),$S$4:$X$75,6,FALSE)*('ENTER DATA HERE - Budget'!$G$43/('ENTER DATA HERE - Budget'!$E$10*'ENTER DATA HERE - Budget'!$E$8)) -> 277.7777778 | H192: =VLOOKUP(CONCATENATE($A192,H$4),$S$4:$X$75,6,FALSE)*('ENTER DATA HERE - Budget'!$G$43/('ENTER DATA HERE - Budget'!$E$10*'ENTER DATA HERE - Budget'!$E$8)) -> 333.3333333 | I192: =VLOOKUP(CONCATENATE($A192,I$4),$S$4:$X$75,6,FALSE)*('ENTER DATA HERE - Budget'!$G$43/('ENTER DATA HERE - Budget'!$E$10*'ENTER DATA HERE - Budget'!$E$8)) -> 333.3333333 | J192: =VLOOKUP(CONCATENATE($A192,J$4),$S$4:$X$75,6,FALSE)*('ENTER DATA HERE - Budget'!$G$43/('ENTER DATA HERE - Budget'!$E$10*'ENTER DATA HERE - Budget'!$E$8)) -> 333.3333333 | K192: =VLOOKUP(CONCATENATE($A192,K$4),$S$4:$X$75,6,FALSE)*('ENTER DATA HERE - Budget'!$G$43/('ENTER DATA HERE - Budget'!$E$10*'ENTER DATA HERE - Budget'!$E$8)) -> 333.3333333 | L192: =VLOOKUP(CONCATENATE($A192,L$4),$S$4:$X$75,6,FALSE)*('ENTER DATA HERE - Budget'!$G$43/('ENTER DATA HERE - Budget'!$E$10*'ENTER DATA HERE - Budget'!$E$8)) -> 277.7777778 | M192: =VLOOKUP(CONCATENATE($A192,M$4),$S$4:$X$75,6,FALSE)*('ENTER DATA HERE - Budget'!$G$43/('ENTER DATA HERE - Budget'!$E$10*'ENTER DATA HERE - Budget'!$E$8)) -> 222.2222222 | N192: =VLOOKUP(CONCATENATE($A192,N$4),$S$4:$X$75,6,FALSE)*('ENTER DATA HERE - Budget'!$G$43/('ENTER DATA HERE - Budget'!$E$10*'ENTER DATA HERE - Budget'!$E$8)) -> 166.6666667 | O192: 3000
A193: 6 | B193: Total Variable Cost | C193: =SUM(C184:C192) -> 894.0098857 | D193: =SUM(D184:D192) -> 894.0098857 | E193: 894.0098857 | F193: 2758.574514 | G193: 3272.577809 | H193: 3570.581105 | I193: 2004.019771 | J193: 2004.019771 | K193: 2004.019771 | L193: 1739.687189 | M193: 1441.683893 | N193: 1143.680598 | O193: 22620.87408
A194: 6
A195: 6 | B195: Overhead Costs
A196: 6 | B196: Repair and maintenance | C196: ='ENTER DATA HERE - Budget'!$H$48/12 -> 15.60441953 | D196: ='ENTER DATA HERE - Budget'!$H$48/12 -> 15.60441953 | E196: ='ENTER DATA HERE - Budget'!$H$48/12 -> 15.60441953 | F196: ='ENTER DATA HERE - Budget'!$H$48/12 -> 15.60441953 | G196: ='ENTER DATA HERE - Budget'!$H$48/12 -> 15.60441953 | H196: ='ENTER DATA HERE - Budget'!$H$48/12 -> 15.60441953 | I196: ='ENTER DATA HERE - Budget'!$H$48/12 -> 15.60441953 | J196: ='ENTER DATA HERE - Budget'!$H$48/12 -> 15.60441953 | K196: ='ENTER DATA HERE - Budget'!$H$48/12 -> 15.60441953 | L196: ='ENTER DATA HERE - Budget'!$H$48/12 -> 15.60441953 | M196: ='ENTER DATA HERE - Budget'!$H$48/12 -> 15.60441953 | N196: ='ENTER DATA HERE - Budget'!$H$48/12 -> 15.60441953 | O196: =SUM(C196:N196) -> 187.2530344
A197: 6 | B197: Water acres rental | C197: ='ENTER DATA HERE - Budget'!$H$49/12 -> 78.02209766 | D197: ='ENTER DATA HERE - Budget'!$H$49/12 -> 78.02209766 | E197: ='ENTER DATA HERE - Budget'!$H$49/12 -> 78.02209766 | F197: ='ENTER DATA HERE - Budget'!$H$49/12 -> 78.02209766 | G197: ='ENTER DATA HERE - Budget'!$H$49/12 -> 78.02209766 | H197: ='ENTER DATA HERE - Budget'!$H$49/12 -> 78.02209766 | I197: ='ENTER DATA HERE - Budget'!$H$49/12 -> 78.02209766 | J197: ='ENTER DATA HERE - Budget'!$H$49/12 -> 78.02209766 | K197: ='ENTER DATA HERE - Budget'!$H$49/12 -> 78.02209766 | L197: ='ENTER DATA HERE - Budget'!$H$49/12 -> 78.02209766 | M197: ='ENTER DATA HERE - Budget'!$H$49/12 -> 78.02209766 | N197: ='ENTER DATA HERE - Budget'!$H$49/12 -> 78.02209766 | O197: 936.2651719
A198: 6 | B198: Insurance | C198: ='ENTER DATA HERE - Budget'!$H$50/12 -> 83.33333333 | D198: ='ENTER DATA HERE - Budget'!$H$50/12 -> 83.33333333 | E198: ='ENTER DATA HERE - Budget'!$H$50/12 -> 83.33333333 | F198: ='ENTER DATA HERE - Budget'!$H$50/12 -> 83.33333333 | G198: ='ENTER DATA HERE - Budget'!$H$50/12 -> 83.33333333 | H198: ='ENTER DATA HERE - Budget'!$H$50/12 -> 83.33333333 | I198: ='ENTER DATA HERE - Budget'!$H$50/12 -> 83.33333333 | J198: ='ENTER DATA HERE - Budget'!$H$50/12 -> 83.33333333 | K198: ='ENTER DATA HERE - Budget'!$H$50/12 -> 83.33333333 | L198: ='ENTER DATA HERE - Budget'!$H$50/12 -> 83.33333333 | M198: ='ENTER DATA HERE - Budget'!$H$50/12 -> 83.33333333 | N198: ='ENTER DATA HERE - Budget'!$H$50/12 -> 83.33333333 | O198: 1000
A199: 6 | B199: Adminstration/Management - legal fees, professional services, etc. (% of total overhead) | C199: ='ENTER DATA HERE - Budget'!$H$51/12 -> 94.253642 | D199: ='ENTER DATA HERE - Budget'!$H$51/12 -> 94.253642 | E199: ='ENTER DATA HERE - Budget'!$H$51/12 -> 94.253642 | F199: ='ENTER DATA HERE - Budget'!$H$51/12 -> 94.253642 | G199: ='ENTER DATA HERE - Budget'!$H$51/12 -> 94.253642 | H199: ='ENTER DATA HERE - Budget'!$H$51/12 -> 94.253642 | I199: ='ENTER DATA HERE - Budget'!$H$51/12 -> 94.253642 | J199: ='ENTER DATA HERE - Budget'!$H$51/12 -> 94.253642 | K199: ='ENTER DATA HERE - Budget'!$H$51/12 -> 94.253642 | L199: ='ENTER DATA HERE - Budget'!$H$51/12 -> 94.253642 | M199: ='ENTER DATA HERE - Budget'!$H$51/12 -> 94.253642 | N199: ='ENTER DATA HERE - Budget'!$H$51/12 -> 94.253642 | O199: 1131.043704
A200: 6 | B200: Other 1 | C200: ='ENTER DATA HERE - Budget'!$E$52/12 -> 0 | D200: ='ENTER DATA HERE - Budget'!$E$52/12 -> 0 | E200: ='ENTER DATA HERE - Budget'!$E$52/12 -> 0 | F200: ='ENTER DATA HERE - Budget'!$E$52/12 -> 0 | G200: ='ENTER DATA HERE - Budget'!$E$52/12 -> 0 | H200: ='ENTER DATA HERE - Budget'!$E$52/12 -> 0 | I200: ='ENTER DATA HERE - Budget'!$E$52/12 -> 0 | J200: ='ENTER DATA HERE - Budget'!$E$52/12 -> 0 | K200: ='ENTER DATA HERE - Budget'!$E$52/12 -> 0 | L200: ='ENTER DATA HERE - Budget'!$E$52/12 -> 0 | M200: ='ENTER DATA HERE - Budget'!$E$52/12 -> 0 | N200: ='ENTER DATA HERE - Budget'!$E$52/12 -> 0 | O200: 0
A201: 6 | B201: Other 2 | C201: ='ENTER DATA HERE - Budget'!$E$53/12 -> 0 | D201: ='ENTER DATA HERE - Budget'!$E$53/12 -> 0 | E201: ='ENTER DATA HERE - Budget'!$E$53/12 -> 0 | F201: ='ENTER DATA HERE - Budget'!$E$53/12 -> 0 | G201: ='ENTER DATA HERE - Budget'!$E$53/12 -> 0 | H201: ='ENTER DATA HERE - Budget'!$E$53/12 -> 0 | I201: ='ENTER DATA HERE - Budget'!$E$53/12 -> 0 | J201: ='ENTER DATA HERE - Budget'!$E$53/12 -> 0 | K201: ='ENTER DATA HERE - Budget'!$E$53/12 -> 0 | L201: ='ENTER DATA HERE - Budget'!$E$53/12 -> 0 | M201: ='ENTER DATA HERE - Budget'!$E$53/12 -> 0 | N201: ='ENTER DATA HERE - Budget'!$E$53/12 -> 0 | O201: 0
A202: 6 | B202: Total Overhead Costs | C202: =SUM(C196:C201) -> 271.2134925 | D202: =SUM(D196:D201) -> 271.2134925 | E202: 271.2134925 | F202: 271.2134925 | G202: 271.2134925 | H202: 271.2134925 | I202: 271.2134925 | J202: 271.2134925 | K202: 271.2134925 | L202: 271.2134925 | M202: 271.2134925 | N202: 271.2134925 | O202: 3254.56191
... 137 more rows

Sheet Income Statement
D1: INCOME STATEMENT
D2: Year 1 | E2: Year 2 | F2: Year 3 | G2: Year 4 | H2: Year 5 | I2: Year 6 | J2: Year 7 | K2: Year 8 | L2: Year 9 | M2: Year 10
B3: REVENUE
B4: Fish Sales | D4: ='Cash Flow'!$O$7 -> 0 | E4: ='Cash Flow'!$O$42 -> 56175.91031 | F4: ='Cash Flow'!$O$76 -> 56175.91031 | G4: ='Cash Flow'!$O$110 -> 56175.91031 | H4: ='Cash Flow'!$O$144 -> 56175.91031 | I4: ='Cash Flow'!$O$178 -> 56175.91031 | J4: ='Cash Flow'!$O$212 -> 56175.91031 | K4: ='Cash Flow'!O246 -> 56175.91031 | L4: ='Cash Flow'!O280 -> 56175.91031 | M4: ='Cash Flow'!O314 -> 56175.91031
B5: Other Income | D5: ='Cash Flow'!$O$9 -> 0 | E5: ='Cash Flow'!$O$44 -> 0 | F5: ='Cash Flow'!$O$78 -> 0 | G5: ='Cash Flow'!$O$112 -> 0 | H5: ='Cash Flow'!$O$146 -> 0 | I5: ='Cash Flow'!$O$180 -> 0 | J5: ='Cash Flow'!$O$214 -> 0 | K5: ='Cash Flow'!O248 -> 0 | L5: ='Cash Flow'!O282 -> 0 | M5: ='Cash Flow'!O316 -> 0
B6: Min Gross Revenue | D6: =SUM(D4:D5) -> 0 | E6: 56175.91031 | F6: 56175.91031 | G6: 56175.91031 | H6: 56175.91031 | I6: 56175.91031 | J6: 56175.91031 | K6: 56175.91031 | L6: 56175.91031 | M6: 56175.91031
B7: Max Gross Revenue | D7: ='Cash Flow'!$O$8+D5 -> 0 | E7: ='Cash Flow'!$O43+E5 -> 37450.60687 | F7: ='Cash Flow'!$O77+F5 -> 37450.60687 | G7: ='Cash Flow'!$O111+G5 -> 37450.60687 | H7: ='Cash Flow'!$O145+H5 -> 37450.60687 | I7: ='Cash Flow'!$O179+I5 -> 37450.60687 | J7: ='Cash Flow'!$O213+J5 -> 37450.60687 | K7: ='Cash Flow'!$O247+K5 -> 37450.60687 | L7: ='Cash Flow'!$O281+L5 -> 37450.60687 | M7: ='Cash Flow'!$O315+M5 -> 37450.60687
B8: EXPENSES
B9: Operating Expenses | D9: ='Cash Flow'!$O$23+'Cash Flow'!$O$32 -> 16186.325 | E9: ='Cash Flow'!$O$57+'Cash Flow'!$O$66 -> 25875.43599 | F9: ='Cash Flow'!$O$91+'Cash Flow'!$O$100 -> 25875.43599 | G9: ='Cash Flow'!$O$125+'Cash Flow'!$O$134 -> 25875.43599 | H9: ='Cash Flow'!$O$159+'Cash Flow'!$O$168 -> 25875.43599 | I9: ='Cash Flow'!$O$193+'Cash Flow'!$O$202 -> 25875.43599 | J9: ='Cash Flow'!O227+'Cash Flow'!O236 -> 25875.43599 | K9: ='Cash Flow'!O261+'Cash Flow'!O270 -> 25875.43599 | L9: ='Cash Flow'!O295+'Cash Flow'!O304 -> 25875.43599 | M9: ='Cash Flow'!O329+'Cash Flow'!O338 -> 25875.43599
B10: Depreciation | D10: ='ENTER DATA HERE - Budget'!$J$71 -> 4226.785714 | E10: ='ENTER DATA HERE - Budget'!$J$71 -> 4226.785714 | F10: ='ENTER DATA HERE - Budget'!$J$71 -> 4226.785714 | G10: ='ENTER DATA HERE - Budget'!$J$71 -> 4226.785714 | H10: ='ENTER DATA HERE - Budget'!$J$71 -> 4226.785714 | I10: ='ENTER DATA HERE - Budget'!$J$71 -> 4226.785714 | J10: ='ENTER DATA HERE - Budget'!$J$71 -> 4226.785714 | K10: ='ENTER DATA HERE - Budget'!$J$71 -> 4226.785714 | L10: ='ENTER DATA HERE - Budget'!$J$71 -> 4226.785714 | M10: ='ENTER DATA HERE - Budget'!$J$71 -> 4226.785714
B11: Interest | D11: ='ENTER DATA HERE - Budget'!N80 -> 1946 | E11: ='ENTER DATA HERE - Budget'!O80 -> 1721.133435 | F11: ='ENTER DATA HERE - Budget'!P80 -> 1480.52621 | G11: ='ENTER DATA HERE - Budget'!Q80 -> 1223.076479 | H11: ='ENTER DATA HERE - Budget'!R80 -> 947.605267 | I11: ='ENTER DATA HERE - Budget'!S$80 -> 652.8510703 | J11: ='ENTER DATA HERE - Budget'!T$80 -> 337.4640798 | K11: ='ENTER DATA HERE - Budget'!U$80 -> 0 | L11: ='ENTER DATA HERE - Budget'!V$80 -> 0 | M11: ='ENTER DATA HERE - Budget'!W$80 -> 0
B12: Principal+Interest | D12: ='ENTER DATA HERE - Budget'!N$81+D$11 -> 5917.428571 | E12: ='ENTER DATA HERE - Budget'!O$81+E$11 -> 5692.562006 | F12: ='ENTER DATA HERE - Budget'!P$81+F$11 -> 5451.954781 | G12: ='ENTER DATA HERE - Budget'!Q$81+G$11 -> 5194.50505 | H12: ='ENTER DATA HERE - Budget'!R$81+H$11 -> 4919.033838 | I12: ='ENTER DATA HERE - Budget'!S$81+I$11 -> 4624.279642 | J12: ='ENTER DATA HERE - Budget'!T$81+J$11 -> 4308.892651 | K12: ='ENTER DATA HERE - Budget'!U$81+K$11 -> 0 | L12: ='ENTER DATA HERE - Budget'!V$81+L$11 -> 0 | M12: ='ENTER DATA HERE - Budget'!W$81+M$11 -> 0
B13: Total Expenses | D13: =SUM(D$9:D$10) -> 20413.11071 | E13: =SUM(E$9:E$10) -> 30102.2217 | F13: 30102.2217 | G13: 30102.2217 | H13: 30102.2217 | I13: 30102.2217 | J13: 30102.2217 | K13: 30102.2217 | L13: 30102.2217 | M13: 30102.2217
B14: Total Expenses with Principal+interest | D14: =SUM(D$9:D$10)+D$12 -> 26330.53928 | E14: =SUM(E$9:E$10)+E$12 -> 35794.78371 | F14: 35554.17649 | G14: 35296.72675 | H14: 35021.25554 | I14: 34726.50135 | J14: 34411.11436 | K14: 30102.2217 | L14: 30102.2217 | M14: 30102.2217
B15: MIN. Net Farm Income from Operations | D15: =D6-D13 -> -20413.11071 | E15: 26073.68861 | F15: 26073.68861 | G15: 26073.68861 | H15: 26073.68861 | I15: 26073.68861 | J15: 26073.68861 | K15: 26073.68861 | L15: 26073.68861 | M15: 26073.68861
B16: MIN. Net Income with Loan | D16: =D$6-D$14 -> -26330.53928 | E16: 20381.1266 | F16: 20621.73383 | G16: 20879.18356 | H16: 21154.65477 | I16: 21449.40897 | J16: 21764.79596 | K16: 26073.68861 | L16: 26073.68861 | M16: 26073.68861
B17: Gain/Loss on Sale of Capital Assets
B19: MIN. Net Farm Income from Operations | D19: =D7-D13 -> -20413.11071 | E19: =E7-E13 -> 7348.385171 | F19: 7348.385171 | G19: 7348.385171 | H19: 7348.385171 | I19: 7348.385171 | J19: 7348.385171 | K19: 7348.385171 | L19: 7348.385171 | M19: 7348.385171
B20: MIN. Net Income with Loan | D20: =D$7-D$14 -> -26330.53928 | E20: 1655.823165 | F20: 1896.43039 | G20: 2153.88012 | H20: 2429.351332 | I20: 2724.105529 | J20: 3039.49252 | K20: 7348.385171 | L20: 7348.385171 | M20: 7348.385171
H24: Minimum Net Income Comparison Chart
H51: Maximum Net Income Comparison Chart

Sheet Sensitivity Analysis
B2: Sensitivity Analysis - Estimated Net Returns Per Cage Above Variable/Overhead Costs
A3: Feed price $/lb | B3: Sale price $/lb
B4: 2.8 | C4: 2.85 | D4: 2.9 | E4: 2.95 | F4: 3 | G4: 3.05 | H4: 3.1 | I4: 3.15 | J4: 3.2
A5: 0.35 | B5: =(B$4*'ENTER DATA HERE - Budget'!$F$30*'ENTER DATA HERE - Budget'!$E$9-('ENTER DATA HERE - Budget'!$H$45-'ENTER DATA HERE - Budget'!$H$36)-'ENTER DATA HERE - Budget'!$F$36*'ENTER DATA HERE - Budget'!$E$9*'Sensitivity Analysis'!$A5-'ENTER DATA HERE - Budget'!$H$54)/('ENTER DATA HERE - Budget'!$E$9*'ENTER DATA HERE - Budget'!$E$10) -> 976.6039948 | C5: =(C$4*'ENTER DATA HERE - Budget'!$F$30*'ENTER DATA HERE - Budget'!$E$9-('ENTER DATA HERE - Budget'!$H$45-'ENTER DATA HERE - Budget'!$H$36)-'ENTER DATA HERE - Budget'!$F$36*'ENTER DATA HERE - Budget'!$E$9*'Sensitivity Analysis'!$A5-'ENTER DATA HERE - Budget'!$H$54)/('ENTER DATA HERE - Budget'!$E$9*'ENTER DATA HERE - Budget'!$E$10) -> 1007.812834 | D5: =(D$4*'ENTER DATA HERE - Budget'!$F$30*'ENTER DATA HERE - Budget'!$E$9-('ENTER DATA HERE - Budget'!$H$45-'ENTER DATA HERE - Budget'!$H$36)-'ENTER DATA HERE - Budget'!$F$36*'ENTER DATA HERE - Budget'!$E$9*'Sensitivity Analysis'!$A5-'ENTER DATA HERE - Budget'!$H$54)/('ENTER DATA HERE - Budget'!$E$9*'ENTER DATA HERE - Budget'!$E$10) -> 1039.021673 | E5: =(E$4*'ENTER DATA HERE - Budget'!$F$30*'ENTER DATA HERE - Budget'!$E$9-('ENTER DATA HERE - Budget'!$H$45-'ENTER DATA HERE - Budget'!$H$36)-'ENTER DATA HERE - Budget'!$F$36*'ENTER DATA HERE - Budget'!$E$9*'Sensitivity Analysis'!$A5-'ENTER DATA HERE - Budget'!$H$54)/('ENTER DATA HERE - Budget'!$E$9*'ENTER DATA HERE - Budget'!$E$10) -> 1070.230512 | F5: =(F$4*'ENTER DATA HERE - Budget'!$F$30*'ENTER DATA HERE - Budget'!$E$9-('ENTER DATA HERE - Budget'!$H$45-'ENTER DATA HERE - Budget'!$H$36)-'ENTER DATA HERE - Budget'!$F$36*'ENTER DATA HERE - Budget'!$E$9*'Sensitivity Analysis'!$A5-'ENTER DATA HERE - Budget'!$H$54)/('ENTER DATA HERE - Budget'!$E$9*'ENTER DATA HERE - Budget'!$E$10) -> 1101.439351 | G5: =(G$4*'ENTER DATA HERE - Budget'!$F$30*'ENTER DATA HERE - Budget'!$E$9-('ENTER DATA HERE - Budget'!$H$45-'ENTER DATA HERE - Budget'!$H$36)-'ENTER DATA HERE - Budget'!$F$36*'ENTER DATA HERE - Budget'!$E$9*'Sensitivity Analysis'!$A5-'ENTER DATA HERE - Budget'!$H$54)/('ENTER DATA HERE - Budget'!$E$9*'ENTER DATA HERE - Budget'!$E$10) -> 1132.64819 | H5: =(H$4*'ENTER DATA HERE - Budget'!$F$30*'ENTER DATA HERE - Budget'!$E$9-('ENTER DATA HERE - Budget'!$H$45-'ENTER DATA HERE - Budget'!$H$36)-'ENTER DATA HERE - Budget'!$F$36*'ENTER DATA HERE - Budget'!$E$9*'Sensitivity Analysis'!$A5-'ENTER DATA HERE - Budget'!$H$54)/('ENTER DATA HERE - Budget'!$E$9*'ENTER DATA HERE - Budget'!$E$10) -> 1163.857029 | I5: =(I$4*'ENTER DATA HERE - Budget'!$F$30*'ENTER DATA HERE - Budget'!$E$9-('ENTER DATA HERE - Budget'!$H$45-'ENTER DATA HERE - Budget'!$H$36)-'ENTER DATA HERE - Budget'!$F$36*'ENTER DATA HERE - Budget'!$E$9*'Sensitivity Analysis'!$A5-'ENTER DATA HERE - Budget'!$H$54)/('ENTER DATA HERE - Budget'!$E$9*'ENTER DATA HERE - Budget'!$E$10) -> 1195.065868 | J5: =(J$4*'ENTER DATA HERE - Budget'!$F$30*'ENTER DATA HERE - Budget'!$E$9-('ENTER DATA HERE - Budget'!$H$45-'ENTER DATA HERE - Budget'!$H$36)-'ENTER DATA HERE - Budget'!$F$36*'ENTER DATA HERE - Budget'!$E$9*'Sensitivity Analysis'!$A5-'ENTER DATA HERE - Budget'!$H$54)/('ENTER DATA HERE - Budget'!$E$9*'ENTER DATA HERE - Budget'!$E$10) -> 1226.274707
A6: 0.4 | B6: =(B$4*'ENTER DATA HERE - Budget'!$F$30*'ENTER DATA HERE - Budget'!$E$9-('ENTER DATA HERE - Budget'!$H$45-'ENTER DATA HERE - Budget'!$H$36)-'ENTER DATA HERE - Budget'!$F$36*'ENTER DATA HERE - Budget'!$E$9*'Sensitivity Analysis'!$A6-'ENTER DATA HERE - Budget'!$H$54)/('ENTER DATA HERE - Budget'!$E$9*'ENTER DATA HERE - Budget'!$E$10) -> 930.8922247 | C6: =(C$4*'ENTER DATA HERE - Budget'!$F$30*'ENTER DATA HERE - Budget'!$E$9-('ENTER DATA HERE - Budget'!$H$45-'ENTER DATA HERE - Budget'!$H$36)-'ENTER DATA HERE - Budget'!$F$36*'ENTER DATA HERE - Budget'!$E$9*'Sensitivity Analysis'!$A6-'ENTER DATA HERE - Budget'!$H$54)/('ENTER DATA HERE - Budget'!$E$9*'ENTER DATA HERE - Budget'!$E$10) -> 962.1010637 | D6: =(D$4*'ENTER DATA HERE - Budget'!$F$30*'ENTER DATA HERE - Budget'!$E$9-('ENTER DATA HERE - Budget'!$H$45-'ENTER DATA HERE - Budget'!$H$36)-'ENTER DATA HERE - Budget'!$F$36*'ENTER DATA HERE - Budget'!$E$9*'Sensitivity Analysis'!$A6-'ENTER DATA HERE - Budget'!$H$54)/('ENTER DATA HERE - Budget'!$E$9*'ENTER DATA HERE - Budget'!$E$10) -> 993.3099028 | E6: =(E$4*'ENTER DATA HERE - Budget'!$F$30*'ENTER DATA HERE - Budget'!$E$9-('ENTER DATA HERE - Budget'!$H$45-'ENTER DATA HERE - Budget'!$H$36)-'ENTER DATA HERE - Budget'!$F$36*'ENTER DATA HERE - Budget'!$E$9*'Sensitivity Analysis'!$A6-'ENTER DATA HERE - Budget'!$H$54)/('ENTER DATA HERE - Budget'!$E$9*'ENTER DATA HERE - Budget'!$E$10) -> 1024.518742 | F6: =(F$4*'ENTER DATA HERE - Budget'!$F$30*'ENTER DATA HERE - Budget'!$E$9-('ENTER DATA HERE - Budget'!$H$45-'ENTER DATA HERE - Budget'!$H$36)-'ENTER DATA HERE - Budget'!$F$36*'ENTER DATA HERE - Budget'!$E$9*'Sensitivity Analysis'!$A6-'ENTER DATA HERE - Budget'!$H$54)/('ENTER DATA HERE - Budget'!$E$9*'ENTER DATA HERE - Budget'!$E$10) -> 1055.727581 | G6: =(G$4*'ENTER DATA HERE - Budget'!$F$30*'ENTER DATA HERE - Budget'!$E$9-('ENTER DATA HERE - Budget'!$H$45-'ENTER DATA HERE - Budget'!$H$36)-'ENTER DATA HERE - Budget'!$F$36*'ENTER DATA HERE - Budget'!$E$9*'Sensitivity Analysis'!$A6-'ENTER DATA HERE - Budget'!$H$54)/('ENTER DATA HERE - Budget'!$E$9*'ENTER DATA HERE - Budget'!$E$10) -> 1086.93642 | H6: =(H$4*'ENTER DATA HERE - Budget'!$F$30*'ENTER DATA HERE - Budget'!$E$9-('ENTER DATA HERE - Budget'!$H$45-'ENTER DATA HERE - Budget'!$H$36)-'ENTER DATA HERE - Budget'!$F$36*'ENTER DATA HERE - Budget'!$E$9*'Sensitivity Analysis'!$A6-'ENTER DATA HERE - Budget'!$H$54)/('ENTER DATA HERE - Budget'!$E$9*'ENTER DATA HERE - Budget'!$E$10) -> 1118.145259 | I6: =(I$4*'ENTER DATA HERE - Budget'!$F$30*'ENTER DATA HERE - Budget'!$E$9-('ENTER DATA HERE - Budget'!$H$45-'ENTER DATA HERE - Budget'!$H$36)-'ENTER DATA HERE - Budget'!$F$36*'ENTER DATA HERE - Budget'!$E$9*'Sensitivity Analysis'!$A6-'ENTER DATA HERE - Budget'!$H$54)/('ENTER DATA HERE - Budget'!$E$9*'ENTER DATA HERE - Budget'!$E$10) -> 1149.354098 | J6: =(J$4*'ENTER DATA HERE - Budget'!$F$30*'ENTER DATA HERE - Budget'!$E$9-('ENTER DATA HERE - Budget'!$H$45-'ENTER DATA HERE - Budget'!$H$36)-'ENTER DATA HERE - Budget'!$F$36*'ENTER DATA HERE - Budget'!$E$9*'Sensitivity Analysis'!$A6-'ENTER DATA HERE - Budget'!$H$54)/('ENTER DATA HERE - Budget'!$E$9*'ENTER DATA HERE - Budget'!$E$10) -> 1180.562937
A7: 0.45 | B7: =(B$4*'ENTER DATA HERE - Budget'!$F$30*'ENTER DATA HERE - Budget'!$E$9-('ENTER DATA HERE - Budget'!$H$45-'ENTER DATA HERE - Budget'!$H$36)-'ENTER DATA HERE - Budget'!$F$36*'ENTER DATA HERE - Budget'!$E$9*'Sensitivity Analysis'!$A7-'ENTER DATA HERE - Budget'!$H$54)/('ENTER DATA HERE - Budget'!$E$9*'ENTER DATA HERE - Budget'!$E$10) -> 885.1804545 | C7: =(C$4*'ENTER DATA HERE - Budget'!$F$30*'ENTER DATA HERE - Budget'!$E$9-('ENTER DATA HERE - Budget'!$H$45-'ENTER DATA HERE - Budget'!$H$36)-'ENTER DATA HERE - Budget'!$F$36*'ENTER DATA HERE - Budget'!$E$9*'Sensitivity Analysis'!$A7-'ENTER DATA HERE - Budget'!$H$54)/('ENTER DATA HERE - Budget'!$E$9*'ENTER DATA HERE - Budget'!$E$10) -> 916.3892936 | D7: =(D$4*'ENTER DATA HERE - Budget'!$F$30*'ENTER DATA HERE - Budget'!$E$9-('ENTER DATA HERE - Budget'!$H$45-'ENTER DATA HERE - Budget'!$H$36)-'ENTER DATA HERE - Budget'!$F$36*'ENTER DATA HERE - Budget'!$E$9*'Sensitivity Analysis'!$A7-'ENTER DATA HERE - Budget'!$H$54)/('ENTER DATA HERE - Budget'!$E$9*'ENTER DATA HERE - Budget'!$E$10) -> 947.5981326 | E7: =(E$4*'ENTER DATA HERE - Budget'!$F$30*'ENTER DATA HERE - Budget'!$E$9-('ENTER DATA HERE - Budget'!$H$45-'ENTER DATA HERE - Budget'!$H$36)-'ENTER DATA HERE - Budget'!$F$36*'ENTER DATA HERE - Budget'!$E$9*'Sensitivity Analysis'!$A7-'ENTER DATA HERE - Budget'!$H$54)/('ENTER DATA HERE - Budget'!$E$9*'ENTER DATA HERE - Budget'!$E$10) -> 978.8069717 | F7: =(F$4*'ENTER DATA HERE - Budget'!$F$30*'ENTER DATA HERE - Budget'!$E$9-('ENTER DATA HERE - Budget'!$H$45-'ENTER DATA HERE - Budget'!$H$36)-'ENTER DATA HERE - Budget'!$F$36*'ENTER DATA HERE - Budget'!$E$9*'Sensitivity Analysis'!$A7-'ENTER DATA HERE - Budget'!$H$54)/('ENTER DATA HERE - Budget'!$E$9*'ENTER DATA HERE - Budget'!$E$10) -> 1010.015811 | G7: =(G$4*'ENTER DATA HERE - Budget'!$F$30*'ENTER DATA HERE - Budget'!$E$9-('ENTER DATA HERE - Budget'!$H$45-'ENTER DATA HERE - Budget'!$H$36)-'ENTER DATA HERE - Budget'!$F$36*'ENTER DATA HERE - Budget'!$E$9*'Sensitivity Analysis'!$A7-'ENTER DATA HERE - Budget'!$H$54)/('ENTER DATA HERE - Budget'!$E$9*'ENTER DATA HERE - Budget'!$E$10) -> 1041.22465 | H7: =(H$4*'ENTER DATA HERE - Budget'!$F$30*'ENTER DATA HERE - Budget'!$E$9-('ENTER DATA HERE - Budget'!$H$45-'ENTER DATA HERE - Budget'!$H$36)-'ENTER DATA HERE - Budget'!$F$36*'ENTER DATA HERE - Budget'!$E$9*'Sensitivity Analysis'!$A7-'ENTER DATA HERE - Budget'!$H$54)/('ENTER DATA HERE - Budget'!$E$9*'ENTER DATA HERE - Budget'!$E$10) -> 1072.433489 | I7: =(I$4*'ENTER DATA HERE - Budget'!$F$30*'ENTER DATA HERE - Budget'!$E$9-('ENTER DATA HERE - Budget'!$H$45-'ENTER DATA HERE - Budget'!$H$36)-'ENTER DATA HERE - Budget'!$F$36*'ENTER DATA HERE - Budget'!$E$9*'Sensitivity Analysis'!$A7-'ENTER DATA HERE - Budget'!$H$54)/('ENTER DATA HERE - Budget'!$E$9*'ENTER DATA HERE - Budget'!$E$10) -> 1103.642328 | J7: =(J$4*'ENTER DATA HERE - Budget'!$F$30*'ENTER DATA HERE - Budget'!$E$9-('ENTER DATA HERE - Budget'!$H$45-'ENTER DATA HERE - Budget'!$H$36)-'ENTER DATA HERE - Budget'!$F$36*'ENTER DATA HERE - Budget'!$E$9*'Sensitivity Analysis'!$A7-'ENTER DATA HERE - Budget'!$H$54)/('ENTER DATA HERE - Budget'!$E$9*'ENTER DATA HERE - Budget'!$E$10) -> 1134.851167
A8: 0.5 | B8: =(B$4*'ENTER DATA HERE - Budget'!$F$30*'ENTER DATA HERE - Budget'!$E$9-('ENTER DATA HERE - Budget'!$H$45-'ENTER DATA HERE - Budget'!$H$36)-'ENTER DATA HERE - Budget'!$F$36*'ENTER DATA HERE - Budget'!$E$9*'Sensitivity Analysis'!$A8-'ENTER DATA HERE - Budget'!$H$54)/('ENTER DATA HERE - Budget'!$E$9*'ENTER DATA HERE - Budget'!$E$10) -> 839.4686843 | C8: =(C$4*'ENTER DATA HERE - Budget'!$F$30*'ENTER DATA HERE - Budget'!$E$9-('ENTER DATA HERE - Budget'!$H$45-'ENTER DATA HERE - Budget'!$H$36)-'ENTER DATA HERE - Budget'!$F$36*'ENTER DATA HERE - Budget'!$E$9*'Sensitivity Analysis'!$A8-'ENTER DATA HERE - Budget'!$H$54)/('ENTER DATA HERE - Budget'!$E$9*'ENTER DATA HERE - Budget'!$E$10) -> 870.6775234 | D8: =(D$4*'ENTER DATA HERE - Budget'!$F$30*'ENTER DATA HERE - Budget'!$E$9-('ENTER DATA HERE - Budget'!$H$45-'ENTER DATA HERE - Budget'!$H$36)-'ENTER DATA HERE - Budget'!$F$36*'ENTER DATA HERE - Budget'!$E$9*'Sensitivity Analysis'!$A8-'ENTER DATA HERE - Budget'!$H$54)/('ENTER DATA HERE - Budget'!$E$9*'ENTER DATA HERE - Budget'!$E$10) -> 901.8863625 | E8: =(E$4*'ENTER DATA HERE - Budget'!$F$30*'ENTER DATA HERE - Budget'!$E$9-('ENTER DATA HERE - Budget'!$H$45-'ENTER DATA HERE - Budget'!$H$36)-'ENTER DATA HERE - Budget'!$F$36*'ENTER DATA HERE - Budget'!$E$9*'Sensitivity Analysis'!$A8-'ENTER DATA HERE - Budget'!$H$54)/('ENTER DATA HERE - Budget'!$E$9*'ENTER DATA HERE - Budget'!$E$10) -> 933.0952015 | F8: =(F$4*'ENTER DATA HERE - Budget'!$F$30*'ENTER DATA HERE - Budget'!$E$9-('ENTER DATA HERE - Budget'!$H$45-'ENTER DATA HERE - Budget'!$H$36)-'ENTER DATA HERE - Budget'!$F$36*'ENTER DATA HERE - Budget'!$E$9*'Sensitivity Analysis'!$A8-'ENTER DATA HERE - Budget'!$H$54)/('ENTER DATA HERE - Budget'!$E$9*'ENTER DATA HERE - Budget'!$E$10) -> 964.3040406 | G8: =(G$4*'ENTER DATA HERE - Budget'!$F$30*'ENTER DATA HERE - Budget'!$E$9-('ENTER DATA HERE - Budget'!$H$45-'ENTER DATA HERE - Budget'!$H$36)-'ENTER DATA HERE - Budget'!$F$36*'ENTER DATA HERE - Budget'!$E$9*'Sensitivity Analysis'!$A8-'ENTER DATA HERE - Budget'!$H$54)/('ENTER DATA HERE - Budget'!$E$9*'ENTER DATA HERE - Budget'!$E$10) -> 995.5128797 | H8: =(H$4*'ENTER DATA HERE - Budget'!$F$30*'ENTER DATA HERE - Budget'!$E$9-('ENTER DATA HERE - Budget'!$H$45-'ENTER DATA HERE - Budget'!$H$36)-'ENTER DATA HERE - Budget'!$F$36*'ENTER DATA HERE - Budget'!$E$9*'Sensitivity Analysis'!$A8-'ENTER DATA HERE - Budget'!$H$54)/('ENTER DATA HERE - Budget'!$E$9*'ENTER DATA HERE - Budget'!$E$10) -> 1026.721719 | I8: =(I$4*'ENTER DATA HERE - Budget'!$F$30*'ENTER DATA HERE - Budget'!$E$9-('ENTER DATA HERE - Budget'!$H$45-'ENTER DATA HERE - Budget'!$H$36)-'ENTER DATA HERE - Budget'!$F$36*'ENTER DATA HERE - Budget'!$E$9*'Sensitivity Analysis'!$A8-'ENTER DATA HERE - Budget'!$H$54)/('ENTER DATA HERE - Budget'!$E$9*'ENTER DATA HERE - Budget'!$E$10) -> 1057.930558 | J8: =(J$4*'ENTER DATA HERE - Budget'!$F$30*'ENTER DATA HERE - Budget'!$E$9-('ENTER DATA HERE - Budget'!$H$45-'ENTER DATA HERE - Budget'!$H$36)-'ENTER DATA HERE - Budget'!$F$36*'ENTER DATA HERE - Budget'!$E$9*'Sensitivity Analysis'!$A8-'ENTER DATA HERE - Budget'!$H$54)/('ENTER DATA HERE - Budget'!$E$9*'ENTER DATA HERE - Budget'!$E$10) -> 1089.139397
A9: 0.55 | B9: =(B$4*'ENTER DATA HERE - Budget'!$F$30*'ENTER DATA HERE - Budget'!$E$9-('ENTER DATA HERE - Budget'!$H$45-'ENTER DATA HERE - Budget'!$H$36)-'ENTER DATA HERE - Budget'!$F$36*'ENTER DATA HERE - Budget'!$E$9*'Sensitivity Analysis'!$A9-'ENTER DATA HERE - Budget'!$H$54)/('ENTER DATA HERE - Budget'!$E$9*'ENTER DATA HERE - Budget'!$E$10) -> 793.7569142 | C9: =(C$4*'ENTER DATA HERE - Budget'!$F$30*'ENTER DATA HERE - Budget'!$E$9-('ENTER DATA HERE - Budget'!$H$45-'ENTER DATA HERE - Budget'!$H$36)-'ENTER DATA HERE - Budget'!$F$36*'ENTER DATA HERE - Budget'!$E$9*'Sensitivity Analysis'!$A9-'ENTER DATA HERE - Budget'!$H$54)/('ENTER DATA HERE - Budget'!$E$9*'ENTER DATA HERE - Budget'!$E$10) -> 824.9657533 | D9: =(D$4*'ENTER DATA HERE - Budget'!$F$30*'ENTER DATA HERE - Budget'!$E$9-('ENTER DATA HERE - Budget'!$H$45-'ENTER DATA HERE - Budget'!$H$36)-'ENTER DATA HERE - Budget'!$F$36*'ENTER DATA HERE - Budget'!$E$9*'Sensitivity Analysis'!$A9-'ENTER DATA HERE - Budget'!$H$54)/('ENTER DATA HERE - Budget'!$E$9*'ENTER DATA HERE - Budget'!$E$10) -> 856.1745923 | E9: =(E$4*'ENTER DATA HERE - Budget'!$F$30*'ENTER DATA HERE - Budget'!$E$9-('ENTER DATA HERE - Budget'!$H$45-'ENTER DATA HERE - Budget'!$H$36)-'ENTER DATA HERE - Budget'!$F$36*'ENTER DATA HERE - Budget'!$E$9*'Sensitivity Analysis'!$A9-'ENTER DATA HERE - Budget'!$H$54)/('ENTER DATA HERE - Budget'!$E$9*'ENTER DATA HERE - Budget'!$E$10) -> 887.3834314 | F9: =(F$4*'ENTER DATA HERE - Budget'!$F$30*'ENTER DATA HERE - Budget'!$E$9-('ENTER DATA HERE - Budget'!$H$45-'ENTER DATA HERE - Budget'!$H$36)-'ENTER DATA HERE - Budget'!$F$36*'ENTER DATA HERE - Budget'!$E$9*'Sensitivity Analysis'!$A9-'ENTER DATA HERE - Budget'!$H$54)/('ENTER DATA HERE - Budget'!$E$9*'ENTER DATA HERE - Budget'!$E$10) -> 918.5922704 | G9: =(G$4*'ENTER DATA HERE - Budget'!$F$30*'ENTER DATA HERE - Budget'!$E$9-('ENTER DATA HERE - Budget'!$H$45-'ENTER DATA HERE - Budget'!$H$36)-'ENTER DATA HERE - Budget'!$F$36*'ENTER DATA HERE - Budget'!$E$9*'Sensitivity Analysis'!$A9-'ENTER DATA HERE - Budget'!$H$54)/('ENTER DATA HERE - Budget'!$E$9*'ENTER DATA HERE - Budget'!$E$10) -> 949.8011095 | H9: =(H$4*'ENTER DATA HERE - Budget'!$F$30*'ENTER DATA HERE - Budget'!$E$9-('ENTER DATA HERE - Budget'!$H$45-'ENTER DATA HERE - Budget'!$H$36)-'ENTER DATA HERE - Budget'!$F$36*'ENTER DATA HERE - Budget'!$E$9*'Sensitivity Analysis'!$A9-'ENTER DATA HERE - Budget'!$H$54)/('ENTER DATA HERE - Budget'!$E$9*'ENTER DATA HERE - Budget'!$E$10) -> 981.0099486 | I9: =(I$4*'ENTER DATA HERE - Budget'!$F$30*'ENTER DATA HERE - Budget'!$E$9-('ENTER DATA HERE - Budget'!$H$45-'ENTER DATA HERE - Budget'!$H$36)-'ENTER DATA HERE - Budget'!$F$36*'ENTER DATA HERE - Budget'!$E$9*'Sensitivity Analysis'!$A9-'ENTER DATA HERE - Budget'!$H$54)/('ENTER DATA HERE - Budget'!$E$9*'ENTER DATA HERE - Budget'!$E$10) -> 1012.218788 | J9: =(J$4*'ENTER DATA HERE - Budget'!$F$30*'ENTER DATA HERE - Budget'!$E$9-('ENTER DATA HERE - Budget'!$H$45-'ENTER DATA HERE - Budget'!$H$36)-'ENTER DATA HERE - Budget'!$F$36*'ENTER DATA HERE - Budget'!$E$9*'Sensitivity Analysis'!$A9-'ENTER DATA HERE - Budget'!$H$54)/('ENTER DATA HERE - Budget'!$E$9*'ENTER DATA HERE - Budget'!$E$10) -> 1043.427627
A10: 0.6 | B10: =(B$4*'ENTER DATA HERE - Budget'!$F$30*'ENTER DATA HERE - Budget'!$E$9-('ENTER DATA HERE - Budget'!$H$45-'ENTER DATA HERE - Budget'!$H$36)-'ENTER DATA HERE - Budget'!$F$36*'ENTER DATA HERE - Budget'!$E$9*'Sensitivity Analysis'!$A10-'ENTER DATA HERE - Budget'!$H$54)/('ENTER DATA HERE - Budget'!$E$9*'ENTER DATA HERE - Budget'!$E$10) -> 748.045144 | C10: =(C$4*'ENTER DATA HERE - Budget'!$F$30*'ENTER DATA HERE - Budget'!$E$9-('ENTER DATA HERE - Budget'!$H$45-'ENTER DATA HERE - Budget'!$H$36)-'ENTER DATA HERE - Budget'!$F$36*'ENTER DATA HERE - Budget'!$E$9*'Sensitivity Analysis'!$A10-'ENTER DATA HERE - Budget'!$H$54)/('ENTER DATA HERE - Budget'!$E$9*'ENTER DATA HERE - Budget'!$E$10) -> 779.2539831 | D10: =(D$4*'ENTER DATA HERE - Budget'!$F$30*'ENTER DATA HERE - Budget'!$E$9-('ENTER DATA HERE - Budget'!$H$45-'ENTER DATA HERE - Budget'!$H$36)-'ENTER DATA HERE - Budget'!$F$36*'ENTER DATA HERE - Budget'!$E$9*'Sensitivity Analysis'!$A10-'ENTER DATA HERE - Budget'!$H$54)/('ENTER DATA HERE - Budget'!$E$9*'ENTER DATA HERE - Budget'!$E$10) -> 810.4628222 | E10: =(E$4*'ENTER DATA HERE - Budget'!$F$30*'ENTER DATA HERE - Budget'!$E$9-('ENTER DATA HERE - Budget'!$H$45-'ENTER DATA HERE - Budget'!$H$36)-'ENTER DATA HERE - Budget'!$F$36*'ENTER DATA HERE - Budget'!$E$9*'Sensitivity Analysis'!$A10-'ENTER DATA HERE - Budget'!$H$54)/('ENTER DATA HERE - Budget'!$E$9*'ENTER DATA HERE - Budget'!$E$10) -> 841.6716612 | F10: =(F$4*'ENTER DATA HERE - Budget'!$F$30*'ENTER DATA HERE - Budget'!$E$9-('ENTER DATA HERE - Budget'!$H$45-'ENTER DATA HERE - Budget'!$H$36)-'ENTER DATA HERE - Budget'!$F$36*'ENTER DATA HERE - Budget'!$E$9*'Sensitivity Analysis'!$A10-'ENTER DATA HERE - Budget'!$H$54)/('ENTER DATA HERE - Budget'!$E$9*'ENTER DATA HERE - Budget'!$E$10) -> 872.8805003 | G10: =(G$4*'ENTER DATA HERE - Budget'!$F$30*'ENTER DATA HERE - Budget'!$E$9-('ENTER DATA HERE - Budget'!$H$45-'ENTER DATA HERE - Budget'!$H$36)-'ENTER DATA HERE - Budget'!$F$36*'ENTER DATA HERE - Budget'!$E$9*'Sensitivity Analysis'!$A10-'ENTER DATA HERE - Budget'!$H$54)/('ENTER DATA HERE - Budget'!$E$9*'ENTER DATA HERE - Budget'!$E$10) -> 904.0893393 | H10: =(H$4*'ENTER DATA HERE - Budget'!$F$30*'ENTER DATA HERE - Budget'!$E$9-('ENTER DATA HERE - Budget'!$H$45-'ENTER DATA HERE - Budget'!$H$36)-'ENTER DATA HERE - Budget'!$F$36*'ENTER DATA HERE - Budget'!$E$9*'Sensitivity Analysis'!$A10-'ENTER DATA HERE - Budget'!$H$54)/('ENTER DATA HERE - Budget'!$E$9*'ENTER DATA HERE - Budget'!$E$10) -> 935.2981784 | I10: =(I$4*'ENTER DATA HERE - Budget'!$F$30*'ENTER DATA HERE - Budget'!$E$9-('ENTER DATA HERE - Budget'!$H$45-'ENTER DATA HERE - Budget'!$H$36)-'ENTER DATA HERE - Budget'!$F$36*'ENTER DATA HERE - Budget'!$E$9*'Sensitivity Analysis'!$A10-'ENTER DATA HERE - Budget'!$H$54)/('ENTER DATA HERE - Budget'!$E$9*'ENTER DATA HERE - Budget'!$E$10) -> 966.5070175 | J10: =(J$4*'ENTER DATA HERE - Budget'!$F$30*'ENTER DATA HERE - Budget'!$E$9-('ENTER DATA HERE - Budget'!$H$45-'ENTER DATA HERE - Budget'!$H$36)-'ENTER DATA HERE - Budget'!$F$36*'ENTER DATA HERE - Budget'!$E$9*'Sensitivity Analysis'!$A10-'ENTER DATA HERE - Budget'!$H$54)/('ENTER DATA HERE - Budget'!$E$9*'ENTER DATA HERE - Budget'!$E$10) -> 997.7158565
A11: 0.65 | B11: =(B$4*'ENTER DATA HERE - Budget'!$F$30*'ENTER DATA HERE - Budget'!$E$9-('ENTER DATA HERE - Budget'!$H$45-'ENTER DATA HERE - Budget'!$H$36)-'ENTER DATA HERE - Budget'!$F$36*'ENTER DATA HERE - Budget'!$E$9*'Sensitivity Analysis'!$A11-'ENTER DATA HERE - Budget'!$H$54)/('ENTER DATA HERE - Budget'!$E$9*'ENTER DATA HERE - Budget'!$E$10) -> 702.3333739 | C11: =(C$4*'ENTER DATA HERE - Budget'!$F$30*'ENTER DATA HERE - Budget'!$E$9-('ENTER DATA HERE - Budget'!$H$45-'ENTER DATA HERE - Budget'!$H$36)-'ENTER DATA HERE - Budget'!$F$36*'ENTER DATA HERE - Budget'!$E$9*'Sensitivity Analysis'!$A11-'ENTER DATA HERE - Budget'!$H$54)/('ENTER DATA HERE - Budget'!$E$9*'ENTER DATA HERE - Budget'!$E$10) -> 733.5422129 | D11: =(D$4*'ENTER DATA HERE - Budget'!$F$30*'ENTER DATA HERE - Budget'!$E$9-('ENTER DATA HERE - Budget'!$H$45-'ENTER DATA HERE - Budget'!$H$36)-'ENTER DATA HERE - Budget'!$F$36*'ENTER DATA HERE - Budget'!$E$9*'Sensitivity Analysis'!$A11-'ENTER DATA HERE - Budget'!$H$54)/('ENTER DATA HERE - Budget'!$E$9*'ENTER DATA HERE - Budget'!$E$10) -> 764.751052 | E11: =(E$4*'ENTER DATA HERE - Budget'!$F$30*'ENTER DATA HERE - Budget'!$E$9-('ENTER DATA HERE - Budget'!$H$45-'ENTER DATA HERE - Budget'!$H$36)-'ENTER DATA HERE - Budget'!$F$36*'ENTER DATA HERE - Budget'!$E$9*'Sensitivity Analysis'!$A11-'ENTER DATA HERE - Budget'!$H$54)/('ENTER DATA HERE - Budget'!$E$9*'ENTER DATA HERE - Budget'!$E$10) -> 795.9598911 | F11: =(F$4*'ENTER DATA HERE - Budget'!$F$30*'ENTER DATA HERE - Budget'!$E$9-('ENTER DATA HERE - Budget'!$H$45-'ENTER DATA HERE - Budget'!$H$36)-'ENTER DATA HERE - Budget'!$F$36*'ENTER DATA HERE - Budget'!$E$9*'Sensitivity Analysis'!$A11-'ENTER DATA HERE - Budget'!$H$54)/('ENTER DATA HERE - Budget'!$E$9*'ENTER DATA HERE - Budget'!$E$10) -> 827.1687301 | G11: =(G$4*'ENTER DATA HERE - Budget'!$F$30*'ENTER DATA HERE - Budget'!$E$9-('ENTER DATA HERE - Budget'!$H$45-'ENTER DATA HERE - Budget'!$H$36)-'ENTER DATA HERE - Budget'!$F$36*'ENTER DATA HERE - Budget'!$E$9*'Sensitivity Analysis'!$A11-'ENTER DATA HERE - Budget'!$H$54)/('ENTER DATA HERE - Budget'!$E$9*'ENTER DATA HERE - Budget'!$E$10) -> 858.3775692 | H11: =(H$4*'ENTER DATA HERE - Budget'!$F$30*'ENTER DATA HERE - Budget'!$E$9-('ENTER DATA HERE - Budget'!$H$45-'ENTER DATA HERE - Budget'!$H$36)-'ENTER DATA HERE - Budget'!$F$36*'ENTER DATA HERE - Budget'!$E$9*'Sensitivity Analysis'!$A11-'ENTER DATA HERE - Budget'!$H$54)/('ENTER DATA HERE - Budget'!$E$9*'ENTER DATA HERE - Budget'!$E$10) -> 889.5864083 | I11: =(I$4*'ENTER DATA HERE - Budget'!$F$30*'ENTER DATA HERE - Budget'!$E$9-('ENTER DATA HERE - Budget'!$H$45-'ENTER DATA HERE - Budget'!$H$36)-'ENTER DATA HERE - Budget'!$F$36*'ENTER DATA HERE - Budget'!$E$9*'Sensitivity Analysis'!$A11-'ENTER DATA HERE - Budget'!$H$54)/('ENTER DATA HERE - Budget'!$E$9*'ENTER DATA HERE - Budget'!$E$10) -> 920.7952473 | J11: =(J$4*'ENTER DATA HERE - Budget'!$F$30*'ENTER DATA HERE - Budget'!$E$9-('ENTER DATA HERE - Budget'!$H$45-'ENTER DATA HERE - Budget'!$H$36)-'ENTER DATA HERE - Budget'!$F$36*'ENTER DATA HERE - Budget'!$E$9*'Sensitivity Analysis'!$A11-'ENTER DATA HERE - Budget'!$H$54)/('ENTER DATA HERE - Budget'!$E$9*'ENTER DATA HERE - Budget'!$E$10) -> 952.0040864
A12: 0.7 | B12: =(B$4*'ENTER DATA HERE - Budget'!$F$30*'ENTER DATA HERE - Budget'!$E$9-('ENTER DATA HERE - Budget'!$H$45-'ENTER DATA HERE - Budget'!$H$36)-'ENTER DATA HERE - Budget'!$F$36*'ENTER DATA HERE - Budget'!$E$9*'Sensitivity Analysis'!$A12-'ENTER DATA HERE - Budget'!$H$54)/('ENTER DATA HERE - Budget'!$E$9*'ENTER DATA HERE - Budget'!$E$10) -> 656.6216037 | C12: =(C$4*'ENTER DATA HERE - Budget'!$F$30*'ENTER DATA HERE - Budget'!$E$9-('ENTER DATA HERE - Budget'!$H$45-'ENTER DATA HERE - Budget'!$H$36)-'ENTER DATA HERE - Budget'!$F$36*'ENTER DATA HERE - Budget'!$E$9*'Sensitivity Analysis'!$A12-'ENTER DATA HERE - Budget'!$H$54)/('ENTER DATA HERE - Budget'!$E$9*'ENTER DATA HERE - Budget'!$E$10) -> 687.8304428 | D12: =(D$4*'ENTER DATA HERE - Budget'!$F$30*'ENTER DATA HERE - Budget'!$E$9-('ENTER DATA HERE - Budget'!$H$45-'ENTER DATA HERE - Budget'!$H$36)-'ENTER DATA HERE - Budget'!$F$36*'ENTER DATA HERE - Budget'!$E$9*'Sensitivity Analysis'!$A12-'ENTER DATA HERE - Budget'!$H$54)/('ENTER DATA HERE - Budget'!$E$9*'ENTER DATA HERE - Budget'!$E$10) -> 719.0392818 | E12: =(E$4*'ENTER DATA HERE - Budget'!$F$30*'ENTER DATA HERE - Budget'!$E$9-('ENTER DATA HERE - Budget'!$H$45-'ENTER DATA HERE - Budget'!$H$36)-'ENTER DATA HERE - Budget'!$F$36*'ENTER DATA HERE - Budget'!$E$9*'Sensitivity Analysis'!$A12-'ENTER DATA HERE - Budget'!$H$54)/('ENTER DATA HERE - Budget'!$E$9*'ENTER DATA HERE - Budget'!$E$10) -> 750.2481209 | F12: =(F$4*'ENTER DATA HERE - Budget'!$F$30*'ENTER DATA HERE - Budget'!$E$9-('ENTER DATA HERE - Budget'!$H$45-'ENTER DATA HERE - Budget'!$H$36)-'ENTER DATA HERE - Budget'!$F$36*'ENTER DATA HERE - Budget'!$E$9*'Sensitivity Analysis'!$A12-'ENTER DATA HERE - Budget'!$H$54)/('ENTER DATA HERE - Budget'!$E$9*'ENTER DATA HERE - Budget'!$E$10) -> 781.45696 | G12: =(G$4*'ENTER DATA HERE - Budget'!$F$30*'ENTER DATA HERE - Budget'!$E$9-('ENTER DATA HERE - Budget'!$H$45-'ENTER DATA HERE - Budget'!$H$36)-'ENTER DATA HERE - Budget'!$F$36*'ENTER DATA HERE - Budget'!$E$9*'Sensitivity Analysis'!$A12-'ENTER DATA HERE - Budget'!$H$54)/('ENTER DATA HERE - Budget'!$E$9*'ENTER DATA HERE - Budget'!$E$10) -> 812.665799 | H12: =(H$4*'ENTER DATA HERE - Budget'!$F$30*'ENTER DATA HERE - Budget'!$E$9-('ENTER DATA HERE - Budget'!$H$45-'ENTER DATA HERE - Budget'!$H$36)-'ENTER DATA HERE - Budget'!$F$36*'ENTER DATA HERE - Budget'!$E$9*'Sensitivity Analysis'!$A12-'ENTER DATA HERE - Budget'!$H$54)/('ENTER DATA HERE - Budget'!$E$9*'ENTER DATA HERE - Budget'!$E$10) -> 843.8746381 | I12: =(I$4*'ENTER DATA HERE - Budget'!$F$30*'ENTER DATA HERE - Budget'!$E$9-('ENTER DATA HERE - Budget'!$H$45-'ENTER DATA HERE - Budget'!$H$36)-'ENTER DATA HERE - Budget'!$F$36*'ENTER DATA HERE - Budget'!$E$9*'Sensitivity Analysis'!$A12-'ENTER DATA HERE - Budget'!$H$54)/('ENTER DATA HERE - Budget'!$E$9*'ENTER DATA HERE - Budget'!$E$10) -> 875.0834772 | J12: =(J$4*'ENTER DATA HERE - Budget'!$F$30*'ENTER DATA HERE - Budget'!$E$9-('ENTER DATA HERE - Budget'!$H$45-'ENTER DATA HERE - Budget'!$H$36)-'ENTER DATA HERE - Budget'!$F$36*'ENTER DATA HERE - Budget'!$E$9*'Sensitivity Analysis'!$A12-'ENTER DATA HERE - Budget'!$H$54)/('ENTER DATA HERE - Budget'!$E$9*'ENTER DATA HERE - Budget'!$E$10) -> 906.2923162
A13: 0.75 | B13: =(B$4*'ENTER DATA HERE - Budget'!$F$30*'ENTER DATA HERE - Budget'!$E$9-('ENTER DATA HERE - Budget'!$H$45-'ENTER DATA HERE - Budget'!$H$36)-'ENTER DATA HERE - Budget'!$F$36*'ENTER DATA HERE - Budget'!$E$9*'Sensitivity Analysis'!$A13-'ENTER DATA HERE - Budget'!$H$54)/('ENTER DATA HERE - Budget'!$E$9*'ENTER DATA HERE - Budget'!$E$10) -> 610.9098336 | C13: =(C$4*'ENTER DATA HERE - Budget'!$F$30*'ENTER DATA HERE - Budget'!$E$9-('ENTER DATA HERE - Budget'!$H$45-'ENTER DATA HERE - Budget'!$H$36)-'ENTER DATA HERE - Budget'!$F$36*'ENTER DATA HERE - Budget'!$E$9*'Sensitivity Analysis'!$A13-'ENTER DATA HERE - Budget'!$H$54)/('ENTER DATA HERE - Budget'!$E$9*'ENTER DATA HERE - Budget'!$E$10) -> 642.1186726 | D13: =(D$4*'ENTER DATA HERE - Budget'!$F$30*'ENTER DATA HERE - Budget'!$E$9-('ENTER DATA HERE - Budget'!$H$45-'ENTER DATA HERE - Budget'!$H$36)-'ENTER DATA HERE - Budget'!$F$36*'ENTER DATA HERE - Budget'!$E$9*'Sensitivity Analysis'!$A13-'ENTER DATA HERE - Budget'!$H$54)/('ENTER DATA HERE - Budget'!$E$9*'ENTER DATA HERE - Budget'!$E$10) -> 673.3275117 | E13: =(E$4*'ENTER DATA HERE - Budget'!$F$30*'ENTER DATA HERE - Budget'!$E$9-('ENTER DATA HERE - Budget'!$H$45-'ENTER DATA HERE - Budget'!$H$36)-'ENTER DATA HERE - Budget'!$F$36*'ENTER DATA HERE - Budget'!$E$9*'Sensitivity Analysis'!$A13-'ENTER DATA HERE - Budget'!$H$54)/('ENTER DATA HERE - Budget'!$E$9*'ENTER DATA HERE - Budget'!$E$10) -> 704.5363508 | F13: =(F$4*'ENTER DATA HERE - Budget'!$F$30*'ENTER DATA HERE - Budget'!$E$9-('ENTER DATA HERE - Budget'!$H$45-'ENTER DATA HERE - Budget'!$H$36)-'ENTER DATA HERE - Budget'!$F$36*'ENTER DATA HERE - Budget'!$E$9*'Sensitivity Analysis'!$A13-'ENTER DATA HERE - Budget'!$H$54)/('ENTER DATA HERE - Budget'!$E$9*'ENTER DATA HERE - Budget'!$E$10) -> 735.7451898 | G13: =(G$4*'ENTER DATA HERE - Budget'!$F$30*'ENTER DATA HERE - Budget'!$E$9-('ENTER DATA HERE - Budget'!$H$45-'ENTER DATA HERE - Budget'!$H$36)-'ENTER DATA HERE - Budget'!$F$36*'ENTER DATA HERE - Budget'!$E$9*'Sensitivity Analysis'!$A13-'ENTER DATA HERE - Budget'!$H$54)/('ENTER DATA HERE - Budget'!$E$9*'ENTER DATA HERE - Budget'!$E$10) -> 766.9540289 | H13: =(H$4*'ENTER DATA HERE - Budget'!$F$30*'ENTER DATA HERE - Budget'!$E$9-('ENTER DATA HERE - Budget'!$H$45-'ENTER DATA HERE - Budget'!$H$36)-'ENTER DATA HERE - Budget'!$F$36*'ENTER DATA HERE - Budget'!$E$9*'Sensitivity Analysis'!$A13-'ENTER DATA HERE - Budget'!$H$54)/('ENTER DATA HERE - Budget'!$E$9*'ENTER DATA HERE - Budget'!$E$10) -> 798.1628679 | I13: =(I$4*'ENTER DATA HERE - Budget'!$F$30*'ENTER DATA HERE - Budget'!$E$9-('ENTER DATA HERE - Budget'!$H$45-'ENTER DATA HERE - Budget'!$H$36)-'ENTER DATA HERE - Budget'!$F$36*'ENTER DATA HERE - Budget'!$E$9*'Sensitivity Analysis'!$A13-'ENTER DATA HERE - Budget'!$H$54)/('ENTER DATA HERE - Budget'!$E$9*'ENTER DATA HERE - Budget'!$E$10) -> 829.371707 | J13: =(J$4*'ENTER DATA HERE - Budget'!$F$30*'ENTER DATA HERE - Budget'!$E$9-('ENTER DATA HERE - Budget'!$H$45-'ENTER DATA HERE - Budget'!$H$36)-'ENTER DATA HERE - Budget'!$F$36*'ENTER DATA HERE - Budget'!$E$9*'Sensitivity Analysis'!$A13-'ENTER DATA HERE - Budget'!$H$54)/('ENTER DATA HERE - Budget'!$E$9*'ENTER DATA HERE - Budget'!$E$10) -> 860.5805461
B21: Sensitivity Analysis - Estimated Net Returns Per Cage Above Total Costs
A22: Feed price $/lb | B22: Sale price $/lb
B23: 2.8 | C23: 2.85 | D23: 2.9 | E23: 2.95 | F23: 3 | G23: 3.05 | H23: 3.1 | I23: 3.15 | J23: 3.2
A24: 0.35 | B24: =(B$4*'ENTER DATA HERE - Budget'!$F$30*'ENTER DATA HERE - Budget'!$E$9-('ENTER DATA HERE - Budget'!$H$45-'ENTER DATA HERE - Budget'!$H$36)-'ENTER DATA HERE - Budget'!$F$36*'ENTER DATA HERE - Budget'!$E$9*'Sensitivity Analysis'!$A24-'ENTER DATA HERE - Budget'!$H$54-'ENTER DATA HERE - Budget'!$J$71-'ENTER DATA HERE - Budget'!$N$83)/('ENTER DATA HERE - Budget'!$E$9*'ENTER DATA HERE - Budget'!$E$10) -> 826.4792971 | C24: =(C$4*'ENTER DATA HERE - Budget'!$F$30*'ENTER DATA HERE - Budget'!$E$9-('ENTER DATA HERE - Budget'!$H$45-'ENTER DATA HERE - Budget'!$H$36)-'ENTER DATA HERE - Budget'!$F$36*'ENTER DATA HERE - Budget'!$E$9*'Sensitivity Analysis'!$A24-'ENTER DATA HERE - Budget'!$H$54-'ENTER DATA HERE - Budget'!$J$71-'ENTER DATA HERE - Budget'!$N$83)/('ENTER DATA HERE - Budget'!$E$9*'ENTER DATA HERE - Budget'!$E$10) -> 857.6881361 | D24: =(D$4*'ENTER DATA HERE - Budget'!$F$30*'ENTER DATA HERE - Budget'!$E$9-('ENTER DATA HERE - Budget'!$H$45-'ENTER DATA HERE - Budget'!$H$36)-'ENTER DATA HERE - Budget'!$F$36*'ENTER DATA HERE - Budget'!$E$9*'Sensitivity Analysis'!$A24-'ENTER DATA HERE - Budget'!$H$54-'ENTER DATA HERE - Budget'!$J$71-'ENTER DATA HERE - Budget'!$N$83)/('ENTER DATA HERE - Budget'!$E$9*'ENTER DATA HERE - Budget'!$E$10) -> 888.8969752 | E24: =(E$4*'ENTER DATA HERE - Budget'!$F$30*'ENTER DATA HERE - Budget'!$E$9-('ENTER DATA HERE - Budget'!$H$45-'ENTER DATA HERE - Budget'!$H$36)-'ENTER DATA HERE - Budget'!$F$36*'ENTER DATA HERE - Budget'!$E$9*'Sensitivity Analysis'!$A24-'ENTER DATA HERE - Budget'!$H$54-'ENTER DATA HERE - Budget'!$J$71-'ENTER DATA HERE - Budget'!$N$83)/('ENTER DATA HERE - Budget'!$E$9*'ENTER DATA HERE - Budget'!$E$10) -> 920.1058143 | F24: =(F$4*'ENTER DATA HERE - Budget'!$F$30*'ENTER DATA HERE - Budget'!$E$9-('ENTER DATA HERE - Budget'!$H$45-'ENTER DATA HERE - Budget'!$H$36)-'ENTER DATA HERE - Budget'!$F$36*'ENTER DATA HERE - Budget'!$E$9*'Sensitivity Analysis'!$A24-'ENTER DATA HERE - Budget'!$H$54-'ENTER DATA HERE - Budget'!$J$71-'ENTER DATA HERE - Budget'!$N$83)/('ENTER DATA HERE - Budget'!$E$9*'ENTER DATA HERE - Budget'!$E$10) -> 951.3146533 | G24: =(G$4*'ENTER DATA HERE - Budget'!$F$30*'ENTER DATA HERE - Budget'!$E$9-('ENTER DATA HERE - Budget'!$H$45-'ENTER DATA HERE - Budget'!$H$36)-'ENTER DATA HERE - Budget'!$F$36*'ENTER DATA HERE - Budget'!$E$9*'Sensitivity Analysis'!$A24-'ENTER DATA HERE - Budget'!$H$54-'ENTER DATA HERE - Budget'!$J$71-'ENTER DATA HERE - Budget'!$N$83)/('ENTER DATA HERE - Budget'!$E$9*'ENTER DATA HERE - Budget'!$E$10) -> 982.5234924 | H24: =(H$4*'ENTER DATA HERE - Budget'!$F$30*'ENTER DATA HERE - Budget'!$E$9-('ENTER DATA HERE - Budget'!$H$45-'ENTER DATA HERE - Budget'!$H$36)-'ENTER DATA HERE - Budget'!$F$36*'ENTER DATA HERE - Budget'!$E$9*'Sensitivity Analysis'!$A24-'ENTER DATA HERE - Budget'!$H$54-'ENTER DATA HERE - Budget'!$J$71-'ENTER DATA HERE - Budget'!$N$83)/('ENTER DATA HERE - Budget'!$E$9*'ENTER DATA HERE - Budget'!$E$10) -> 1013.732331 | I24: =(I$4*'ENTER DATA HERE - Budget'!$F$30*'ENTER DATA HERE - Budget'!$E$9-('ENTER DATA HERE - Budget'!$H$45-'ENTER DATA HERE - Budget'!$H$36)-'ENTER DATA HERE - Budget'!$F$36*'ENTER DATA HERE - Budget'!$E$9*'Sensitivity Analysis'!$A24-'ENTER DATA HERE - Budget'!$H$54-'ENTER DATA HERE - Budget'!$J$71-'ENTER DATA HERE - Budget'!$N$83)/('ENTER DATA HERE - Budget'!$E$9*'ENTER DATA HERE - Budget'!$E$10) -> 1044.941171 | J24: =(J$4*'ENTER DATA HERE - Budget'!$F$30*'ENTER DATA HERE - Budget'!$E$9-('ENTER DATA HERE - Budget'!$H$45-'ENTER DATA HERE - Budget'!$H$36)-'ENTER DATA HERE - Budget'!$F$36*'ENTER DATA HERE - Budget'!$E$9*'Sensitivity Analysis'!$A24-'ENTER DATA HERE - Budget'!$H$54-'ENTER DATA HERE - Budget'!$J$71-'ENTER DATA HERE - Budget'!$N$83)/('ENTER DATA HERE - Budget'!$E$9*'ENTER DATA HERE - Budget'!$E$10) -> 1076.15001
A25: 0.4 | B25: =(B$4*'ENTER DATA HERE - Budget'!$F$30*'ENTER DATA HERE - Budget'!$E$9-('ENTER DATA HERE - Budget'!$H$45-'ENTER DATA HERE - Budget'!$H$36)-'ENTER DATA HERE - Budget'!$F$36*'ENTER DATA HERE - Budget'!$E$9*'Sensitivity Analysis'!$A25-'ENTER DATA HERE - Budget'!$H$54-'ENTER DATA HERE - Budget'!$J$71-'ENTER DATA HERE - Budget'!$N$83)/('ENTER DATA HERE - Budget'!$E$9*'ENTER DATA HERE - Budget'!$E$10) -> 780.7675269 | C25: =(C$4*'ENTER DATA HERE - Budget'!$F$30*'ENTER DATA HERE - Budget'!$E$9-('ENTER DATA HERE - Budget'!$H$45-'ENTER DATA HERE - Budget'!$H$36)-'ENTER DATA HERE - Budget'!$F$36*'ENTER DATA HERE - Budget'!$E$9*'Sensitivity Analysis'!$A25-'ENTER DATA HERE - Budget'!$H$54-'ENTER DATA HERE - Budget'!$J$71-'ENTER DATA HERE - Budget'!$N$83)/('ENTER DATA HERE - Budget'!$E$9*'ENTER DATA HERE - Budget'!$E$10) -> 811.976366 | D25: =(D$4*'ENTER DATA HERE - Budget'!$F$30*'ENTER DATA HERE - Budget'!$E$9-('ENTER DATA HERE - Budget'!$H$45-'ENTER DATA HERE - Budget'!$H$36)-'ENTER DATA HERE - Budget'!$F$36*'ENTER DATA HERE - Budget'!$E$9*'Sensitivity Analysis'!$A25-'ENTER DATA HERE - Budget'!$H$54-'ENTER DATA HERE - Budget'!$J$71-'ENTER DATA HERE - Budget'!$N$83)/('ENTER DATA HERE - Budget'!$E$9*'ENTER DATA HERE - Budget'!$E$10) -> 843.185205 | E25: =(E$4*'ENTER DATA HERE - Budget'!$F$30*'ENTER DATA HERE - Budget'!$E$9-('ENTER DATA HERE - Budget'!$H$45-'ENTER DATA HERE - Budget'!$H$36)-'ENTER DATA HERE - Budget'!$F$36*'ENTER DATA HERE - Budget'!$E$9*'Sensitivity Analysis'!$A25-'ENTER DATA HERE - Budget'!$H$54-'ENTER DATA HERE - Budget'!$J$71-'ENTER DATA HERE - Budget'!$N$83)/('ENTER DATA HERE - Budget'!$E$9*'ENTER DATA HERE - Budget'!$E$10) -> 874.3940441 | F25: =(F$4*'ENTER DATA HERE - Budget'!$F$30*'ENTER DATA HERE - Budget'!$E$9-('ENTER DATA HERE - Budget'!$H$45-'ENTER DATA HERE - Budget'!$H$36)-'ENTER DATA HERE - Budget'!$F$36*'ENTER DATA HERE - Budget'!$E$9*'Sensitivity Analysis'!$A25-'ENTER DATA HERE - Budget'!$H$54-'ENTER DATA HERE - Budget'!$J$71-'ENTER DATA HERE - Budget'!$N$83)/('ENTER DATA HERE - Budget'!$E$9*'ENTER DATA HERE - Budget'!$E$10) -> 905.6028832 | G25: =(G$4*'ENTER DATA HERE - Budget'!$F$30*'ENTER DATA HERE - Budget'!$E$9-('ENTER DATA HERE - Budget'!$H$45-'ENTER DATA HERE - Budget'!$H$36)-'ENTER DATA HERE - Budget'!$F$36*'ENTER DATA HERE - Budget'!$E$9*'Sensitivity Analysis'!$A25-'ENTER DATA HERE - Budget'!$H$54-'ENTER DATA HERE - Budget'!$J$71-'ENTER DATA HERE - Budget'!$N$83)/('ENTER DATA HERE - Budget'!$E$9*'ENTER DATA HERE - Budget'!$E$10) -> 936.8117222 | H25: =(H$4*'ENTER DATA HERE - Budget'!$F$30*'ENTER DATA HERE - Budget'!$E$9-('ENTER DATA HERE - Budget'!$H$45-'ENTER DATA HERE - Budget'!$H$36)-'ENTER DATA HERE - Budget'!$F$36*'ENTER DATA HERE - Budget'!$E$9*'Sensitivity Analysis'!$A25-'ENTER DATA HERE - Budget'!$H$54-'ENTER DATA HERE - Budget'!$J$71-'ENTER DATA HERE - Budget'!$N$83)/('ENTER DATA HERE - Budget'!$E$9*'ENTER DATA HERE - Budget'!$E$10) -> 968.0205613 | I25: =(I$4*'ENTER DATA HERE - Budget'!$F$30*'ENTER DATA HERE - Budget'!$E$9-('ENTER DATA HERE - Budget'!$H$45-'ENTER DATA HERE - Budget'!$H$36)-'ENTER DATA HERE - Budget'!$F$36*'ENTER DATA HERE - Budget'!$E$9*'Sensitivity Analysis'!$A25-'ENTER DATA HERE - Budget'!$H$54-'ENTER DATA HERE - Budget'!$J$71-'ENTER DATA HERE - Budget'!$N$83)/('ENTER DATA HERE - Budget'!$E$9*'ENTER DATA HERE - Budget'!$E$10) -> 999.2294004 | J25: =(J$4*'ENTER DATA HERE - Budget'!$F$30*'ENTER DATA HERE - Budget'!$E$9-('ENTER DATA HERE - Budget'!$H$45-'ENTER DATA HERE - Budget'!$H$36)-'ENTER DATA HERE - Budget'!$F$36*'ENTER DATA HERE - Budget'!$E$9*'Sensitivity Analysis'!$A25-'ENTER DATA HERE - Budget'!$H$54-'ENTER DATA HERE - Budget'!$J$71-'ENTER DATA HERE - Budget'!$N$83)/('ENTER DATA HERE - Budget'!$E$9*'ENTER DATA HERE - Budget'!$E$10) -> 1030.438239
A26: 0.45 | B26: =(B$4*'ENTER DATA HERE - Budget'!$F$30*'ENTER DATA HERE - Budget'!$E$9-('ENTER DATA HERE - Budget'!$H$45-'ENTER DATA HERE - Budget'!$H$36)-'ENTER DATA HERE - Budget'!$F$36*'ENTER DATA HERE - Budget'!$E$9*'Sensitivity Analysis'!$A26-'ENTER DATA HERE - Budget'!$H$54-'ENTER DATA HERE - Budget'!$J$71-'ENTER DATA HERE - Budget'!$N$83)/('ENTER DATA HERE - Budget'!$E$9*'ENTER DATA HERE - Budget'!$E$10) -> 735.0557568 | C26: =(C$4*'ENTER DATA HERE - Budget'!$F$30*'ENTER DATA HERE - Budget'!$E$9-('ENTER DATA HERE - Budget'!$H$45-'ENTER DATA HERE - Budget'!$H$36)-'ENTER DATA HERE - Budget'!$F$36*'ENTER DATA HERE - Budget'!$E$9*'Sensitivity Analysis'!$A26-'ENTER DATA HERE - Budget'!$H$54-'ENTER DATA HERE - Budget'!$J$71-'ENTER DATA HERE - Budget'!$N$83)/('ENTER DATA HERE - Budget'!$E$9*'ENTER DATA HERE - Budget'!$E$10) -> 766.2645958 | D26: =(D$4*'ENTER DATA HERE - Budget'!$F$30*'ENTER DATA HERE - Budget'!$E$9-('ENTER DATA HERE - Budget'!$H$45-'ENTER DATA HERE - Budget'!$H$36)-'ENTER DATA HERE - Budget'!$F$36*'ENTER DATA HERE - Budget'!$E$9*'Sensitivity Analysis'!$A26-'ENTER DATA HERE - Budget'!$H$54-'ENTER DATA HERE - Budget'!$J$71-'ENTER DATA HERE - Budget'!$N$83)/('ENTER DATA HERE - Budget'!$E$9*'ENTER DATA HERE - Budget'!$E$10) -> 797.4734349 | E26: =(E$4*'ENTER DATA HERE - Budget'!$F$30*'ENTER DATA HERE - Budget'!$E$9-('ENTER DATA HERE - Budget'!$H$45-'ENTER DATA HERE - Budget'!$H$36)-'ENTER DATA HERE - Budget'!$F$36*'ENTER DATA HERE - Budget'!$E$9*'Sensitivity Analysis'!$A26-'ENTER DATA HERE - Budget'!$H$54-'ENTER DATA HERE - Budget'!$J$71-'ENTER DATA HERE - Budget'!$N$83)/('ENTER DATA HERE - Budget'!$E$9*'ENTER DATA HERE - Budget'!$E$10) -> 828.6822739 | F26: =(F$4*'ENTER DATA HERE - Budget'!$F$30*'ENTER DATA HERE - Budget'!$E$9-('ENTER DATA HERE - Budget'!$H$45-'ENTER DATA HERE - Budget'!$H$36)-'ENTER DATA HERE - Budget'!$F$36*'ENTER DATA HERE - Budget'!$E$9*'Sensitivity Analysis'!$A26-'ENTER DATA HERE - Budget'!$H$54-'ENTER DATA HERE - Budget'!$J$71-'ENTER DATA HERE - Budget'!$N$83)/('ENTER DATA HERE - Budget'!$E$9*'ENTER DATA HERE - Budget'!$E$10) -> 859.891113 | G26: =(G$4*'ENTER DATA HERE - Budget'!$F$30*'ENTER DATA HERE - Budget'!$E$9-('ENTER DATA HERE - Budget'!$H$45-'ENTER DATA HERE - Budget'!$H$36)-'ENTER DATA HERE - Budget'!$F$36*'ENTER DATA HERE - Budget'!$E$9*'Sensitivity Analysis'!$A26-'ENTER DATA HERE - Budget'!$H$54-'ENTER DATA HERE - Budget'!$J$71-'ENTER DATA HERE - Budget'!$N$83)/('ENTER DATA HERE - Budget'!$E$9*'ENTER DATA HERE - Budget'!$E$10) -> 891.0999521 | H26: =(H$4*'ENTER DATA HERE - Budget'!$F$30*'ENTER DATA HERE - Budget'!$E$9-('ENTER DATA HERE - Budget'!$H$45-'ENTER DATA HERE - Budget'!$H$36)-'ENTER DATA HERE - Budget'!$F$36*'ENTER DATA HERE - Budget'!$E$9*'Sensitivity Analysis'!$A26-'ENTER DATA HERE - Budget'!$H$54-'ENTER DATA HERE - Budget'!$J$71-'ENTER DATA HERE - Budget'!$N$83)/('ENTER DATA HERE - Budget'!$E$9*'ENTER DATA HERE - Budget'!$E$10) -> 922.3087911 | I26: =(I$4*'ENTER DATA HERE - Budget'!$F$30*'ENTER DATA HERE - Budget'!$E$9-('ENTER DATA HERE - Budget'!$H$45-'ENTER DATA HERE - Budget'!$H$36)-'ENTER DATA HERE - Budget'!$F$36*'ENTER DATA HERE - Budget'!$E$9*'Sensitivity Analysis'!$A26-'ENTER DATA HERE - Budget'!$H$54-'ENTER DATA HERE - Budget'!$J$71-'ENTER DATA HERE - Budget'!$N$83)/('ENTER DATA HERE - Budget'!$E$9*'ENTER DATA HERE - Budget'!$E$10) -> 953.5176302 | J26: =(J$4*'ENTER DATA HERE - Budget'!$F$30*'ENTER DATA HERE - Budget'!$E$9-('ENTER DATA HERE - Budget'!$H$45-'ENTER DATA HERE - Budget'!$H$36)-'ENTER DATA HERE - Budget'!$F$36*'ENTER DATA HERE - Budget'!$E$9*'Sensitivity Analysis'!$A26-'ENTER DATA HERE - Budget'!$H$54-'ENTER DATA HERE - Budget'!$J$71-'ENTER DATA HERE - Budget'!$N$83)/('ENTER DATA HERE - Budget'!$E$9*'ENTER DATA HERE - Budget'!$E$10) -> 984.7264693
A27: 0.5 | B27: =(B$4*'ENTER DATA HERE - Budget'!$F$30*'ENTER DATA HERE - Budget'!$E$9-('ENTER DATA HERE - Budget'!$H$45-'ENTER DATA HERE - Budget'!$H$36)-'ENTER DATA HERE - Budget'!$F$36*'ENTER DATA HERE - Budget'!$E$9*'Sensitivity Analysis'!$A27-'ENTER DATA HERE - Budget'!$H$54-'ENTER DATA HERE - Budget'!$J$71-'ENTER DATA HERE - Budget'!$N$83)/('ENTER DATA HERE - Budget'!$E$9*'ENTER DATA HERE - Budget'!$E$10) -> 689.3439866 | C27: =(C$4*'ENTER DATA HERE - Budget'!$F$30*'ENTER DATA HERE - Budget'!$E$9-('ENTER DATA HERE - Budget'!$H$45-'ENTER DATA HERE - Budget'!$H$36)-'ENTER DATA HERE - Budget'!$F$36*'ENTER DATA HERE - Budget'!$E$9*'Sensitivity Analysis'!$A27-'ENTER DATA HERE - Budget'!$H$54-'ENTER DATA HERE - Budget'!$J$71-'ENTER DATA HERE - Budget'!$N$83)/('ENTER DATA HERE - Budget'!$E$9*'ENTER DATA HERE - Budget'!$E$10) -> 720.5528257 | D27: =(D$4*'ENTER DATA HERE - Budget'!$F$30*'ENTER DATA HERE - Budget'!$E$9-('ENTER DATA HERE - Budget'!$H$45-'ENTER DATA HERE - Budget'!$H$36)-'ENTER DATA HERE - Budget'!$F$36*'ENTER DATA HERE - Budget'!$E$9*'Sensitivity Analysis'!$A27-'ENTER DATA HERE - Budget'!$H$54-'ENTER DATA HERE - Budget'!$J$71-'ENTER DATA HERE - Budget'!$N$83)/('ENTER DATA HERE - Budget'!$E$9*'ENTER DATA HERE - Budget'!$E$10) -> 751.7616647 | E27: =(E$4*'ENTER DATA HERE - Budget'!$F$30*'ENTER DATA HERE - Budget'!$E$9-('ENTER DATA HERE - Budget'!$H$45-'ENTER DATA HERE - Budget'!$H$36)-'ENTER DATA HERE - Budget'!$F$36*'ENTER DATA HERE - Budget'!$E$9*'Sensitivity Analysis'!$A27-'ENTER DATA HERE - Budget'!$H$54-'ENTER DATA HERE - Budget'!$J$71-'ENTER DATA HERE - Budget'!$N$83)/('ENTER DATA HERE - Budget'!$E$9*'ENTER DATA HERE - Budget'!$E$10) -> 782.9705038 | F27: =(F$4*'ENTER DATA HERE - Budget'!$F$30*'ENTER DATA HERE - Budget'!$E$9-('ENTER DATA HERE - Budget'!$H$45-'ENTER DATA HERE - Budget'!$H$36)-'ENTER DATA HERE - Budget'!$F$36*'ENTER DATA HERE - Budget'!$E$9*'Sensitivity Analysis'!$A27-'ENTER DATA HERE - Budget'!$H$54-'ENTER DATA HERE - Budget'!$J$71-'ENTER DATA HERE - Budget'!$N$83)/('ENTER DATA HERE - Budget'!$E$9*'ENTER DATA HERE - Budget'!$E$10) -> 814.1793429 | G27: =(G$4*'ENTER DATA HERE - Budget'!$F$30*'ENTER DATA HERE - Budget'!$E$9-('ENTER DATA HERE - Budget'!$H$45-'ENTER DATA HERE - Budget'!$H$36)-'ENTER DATA HERE - Budget'!$F$36*'ENTER DATA HERE - Budget'!$E$9*'Sensitivity Analysis'!$A27-'ENTER DATA HERE - Budget'!$H$54-'ENTER DATA HERE - Budget'!$J$71-'ENTER DATA HERE - Budget'!$N$83)/('ENTER DATA HERE - Budget'!$E$9*'ENTER DATA HERE - Budget'!$E$10) -> 845.3881819 | H27: =(H$4*'ENTER DATA HERE - Budget'!$F$30*'ENTER DATA HERE - Budget'!$E$9-('ENTER DATA HERE - Budget'!$H$45-'ENTER DATA HERE - Budget'!$H$36)-'ENTER DATA HERE - Budget'!$F$36*'ENTER DATA HERE - Budget'!$E$9*'Sensitivity Analysis'!$A27-'ENTER DATA HERE - Budget'!$H$54-'ENTER DATA HERE - Budget'!$J$71-'ENTER DATA HERE - Budget'!$N$83)/('ENTER DATA HERE - Budget'!$E$9*'ENTER DATA HERE - Budget'!$E$10) -> 876.597021 | I27: =(I$4*'ENTER DATA HERE - Budget'!$F$30*'ENTER DATA HERE - Budget'!$E$9-('ENTER DATA HERE - Budget'!$H$45-'ENTER DATA HERE - Budget'!$H$36)-'ENTER DATA HERE - Budget'!$F$36*'ENTER DATA HERE - Budget'!$E$9*'Sensitivity Analysis'!$A27-'ENTER DATA HERE - Budget'!$H$54-'ENTER DATA HERE - Budget'!$J$71-'ENTER DATA HERE - Budget'!$N$83)/('ENTER DATA HERE - Budget'!$E$9*'ENTER DATA HERE - Budget'!$E$10) -> 907.80586 | J27: =(J$4*'ENTER DATA HERE - Budget'!$F$30*'ENTER DATA HERE - Budget'!$E$9-('ENTER DATA HERE - Budget'!$H$45-'ENTER DATA HERE - Budget'!$H$36)-'ENTER DATA HERE - Budget'!$F$36*'ENTER DATA HERE - Budget'!$E$9*'Sensitivity Analysis'!$A27-'ENTER DATA HERE - Budget'!$H$54-'ENTER DATA HERE - Budget'!$J$71-'ENTER DATA HERE - Budget'!$N$83)/('ENTER DATA HERE - Budget'!$E$9*'ENTER DATA HERE - Budget'!$E$10) -> 939.0146991
A28: 0.55 | B28: =(B$4*'ENTER DATA HERE - Budget'!$F$30*'ENTER DATA HERE - Budget'!$E$9-('ENTER DATA HERE - Budget'!$H$45-'ENTER DATA HERE - Budget'!$H$36)-'ENTER DATA HERE - Budget'!$F$36*'ENTER DATA HERE - Budget'!$E$9*'Sensitivity Analysis'!$A28-'ENTER DATA HERE - Budget'!$H$54-'ENTER DATA HERE - Budget'!$J$71-'ENTER DATA HERE - Budget'!$N$83)/('ENTER DATA HERE - Budget'!$E$9*'ENTER DATA HERE - Budget'!$E$10) -> 643.6322164 | C28: =(C$4*'ENTER DATA HERE - Budget'!$F$30*'ENTER DATA HERE - Budget'!$E$9-('ENTER DATA HERE - Budget'!$H$45-'ENTER DATA HERE - Budget'!$H$36)-'ENTER DATA HERE - Budget'!$F$36*'ENTER DATA HERE - Budget'!$E$9*'Sensitivity Analysis'!$A28-'ENTER DATA HERE - Budget'!$H$54-'ENTER DATA HERE - Budget'!$J$71-'ENTER DATA HERE - Budget'!$N$83)/('ENTER DATA HERE - Budget'!$E$9*'ENTER DATA HERE - Budget'!$E$10) -> 674.8410555 | D28: =(D$4*'ENTER DATA HERE - Budget'!$F$30*'ENTER DATA HERE - Budget'!$E$9-('ENTER DATA HERE - Budget'!$H$45-'ENTER DATA HERE - Budget'!$H$36)-'ENTER DATA HERE - Budget'!$F$36*'ENTER DATA HERE - Budget'!$E$9*'Sensitivity Analysis'!$A28-'ENTER DATA HERE - Budget'!$H$54-'ENTER DATA HERE - Budget'!$J$71-'ENTER DATA HERE - Budget'!$N$83)/('ENTER DATA HERE - Budget'!$E$9*'ENTER DATA HERE - Budget'!$E$10) -> 706.0498946 | E28: =(E$4*'ENTER DATA HERE - Budget'!$F$30*'ENTER DATA HERE - Budget'!$E$9-('ENTER DATA HERE - Budget'!$H$45-'ENTER DATA HERE - Budget'!$H$36)-'ENTER DATA HERE - Budget'!$F$36*'ENTER DATA HERE - Budget'!$E$9*'Sensitivity Analysis'!$A28-'ENTER DATA HERE - Budget'!$H$54-'ENTER DATA HERE - Budget'!$J$71-'ENTER DATA HERE - Budget'!$N$83)/('ENTER DATA HERE - Budget'!$E$9*'ENTER DATA HERE - Budget'!$E$10) -> 737.2587336 | F28: =(F$4*'ENTER DATA HERE - Budget'!$F$30*'ENTER DATA HERE - Budget'!$E$9-('ENTER DATA HERE - Budget'!$H$45-'ENTER DATA HERE - Budget'!$H$36)-'ENTER DATA HERE - Budget'!$F$36*'ENTER DATA HERE - Budget'!$E$9*'Sensitivity Analysis'!$A28-'ENTER DATA HERE - Budget'!$H$54-'ENTER DATA HERE - Budget'!$J$71-'ENTER DATA HERE - Budget'!$N$83)/('ENTER DATA HERE - Budget'!$E$9*'ENTER DATA HERE - Budget'!$E$10) -> 768.4675727 | G28: =(G$4*'ENTER DATA HERE - Budget'!$F$30*'ENTER DATA HERE - Budget'!$E$9-('ENTER DATA HERE - Budget'!$H$45-'ENTER DATA HERE - Budget'!$H$36)-'ENTER DATA HERE - Budget'!$F$36*'ENTER DATA HERE - Budget'!$E$9*'Sensitivity Analysis'!$A28-'ENTER DATA HERE - Budget'!$H$54-'ENTER DATA HERE - Budget'!$J$71-'ENTER DATA HERE - Budget'!$N$83)/('ENTER DATA HERE - Budget'!$E$9*'ENTER DATA HERE - Budget'!$E$10) -> 799.6764118 | H28: =(H$4*'ENTER DATA HERE - Budget'!$F$30*'ENTER DATA HERE - Budget'!$E$9-('ENTER DATA HERE - Budget'!$H$45-'ENTER DATA HERE - Budget'!$H$36)-'ENTER DATA HERE - Budget'!$F$36*'ENTER DATA HERE - Budget'!$E$9*'Sensitivity Analysis'!$A28-'ENTER DATA HERE - Budget'!$H$54-'ENTER DATA HERE - Budget'!$J$71-'ENTER DATA HERE - Budget'!$N$83)/('ENTER DATA HERE - Budget'!$E$9*'ENTER DATA HERE - Budget'!$E$10) -> 830.8852508 | I28: =(I$4*'ENTER DATA HERE - Budget'!$F$30*'ENTER DATA HERE - Budget'!$E$9-('ENTER DATA HERE - Budget'!$H$45-'ENTER DATA HERE - Budget'!$H$36)-'ENTER DATA HERE - Budget'!$F$36*'ENTER DATA HERE - Budget'!$E$9*'Sensitivity Analysis'!$A28-'ENTER DATA HERE - Budget'!$H$54-'ENTER DATA HERE - Budget'!$J$71-'ENTER DATA HERE - Budget'!$N$83)/('ENTER DATA HERE - Budget'!$E$9*'ENTER DATA HERE - Budget'!$E$10) -> 862.0940899 | J28: =(J$4*'ENTER DATA HERE - Budget'!$F$30*'ENTER DATA HERE - Budget'!$E$9-('ENTER DATA HERE - Budget'!$H$45-'ENTER DATA HERE - Budget'!$H$36)-'ENTER DATA HERE - Budget'!$F$36*'ENTER DATA HERE - Budget'!$E$9*'Sensitivity Analysis'!$A28-'ENTER DATA HERE - Budget'!$H$54-'ENTER DATA HERE - Budget'!$J$71-'ENTER DATA HERE - Budget'!$N$83)/('ENTER DATA HERE - Budget'!$E$9*'ENTER DATA HERE - Budget'!$E$10) -> 893.3029289
A29: 0.6 | B29: =(B$4*'ENTER DATA HERE - Budget'!$F$30*'ENTER DATA HERE - Budget'!$E$9-('ENTER DATA HERE - Budget'!$H$45-'ENTER DATA HERE - Budget'!$H$36)-'ENTER DATA HERE - Budget'!$F$36*'ENTER DATA HERE - Budget'!$E$9*'Sensitivity Analysis'!$A29-'ENTER DATA HERE - Budget'!$H$54-'ENTER DATA HERE - Budget'!$J$71-'ENTER DATA HERE - Budget'!$N$83)/('ENTER DATA HERE - Budget'!$E$9*'ENTER DATA HERE - Budget'!$E$10) -> 597.9204463 | C29: =(C$4*'ENTER DATA HERE - Budget'!$F$30*'ENTER DATA HERE - Budget'!$E$9-('ENTER DATA HERE - Budget'!$H$45-'ENTER DATA HERE - Budget'!$H$36)-'ENTER DATA HERE - Budget'!$F$36*'ENTER DATA HERE - Budget'!$E$9*'Sensitivity Analysis'!$A29-'ENTER DATA HERE - Budget'!$H$54-'ENTER DATA HERE - Budget'!$J$71-'ENTER DATA HERE - Budget'!$N$83)/('ENTER DATA HERE - Budget'!$E$9*'ENTER DATA HERE - Budget'!$E$10) -> 629.1292854 | D29: =(D$4*'ENTER DATA HERE - Budget'!$F$30*'ENTER DATA HERE - Budget'!$E$9-('ENTER DATA HERE - Budget'!$H$45-'ENTER DATA HERE - Budget'!$H$36)-'ENTER DATA HERE - Budget'!$F$36*'ENTER DATA HERE - Budget'!$E$9*'Sensitivity Analysis'!$A29-'ENTER DATA HERE - Budget'!$H$54-'ENTER DATA HERE - Budget'!$J$71-'ENTER DATA HERE - Budget'!$N$83)/('ENTER DATA HERE - Budget'!$E$9*'ENTER DATA HERE - Budget'!$E$10) -> 660.3381244 | E29: =(E$4*'ENTER DATA HERE - Budget'!$F$30*'ENTER DATA HERE - Budget'!$E$9-('ENTER DATA HERE - Budget'!$H$45-'ENTER DATA HERE - Budget'!$H$36)-'ENTER DATA HERE - Budget'!$F$36*'ENTER DATA HERE - Budget'!$E$9*'Sensitivity Analysis'!$A29-'ENTER DATA HERE - Budget'!$H$54-'ENTER DATA HERE - Budget'!$J$71-'ENTER DATA HERE - Budget'!$N$83)/('ENTER DATA HERE - Budget'!$E$9*'ENTER DATA HERE - Budget'!$E$10) -> 691.5469635 | F29: =(F$4*'ENTER DATA HERE - Budget'!$F$30*'ENTER DATA HERE - Budget'!$E$9-('ENTER DATA HERE - Budget'!$H$45-'ENTER DATA HERE - Budget'!$H$36)-'ENTER DATA HERE - Budget'!$F$36*'ENTER DATA HERE - Budget'!$E$9*'Sensitivity Analysis'!$A29-'ENTER DATA HERE - Budget'!$H$54-'ENTER DATA HERE - Budget'!$J$71-'ENTER DATA HERE - Budget'!$N$83)/('ENTER DATA HERE - Budget'!$E$9*'ENTER DATA HERE - Budget'!$E$10) -> 722.7558025 | G29: =(G$4*'ENTER DATA HERE - Budget'!$F$30*'ENTER DATA HERE - Budget'!$E$9-('ENTER DATA HERE - Budget'!$H$45-'ENTER DATA HERE - Budget'!$H$36)-'ENTER DATA HERE - Budget'!$F$36*'ENTER DATA HERE - Budget'!$E$9*'Sensitivity Analysis'!$A29-'ENTER DATA HERE - Budget'!$H$54-'ENTER DATA HERE - Budget'!$J$71-'ENTER DATA HERE - Budget'!$N$83)/('ENTER DATA HERE - Budget'!$E$9*'ENTER DATA HERE - Budget'!$E$10) -> 753.9646416 | H29: =(H$4*'ENTER DATA HERE - Budget'!$F$30*'ENTER DATA HERE - Budget'!$E$9-('ENTER DATA HERE - Budget'!$H$45-'ENTER DATA HERE - Budget'!$H$36)-'ENTER DATA HERE - Budget'!$F$36*'ENTER DATA HERE - Budget'!$E$9*'Sensitivity Analysis'!$A29-'ENTER DATA HERE - Budget'!$H$54-'ENTER DATA HERE - Budget'!$J$71-'ENTER DATA HERE - Budget'!$N$83)/('ENTER DATA HERE - Budget'!$E$9*'ENTER DATA HERE - Budget'!$E$10) -> 785.1734807 | I29: =(I$4*'ENTER DATA HERE - Budget'!$F$30*'ENTER DATA HERE - Budget'!$E$9-('ENTER DATA HERE - Budget'!$H$45-'ENTER DATA HERE - Budget'!$H$36)-'ENTER DATA HERE - Budget'!$F$36*'ENTER DATA HERE - Budget'!$E$9*'Sensitivity Analysis'!$A29-'ENTER DATA HERE - Budget'!$H$54-'ENTER DATA HERE - Budget'!$J$71-'ENTER DATA HERE - Budget'!$N$83)/('ENTER DATA HERE - Budget'!$E$9*'ENTER DATA HERE - Budget'!$E$10) -> 816.3823197 | J29: =(J$4*'ENTER DATA HERE - Budget'!$F$30*'ENTER DATA HERE - Budget'!$E$9-('ENTER DATA HERE - Budget'!$H$45-'ENTER DATA HERE - Budget'!$H$36)-'ENTER DATA HERE - Budget'!$F$36*'ENTER DATA HERE - Budget'!$E$9*'Sensitivity Analysis'!$A29-'ENTER DATA HERE - Budget'!$H$54-'ENTER DATA HERE - Budget'!$J$71-'ENTER DATA HERE - Budget'!$N$83)/('ENTER DATA HERE - Budget'!$E$9*'ENTER DATA HERE - Budget'!$E$10) -> 847.5911588
A30: 0.65 | B30: =(B$4*'ENTER DATA HERE - Budget'!$F$30*'ENTER DATA HERE - Budget'!$E$9-('ENTER DATA HERE - Budget'!$H$45-'ENTER DATA HERE - Budget'!$H$36)-'ENTER DATA HERE - Budget'!$F$36*'ENTER DATA HERE - Budget'!$E$9*'Sensitivity Analysis'!$A30-'ENTER DATA HERE - Budget'!$H$54-'ENTER DATA HERE - Budget'!$J$71-'ENTER DATA HERE - Budget'!$N$83)/('ENTER DATA HERE - Budget'!$E$9*'ENTER DATA HERE - Budget'!$E$10) -> 552.2086761 | C30: =(C$4*'ENTER DATA HERE - Budget'!$F$30*'ENTER DATA HERE - Budget'!$E$9-('ENTER DATA HERE - Budget'!$H$45-'ENTER DATA HERE - Budget'!$H$36)-'ENTER DATA HERE - Budget'!$F$36*'ENTER DATA HERE - Budget'!$E$9*'Sensitivity Analysis'!$A30-'ENTER DATA HERE - Budget'!$H$54-'ENTER DATA HERE - Budget'!$J$71-'ENTER DATA HERE - Budget'!$N$83)/('ENTER DATA HERE - Budget'!$E$9*'ENTER DATA HERE - Budget'!$E$10) -> 583.4175152 | D30: =(D$4*'ENTER DATA HERE - Budget'!$F$30*'ENTER DATA HERE - Budget'!$E$9-('ENTER DATA HERE - Budget'!$H$45-'ENTER DATA HERE - Budget'!$H$36)-'ENTER DATA HERE - Budget'!$F$36*'ENTER DATA HERE - Budget'!$E$9*'Sensitivity Analysis'!$A30-'ENTER DATA HERE - Budget'!$H$54-'ENTER DATA HERE - Budget'!$J$71-'ENTER DATA HERE - Budget'!$N$83)/('ENTER DATA HERE - Budget'!$E$9*'ENTER DATA HERE - Budget'!$E$10) -> 614.6263543 | E30: =(E$4*'ENTER DATA HERE - Budget'!$F$30*'ENTER DATA HERE - Budget'!$E$9-('ENTER DATA HERE - Budget'!$H$45-'ENTER DATA HERE - Budget'!$H$36)-'ENTER DATA HERE - Budget'!$F$36*'ENTER DATA HERE - Budget'!$E$9*'Sensitivity Analysis'!$A30-'ENTER DATA HERE - Budget'!$H$54-'ENTER DATA HERE - Budget'!$J$71-'ENTER DATA HERE - Budget'!$N$83)/('ENTER DATA HERE - Budget'!$E$9*'ENTER DATA HERE - Budget'!$E$10) -> 645.8351933 | F30: =(F$4*'ENTER DATA HERE - Budget'!$F$30*'ENTER DATA HERE - Budget'!$E$9-('ENTER DATA HERE - Budget'!$H$45-'ENTER DATA HERE - Budget'!$H$36)-'ENTER DATA HERE - Budget'!$F$36*'ENTER DATA HERE - Budget'!$E$9*'Sensitivity Analysis'!$A30-'ENTER DATA HERE - Budget'!$H$54-'ENTER DATA HERE - Budget'!$J$71-'ENTER DATA HERE - Budget'!$N$83)/('ENTER DATA HERE - Budget'!$E$9*'ENTER DATA HERE - Budget'!$E$10) -> 677.0440324 | G30: =(G$4*'ENTER DATA HERE - Budget'!$F$30*'ENTER DATA HERE - Budget'!$E$9-('ENTER DATA HERE - Budget'!$H$45-'ENTER DATA HERE - Budget'!$H$36)-'ENTER DATA HERE - Budget'!$F$36*'ENTER DATA HERE - Budget'!$E$9*'Sensitivity Analysis'!$A30-'ENTER DATA HERE - Budget'!$H$54-'ENTER DATA HERE - Budget'!$J$71-'ENTER DATA HERE - Budget'!$N$83)/('ENTER DATA HERE - Budget'!$E$9*'ENTER DATA HERE - Budget'!$E$10) -> 708.2528714 | H30: =(H$4*'ENTER DATA HERE - Budget'!$F$30*'ENTER DATA HERE - Budget'!$E$9-('ENTER DATA HERE - Budget'!$H$45-'ENTER DATA HERE - Budget'!$H$36)-'ENTER DATA HERE - Budget'!$F$36*'ENTER DATA HERE - Budget'!$E$9*'Sensitivity Analysis'!$A30-'ENTER DATA HERE - Budget'!$H$54-'ENTER DATA HERE - Budget'!$J$71-'ENTER DATA HERE - Budget'!$N$83)/('ENTER DATA HERE - Budget'!$E$9*'ENTER DATA HERE - Budget'!$E$10) -> 739.4617105 | I30: =(I$4*'ENTER DATA HERE - Budget'!$F$30*'ENTER DATA HERE - Budget'!$E$9-('ENTER DATA HERE - Budget'!$H$45-'ENTER DATA HERE - Budget'!$H$36)-'ENTER DATA HERE - Budget'!$F$36*'ENTER DATA HERE - Budget'!$E$9*'Sensitivity Analysis'!$A30-'ENTER DATA HERE - Budget'!$H$54-'ENTER DATA HERE - Budget'!$J$71-'ENTER DATA HERE - Budget'!$N$83)/('ENTER DATA HERE - Budget'!$E$9*'ENTER DATA HERE - Budget'!$E$10) -> 770.6705496 | J30: =(J$4*'ENTER DATA HERE - Budget'!$F$30*'ENTER DATA HERE - Budget'!$E$9-('ENTER DATA HERE - Budget'!$H$45-'ENTER DATA HERE - Budget'!$H$36)-'ENTER DATA HERE - Budget'!$F$36*'ENTER DATA HERE - Budget'!$E$9*'Sensitivity Analysis'!$A30-'ENTER DATA HERE - Budget'!$H$54-'ENTER DATA HERE - Budget'!$J$71-'ENTER DATA HERE - Budget'!$N$83)/('ENTER DATA HERE - Budget'!$E$9*'ENTER DATA HERE - Budget'!$E$10) -> 801.8793886
A31: 0.7 | B31: =(B$4*'ENTER DATA HERE - Budget'!$F$30*'ENTER DATA HERE - Budget'!$E$9-('ENTER DATA HERE - Budget'!$H$45-'ENTER DATA HERE - Budget'!$H$36)-'ENTER DATA HERE - Budget'!$F$36*'ENTER DATA HERE - Budget'!$E$9*'Sensitivity Analysis'!$A31-'ENTER DATA HERE - Budget'!$H$54-'ENTER DATA HERE - Budget'!$J$71-'ENTER DATA HERE - Budget'!$N$83)/('ENTER DATA HERE - Budget'!$E$9*'ENTER DATA HERE - Budget'!$E$10) -> 506.496906 | C31: =(C$4*'ENTER DATA HERE - Budget'!$F$30*'ENTER DATA HERE - Budget'!$E$9-('ENTER DATA HERE - Budget'!$H$45-'ENTER DATA HERE - Budget'!$H$36)-'ENTER DATA HERE - Budget'!$F$36*'ENTER DATA HERE - Budget'!$E$9*'Sensitivity Analysis'!$A31-'ENTER DATA HERE - Budget'!$H$54-'ENTER DATA HERE - Budget'!$J$71-'ENTER DATA HERE - Budget'!$N$83)/('ENTER DATA HERE - Budget'!$E$9*'ENTER DATA HERE - Budget'!$E$10) -> 537.705745 | D31: =(D$4*'ENTER DATA HERE - Budget'!$F$30*'ENTER DATA HERE - Budget'!$E$9-('ENTER DATA HERE - Budget'!$H$45-'ENTER DATA HERE - Budget'!$H$36)-'ENTER DATA HERE - Budget'!$F$36*'ENTER DATA HERE - Budget'!$E$9*'Sensitivity Analysis'!$A31-'ENTER DATA HERE - Budget'!$H$54-'ENTER DATA HERE - Budget'!$J$71-'ENTER DATA HERE - Budget'!$N$83)/('ENTER DATA HERE - Budget'!$E$9*'ENTER DATA HERE - Budget'!$E$10) -> 568.9145841 | E31: =(E$4*'ENTER DATA HERE - Budget'!$F$30*'ENTER DATA HERE - Budget'!$E$9-('ENTER DATA HERE - Budget'!$H$45-'ENTER DATA HERE - Budget'!$H$36)-'ENTER DATA HERE - Budget'!$F$36*'ENTER DATA HERE - Budget'!$E$9*'Sensitivity Analysis'!$A31-'ENTER DATA HERE - Budget'!$H$54-'ENTER DATA HERE - Budget'!$J$71-'ENTER DATA HERE - Budget'!$N$83)/('ENTER DATA HERE - Budget'!$E$9*'ENTER DATA HERE - Budget'!$E$10) -> 600.1234232 | F31: =(F$4*'ENTER DATA HERE - Budget'!$F$30*'ENTER DATA HERE - Budget'!$E$9-('ENTER DATA HERE - Budget'!$H$45-'ENTER DATA HERE - Budget'!$H$36)-'ENTER DATA HERE - Budget'!$F$36*'ENTER DATA HERE - Budget'!$E$9*'Sensitivity Analysis'!$A31-'ENTER DATA HERE - Budget'!$H$54-'ENTER DATA HERE - Budget'!$J$71-'ENTER DATA HERE - Budget'!$N$83)/('ENTER DATA HERE - Budget'!$E$9*'ENTER DATA HERE - Budget'!$E$10) -> 631.3322622 | G31: =(G$4*'ENTER DATA HERE - Budget'!$F$30*'ENTER DATA HERE - Budget'!$E$9-('ENTER DATA HERE - Budget'!$H$45-'ENTER DATA HERE - Budget'!$H$36)-'ENTER DATA HERE - Budget'!$F$36*'ENTER DATA HERE - Budget'!$E$9*'Sensitivity Analysis'!$A31-'ENTER DATA HERE - Budget'!$H$54-'ENTER DATA HERE - Budget'!$J$71-'ENTER DATA HERE - Budget'!$N$83)/('ENTER DATA HERE - Budget'!$E$9*'ENTER DATA HERE - Budget'!$E$10) -> 662.5411013 | H31: =(H$4*'ENTER DATA HERE - Budget'!$F$30*'ENTER DATA HERE - Budget'!$E$9-('ENTER DATA HERE - Budget'!$H$45-'ENTER DATA HERE - Budget'!$H$36)-'ENTER DATA HERE - Budget'!$F$36*'ENTER DATA HERE - Budget'!$E$9*'Sensitivity Analysis'!$A31-'ENTER DATA HERE - Budget'!$H$54-'ENTER DATA HERE - Budget'!$J$71-'ENTER DATA HERE - Budget'!$N$83)/('ENTER DATA HERE - Budget'!$E$9*'ENTER DATA HERE - Budget'!$E$10) -> 693.7499404 | I31: =(I$4*'ENTER DATA HERE - Budget'!$F$30*'ENTER DATA HERE - Budget'!$E$9-('ENTER DATA HERE - Budget'!$H$45-'ENTER DATA HERE - Budget'!$H$36)-'ENTER DATA HERE - Budget'!$F$36*'ENTER DATA HERE - Budget'!$E$9*'Sensitivity Analysis'!$A31-'ENTER DATA HERE - Budget'!$H$54-'ENTER DATA HERE - Budget'!$J$71-'ENTER DATA HERE - Budget'!$N$83)/('ENTER DATA HERE - Budget'!$E$9*'ENTER DATA HERE - Budget'!$E$10) -> 724.9587794 | J31: =(J$4*'ENTER DATA HERE - Budget'!$F$30*'ENTER DATA HERE - Budget'!$E$9-('ENTER DATA HERE - Budget'!$H$45-'ENTER DATA HERE - Budget'!$H$36)-'ENTER DATA HERE - Budget'!$F$36*'ENTER DATA HERE - Budget'!$E$9*'Sensitivity Analysis'!$A31-'ENTER DATA HERE - Budget'!$H$54-'ENTER DATA HERE - Budget'!$J$71-'ENTER DATA HERE - Budget'!$N$83)/('ENTER DATA HERE - Budget'!$E$9*'ENTER DATA HERE - Budget'!$E$10) -> 756.1676185
A32: 0.75 | B32: =(B$4*'ENTER DATA HERE - Budget'!$F$30*'ENTER DATA HERE - Budget'!$E$9-('ENTER DATA HERE - Budget'!$H$45-'ENTER DATA HERE - Budget'!$H$36)-'ENTER DATA HERE - Budget'!$F$36*'ENTER DATA HERE - Budget'!$E$9*'Sensitivity Analysis'!$A32-'ENTER DATA HERE - Budget'!$H$54-'ENTER DATA HERE - Budget'!$J$71-'ENTER DATA HERE - Budget'!$N$83)/('ENTER DATA HERE - Budget'!$E$9*'ENTER DATA HERE - Budget'!$E$10) -> 460.7851358 | C32: =(C$4*'ENTER DATA HERE - Budget'!$F$30*'ENTER DATA HERE - Budget'!$E$9-('ENTER DATA HERE - Budget'!$H$45-'ENTER DATA HERE - Budget'!$H$36)-'ENTER DATA HERE - Budget'!$F$36*'ENTER DATA HERE - Budget'!$E$9*'Sensitivity Analysis'!$A32-'ENTER DATA HERE - Budget'!$H$54-'ENTER DATA HERE - Budget'!$J$71-'ENTER DATA HERE - Budget'!$N$83)/('ENTER DATA HERE - Budget'!$E$9*'ENTER DATA HERE - Budget'!$E$10) -> 491.9939749 | D32: =(D$4*'ENTER DATA HERE - Budget'!$F$30*'ENTER DATA HERE - Budget'!$E$9-('ENTER DATA HERE - Budget'!$H$45-'ENTER DATA HERE - Budget'!$H$36)-'ENTER DATA HERE - Budget'!$F$36*'ENTER DATA HERE - Budget'!$E$9*'Sensitivity Analysis'!$A32-'ENTER DATA HERE - Budget'!$H$54-'ENTER DATA HERE - Budget'!$J$71-'ENTER DATA HERE - Budget'!$N$83)/('ENTER DATA HERE - Budget'!$E$9*'ENTER DATA HERE - Budget'!$E$10) -> 523.2028139 | E32: =(E$4*'ENTER DATA HERE - Budget'!$F$30*'ENTER DATA HERE - Budget'!$E$9-('ENTER DATA HERE - Budget'!$H$45-'ENTER DATA HERE - Budget'!$H$36)-'ENTER DATA HERE - Budget'!$F$36*'ENTER DATA HERE - Budget'!$E$9*'Sensitivity Analysis'!$A32-'ENTER DATA HERE - Budget'!$H$54-'ENTER DATA HERE - Budget'!$J$71-'ENTER DATA HERE - Budget'!$N$83)/('ENTER DATA HERE - Budget'!$E$9*'ENTER DATA HERE - Budget'!$E$10) -> 554.411653 | F32: =(F$4*'ENTER DATA HERE - Budget'!$F$30*'ENTER DATA HERE - Budget'!$E$9-('ENTER DATA HERE - Budget'!$H$45-'ENTER DATA HERE - Budget'!$H$36)-'ENTER DATA HERE - Budget'!$F$36*'ENTER DATA HERE - Budget'!$E$9*'Sensitivity Analysis'!$A32-'ENTER DATA HERE - Budget'!$H$54-'ENTER DATA HERE - Budget'!$J$71-'ENTER DATA HERE - Budget'!$N$83)/('ENTER DATA HERE - Budget'!$E$9*'ENTER DATA HERE - Budget'!$E$10) -> 585.6204921 | G32: =(G$4*'ENTER DATA HERE - Budget'!$F$30*'ENTER DATA HERE - Budget'!$E$9-('ENTER DATA HERE - Budget'!$H$45-'ENTER DATA HERE - Budget'!$H$36)-'ENTER DATA HERE - Budget'!$F$36*'ENTER DATA HERE - Budget'!$E$9*'Sensitivity Analysis'!$A32-'ENTER DATA HERE - Budget'!$H$54-'ENTER DATA HERE - Budget'!$J$71-'ENTER DATA HERE - Budget'!$N$83)/('ENTER DATA HERE - Budget'!$E$9*'ENTER DATA HERE - Budget'!$E$10) -> 616.8293311 | H32: =(H$4*'ENTER DATA HERE - Budget'!$F$30*'ENTER DATA HERE - Budget'!$E$9-('ENTER DATA HERE - Budget'!$H$45-'ENTER DATA HERE - Budget'!$H$36)-'ENTER DATA HERE - Budget'!$F$36*'ENTER DATA HERE - Budget'!$E$9*'Sensitivity Analysis'!$A32-'ENTER DATA HERE - Budget'!$H$54-'ENTER DATA HERE - Budget'!$J$71-'ENTER DATA HERE - Budget'!$N$83)/('ENTER DATA HERE - Budget'!$E$9*'ENTER DATA HERE - Budget'!$E$10) -> 648.0381702 | I32: =(I$4*'ENTER DATA HERE - Budget'!$F$30*'ENTER DATA HERE - Budget'!$E$9-('ENTER DATA HERE - Budget'!$H$45-'ENTER DATA HERE - Budget'!$H$36)-'ENTER DATA HERE - Budget'!$F$36*'ENTER DATA HERE - Budget'!$E$9*'Sensitivity Analysis'!$A32-'ENTER DATA HERE - Budget'!$H$54-'ENTER DATA HERE - Budget'!$J$71-'ENTER DATA HERE - Budget'!$N$83)/('ENTER DATA HERE - Budget'!$E$9*'ENTER DATA HERE - Budget'!$E$10) -> 679.2470093 | J32: =(J$4*'ENTER DATA HERE - Budget'!$F$30*'ENTER DATA HERE - Budget'!$E$9-('ENTER DATA HERE - Budget'!$H$45-'ENTER DATA HERE - Budget'!$H$36)-'ENTER DATA HERE - Budget'!$F$36*'ENTER DATA HERE - Budget'!$E$9*'Sensitivity Analysis'!$A32-'ENTER DATA HERE - Budget'!$H$54-'ENTER DATA HERE - Budget'!$J$71-'ENTER DATA HERE - Budget'!$N$83)/('ENTER DATA HERE - Budget'!$E$9*'ENTER DATA HERE - Budget'!$E$10) -> 710.4558483

Sheet Schedule
D2: January | E2: February | F2: March | G2: April | H2: May | I2: June | J2: July | K2: August | L2: September | M2: October | N2: November | O2: December
B3: Year 1 | C3: Stock | D3: =IF('Cash Flow'!$V4='ENTER DATA HERE - Budget'!$E$10,"Stock","") ->  | E3: =IF('Cash Flow'!$V5='ENTER DATA HERE - Budget'!$E$10,"Stock","") ->  | F3: =IF('Cash Flow'!$V6='ENTER DATA HERE - Budget'!$E$10,"Stock","") ->  | G3: =IF('Cash Flow'!$V7='ENTER DATA HERE - Budget'!$E$10,"Stock","") -> Stock | H3: =IF('Cash Flow'!$V8='ENTER DATA HERE - Budget'!$E$10,"Stock","") -> Stock | I3: =IF('Cash Flow'!$V9='ENTER DATA HERE - Budget'!$E$10,"Stock","") -> Stock | J3: =IF('Cash Flow'!$V10='ENTER DATA HERE - Budget'!$E$10,"Stock","") ->  | K3: =IF('Cash Flow'!$V11='ENTER DATA HERE - Budget'!$E$10,"Stock","") ->  | L3: =IF('Cash Flow'!$V12='ENTER DATA HERE - Budget'!$E$10,"Stock","") ->  | M3: =IF('Cash Flow'!$V13='ENTER DATA HERE - Budget'!$E$10,"Stock","") ->  | N3: =IF('Cash Flow'!$V14='ENTER DATA HERE - Budget'!$E$10,"Stock","") ->  | O3: =IF('Cash Flow'!$V15='ENTER DATA HERE - Budget'!$E$10,"Stock","") -> 
C4: Harvest | D4: =IF('Cash Flow'!$W4='ENTER DATA HERE - Budget'!$E$10,"Harvest","") ->  | E4: =IF('Cash Flow'!$W5='ENTER DATA HERE - Budget'!$E$10,"Harvest","") ->  | F4: =IF('Cash Flow'!$W6='ENTER DATA HERE - Budget'!$E$10,"Harvest","") ->  | G4: =IF('Cash Flow'!$W7='ENTER DATA HERE - Budget'!$E$10,"Harvest","") ->  | H4: =IF('Cash Flow'!$W8='ENTER DATA HERE - Budget'!$E$10,"Harvest","") ->  | I4: =IF('Cash Flow'!$W9='ENTER DATA HERE - Budget'!$E$10,"Harvest","") ->  | J4: =IF('Cash Flow'!$W10='ENTER DATA HERE - Budget'!$E$10,"Harvest","") ->  | K4: =IF('Cash Flow'!$W11='ENTER DATA HERE - Budget'!$E$10,"Harvest","") ->  | L4: =IF('Cash Flow'!$W12='ENTER DATA HERE - Budget'!$E$10,"Harvest","") ->  | M4: =IF('Cash Flow'!$W13='ENTER DATA HERE - Budget'!$E$10,"Harvest","") ->  | N4: =IF('Cash Flow'!$W14='ENTER DATA HERE - Budget'!$E$10,"Harvest","") ->  | O4: =IF('Cash Flow'!$W15='ENTER DATA HERE - Budget'!$E$10,"Harvest","") -> 
B6: Year 2 | C6: Stock | D6: =IF('Cash Flow'!$V16='ENTER DATA HERE - Budget'!$E$10,"Stock","") ->  | E6: =IF('Cash Flow'!$V17='ENTER DATA HERE - Budget'!$E$10,"Stock","") ->  | F6: =IF('Cash Flow'!$V18='ENTER DATA HERE - Budget'!$E$10,"Stock","") ->  | G6: =IF('Cash Flow'!$V19='ENTER DATA HERE - Budget'!$E$10,"Stock","") -> Stock | H6: =IF('Cash Flow'!$V20='ENTER DATA HERE - Budget'!$E$10,"Stock","") -> Stock | I6: =IF('Cash Flow'!$V21='ENTER DATA HERE - Budget'!$E$10,"Stock","") -> Stock | J6: =IF('Cash Flow'!$V22='ENTER DATA HERE - Budget'!$E$10,"Stock","") ->  | K6: =IF('Cash Flow'!$V23='ENTER DATA HERE - Budget'!$E$10,"Stock","") ->  | L6: =IF('Cash Flow'!$V24='ENTER DATA HERE - Budget'!$E$10,"Stock","") ->  | M6: =IF('Cash Flow'!$V25='ENTER DATA HERE - Budget'!$E$10,"Stock","") ->  | N6: =IF('Cash Flow'!$V26='ENTER DATA HERE - Budget'!$E$10,"Stock","") ->  | O6: =IF('Cash Flow'!$V27='ENTER DATA HERE - Budget'!$E$10,"Stock","") -> 
C7: Harvest | D7: =IF('Cash Flow'!$W16='ENTER DATA HERE - Budget'!$E$10,"Harvest","") ->  | E7: =IF('Cash Flow'!$W17='ENTER DATA HERE - Budget'!$E$10,"Harvest","") ->  | F7: =IF('Cash Flow'!$W18='ENTER DATA HERE - Budget'!$E$10,"Harvest","") ->  | G7: =IF('Cash Flow'!$W19='ENTER DATA HERE - Budget'!$E$10,"Harvest","") ->  | H7: =IF('Cash Flow'!$W20='ENTER DATA HERE - Budget'!$E$10,"Harvest","") ->  | I7: =IF('Cash Flow'!$W21='ENTER DATA HERE - Budget'!$E$10,"Harvest","") ->  | J7: =IF('Cash Flow'!$W22='ENTER DATA HERE - Budget'!$E$10,"Harvest","") ->  | K7: =IF('Cash Flow'!$W23='ENTER DATA HERE - Budget'!$E$10,"Harvest","") ->  | L7: =IF('Cash Flow'!$W24='ENTER DATA HERE - Budget'!$E$10,"Harvest","") ->  | M7: =IF('Cash Flow'!$W25='ENTER DATA HERE - Budget'!$E$10,"Harvest","") -> Harvest | N7: =IF('Cash Flow'!$W26='ENTER DATA HERE - Budget'!$E$10,"Harvest","") -> Harvest | O7: =IF('Cash Flow'!$W27='ENTER DATA HERE - Budget'!$E$10,"Harvest","") -> Harvest
B9: Year 3 | C9: Stock | D9: =IF('Cash Flow'!$V28='ENTER DATA HERE - Budget'!$E$10,"Stock","") ->  | E9: =IF('Cash Flow'!$V29='ENTER DATA HERE - Budget'!$E$10,"Stock","") ->  | F9: =IF('Cash Flow'!$V30='ENTER DATA HERE - Budget'!$E$10,"Stock","") ->  | G9: =IF('Cash Flow'!$V31='ENTER DATA HERE - Budget'!$E$10,"Stock","") -> Stock | H9: =IF('Cash Flow'!$V32='ENTER DATA HERE - Budget'!$E$10,"Stock","") -> Stock | I9: =IF('Cash Flow'!$V33='ENTER DATA HERE - Budget'!$E$10,"Stock","") -> Stock | J9: =IF('Cash Flow'!$V34='ENTER DATA HERE - Budget'!$E$10,"Stock","") ->  | K9: =IF('Cash Flow'!$V35='ENTER DATA HERE - Budget'!$E$10,"Stock","") ->  | L9: =IF('Cash Flow'!$V36='ENTER DATA HERE - Budget'!$E$10,"Stock","") ->  | M9: =IF('Cash Flow'!$V37='ENTER DATA HERE - Budget'!$E$10,"Stock","") ->  | N9: =IF('Cash Flow'!$V38='ENTER DATA HERE - Budget'!$E$10,"Stock","") ->  | O9: =IF('Cash Flow'!$V39='ENTER DATA HERE - Budget'!$E$10,"Stock","") -> 
C10: Harvest | D10: =IF('Cash Flow'!$W28='ENTER DATA HERE - Budget'!$E$10,"Harvest","") ->  | E10: =IF('Cash Flow'!$W29='ENTER DATA HERE - Budget'!$E$10,"Harvest","") ->  | F10: =IF('Cash Flow'!$W30='ENTER DATA HERE - Budget'!$E$10,"Harvest","") ->  | G10: =IF('Cash Flow'!$W31='ENTER DATA HERE - Budget'!$E$10,"Harvest","") ->  | H10: =IF('Cash Flow'!$W32='ENTER DATA HERE - Budget'!$E$10,"Harvest","") ->  | I10: =IF('Cash Flow'!$W33='ENTER DATA HERE - Budget'!$E$10,"Harvest","") ->  | J10: =IF('Cash Flow'!$W34='ENTER DATA HERE - Budget'!$E$10,"Harvest","") ->  | K10: =IF('Cash Flow'!$W35='ENTER DATA HERE - Budget'!$E$10,"Harvest","") ->  | L10: =IF('Cash Flow'!$W36='ENTER DATA HERE - Budget'!$E$10,"Harvest","") ->  | M10: =IF('Cash Flow'!$W37='ENTER DATA HERE - Budget'!$E$10,"Harvest","") -> Harvest | N10: =IF('Cash Flow'!$W38='ENTER DATA HERE - Budget'!$E$10,"Harvest","") -> Harvest | O10: =IF('Cash Flow'!$W39='ENTER DATA HERE - Budget'!$E$10,"Harvest","") -> Harvest
B12: Year 4 | C12: Stock | D12: =IF('Cash Flow'!$V40='ENTER DATA HERE - Budget'!$E$10,"Stock","") ->  | E12: =IF('Cash Flow'!$V41='ENTER DATA HERE - Budget'!$E$10,"Stock","") ->  | F12: =IF('Cash Flow'!$V42='ENTER DATA HERE - Budget'!$E$10,"Stock","") ->  | G12: =IF('Cash Flow'!$V43='ENTER DATA HERE - Budget'!$E$10,"Stock","") -> Stock | H12: =IF('Cash Flow'!$V44='ENTER DATA HERE - Budget'!$E$10,"Stock","") -> Stock | I12: =IF('Cash Flow'!$V45='ENTER DATA HERE - Budget'!$E$10,"Stock","") -> Stock | J12: =IF('Cash Flow'!$V46='ENTER DATA HERE - Budget'!$E$10,"Stock","") ->  | K12: =IF('Cash Flow'!$V47='ENTER DATA HERE - Budget'!$E$10,"Stock","") ->  | L12: =IF('Cash Flow'!$V48='ENTER DATA HERE - Budget'!$E$10,"Stock","") ->  | M12: =IF('Cash Flow'!$V49='ENTER DATA HERE - Budget'!$E$10,"Stock","") ->  | N12: =IF('Cash Flow'!$V50='ENTER DATA HERE - Budget'!$E$10,"Stock","") ->  | O12: =IF('Cash Flow'!$V51='ENTER DATA HERE - Budget'!$E$10,"Stock","") ->  | P12: =IF('Cash Flow'!$V52='ENTER DATA HERE - Budget'!$E$10,"Stock","") -> 
C13: Harvest | D13: =IF('Cash Flow'!$W40='ENTER DATA HERE - Budget'!$E$10,"Harvest","") ->  | E13: =IF('Cash Flow'!$W41='ENTER DATA HERE - Budget'!$E$10,"Harvest","") ->  | F13: =IF('Cash Flow'!$W42='ENTER DATA HERE - Budget'!$E$10,"Harvest","") ->  | G13: =IF('Cash Flow'!$W43='ENTER DATA HERE - Budget'!$E$10,"Harvest","") ->  | H13: =IF('Cash Flow'!$W44='ENTER DATA HERE - Budget'!$E$10,"Harvest","") ->  | I13: =IF('Cash Flow'!$W45='ENTER DATA HERE - Budget'!$E$10,"Harvest","") ->  | J13: =IF('Cash Flow'!$W46='ENTER DATA HERE - Budget'!$E$10,"Harvest","") ->  | K13: =IF('Cash Flow'!$W47='ENTER DATA HERE - Budget'!$E$10,"Harvest","") ->  | L13: =IF('Cash Flow'!$W48='ENTER DATA HERE - Budget'!$E$10,"Harvest","") ->  | M13: =IF('Cash Flow'!$W49='ENTER DATA HERE - Budget'!$E$10,"Harvest","") -> Harvest | N13: =IF('Cash Flow'!$W50='ENTER DATA HERE - Budget'!$E$10,"Harvest","") -> Harvest | O13: =IF('Cash Flow'!$W51='ENTER DATA HERE - Budget'!$E$10,"Harvest","") -> Harvest | P13: =IF('Cash Flow'!$W52='ENTER DATA HERE - Budget'!$E$10,"Harvest","") -> 
B15: Year 5 | C15: Stock | D15: =IF('Cash Flow'!$V52='ENTER DATA HERE - Budget'!$E$10,"Stock","") ->  | E15: =IF('Cash Flow'!$V53='ENTER DATA HERE - Budget'!$E$10,"Stock","") ->  | F15: =IF('Cash Flow'!$V54='ENTER DATA HERE - Budget'!$E$10,"Stock","") ->  | G15: =IF('Cash Flow'!$V55='ENTER DATA HERE - Budget'!$E$10,"Stock","") -> Stock | H15: =IF('Cash Flow'!$V56='ENTER DATA HERE - Budget'!$E$10,"Stock","") -> Stock | I15: =IF('Cash Flow'!$V57='ENTER DATA HERE - Budget'!$E$10,"Stock","") -> Stock | J15: =IF('Cash Flow'!$V58='ENTER DATA HERE - Budget'!$E$10,"Stock","") ->  | K15: =IF('Cash Flow'!$V59='ENTER DATA HERE - Budget'!$E$10,"Stock","") ->  | L15: =IF('Cash Flow'!$V60='ENTER DATA HERE - Budget'!$E$10,"Stock","") ->  | M15: =IF('Cash Flow'!$V61='ENTER DATA HERE - Budget'!$E$10,"Stock","") ->  | N15: =IF('Cash Flow'!$V62='ENTER DATA HERE - Budget'!$E$10,"Stock","") ->  | O15: =IF('Cash Flow'!$V63='ENTER DATA HERE - Budget'!$E$10,"Stock","") -> 
C16: Harvest | D16: =IF('Cash Flow'!$W52='ENTER DATA HERE - Budget'!$E$10,"Harvest","") ->  | E16: =IF('Cash Flow'!$W53='ENTER DATA HERE - Budget'!$E$10,"Harvest","") ->  | F16: =IF('Cash Flow'!$W54='ENTER DATA HERE - Budget'!$E$10,"Harvest","") ->  | G16: =IF('Cash Flow'!$W55='ENTER DATA HERE - Budget'!$E$10,"Harvest","") ->  | H16: =IF('Cash Flow'!$W56='ENTER DATA HERE - Budget'!$E$10,"Harvest","") ->  | I16: =IF('Cash Flow'!$W57='ENTER DATA HERE - Budget'!$E$10,"Harvest","") ->  | J16: =IF('Cash Flow'!$W58='ENTER DATA HERE - Budget'!$E$10,"Harvest","") ->  | K16: =IF('Cash Flow'!$W59='ENTER DATA HERE - Budget'!$E$10,"Harvest","") ->  | L16: =IF('Cash Flow'!$W60='ENTER DATA HERE - Budget'!$E$10,"Harvest","") ->  | M16: =IF('Cash Flow'!$W61='ENTER DATA HERE - Budget'!$E$10,"Harvest","") -> Harvest | N16: =IF('Cash Flow'!$W62='ENTER DATA HERE - Budget'!$E$10,"Harvest","") -> Harvest | O16: =IF('Cash Flow'!$W63='ENTER DATA HERE - Budget'!$E$10,"Harvest","") -> Harvest
B18: Year 6 | C18: Stock | D18: =IF('Cash Flow'!$V64='ENTER DATA HERE - Budget'!$E$10,"Stock","") ->  | E18: =IF('Cash Flow'!$V65='ENTER DATA HERE - Budget'!$E$10,"Stock","") ->  | F18: =IF('Cash Flow'!$V66='ENTER DATA HERE - Budget'!$E$10,"Stock","") ->  | G18: =IF('Cash Flow'!$V67='ENTER DATA HERE - Budget'!$E$10,"Stock","") -> Stock | H18: =IF('Cash Flow'!$V68='ENTER DATA HERE - Budget'!$E$10,"Stock","") -> Stock | I18: =IF('Cash Flow'!$V69='ENTER DATA HERE - Budget'!$E$10,"Stock","") -> Stock | J18: =IF('Cash Flow'!$V70='ENTER DATA HERE - Budget'!$E$10,"Stock","") ->  | K18: =IF('Cash Flow'!$V71='ENTER DATA HERE - Budget'!$E$10,"Stock","") ->  | L18: =IF('Cash Flow'!$V72='ENTER DATA HERE - Budget'!$E$10,"Stock","") ->  | M18: =IF('Cash Flow'!$V73='ENTER DATA HERE - Budget'!$E$10,"Stock","") ->  | N18: =IF('Cash Flow'!$V74='ENTER DATA HERE - Budget'!$E$10,"Stock","") ->  | O18: =IF('Cash Flow'!$V75='ENTER DATA HERE - Budget'!$E$10,"Stock","") -> 
C19: Harvest | D19: =IF('Cash Flow'!$W64='ENTER DATA HERE - Budget'!$E$10,"Harvest","") ->  | E19: =IF('Cash Flow'!$W65='ENTER DATA HERE - Budget'!$E$10,"Harvest","") ->  | F19: =IF('Cash Flow'!$W66='ENTER DATA HERE - Budget'!$E$10,"Harvest","") ->  | G19: =IF('Cash Flow'!$W67='ENTER DATA HERE - Budget'!$E$10,"Harvest","") ->  | H19: =IF('Cash Flow'!$W68='ENTER DATA HERE - Budget'!$E$10,"Harvest","") ->  | I19: =IF('Cash Flow'!$W69='ENTER DATA HERE - Budget'!$E$10,"Harvest","") ->  | J19: =IF('Cash Flow'!$W70='ENTER DATA HERE - Budget'!$E$10,"Harvest","") ->  | K19: =IF('Cash Flow'!$W71='ENTER DATA HERE - Budget'!$E$10,"Harvest","") ->  | L19: =IF('Cash Flow'!$W72='ENTER DATA HERE - Budget'!$E$10,"Harvest","") ->  | M19: =IF('Cash Flow'!$W73='ENTER DATA HERE - Budget'!$E$10,"Harvest","") -> Harvest | N19: =IF('Cash Flow'!$W74='ENTER DATA HERE - Budget'!$E$10,"Harvest","") -> Harvest | O19: =IF('Cash Flow'!$W75='ENTER DATA HERE - Budget'!$E$10,"Harvest","") -> Harvest
B21: Year 7 | C21: Stock | D21: =IF('Cash Flow'!$V76='ENTER DATA HERE - Budget'!$E$10,"Stock","") ->  | E21: =IF('Cash Flow'!$V77='ENTER DATA HERE - Budget'!$E$10,"Stock","") ->  | F21: =IF('Cash Flow'!$V78='ENTER DATA HERE - Budget'!$E$10,"Stock","") ->  | G21: =IF('Cash Flow'!$V79='ENTER DATA HERE - Budget'!$E$10,"Stock","") -> Stock | H21: =IF('Cash Flow'!$V80='ENTER DATA HERE - Budget'!$E$10,"Stock","") -> Stock | I21: =IF('Cash Flow'!$V81='ENTER DATA HERE - Budget'!$E$10,"Stock","") -> Stock | J21: =IF('Cash Flow'!$V82='ENTER DATA HERE - Budget'!$E$10,"Stock","") ->  | K21: =IF('Cash Flow'!$V83='ENTER DATA HERE - Budget'!$E$10,"Stock","") ->  | L21: =IF('Cash Flow'!$V84='ENTER DATA HERE - Budget'!$E$10,"Stock","") ->  | M21: =IF('Cash Flow'!$V85='ENTER DATA HERE - Budget'!$E$10,"Stock","") ->  | N21: =IF('Cash Flow'!$V86='ENTER DATA HERE - Budget'!$E$10,"Stock","") ->  | O21: =IF('Cash Flow'!$V87='ENTER DATA HERE - Budget'!$E$10,"Stock","") -> 
C22: Harvest | D22: =IF('Cash Flow'!$W76='ENTER DATA HERE - Budget'!$E$10,"Harvest","") ->  | E22: =IF('Cash Flow'!$W77='ENTER DATA HERE - Budget'!$E$10,"Harvest","") ->  | F22: =IF('Cash Flow'!$W78='ENTER DATA HERE - Budget'!$E$10,"Harvest","") ->  | G22: =IF('Cash Flow'!$W79='ENTER DATA HERE - Budget'!$E$10,"Harvest","") ->  | H22: =IF('Cash Flow'!$W80='ENTER DATA HERE - Budget'!$E$10,"Harvest","") ->  | I22: =IF('Cash Flow'!$W81='ENTER DATA HERE - Budget'!$E$10,"Harvest","") ->  | J22: =IF('Cash Flow'!$W82='ENTER DATA HERE - Budget'!$E$10,"Harvest","") ->  | K22: =IF('Cash Flow'!$W83='ENTER DATA HERE - Budget'!$E$10,"Harvest","") ->  | L22: =IF('Cash Flow'!$W84='ENTER DATA HERE - Budget'!$E$10,"Harvest","") ->  | M22: =IF('Cash Flow'!$W85='ENTER DATA HERE - Budget'!$E$10,"Harvest","") -> Harvest | N22: =IF('Cash Flow'!$W86='ENTER DATA HERE - Budget'!$E$10,"Harvest","") -> Harvest | O22: =IF('Cash Flow'!$W87='ENTER DATA HERE - Budget'!$E$10,"Harvest","") -> Harvest
B24: Year 8 | C24: Stock | D24: =IF('Cash Flow'!$V88='ENTER DATA HERE - Budget'!$E$10,"Stock","") ->  | E24: =IF('Cash Flow'!$V89='ENTER DATA HERE - Budget'!$E$10,"Stock","") ->  | F24: =IF('Cash Flow'!$V90='ENTER DATA HERE - Budget'!$E$10,"Stock","") ->  | G24: =IF('Cash Flow'!$V91='ENTER DATA HERE - Budget'!$E$10,"Stock","") -> Stock | H24: =IF('Cash Flow'!$V92='ENTER DATA HERE - Budget'!$E$10,"Stock","") -> Stock | I24: =IF('Cash Flow'!$V93='ENTER DATA HERE - Budget'!$E$10,"Stock","") -> Stock | J24: =IF('Cash Flow'!$V94='ENTER DATA HERE - Budget'!$E$10,"Stock","") ->  | K24: =IF('Cash Flow'!$V95='ENTER DATA HERE - Budget'!$E$10,"Stock","") ->  | L24: =IF('Cash Flow'!$V96='ENTER DATA HERE - Budget'!$E$10,"Stock","") ->  | M24: =IF('Cash Flow'!$V97='ENTER DATA HERE - Budget'!$E$10,"Stock","") ->  | N24: =IF('Cash Flow'!$V98='ENTER DATA HERE - Budget'!$E$10,"Stock","") ->  | O24: =IF('Cash Flow'!$V99='ENTER DATA HERE - Budget'!$E$10,"Stock","") -> 
C25: Harvest | D25: =IF('Cash Flow'!$W88='ENTER DATA HERE - Budget'!$E$10,"Harvest","") ->  | E25: =IF('Cash Flow'!$W89='ENTER DATA HERE - Budget'!$E$10,"Harvest","") ->  | F25: =IF('Cash Flow'!$W90='ENTER DATA HERE - Budget'!$E$10,"Harvest","") ->  | G25: =IF('Cash Flow'!$W91='ENTER DATA HERE - Budget'!$E$10,"Harvest","") ->  | H25: =IF('Cash Flow'!$W92='ENTER DATA HERE - Budget'!$E$10,"Harvest","") ->  | I25: =IF('Cash Flow'!$W93='ENTER DATA HERE - Budget'!$E$10,"Harvest","") ->  | J25: =IF('Cash Flow'!$W94='ENTER DATA HERE - Budget'!$E$10,"Harvest","") ->  | K25: =IF('Cash Flow'!$W95='ENTER DATA HERE - Budget'!$E$10,"Harvest","") ->  | L25: =IF('Cash Flow'!$W96='ENTER DATA HERE - Budget'!$E$10,"Harvest","") ->  | M25: =IF('Cash Flow'!$W97='ENTER DATA HERE - Budget'!$E$10,"Harvest","") -> Harvest | N25: =IF('Cash Flow'!$W98='ENTER DATA HERE - Budget'!$E$10,"Harvest","") -> Harvest | O25: =IF('Cash Flow'!$W99='ENTER DATA HERE - Budget'!$E$10,"Harvest","") -> Harvest
B27: Year 9 | C27: Stock | D27: =IF('Cash Flow'!$V100='ENTER DATA HERE - Budget'!$E$10,"Stock","") ->  | E27: =IF('Cash Flow'!$V101='ENTER DATA HERE - Budget'!$E$10,"Stock","") ->  | F27: =IF('Cash Flow'!$V102='ENTER DATA HERE - Budget'!$E$10,"Stock","") ->  | G27: =IF('Cash Flow'!$V103='ENTER DATA HERE - Budget'!$E$10,"Stock","") -> Stock | H27: =IF('Cash Flow'!$V104='ENTER DATA HERE - Budget'!$E$10,"Stock","") -> Stock | I27: =IF('Cash Flow'!$V105='ENTER DATA HERE - Budget'!$E$10,"Stock","") -> Stock | J27: =IF('Cash Flow'!$V106='ENTER DATA HERE - Budget'!$E$10,"Stock","") ->  | K27: =IF('Cash Flow'!$V107='ENTER DATA HERE - Budget'!$E$10,"Stock","") ->  | L27: =IF('Cash Flow'!$V108='ENTER DATA HERE - Budget'!$E$10,"Stock","") ->  | M27: =IF('Cash Flow'!$V109='ENTER DATA HERE - Budget'!$E$10,"Stock","") ->  | N27: =IF('Cash Flow'!$V110='ENTER DATA HERE - Budget'!$E$10,"Stock","") ->  | O27: =IF('Cash Flow'!$V111='ENTER DATA HERE - Budget'!$E$10,"Stock","") -> 
